Workbook

Sheet Cover
A1: Distributed Energy Resource Interconnection Distribution Cost Allocation Calculator
B4: Prepared by
B13: 44 Montgomery Street, Suite 1250
B14: San Francisco, CA 94104
B15: (415) 391-5100
B17: 2026-06-24
B19: Instructions
B21: 1. Navigate to the "User Inputs" sheet to fill out the required inputs. A brief set of inputs allows a user compare cost allocation approaches, with options to add more detail. In order to create jurisdiction-specific values, E3 encourages users to use the "User Input" option for all inputs.
B22: 1.b. If a user has the data to include additional details, they may enter information on "Advanced User Inputs"
B23: 2. If a user does not have access to inputs, they may select "Low, Medium, or High" from the dropdown to use an E3 placeholder value. More information on these values can be found in the "User Inputs" sheet.
B24: 3. Navigate to "Results Summary" and select two scenarios to compare. "Full Results" also includes additional figures on results for each scenario.
B25: Additional information can be found on the "START HERE" worksheet.
B27: NOTE: Additional instructions, caveats, and recommendations can be found in gold boxes throughout the model.
B29: Table of Contents
B31: Sheet | C31: Link | D31: Section | E31: Description | F31: Change Log (Since 4/30/2026) | G31: Change Log (Since 5/05/2026) | H31: Change Log (Since 6/01/2026)
B32: Cover | C32: =HYPERLINK(_xlfn.CONCAT(_xlfn.CONCAT("[", _xlfn.TEXTAFTER(_xlfn.TEXTBEFORE(CELL("filename",A7),"]"), "["),"]"), "'", B32,"'!A1"),"Link") -> Link | D32: Cover | E32: Cover sheet
B33: START HERE | C33: Link | E33: Description of model purpose and user guide | H33: New sheet
B34: User Inputs | C34: =HYPERLINK(_xlfn.CONCAT(_xlfn.CONCAT("[", _xlfn.TEXTAFTER(_xlfn.TEXTBEFORE(CELL("filename",A9),"]"), "["),"]"), "'", B34,"'!A1"),"Link") -> Link | D34: Inputs | E34: Required user inputs to create active scenarios | F34: Added additional context and documentation. Adjusted calculation of Unit Cost. Removed existing asset depreciation to avoid double counting. Added flag for when DER forecast is greater than available capacity. Changed upgrade sizing to allow specification of amount of hosting capacity used. | G34: Updated methodologies and scenario-specific inputs. | H34: Updated labels, added additional context
B35: Advanced User Inputs | C35: Link | E35: Additional inputs for advanced use. | F35: New sheet.
B36: Results Summary | C36: Link | D36: Results | E36: Abbreviated results for simple viewing | H36: New sheet
B37: Full Results | C37: =HYPERLINK(_xlfn.CONCAT(_xlfn.CONCAT("[", _xlfn.TEXTAFTER(_xlfn.TEXTBEFORE(CELL("filename",A10),"]"), "["),"]"), "'", B37,"'!A1"),"Link") -> Link | E37: Detailed results sheet for comparing two scenarios | F37: Added color coding by scenario. | G37: Added caveats and assumptions to the inputs. Added revenue (non-rate base) to ratepayer cost impacts. Added new NPV figures. Added tracking of "Additional DERs" and contributions to a DER fund. | H37: Added $/kW to DER metrics
B38: 1. Cost Causer | C38: =HYPERLINK(_xlfn.CONCAT(_xlfn.CONCAT("[", _xlfn.TEXTAFTER(_xlfn.TEXTBEFORE(CELL("filename",A12),"]"), "["),"]"), "'", B38,"'!A1"),"Link") -> Link | D38: Scenario Calculations | E38: Full calculations of DER and ratepayers costs by scenario | G38: Updated methodologies.
B39: 2. Per-System | C39: =HYPERLINK(_xlfn.CONCAT(_xlfn.CONCAT("[", _xlfn.TEXTAFTER(_xlfn.TEXTBEFORE(CELL("filename",A13),"]"), "["),"]"), "'", B39,"'!A1"),"Link") -> Link | G39: Updated methodologies.
B40: 3. Pro-Rata (Static) | C40: =HYPERLINK(_xlfn.CONCAT(_xlfn.CONCAT("[", _xlfn.TEXTAFTER(_xlfn.TEXTBEFORE(CELL("filename",A14),"]"), "["),"]"), "'", B40,"'!A1"),"Link") -> Link | G40: Updated methodologies.
B41: 4. Pro-Rata (Dynamic) | C41: =HYPERLINK(_xlfn.CONCAT(_xlfn.CONCAT("[", _xlfn.TEXTAFTER(_xlfn.TEXTBEFORE(CELL("filename",A15),"]"), "["),"]"), "'", B41,"'!A1"),"Link") -> Link | F41: Added additional context of impact of the DER forecast on reimbursement. | G41: Updated methodologies. | H41: Switched naming on methodologies. Shifted upfront costs to utility, rather than DER.
B42: 5. Reimbursement | C42: =HYPERLINK(_xlfn.CONCAT(_xlfn.CONCAT("[", _xlfn.TEXTAFTER(_xlfn.TEXTBEFORE(CELL("filename",A16),"]"), "["),"]"), "'", B42,"'!A1"),"Link") -> Link | G42: Updated methodologies. | H42: Switched naming on methodologies.
B43: 6. Locational | C43: =HYPERLINK(_xlfn.CONCAT(_xlfn.CONCAT("[", _xlfn.TEXTAFTER(_xlfn.TEXTBEFORE(CELL("filename",A17),"]"), "["),"]"), "'", B43,"'!A1"),"Link") -> Link | G43: Updated methodologies.
B44: 7. Export Tariff | C44: =HYPERLINK(_xlfn.CONCAT(_xlfn.CONCAT("[", _xlfn.TEXTAFTER(_xlfn.TEXTBEFORE(CELL("filename",A18),"]"), "["),"]"), "'", B44,"'!A1"),"Link") -> Link | G44: Updated methodologies.
B45: 8. Multi-Bene (Allocation) | C45: =HYPERLINK(_xlfn.CONCAT(_xlfn.CONCAT("[", _xlfn.TEXTAFTER(_xlfn.TEXTBEFORE(CELL("filename",A19),"]"), "["),"]"), "'", B45,"'!A1"),"Link") -> Link | G45: Updated methodologies.
B46: 9. Multi-Bene (System) | C46: =HYPERLINK(_xlfn.CONCAT(_xlfn.CONCAT("[", _xlfn.TEXTAFTER(_xlfn.TEXTBEFORE(CELL("filename",A18),"]"), "["),"]"), "'", B46,"'!A1"),"Link") -> Link | G46: Updated methodologies.
B47: Full Results Database | C47: =HYPERLINK(_xlfn.CONCAT(_xlfn.CONCAT("[", _xlfn.TEXTAFTER(_xlfn.TEXTBEFORE(CELL("filename",A11),"]"), "["),"]"), "'", B47,"'!A1"),"Link") -> Link | E47: Full detailed results for all scenarios | G47: Updated methodologies.
B48: Lists | C48: =HYPERLINK(_xlfn.CONCAT(_xlfn.CONCAT("[", _xlfn.TEXTAFTER(_xlfn.TEXTBEFORE(CELL("filename",A19),"]"), "["),"]"), "'", B48,"'!A1"),"Link") -> Link | D48: Supporting Data | E48: Additional data | F48: Added additional sources.
B49: Export Shapes | C49: =HYPERLINK(_xlfn.CONCAT(_xlfn.CONCAT("[", _xlfn.TEXTAFTER(_xlfn.TEXTBEFORE(CELL("filename",A20),"]"), "["),"]"), "'", B49,"'!A1"),"Link") -> Link | E49: 8760 solar export shape for Export Tariff | G49: New sheet
B50: Full Inputs List | C50: =HYPERLINK(_xlfn.CONCAT(_xlfn.CONCAT("[", _xlfn.TEXTAFTER(_xlfn.TEXTBEFORE(CELL("filename",A21),"]"), "["),"]"), "'", B50,"'!A1"),"Link") -> Link | E50: Summary of all user input data to support data gathering | H50: New sheet
B52: Cell Style Legend
B54: Cells in this tool are color-coded to indicate intent:
B56: User Inputs
B57: Dropdown User Inputs
B59: Calculations or Fixed Values
B60: Calculations (different formula than neighboring cells)
B62: Table Headers
B63: Table Sub-Headers
B64: Table Index (Row Descriptions)

Sheet START HERE
A2: 1. Background and Framing
B3: 1.a. Project Background
C4: - Growth of DER interconnection is requiring distribution upgrades in jurisdictions across the country. - These costs could be paid in full by the interconnecting DER customer, split among present, past, or future DERs, by ratepayers, or in combination. - Jurisdictions use different cost allocation methodologies for distribution system upgrades required for DER interconnection. - LBNL has authored a report for DOE, which discusses these methodologies and their trade-offs.
B6: 1.b. About the Calculator
C7: - To support the LBNL report, Energy and Environmental Economics (E3) created a public tool to calculate the impact of different cost allocation methods. - Cost allocation and distribution planning are inherently locationally- and jurisdictionally-specific, so jurisdictions considering changes need tools that allow them to consider their unique context. - This tool is intended to support jurisdictions to examine and compare potential changes to DER interconnection cost allocation methodologies.
A9: 2. Calculator Objectives
B10: 2.a. Key Objectives
C11: - Support jurisdictions in assessing how a variety of methodologies that assess cost-causation and beneficiaries differently affect achievement of various cost allocation objectives - Create illustrative, transparent, and adaptable analysis to support comparison of cost impacts to DER owners and ratepayers broadly across cost allocation methodologies
B13: 2.b. Guiding Questions
C14: - Who pays for the distribution upgrades to support DER interconnection? - What is the impact of these costs for the DER owner or future DER owners? - What is the impact of these costs to ratepayers? - How do these impacts affect achievement of various cost allocation objectives outlined in the report?
B16: 2.c. Model Outputs
C17: - Annual and NPV DER owner cost impacts - Annual and NPV ratepayer or utility impacts - Annual and NPV impacts to future DER interconnections
B19: 2.d. Key Limitations
C20: - Uses simplified logic to compare results from different methodologies - Provides the most useful results when users input jurisdiction-specific costs and other data - Not a full cost-of-service model and does not replace cost of service or rate case processes
A22: 3. Intended Use for the Calculator
B23: 3.a. Why Consider Different Methodologies?
C24: - Regulatory agencies may have upcoming or ongoing proceedings to improve DER interconnection. - Decisionmakers may want to better understand how cost allocation methodologies in use today reflect cost-causation for distribution grid upgrades and consider the cost impacts to DER developers, owners, and aggregators ("DERs" hereafter) and ratepayers. - Cost allocation affects achievement of various jurisdiction-specific goals, for example, areas with highly constrained grids may want to understand methodologies that can lower costs for additional DERs sited in locations where interconnection-related distribution upgrades are made.
B26: 3.b. Who Might Use This Tool?
C27: - Parties engaged in relevant utility regulatory proceedings, such as representatives of DER owners, DER aggregators, utilities, state energy offices, and utility consumer advocates. - Regulators considering proposed changes to tariffs or regulations.
B29: 3.c. What Can Users Do With This Tool?
C30: - Compare the financial impacts of cost allocation on DER owners and ratepayers across multiple cost allocation methodologies. - Explore the impacts of potential levers or implementation details within each methodology. - Understand how results change when using jurisdiction-specific values.
A32: 4. Additional Information to Support Users
B34: 4.a Quick Start Guide
C35: - This calculator can be used to compare two potential cost allocation methodologies to understand their impacts on different parties. - For example (see below), the tool can be used to understand how the costs a triggering DER might experience over time under a "reimbursement" style cost allocation, as opposed to a "cost causer pays" approach.
C48: - Each of these results relies on a number of inputs. Some of these are "universal inputs" that apply to all scenarios and some are "scenario-specific" inputs that apply to just one scenario. - The default values in the model are intended to be general and representative, but are not jurisdiction-specific, and therefore are not revenue neutral for a specific utility or jurisdiction. - As such, users are strongly encouraged to use local data to best align the model with real-world outcomes.
B49: 4.b Accessing Customized Data
C50: - E3 recommends using jurisdiction-specific data whenever possible in this tool. - The Full Inputs List tab has a checklist of all data needed in the model that could be requested from local utilities or other stakeholders.

Sheet Inputs and Results >>
A1: This Sheet Intentionally Left Blank

Sheet User Inputs
A2: Worksheet Instructions
B4: - For each line of inputs below, select an input option in Column E. If selecting "User Input", enter the value to use in Column F.
C5: - For each input, E3 has included a Low/Medium/High placeholder value. These values may not be appropriate for all
C6: jurisdictions, situations, or DER sizes, so E3 strongly recommends using user input, jurisdiction-specific data.
B7: - Inputs are divided into "Basic Universal", "Advanced Universal", Inputs and "Scenario-Specific" Inputs.
C8: - Universal Inputs apply to all or most scenarios.
C9: - Advanced Universal Inputs can be found on the following sheet.
C10: - Scenario-Specific Inputs apply to only one specific scenario. For these inputs, the user is responsible for choosing inputs that support revenue neutrality in a specific jurisdiction.
B11: - Cell shaded orange are dropdown inputs. Cells shaded yellow are free-entry user inputs. All other cells (grey, blue, etc.) should not be edited.
B13: Users should use user-input jurisdiction-specific sources where possible. Default values are illustrative and not appropriate or accurate for all jurisdictions.
B16: NOTE: Yellow and orange cells (see right) are user inputs, all other cells should not be edited. E3 recommends using the "User Input" option from the dropdown where jurisdiction-specific information is available. | I16: Example Dropdown
I17: Example Input
A19: Basic Universal Inputs - Used for All Scenarios
B21: - All users should toggle the following inputs to model the project most applicable to a specific situation.
B22: - Primary distribution refers to the higher voltage portion of the distribution system that connects substations to neighborhoods.
B23: - Large community scale resources may connect at primary level, or cumulative small upgrades at the secondary level may require primary upgrades.
B24: - Secondary distribution refers to the lower voltage portion parts of the distribution system that connect directly to individual residential and commercial customers.
B25: - Smaller, customer sited DERs will interconnect at the secondary level and may trigger secondary upgrades
B26: - The "Interconnecting" DER refers to a single DER, or a cluster of DERs that come online in the same year, that are triggering the upgrade. The model is centered on this DER.
B28: Interconnecting DER Size
C30: Input | D30: Units | E30: User Selection | F30: User Input (If Used) | G30: Selected Value | H30: // | I30: Low | J30: Medium | K30: High | L30: Notes and Sources
B31: Upgrades Needed and Interconnection Size
B32: [1] | C32: Upgrade Required | D32: Dropdown | E32: Primary | G32: =IF($E32="User Input",$F32,$E32) -> Primary | I32: N/A | J32: Secondary | K32: Primary | L32: Whether and at which voltage/distribution level an upgrade is required.
B33: [2] | C33: Interconnecting DER Size | D33: kW | E33: Medium | F33: 20 | G33: =IF($E33="User Input",$F33, INDEX($I33:$K33,MATCH($E33,$I$30:$K$30,0))) -> 500 | I33: =IF($E$32=$J$32,I34,I35) -> 100 | J33: =IF($E$32=$J$32,J34,J35) -> 500 | K33: =IF($E$32=$J$32,K34,K35) -> 1000 | L33: Representative sizes. Smaller sizes for secondary upgrades and larger sizes for primary upgrades are recommended.
I34: 5 | J34: 30 | K34: 50
I35: 100 | J35: 500 | K35: 1000
B36: [3] | C36: Unitized Project Cost to be Allocated | D36: $/kW | E36: Medium | F36: 1000 | G36: =IF($E36="User Input",$F36,INDEX($I36:$K36,MATCH($E36,'Advanced User Inputs'!$I$23:$K$23,0))) -> 400 | I36: 20 | J36: 400 | K36: 1000 | L36: Unit costs to represents different levels and sizes of upgrades.
B38: [1] The model allows for an interconnection to trigger no upgrade, a secondary system upgrade, or a primary system upgrade. The model does not include scenario where an interconnection triggers both a secondary and primary upgrade.
B39: [2] Default upgrade sizes differ for primary and secondary interconnection.
B40: [3] Reflects the unit cost for the type of upgrade selected. Default Low, Medium, and High costs represent approximate unitized costs for different levels of upgrades (e.g. regulator adjustment, reconductoring, protection, or transformer replacement).
C41: Costs are drawn from NLR and CA IOU unit cost guides: https://data.nlr.gov/submissions/101, https://www.pge.com/assets/pge/docs/about/doing-business-with-pge/unit-cost-guide.pdf, and others
C42: This calculation does not include any early retirement cost for existing assets. The removal costs of existing assets, either at end of life or early retired are included in project costs, and most assets are assumed to be re-used in other locations.
B44: Upgrade Sizing
C46: Input | D46: Units | E46: User Selection | F46: User Input (If Used) | G46: Selected Value | H46: // | I46: Low | J46: Medium | K46: High | L46: Notes and Sources
B47: Upgrades Needed and Interconnection Size
C48: Current Dx Asset Capacity | D48: kW | G48: =IF($G$32= "Primary", 'Advanced User Inputs'!$G$45, IF($G$32 = "Secondary", 'Advanced User Inputs'!G26,0)) -> 7500 | L48: See "Advanced User Inputs" for more details or to edit
B49: [4] | C49: Minimum Required Dx Asset Capacity | D49: kW | G49: =IF($G$32= "Primary", 'Advanced User Inputs'!$G$49, IF($G$32 = "Secondary", 'Advanced User Inputs'!G30,0)) -> 7500
B50: [5] | C50: Use Min. Capacity Or Upsize Capacity | D50: kW | E50: Upsize (User Input) | F50: 15000 | G50: =IF(E50="Minimum",G49,F50) -> 15000
B51: [5] | C51: Selected Dx Asset Capacity | D51: kW | G51: =IF($E$50= "Minimum", G49,MAX(G49,G50)) -> 15000
B53: [4] The model calculates the next largest asset size that can accommodate the additional DER.
B54: [5] A user can choose to "upsize" the asset to create additional headroom by selecting a different asset size. If this user-input size is smaller than the recommended size, the model will choose the larger of the two.
A56: Scenario Specific Inputs
B58: Users should use user-input jurisdiction-specific sources where possible. Default values are illustrative and not appropriate or accurate for all jurisdictions. Many of these inputs require jurisdiction-specific information to achieve revenue-neutral or comparable input values.
A62: Scenario #2: Per-System Cost
C63: Input | D63: Units | E63: User Selection | F63: User Input (If Used) | G63: Selected Value | H63: // | I63: Low | J63: Medium | K63: High | L63: Notes and Sources
A64: 2 | C64: Per System Cost | D64: $ | E64: Medium | G64: =IF($E64="User Input",$F64,INDEX($I64:$K64,MATCH($E64,'Advanced User Inputs'!$I$23:$K$23,0))) -> 200 | I64: 150 | J64: 200 | K64: 300 | L64: Representative assumptions for small systems | M64: Reimbursement
A66: Scenario #3: Static Pro-Rata Allocation
C67: Input | D67: Units | E67: User Selection | F67: User Input (If Used) | G67: Selected Value | H67: // | I67: Low | J67: Medium | K67: High | L67: Notes and Sources
A68: 3 | C68: Per kW Charge | D68: $/kW | E68: Medium | G68: =IF($E68="User Input",$F68,INDEX($I68:$K68,MATCH($E68,'Advanced User Inputs'!$I$23:$K$23,0))) -> 25 | I68: 10 | J68: 25 | K68: 50 | L68: Representative assumptions for small systems | M68: Reimbursement
A70: Scenario #4: Pro-Rata (Dynamic)
C71: Input | D71: Units | E71: User Selection | F71: User Input (If Used) | G71: Selected Value | H71: // | I71: Low | J71: Medium | K71: High | L71: Notes and Sources
A72: 4 | C72: Interconnection Period | D72: Year | E72: Medium | G72: =IF($E72="User Input",$F72,INDEX($I72:$K72,MATCH($E72,'Advanced User Inputs'!$I$23:$K$23,0))) -> 10 | I72: 5 | J72: 10 | K72: 15 | L72: Representative assumptions for small systems | M72: Reimbursement
A74: Scenario #6: Locational Scarcity
C75: Input | D75: Units | E75: User Selection | F75: User Input (If Used) | G75: Selected Value | H75: // | I75: Low | J75: Medium | K75: High | L75: Notes and Sources
A76: 6 | C76: Unallocated Upgrade Value Across All Feeders | D76: $ | E76: Medium | G76: =IF($E76="User Input",$F76,INDEX($I76:$K76,MATCH($E76,'Advanced User Inputs'!$I$23:$K$23,0))) -> 7500000 | I76: 7500000 | J76: 7500000 | K76: 7500000 | L76: Representative inputs to align with BGE and Pepco values, ranging from $2 to $188 per kW. Real values will rely on jurisdictionally specific inputs.
A77: 6 | C77: Number of Feeders | D77: # | E77: Medium | G77: =IF($E77="User Input",$F77,INDEX($I77:$K77,MATCH($E77,'Advanced User Inputs'!$I$23:$K$23,0))) -> 50 | I77: 50 | J77: 50 | K77: 50
A78: 6 | C78: Existing Headroom on Location-Specific Feeder | D78: kW | E78: Medium | G78: =IF($E78="User Input",$F78,INDEX($I78:$K78,MATCH($E78,'Advanced User Inputs'!$I$23:$K$23,0))) -> 10000 | I78: 100000 | J78: 10000 | K78: 1000
A79: 6 | C79: Feeder-Specific Upgrade Cost | D79: $/kW | G79: =G76/G77/G78 -> 15 | L79: Calculated based on inputs above.
A81: Scenario #7: Export Tariff
C82: Input | D82: Units | E82: User Selection | F82: User Input (If Used) | G82: Selected Value | H82: // | I82: Low | J82: Medium | K82: High | L82: Notes and Sources
A83: 7 | C83: Charge for Excessive Export | D83: $/kWh | E83: Medium | G83: =IF($E83="User Input",$F83,INDEX($I83:$K83,MATCH($E83,'Advanced User Inputs'!$I$23:$K$23,0))) -> 0.01 | I83: 0.005 | J83: 0.01 | K83: 0.05 | L83: Representative assumptions based on jurisdictional values. Heavily upgrade specific | M83: Reimbursement
A84: 7 | C84: Daily Excess Level for Peak Period Exports | D84: kWh | E84: Medium | G84: =IF($E84="User Input",$F84,INDEX($I84:$K84,MATCH($E84,'Advanced User Inputs'!$I$23:$K$23,0))) -> 10 | I84: 0 | J84: 10 | K84: 1000 | L84: Representative assumptions based on jurisdictional values. Heavily upgrade specific | M84: Reimbursement
A85: 7 | C85: Export Shape (8760) | D85: n/a | E85: Medium | F85: Enter User Inputs data on "Export Shapes" sheet | I85: See "Export Shapes" for additional information on load shapes | L85: Low/Med/High all refer to the same PV load shape. More details and 8760 User Input can be found on "Export Shapes" | M85: Reimbursement
A86: 7 | C86: Hours Included for Export Peak | D86: n/a | E86: Medium | G86: See below | I86: 12p - 2p | J86: 10a - 4p | K86: 9a - 6p | L86: Representative assumptions based on jurisdictional values. Heavily upgrade specific | M86: Reimbursement
C88: TRUE = Peak Hour, FALSE = Off-Peak Hour | I88: 0 | J88: =I88+1 -> 1 | K88: 2 | L88: 3 | M88: 4 | N88: 5 | O88: 6 | P88: 7 | Q88: 8 | R88: 9 | S88: 10 | T88: 11 | U88: 12 | V88: 13 | W88: 14 | X88: 15 | Y88: 16 | Z88: 17 | AA88: 18 | AB88: 19 | AC88: 20 | AD88: 21 | AE88: 22 | AF88: 23
C89: Low | I89: FALSE | J89: FALSE | K89: FALSE | L89: FALSE | M89: FALSE | N89: FALSE | O89: FALSE | P89: FALSE | Q89: FALSE | R89: FALSE | S89: FALSE | T89: FALSE | U89: TRUE | V89: TRUE | W89: FALSE | X89: FALSE | Y89: FALSE | Z89: FALSE | AA89: FALSE | AB89: FALSE | AC89: FALSE | AD89: FALSE | AE89: FALSE | AF89: FALSE
C90: Medium | I90: FALSE | J90: FALSE | K90: FALSE | L90: FALSE | M90: FALSE | N90: FALSE | O90: FALSE | P90: FALSE | Q90: FALSE | R90: FALSE | S90: TRUE | T90: TRUE | U90: TRUE | V90: TRUE | W90: TRUE | X90: TRUE | Y90: FALSE | Z90: FALSE | AA90: FALSE | AB90: FALSE | AC90: FALSE | AD90: FALSE | AE90: FALSE | AF90: FALSE
C91: High | I91: FALSE | J91: FALSE | K91: FALSE | L91: FALSE | M91: FALSE | N91: FALSE | O91: FALSE | P91: FALSE | Q91: FALSE | R91: TRUE | S91: TRUE | T91: TRUE | U91: TRUE | V91: TRUE | W91: TRUE | X91: TRUE | Y91: TRUE | Z91: TRUE | AA91: FALSE | AB91: FALSE | AC91: FALSE | AD91: FALSE | AE91: FALSE | AF91: FALSE
C93: User Input (If Used) | I93: FALSE | J93: FALSE | K93: FALSE | L93: FALSE | M93: FALSE | N93: FALSE | O93: FALSE | P93: FALSE | Q93: FALSE | R93: TRUE | S93: TRUE | T93: TRUE | U93: TRUE | V93: TRUE | W93: TRUE | X93: TRUE | Y93: TRUE | Z93: TRUE | AA93: FALSE | AB93: FALSE | AC93: FALSE | AD93: FALSE | AE93: FALSE | AF93: FALSE
C94: Selected Value | I94: =IF($E$86="User Input",I93,INDEX(I$89:I$91,MATCH($E$86,$C$89:$C$91,0))) -> FALSE | J94: FALSE | K94: FALSE | L94: FALSE | M94: FALSE | N94: FALSE | O94: FALSE | P94: FALSE | Q94: FALSE | R94: FALSE | S94: TRUE | T94: TRUE | U94: TRUE | V94: TRUE | W94: TRUE | X94: TRUE | Y94: FALSE | Z94: FALSE | AA94: FALSE | AB94: FALSE | AC94: FALSE | AD94: FALSE | AE94: FALSE | AF94: FALSE
A96: Scenario #8: Multi-Beneficiary (Allocation)
C97: Input | D97: Units | E97: User Selection | F97: User Input (If Used) | G97: Selected Value | H97: // | I97: Low | J97: Medium | K97: High | L97: Notes and Sources
A98: 8 | C98: Percent Cost Allocated to DERs | D98: % | E98: Medium | G98: =IF($E98="User Input",$F98,INDEX($I98:$K98,MATCH($E98,'Advanced User Inputs'!$I$23:$K$23,0))) -> 0.5 | I98: 0.3 | J98: 0.5 | K98: 0.7 | L98: Representative assumptions based on jurisdictional values. Heavily upgrade specific | M98: Reimbursement
A99: 8 | C99: Upgrade Capacity Allocated to DERs | D99: % | E99: Medium | G99: =IF($E99="User Input",$F99,INDEX($I99:$K99,MATCH($E99,'Advanced User Inputs'!$I$23:$K$23,0))) -> 0.5333333333 | I99: =$G$33 / IF($G$32 = "Secondary", 'Advanced User Inputs'!$G$31+$G$33, 'Advanced User Inputs'!$G$50+$G$33) -> 0.06666666667 | J99: =AVERAGE(I99,K99) -> 0.5333333333 | K99: 1 | L99: Low assumes only DER capacity is the identified DER. High assumes all additional capacity is for DERs. | M99: Reimbursement
A101: Scenario #9: Multi-Beneficiary (System)
C102: Input | D102: Units | E102: User Selection | F102: User Input (If Used) | G102: Selected Value | H102: // | I102: Low | J102: Medium | K102: High | L102: Notes and Sources
A103: 9 | C103: System Cost per Capacity Enabled | D103: $/kW | E103: Medium | G103: =IF($E103="User Input",$F103,INDEX($I103:$K103,MATCH($E103,'Advanced User Inputs'!$I$23:$K$23,0))) -> 200 | I103: 100 | J103: 200 | K103: 400 | L103: Low assumes only DER capacity is the identified DER. High assumes all additional capacity is for DERs. | M103: Reimbursement

Sheet Advanced User Inputs
A2: Worksheet Instructions
B4: - For each line of inputs below, select an input option in Column E. If selecting "User Input", enter the value to use in Column F.
C5: - For each input, E3 has included a Low/Medium/High placeholder value. These values may not be appropriate for all
C6: jurisdictions, situations, or DER sizes, so E3 strongly recommends using user input, jurisdiction-specific data.
B7: - Cell shaded orange are dropdown inputs. Cells shaded yellow are free-entry user inputs. All other cells (grey, blue, etc.) should not be edited.
B9: NOTE: Yellow and orange cells (see right) are user inputs, all other cells should not be edited. E3 recommends using the "User Input" option from the dropdown where jurisdiction-specific information is available. | I9: Example Dropdown
I10: Example Input
A12: Advanced Universal Inputs - Used for All Scenarios
B13: - Advanced inputs control the detailed assumptions underlying upgrade sizing and cost calculations.
B14: - These inputs are more sensitive to local system conditions and may vary significantly across jurisdictions.
B15: - Users with access to state-specific data are strongly encouraged to customize them, but the Medium placeholder values may provide reasonable defaults for general exploration
B16: - The "Secondary" and "Primary" sections will only populate when the relevant upgrade is selected on the "User Inputs" sheet.
B18: Users should use jurisdiction-specific sources where possible. Default values are illustrative and not appropriate for all jurisdictions.
B20: Click "+" to the left to view or edit Advanced Universal Inputs
B21: Upgrade Size and Cost Assumptions - Secondary System
C23: Input | D23: Units | E23: User Selection | F23: User Input (If Used) | G23: Selected Value | H23: // | I23: Low | J23: Medium | K23: High | L23: Notes and Sources
B24: [1] | C24: Upgrade System Impacts - Secondary System | D24: Boolean | F24: FALSE | G24: =IF('User Inputs'!$G$32 <> $V24, FALSE, TRUE) -> FALSE | V24: Secondary
B25: Current Transformer(s)
B26: [2] | C26: Current Transformer Capacity (Real Power) - Secondary System | D26: kW | E26: Medium | F26: 22.5 | G26: =IF('User Inputs'!$G$32 <> $V26, FALSE, IF($E26="User Input",$F26,INDEX($I26:$K26,MATCH($E26,$I$23:$K$23,0)))) -> FALSE | I26: 25 | J26: 75 | K26: 150 | L26: Representative standard secondary transformer sizes and assumed power factor of ~1.0 for simplicity. | V26: Secondary
B27: [3] | C27: Assumed Transformer Export Capacity (All) - Secondary System | D27: % | E27: Medium | F27: 0.5 | G27: =IF('User Inputs'!$G$32 <> $V27, FALSE, IF($E27="User Input",$F27,INDEX($I27:$K27,MATCH($E27,$I$23:$K$23,0)))) -> FALSE | I27: 0.3 | J27: 0.5 | K27: 1 | L27: How much a transformer with any particular rating can export. Varies based on site-specific factors; Medium value derived from planning heuristics | V27: Secondary
B28: [4] | C28: Current Export Capacity Subscribed - Secondary System | D28: % | E28: Medium | F28: 0.5 | G28: =IF('User Inputs'!$G$32 <> $V28, FALSE, IF($E28="User Input",$F28,INDEX($I28:$K28,MATCH($E28,$I$23:$K$23,0)))) -> FALSE | I28: 0 | J28: 0.3 | K28: 0.8 | L28: How much of hosting/export capacity is currently being used by DERs as % of transformer export capacity. | V28: Secondary
B29: Interconnection Size and Upgrades Needed | V29: Secondary
B30: [5] | C30: Recommended Upgrade Total Size - Secondary System | D30: kW | G30: =IFERROR(IF('User Inputs'!$G$32 <> $V30, FALSE, MAX(MIN(_xlfn._xlws.FILTER(TRANSPOSE(Lists!J5:P5), TRANSPOSE(Lists!J5:P5) > (G26*G27*G28+'User Inputs'!$G$33)/G27)),G26)),"ERROR - no suitable secondary transformer") -> FALSE | L30: Calculated based on inputs above | V30: Secondary
C31: Remaining Export Capacity, Post Upgrade - Secondary System | D31: kW | G31: =IFERROR(IF('User Inputs'!$G$32 <> $V31, FALSE, G27*('User Inputs'!$G$51-G28*G26)-'User Inputs'!$G$33),"ERROR - no suitable secondary transformer") -> FALSE | L31: Calculated based on inputs above | V31: Secondary
B32: Insert additional inputs above this line ^^
B34: [1] Values will be populated if the user selects a secondary upgrade and FALSE if the user selects a primary upgrade.
B35: [2] Upgrades assume a power factor of ~1, setting kVA equal to kW. If a user wants to use different assumptions, enter the equivalent value in kW as a user input or modify transformer specifications in "Lists".
B36: [3] Most planning studies assume that transformers and other distribution equipment cannot support the same import vs. export capacity. This is a derate on the transformer size for export capacity.
B37: [4] Calculation of export capacity is often site specific. The default values represent a range from full transformer capacity to a small fraction of rated capacity. Utilities use a varieties of planning heuristics to account for thermal limitations, protection limitations, coincidence of export and minimum load, contingencies, or other factors.
B38: [5] Upgrade size is calculated to be the smallest upgrade so that the new system capacity has a export capacity that is >0 after accounting for the current export capacity of the system and the additional DER.
B40: Upgrade Size and Cost Assumptions - Primary System
C42: Input | D42: Units | E42: User Selection | F42: User Input (If Used) | G42: Selected Value | H42: // | I42: Low | J42: Medium | K42: High | L42: Notes and Sources
B43: [1] | C43: Upgrade System Impacts - Primary System | D43: Boolean | F43: FALSE | G43: =IF('User Inputs'!$G$32 <> $V43, FALSE, TRUE) -> TRUE | V43: Primary
B44: Current Transformer(s)
B45: [2] | C45: Current Transformer Capacity (Real Power) - Primary System | D45: kW | E45: Medium | F45: 22.5 | G45: =IF('User Inputs'!$G$32<>$V45,FALSE,IF($E45="User Input",$F45,INDEX($I45:$K45,MATCH($E45,$I$42:$K$42,0)))) -> 7500 | I45: 5000 | J45: 7500 | K45: 10000 | L45: Representative standard primary transformer sizes and assumed power factor of ~1.0 for simplicity. | V45: Primary
B46: [3] | C46: Assumed Transformer Export Capacity (All) - Primary System | D46: % | E46: Medium | F46: 0.5 | G46: =IF('User Inputs'!$G$32<>$V46,FALSE,IF($E46="User Input",$F46,INDEX($I46:$K46,MATCH($E46,$I$42:$K$42,0)))) -> 0.5 | I46: 0.3 | J46: 0.5 | K46: 1 | L46: How much a transformer with any particular rating can export. Varies based on site-specific factors; Medium value derived from planning heuristics | V46: Primary
B47: [4] | C47: Current Export Capacity Subscribed - Primary System | D47: % | E47: Low | F47: 1 | G47: =IF('User Inputs'!$G$32<>$V47,FALSE,IF($E47="User Input",$F47,INDEX($I47:$K47,MATCH($E47,$I$42:$K$42,0)))) -> 0 | I47: 0 | J47: 0.3 | K47: 0.8 | L47: How much of hosting/export capacity is currently being used by DERs as % of transformer export capacity. | V47: Primary
B48: Interconnection Size and Upgrades Needed | V48: Primary
B49: [5] | C49: Recommended Upgrade Total Size - Primary System | D49: kW | G49: =IFERROR(IF('User Inputs'!$G$32 <> $V49, FALSE, MAX(MIN(_xlfn._xlws.FILTER(TRANSPOSE(Lists!J14:P14), TRANSPOSE(Lists!J14:P14) > (G45*G46*G47+'User Inputs'!$G$33)/G46)),G45)),"ERROR - no suitable primary transformer") -> 7500 | V49: Primary
C50: Remaining Export Capacity, Post Upgrade - Primary System | D50: kW | G50: =IFERROR(IF('User Inputs'!$G$32 <> $V50, FALSE, (G46*'User Inputs'!$G$51)-(G47*G46*G45)-'User Inputs'!$G$33),"ERROR - no suitable primary transformer") -> 7000 | L50: Calculated based on inputs above | V50: Primary
B51: Insert additional inputs above this line ^^
B53: [1] Values will be populated if the user selects a secondary upgrade and FALSE if the user selects a secondary upgrade.
B54: [2] Upgrades assume a power factor of ~1, setting kVA equal to kW. If a user wants to use different assumptions, enter the equivalent value in kW as a user input or modify transformer specifications in "Lists".
B55: [3] Most planning studies assume that transformers and other distribution equipment cannot support the same import vs. export capacity. This is a derate on the transformer size for export capacity.
B56: [4] Calculation of export capacity is often site specific. The default values represent a range from full transformer capacity to a small fraction of rated capacity. Utilities use a varieties of planning heuristics to account for thermal limitations, protection limitations, coincidence of export and minimum load, contingencies, or other factors.
B57: [5] Upgrade size is calculated to be the smallest upgrade so that the new system capacity has a export capacity that is >0 after accounting for the current export capacity of the system and the additional DER.
B59: Financial Assumptions
C61: Input | D61: Units | E61: User Selection | F61: User Input (If Used) | G61: Selected Value | H61: // | I61: Low | J61: Medium | K61: High | L61: Notes and Sources
B62: Upgrade Needs and Costs
C63: Upgrade Needed - Based on Inputs Above | D63: Boolean | G63: =OR(G24,G43) -> TRUE | L63: Calculated based on inputs above.
C64: Project Upgrade Cost | D64: $ | G64: =G24*(('User Inputs'!G36*'User Inputs'!$G$51) ) + ($G$43*(('User Inputs'!$G$36*'User Inputs'!$G$51) )) -> 6000000 | L64: Calculated based on inputs above: (Upgrade Size + Current Size x Depreciated %) x Unit Cost
B65: Utility Financing and Discount Rate
C66: Upgrade Book Life | D66: # years | E66: Medium | F66: 5 | G66: =IF($E66="User Input",$F66,INDEX($I66:$K66,MATCH($E66,$I$23:$K$23,0))) -> 20 | I66: =$J66 -> 20 | J66: 20 | K66: =$J66 -> 20 | L66: Utility planning best practices
B67: [6] | C67: Utility Weighted Average Cost of Capital (Nominal) | D67: % | E67: Medium | G67: =IF($E67="User Input",$F67,INDEX($I67:$K67,MATCH($E67,$I$23:$K$23,0))) -> 0.07 | I67: 0.07 | J67: 0.07 | K67: 0.07 | L67: Utility planning best practices
B68: [6] | C68: Utility Weighted Average Cost of Capital (Real) | D68: % | G68: =((1+G67)/(1+ G$72))-1 -> 0.03883495146 | I68: =((1+I67)/(1+ I$72))-1 -> 0.03883495146 | J68: =((1+J67)/(1+ J$72))-1 -> 0.03883495146 | K68: =((1+K67)/(1+ K$72))-1 -> 0.03883495146 | L68: Utility planning best practices
B69: DER Financing and Discount Rate
B70: [6] | C70: DER Discounting Rate (Nominal) | D70: % | E70: Medium | G70: =IF($E70="User Input",$F70,INDEX($I70:$K70,MATCH($E70,$I$23:$K$23,0))) -> 0.07 | I70: 0.07 | J70: 0.07 | K70: 0.07 | L70: Utility planning best practices
B71: [6] | C71: DER Discounting Rate (Real) | D71: % | G71: =((1+G70)/(1+ G$72))-1 -> 0.03883495146 | I71: =((1+I70)/(1+ I$72))-1 -> 0.03883495146 | J71: =((1+J70)/(1+ J$72))-1 -> 0.03883495146 | K71: =((1+K70)/(1+ K$72))-1 -> 0.03883495146 | L71: Utility planning best practices
C72: Inflation | D72: % | E72: Medium | G72: =IF($E72="User Input",$F72,INDEX($I72:$K72,MATCH($E72,$I$23:$K$23,0))) -> 0.03 | I72: =$J72 -> 0.03 | J72: 0.03 | K72: =$J72 -> 0.03 | L72: Utility planning best practices
B73: Insert additional inputs above this line ^^
B75: [6] Inputs are all in nominal dollars to align with convention. If a user wants to use a real discount rate, it can be converted using inflation. All calculations are done in real $2026, but results can be viewed in either nominal or real dollars.
B77: Annualized DER Forecast
C79: Input | D79: Units | E79: User Selection | F79: User Input (If Used) | G79: Selected Value | H79: // | I79: Low | J79: Medium | K79: High | L79: Notes and Sources
B80: [7] | C80: DER Forecast | D80: n/a | E80: Medium | I80: See below | J80: See below | K80: See below | L80: +1x every n years (6, 3, 1)
B81: Insert additional inputs above this line ^^
I83: 2026 | J83: 2027 | K83: 2028 | L83: 2029 | M83: 2030 | N83: 2031 | O83: 2032 | P83: 2033 | Q83: 2034 | R83: 2035 | S83: 2036 | T83: 2037 | U83: 2038 | V83: 2039 | W83: 2040 | X83: 2041 | Y83: 2042 | Z83: 2043 | AA83: 2044 | AB83: 2045 | AC83: 2046 | AD83: 2047 | AE83: 2048 | AF83: 2049 | AG83: 2050 | AH83: 2051 | AI83: 2052 | AJ83: 2053 | AK83: 2054 | AL83: 2055 | AM83: 2056 | AN83: 2057 | AO83: 2058 | AP83: 2059 | AQ83: 2060 | AR83: 2061 | AS83: 2062 | AT83: 2063 | AU83: 2064 | AV83: 2065
C84: Low | J84: =IF(MOD($I$83-J83, 6)=0, 'User Inputs'!$G$33,0) -> 0 | K84: =IF(MOD($I$83-K83, 6)=0, 'User Inputs'!$G$33,0) -> 0 | L84: =IF(MOD($I$83-L83, 6)=0, 'User Inputs'!$G$33,0) -> 0 | M84: =IF(MOD($I$83-M83, 6)=0, 'User Inputs'!$G$33,0) -> 0 | N84: =IF(MOD($I$83-N83, 6)=0, 'User Inputs'!$G$33,0) -> 0 | O84: =IF(MOD($I$83-O83, 6)=0, 'User Inputs'!$G$33,0) -> 500 | P84: =IF(MOD($I$83-P83, 6)=0, 'User Inputs'!$G$33,0) -> 0 | Q84: =IF(MOD($I$83-Q83, 6)=0, 'User Inputs'!$G$33,0) -> 0 | R84: =IF(MOD($I$83-R83, 6)=0, 'User Inputs'!$G$33,0) -> 0 | S84: =IF(MOD($I$83-S83, 6)=0, 'User Inputs'!$G$33,0) -> 0 | T84: =IF(MOD($I$83-T83, 6)=0, 'User Inputs'!$G$33,0) -> 0 | U84: =IF(MOD($I$83-U83, 6)=0, 'User Inputs'!$G$33,0) -> 500 | V84: =IF(MOD($I$83-V83, 6)=0, 'User Inputs'!$G$33,0) -> 0 | W84: =IF(MOD($I$83-W83, 6)=0, 'User Inputs'!$G$33,0) -> 0 | X84: =IF(MOD($I$83-X83, 6)=0, 'User Inputs'!$G$33,0) -> 0 | Y84: =IF(MOD($I$83-Y83, 6)=0, 'User Inputs'!$G$33,0) -> 0 | Z84: =IF(MOD($I$83-Z83, 6)=0, 'User Inputs'!$G$33,0) -> 0 | AA84: =IF(MOD($I$83-AA83, 6)=0, 'User Inputs'!$G$33,0) -> 500 | AB84: =IF(MOD($I$83-AB83, 6)=0, 'User Inputs'!$G$33,0) -> 0 | AC84: =IF(MOD($I$83-AC83, 6)=0, 'User Inputs'!$G$33,0) -> 0 | AD84: =IF(MOD($I$83-AD83, 6)=0, 'User Inputs'!$G$33,0) -> 0 | AE84: =IF(MOD($I$83-AE83, 6)=0, 'User Inputs'!$G$33,0) -> 0 | AF84: =IF(MOD($I$83-AF83, 6)=0, 'User Inputs'!$G$33,0) -> 0 | AG84: =IF(MOD($I$83-AG83, 6)=0, 'User Inputs'!$G$33,0) -> 500 | AH84: =IF(MOD($I$83-AH83, 6)=0, 'User Inputs'!$G$33,0) -> 0 | AI84: =IF(MOD($I$83-AI83, 6)=0, 'User Inputs'!$G$33,0) -> 0 | AJ84: =IF(MOD($I$83-AJ83, 6)=0, 'User Inputs'!$G$33,0) -> 0 | AK84: =IF(MOD($I$83-AK83, 6)=0, 'User Inputs'!$G$33,0) -> 0 | AL84: =IF(MOD($I$83-AL83, 6)=0, 'User Inputs'!$G$33,0) -> 0 | AM84: =IF(MOD($I$83-AM83, 6)=0, 'User Inputs'!$G$33,0) -> 500 | AN84: =IF(MOD($I$83-AN83, 6)=0, 'User Inputs'!$G$33,0) -> 0 | AO84: =IF(MOD($I$83-AO83, 6)=0, 'User Inputs'!$G$33,0) -> 0 | AP84: =IF(MOD($I$83-AP83, 6)=0, 'User Inputs'!$G$33,0) -> 0 | AQ84: =IF(MOD($I$83-AQ83, 6)=0, 'User Inputs'!$G$33,0) -> 0 | AR84: =IF(MOD($I$83-AR83, 6)=0, 'User Inputs'!$G$33,0) -> 0 | AS84: =IF(MOD($I$83-AS83, 6)=0, 'User Inputs'!$G$33,0) -> 500 | AT84: =IF(MOD($I$83-AT83, 6)=0, 'User Inputs'!$G$33,0) -> 0 | AU84: =IF(MOD($I$83-AU83, 6)=0, 'User Inputs'!$G$33,0) -> 0 | AV84: =IF(MOD($I$83-AV83, 6)=0, 'User Inputs'!$G$33,0) -> 0
C85: Medium | J85: =IF(MOD($I$83-J83, 3)=0, 'User Inputs'!$G$33,0) -> 0 | K85: =IF(MOD($I$83-K83, 3)=0, 'User Inputs'!$G$33,0) -> 0 | L85: =IF(MOD($I$83-L83, 3)=0, 'User Inputs'!$G$33,0) -> 500 | M85: =IF(MOD($I$83-M83, 3)=0, 'User Inputs'!$G$33,0) -> 0 | N85: =IF(MOD($I$83-N83, 3)=0, 'User Inputs'!$G$33,0) -> 0 | O85: =IF(MOD($I$83-O83, 3)=0, 'User Inputs'!$G$33,0) -> 500 | P85: =IF(MOD($I$83-P83, 3)=0, 'User Inputs'!$G$33,0) -> 0 | Q85: =IF(MOD($I$83-Q83, 3)=0, 'User Inputs'!$G$33,0) -> 0 | R85: =IF(MOD($I$83-R83, 3)=0, 'User Inputs'!$G$33,0) -> 500 | S85: =IF(MOD($I$83-S83, 3)=0, 'User Inputs'!$G$33,0) -> 0 | T85: =IF(MOD($I$83-T83, 3)=0, 'User Inputs'!$G$33,0) -> 0 | U85: =IF(MOD($I$83-U83, 3)=0, 'User Inputs'!$G$33,0) -> 500 | V85: =IF(MOD($I$83-V83, 3)=0, 'User Inputs'!$G$33,0) -> 0 | W85: =IF(MOD($I$83-W83, 3)=0, 'User Inputs'!$G$33,0) -> 0 | X85: =IF(MOD($I$83-X83, 3)=0, 'User Inputs'!$G$33,0) -> 500 | Y85: =IF(MOD($I$83-Y83, 3)=0, 'User Inputs'!$G$33,0) -> 0 | Z85: =IF(MOD($I$83-Z83, 3)=0, 'User Inputs'!$G$33,0) -> 0 | AA85: =IF(MOD($I$83-AA83, 3)=0, 'User Inputs'!$G$33,0) -> 500 | AB85: =IF(MOD($I$83-AB83, 3)=0, 'User Inputs'!$G$33,0) -> 0 | AC85: =IF(MOD($I$83-AC83, 3)=0, 'User Inputs'!$G$33,0) -> 0 | AD85: =IF(MOD($I$83-AD83, 3)=0, 'User Inputs'!$G$33,0) -> 500 | AE85: =IF(MOD($I$83-AE83, 3)=0, 'User Inputs'!$G$33,0) -> 0 | AF85: =IF(MOD($I$83-AF83, 3)=0, 'User Inputs'!$G$33,0) -> 0 | AG85: =IF(MOD($I$83-AG83, 3)=0, 'User Inputs'!$G$33,0) -> 500 | AH85: =IF(MOD($I$83-AH83, 3)=0, 'User Inputs'!$G$33,0) -> 0 | AI85: =IF(MOD($I$83-AI83, 3)=0, 'User Inputs'!$G$33,0) -> 0 | AJ85: =IF(MOD($I$83-AJ83, 3)=0, 'User Inputs'!$G$33,0) -> 500 | AK85: =IF(MOD($I$83-AK83, 3)=0, 'User Inputs'!$G$33,0) -> 0 | AL85: =IF(MOD($I$83-AL83, 3)=0, 'User Inputs'!$G$33,0) -> 0 | AM85: =IF(MOD($I$83-AM83, 3)=0, 'User Inputs'!$G$33,0) -> 500 | AN85: =IF(MOD($I$83-AN83, 3)=0, 'User Inputs'!$G$33,0) -> 0 | AO85: =IF(MOD($I$83-AO83, 3)=0, 'User Inputs'!$G$33,0) -> 0 | AP85: =IF(MOD($I$83-AP83, 3)=0, 'User Inputs'!$G$33,0) -> 500 | AQ85: =IF(MOD($I$83-AQ83, 3)=0, 'User Inputs'!$G$33,0) -> 0 | AR85: =IF(MOD($I$83-AR83, 3)=0, 'User Inputs'!$G$33,0) -> 0 | AS85: =IF(MOD($I$83-AS83, 3)=0, 'User Inputs'!$G$33,0) -> 500 | AT85: =IF(MOD($I$83-AT83, 3)=0, 'User Inputs'!$G$33,0) -> 0 | AU85: =IF(MOD($I$83-AU83, 3)=0, 'User Inputs'!$G$33,0) -> 0 | AV85: =IF(MOD($I$83-AV83, 3)=0, 'User Inputs'!$G$33,0) -> 500
C86: High | J86: =IF(MOD($I$83-J85, 1)=0, 'User Inputs'!$G$33,0) -> 500 | K86: =IF(MOD($I$83-K85, 1)=0, 'User Inputs'!$G$33,0) -> 500 | L86: =IF(MOD($I$83-L85, 1)=0, 'User Inputs'!$G$33,0) -> 500 | M86: =IF(MOD($I$83-M85, 1)=0, 'User Inputs'!$G$33,0) -> 500 | N86: =IF(MOD($I$83-N85, 1)=0, 'User Inputs'!$G$33,0) -> 500 | O86: =IF(MOD($I$83-O85, 1)=0, 'User Inputs'!$G$33,0) -> 500 | P86: =IF(MOD($I$83-P85, 1)=0, 'User Inputs'!$G$33,0) -> 500 | Q86: =IF(MOD($I$83-Q85, 1)=0, 'User Inputs'!$G$33,0) -> 500 | R86: =IF(MOD($I$83-R85, 1)=0, 'User Inputs'!$G$33,0) -> 500 | S86: =IF(MOD($I$83-S85, 1)=0, 'User Inputs'!$G$33,0) -> 500 | T86: =IF(MOD($I$83-T85, 1)=0, 'User Inputs'!$G$33,0) -> 500 | U86: =IF(MOD($I$83-U85, 1)=0, 'User Inputs'!$G$33,0) -> 500 | V86: =IF(MOD($I$83-V85, 1)=0, 'User Inputs'!$G$33,0) -> 500 | W86: =IF(MOD($I$83-W85, 1)=0, 'User Inputs'!$G$33,0) -> 500 | X86: =IF(MOD($I$83-X85, 1)=0, 'User Inputs'!$G$33,0) -> 500 | Y86: =IF(MOD($I$83-Y85, 1)=0, 'User Inputs'!$G$33,0) -> 500 | Z86: =IF(MOD($I$83-Z85, 1)=0, 'User Inputs'!$G$33,0) -> 500 | AA86: =IF(MOD($I$83-AA85, 1)=0, 'User Inputs'!$G$33,0) -> 500 | AB86: =IF(MOD($I$83-AB85, 1)=0, 'User Inputs'!$G$33,0) -> 500 | AC86: =IF(MOD($I$83-AC85, 1)=0, 'User Inputs'!$G$33,0) -> 500 | AD86: =IF(MOD($I$83-AD85, 1)=0, 'User Inputs'!$G$33,0) -> 500 | AE86: =IF(MOD($I$83-AE85, 1)=0, 'User Inputs'!$G$33,0) -> 500 | AF86: =IF(MOD($I$83-AF85, 1)=0, 'User Inputs'!$G$33,0) -> 500 | AG86: =IF(MOD($I$83-AG85, 1)=0, 'User Inputs'!$G$33,0) -> 500 | AH86: =IF(MOD($I$83-AH85, 1)=0, 'User Inputs'!$G$33,0) -> 500 | AI86: =IF(MOD($I$83-AI85, 1)=0, 'User Inputs'!$G$33,0) -> 500 | AJ86: =IF(MOD($I$83-AJ85, 1)=0, 'User Inputs'!$G$33,0) -> 500 | AK86: =IF(MOD($I$83-AK85, 1)=0, 'User Inputs'!$G$33,0) -> 500 | AL86: =IF(MOD($I$83-AL85, 1)=0, 'User Inputs'!$G$33,0) -> 500 | AM86: =IF(MOD($I$83-AM85, 1)=0, 'User Inputs'!$G$33,0) -> 500 | AN86: =IF(MOD($I$83-AN85, 1)=0, 'User Inputs'!$G$33,0) -> 500 | AO86: =IF(MOD($I$83-AO85, 1)=0, 'User Inputs'!$G$33,0) -> 500 | AP86: =IF(MOD($I$83-AP85, 1)=0, 'User Inputs'!$G$33,0) -> 500 | AQ86: =IF(MOD($I$83-AQ85, 1)=0, 'User Inputs'!$G$33,0) -> 500 | AR86: =IF(MOD($I$83-AR85, 1)=0, 'User Inputs'!$G$33,0) -> 500 | AS86: =IF(MOD($I$83-AS85, 1)=0, 'User Inputs'!$G$33,0) -> 500 | AT86: =IF(MOD($I$83-AT85, 1)=0, 'User Inputs'!$G$33,0) -> 500 | AU86: =IF(MOD($I$83-AU85, 1)=0, 'User Inputs'!$G$33,0) -> 500 | AV86: =IF(MOD($I$83-AV85, 1)=0, 'User Inputs'!$G$33,0) -> 500
C88: User Input (If Used) | L88: 189 | M88: 11 | O88: 500 | R88: 6000 | S88: 5 | U88: 5 | X88: 5
C89: Selected Value | J89: =IF($E$80="User Input",J88,INDEX(J$84:J$86,MATCH($E$80,$C$84:$C$86,0))) -> 0 | K89: 0 | L89: 500 | M89: 0 | N89: 0 | O89: 500 | P89: 0 | Q89: 0 | R89: 500 | S89: 0 | T89: 0 | U89: 500 | V89: 0 | W89: 0 | X89: 500 | Y89: 0 | Z89: 0 | AA89: 500 | AB89: 0 | AC89: 0 | AD89: 500 | AE89: 0 | AF89: 0 | AG89: 500 | AH89: 0 | AI89: 0 | AJ89: 500 | AK89: 0 | AL89: 0 | AM89: 500 | AN89: 0 | AO89: 0 | AP89: 500 | AQ89: 0 | AR89: 0 | AS89: 500 | AT89: 0 | AU89: 0 | AV89: 500
I90: Note: No additional DER in year 0
B91: [7] Default Low/Medium/High inputs assume one additional DER of the same size interconnects every 6, 3, or 1 year(s) respectively.
B92: =IF(_xlfn.MINIFS(J89:AV89,J89:AV89, ">0") > ((MAX(G50, G31))), "All future DERs are larger than capacity unlocked by asset upgrade. No additional DERs will be interconnected using this upgrade.", "") -> 

Sheet Results Summary
B2: Results Summary
B3: Choose two scenarios below to compare the distribution of costs between different actors depending on the scenario. Distribution of costs is sensitive to input assumptions. Jurisdiction specific data should be used wherever possible.
C5: Scenario #1: | D5: 5. Reimbursement | G5: Scenario #2: | H5: 8. Multi-Bene (Allocation)
E6: =INDEX(Lists!$B$4:$B$12,MATCH(D5,Lists!$C$4:$C$12,0)) -> Reimbursement | I6: =INDEX(Lists!$B$4:$B$12,MATCH(H5,Lists!$C$4:$C$12,0)) -> Multi-Beneficiary Pays (Allocation)
E7: =INDEX(Lists!$D$4:$D$12,MATCH(E6,Lists!$B$4:$B$12,0)) -> 5 | I7: =INDEX(Lists!$D$4:$D$12,MATCH(I6,Lists!$B$4:$B$12,0)) -> 8
C8: Definition: | G8: Definition:
C9: =INDEX(Lists!$F$4:$F$12,$E$7) -> Directly assign all upgrade costs to the triggering project, then require subsequent interconnection customers to pay back other customers for use of shared equipment. | G9: =INDEX(Lists!$F$4:$F$12,$I$7) -> Assign costs to both ratepayers and interconnection customers based on how each uses and benefits from upgrades
D17: Net Present Value (NPV) Cost | H17: Net Present Value (NPV) Cost
D18: $ | E18: $/kW | H18: $ | I18: $/kW
B19: How much did the upgrade cost to build? | E19: $/kW of nameplate upgrade | I19: $/kW of nameplate upgrade
D20: ='1. Cost Causer'!G22 -> -6000000 | E20: =-'User Inputs'!$G$36 -> -400 | H20: =D20 -> -6000000 | I20: =-'User Inputs'!$G$36 -> -400
B22: What is the total cost to the DER triggering the upgrade? | E22: $/kW of DER capacity | I22: $/kW of DER capacity
D23: ='Full Results'!E40 -> -1645812.687 | E23: =D23/'User Inputs'!$G$33 -> -3291.625375 | H23: ='Full Results'!E57 -> -6000000 | I23: =H23/'User Inputs'!$G$33 -> -12000
B25: What is the cost (-) or benefit (+) to ratepayers?*
D26: =SUM('Full Results'!E46:'Full Results'!E47) -> 0 | E26: n/a | H26: =SUM('Full Results'!E63:'Full Results'!E64) -> 0 | I26: n/a
B28: How much did other interconnecting DERs elsewhere in the system pay?
D29: =-'Full Results'!E50 -> 0 | E29: n/a | H29: =-'Full Results'!E67 -> 0 | I29: n/a
B31: How much is covered by future DERs?
D32: ='Full Results'!E51 -> -4354187.313 | E32: n/a | H32: ='Full Results'!E68 -> 0 | I32: n/a
B36: * For multi-beneficiary projects, a certain amount of the benefit an upgrade is assumed to accrue to ratepayers
B37: Note: Costs may not add up to the cost of the upgrade on a net present value basis if reimbursements occur later that are not compensated for carrying costs, or costs are added to the rate base and earn a return.
B38: $/kW values are only calculated for select metrics.

Sheet Full Results
A2: Scenario Selection
B4: Cost Results: | C4: Real $2026
B6: NOTE: The user can select to view results in either nominal or real (2026) dollars. All results will update accordingly.
B9: NOTE: Users should use user-input jurisdiction-specific sources where possible. Default values are illustrative and not appropriate or accurate for all jurisdictions.
C12: Choose scenarios on "Results Summary" | H12: Choose scenarios on "Results Summary"
B13: Scenario #1: | C13: ='Results Summary'!D5 -> 5. Reimbursement | E13: Scenario #2: | H13: 1. Cost Causer | L13: NOTE: For some scenarios, the user may be responsible for ensuring that the inputs for both scenarios are comparable for cost recovery.
C14: =INDEX(Lists!$B$4:$B$12,MATCH(C13,Lists!$C$4:$C$12,0)) -> Reimbursement | H14: =INDEX(Lists!$B$4:$B$12,MATCH(H13,Lists!$C$4:$C$12,0)) -> Cost Causer Pays
C15: =INDEX(Lists!$D$4:$D$12,MATCH(C14,Lists!$B$4:$B$12,0)) -> 5 | H15: =INDEX(Lists!$D$4:$D$12,MATCH(H14,Lists!$B$4:$B$12,0)) -> 1
B16: Definition: | E16: Definition:
B17: =INDEX(Lists!$F$4:$F$12,$C$15) -> Directly assign all upgrade costs to the triggering project, then require subsequent interconnection customers to pay back other customers for use of shared equipment. | E17: =INDEX(Lists!$F$4:$F$12,$H$15) -> Directly assign all interconnection-related costs to the project that initially triggers distribution system upgrades.
L20: To compare different inputs (e.g. uncertainty in DER forecasts), the user can copy results into an external workbook.
B24: Example Case Studies: | E24: Example Case Studies:
B25: =INDEX(Lists!$E$4:$E$12,$C$15) -> New York's Cost Sharing 1.0 program used this approach for certain types of shared upgrades above a cost threshold. | E25: =INDEX(Lists!$E$4:$E$12,$H$15) -> The cost-causer pays model is the most prominent DER interconnection cost allocation approach in the U.S.
B29: Caveats and Assumptions: | E29: Caveats and Assumptions:
B30: =INDEX(Lists!$G$4:$G$12,$C$15) -> This tool does not include a reimbursement cap, which may be included in similar methodologies. | E30: =INDEX(Lists!$G$4:$G$12,$H$15) -> Assumes no floor or ceiling for DER cost responsibility.
A34: Results Summary - Net Present Value of Cost Streams to All Parties
B36: - This section shows the share of positive and negative costs incurred by the original DER and ratepayers. These values are presented as a net present dollar value ($).
B37: - The Net Present Value (NPV) represents the cost to each party discounted for the time value of money.
B39: Payment Type | C39: Units | D39: Scenario | E39: NPV ($) | F39: $/kW DER Capacity
A40: Target DER | B40: Total DER Cashflow | C40: =$C$4 -> Real $2026 | D40: =active_scenario1 -> Reimbursement | E40: =SUMIFS($E$126:$E$137,$D$126:$D$137, $D40, $B$126:$B$137,$B40) -> -1645812.687 | F40: =E40/'User Inputs'!$G$33 -> -3291.625375
A41: Target DER | B41: DER Payments - Upfront | C41: =$C$4 -> Real $2026 | D41: Reimbursement | E41: =SUMIFS($E$126:$E$137,$D$126:$D$137, $D41, $B$126:$B$137,$B41) -> -6000000 | F41: =E41/'User Inputs'!$G$33 -> -12000
A42: Target DER | B42: DER Payments - Ongoing | C42: Real $2026 | D42: Reimbursement | E42: =SUMIFS($E$126:$E$137,$D$126:$D$137, $D42, $B$126:$B$137,$B42) -> 0 | F42: =E42/'User Inputs'!$G$33 -> 0
A43: Target DER | B43: Reimbursement - Additional DERs | C43: Real $2026 | D43: Reimbursement | E43: =SUMIFS($E$126:$E$137,$D$126:$D$137, $D43, $B$126:$B$137,$B43) -> 4354187.313 | F43: =E43/'User Inputs'!$G$33 -> 8708.374625
A44: Target DER | B44: Reimbursement - Ratepayers | C44: =$C$4 -> Real $2026 | D44: Reimbursement | E44: =SUMIFS($E$126:$E$137,$D$126:$D$137, $D44, $B$126:$B$137,$B44) -> 0 | F44: =E44/'User Inputs'!$G$33 -> 0
A45: Utility | B45: Total Utility Cashflow | C45: =$C$4 -> Real $2026 | D45: Reimbursement | E45: =SUM($E$46:$E$50) -> 0
A46: Utility | B46: Infrastructure Costs (Ratepayers) | C46: =$C$4 -> Real $2026 | D46: Reimbursement | E46: =SUMIFS($E$202:$E$213,$D$202:$D$213, $D46, $B$202:$B$213,$B46) -> 0
A47: Utility | B47: Revenue (Ratepayers) | C47: Real $2026 | D47: Reimbursement | E47: =SUMIFS($E$202:$E$213,$D$202:$D$213, $D47, $B$202:$B$213,$B47) -> 0
A48: Utility | B48: Infrastructure Costs (DER Fund) | C48: Real $2026 | D48: Reimbursement | E48: =SUMIFS($E$202:$E$213,$D$202:$D$213, $D48, $B$202:$B$213,$B48) -> 0
A49: Utility | B49: Revenue (DER Fund) | C49: Real $2026 | D49: Reimbursement | E49: =SUMIFS($E$202:$E$213,$D$202:$D$213, $D49, $B$202:$B$213,$B49) -> 0
A50: Utility | B50: Revenue (DER Fund, Additional DERs) | C50: =$C$4 -> Real $2026 | D50: =active_scenario1 -> Reimbursement | E50: =-E54 -> 0
A51: Additional DERs | B51: Total Additional DER Cashflow | C51: Real $2026 | D51: Reimbursement | E51: =SUMIFS($E$295:$E$302,$D$295:$D$302, $D51, $B$295:$B$302,$B51) -> -4354187.313
A52: Additional DERs | B52: Additional DER Payments - Target DER | C52: Real $2026 | D52: Reimbursement | E52: =SUMIFS($E$295:$E$302,$D$295:$D$302, $D52, $B$295:$B$302,$B52) -> -4354187.313
A53: Additional DERs | B53: Additional DER Payments - Utility | C53: Real $2026 | D53: Reimbursement | E53: =SUMIFS($E$295:$E$302,$D$295:$D$302, $D53, $B$295:$B$302,$B53) -> 0
A54: Additional DERs | B54: Additional DER Payments - To Fund | C54: =$C$4 -> Real $2026 | D54: =active_scenario1 -> Reimbursement | E54: =IF(E48<>0,E48+E49,0) -> 0
B56: Payment Type | C56: Units | D56: Scenario | E56: NPV ($) | F56: $/kW DER Capacity
A57: Target DER | B57: Total DER Cashflow | C57: =$C$4 -> Real $2026 | D57: =active_scenario2 -> Cost Causer Pays | E57: =SUMIFS($E$126:$E$137,$D$126:$D$137, $D57, $B$126:$B$137,$B57) -> -6000000 | F57: =E57/'User Inputs'!$G$33 -> -12000
A58: Target DER | B58: DER Payments - Upfront | C58: =$C$4 -> Real $2026 | D58: Cost Causer Pays | E58: =SUMIFS($E$126:$E$137,$D$126:$D$137, $D58, $B$126:$B$137,$B58) -> -6000000 | F58: =E58/'User Inputs'!$G$33 -> -12000
A59: Target DER | B59: DER Payments - Ongoing | C59: Real $2026 | D59: Cost Causer Pays | E59: =SUMIFS($E$126:$E$137,$D$126:$D$137, $D59, $B$126:$B$137,$B59) -> 0 | F59: =E59/'User Inputs'!$G$33 -> 0
A60: Target DER | B60: Reimbursement - Additional DERs | C60: Real $2026 | D60: Cost Causer Pays | E60: =SUMIFS($E$126:$E$137,$D$126:$D$137, $D60, $B$126:$B$137,$B60) -> 0 | F60: =E60/'User Inputs'!$G$33 -> 0
A61: Target DER | B61: Reimbursement - Ratepayers | C61: Real $2026 | D61: Cost Causer Pays | E61: =SUMIFS($E$126:$E$137,$D$126:$D$137, $D61, $B$126:$B$137,$B61) -> 0 | F61: =E61/'User Inputs'!$G$33 -> 0
A62: Utility | B62: Total Utility Cashflow | C62: =$C$4 -> Real $2026 | D62: Cost Causer Pays | E62: =SUM(E63:E67) -> 0
A63: Utility | B63: Infrastructure Costs (Ratepayers) | C63: =$C$4 -> Real $2026 | D63: Cost Causer Pays | E63: =SUMIFS($E$202:$E$213,$D$202:$D$213, $D63, $B$202:$B$213,$B63) -> 0
A64: Utility | B64: Revenue (Ratepayers) | C64: Real $2026 | D64: Cost Causer Pays | E64: =SUMIFS($E$202:$E$213,$D$202:$D$213, $D64, $B$202:$B$213,$B64) -> 0
A65: Utility | B65: Infrastructure Costs (DER Fund) | C65: Real $2026 | D65: Cost Causer Pays | E65: =SUMIFS($E$202:$E$213,$D$202:$D$213, $D65, $B$202:$B$213,$B65) -> 0
A66: Utility | B66: Revenue (DER Fund) | C66: Real $2026 | D66: Cost Causer Pays | E66: =SUMIFS($E$202:$E$213,$D$202:$D$213, $D66, $B$202:$B$213,$B66) -> 0
A67: Utility | B67: Revenue (DER Fund, Additional DERs) | C67: Real $2026 | D67: Cost Causer Pays | E67: =-E71 -> 0
A68: Additional DERs | B68: Total Additional DER Cashflow | C68: Real $2026 | D68: Cost Causer Pays | E68: =SUMIFS($E$295:$E$302,$D$295:$D$302, $D68, $B$295:$B$302,$B68) -> 0
A69: Additional DERs | B69: Additional DER Payments - Target DER | C69: Real $2026 | D69: Cost Causer Pays | E69: =SUMIFS($E$295:$E$302,$D$295:$D$302, $D69, $B$295:$B$302,$B69) -> 0
A70: Additional DERs | B70: Additional DER Payments - Utility | C70: Real $2026 | D70: Cost Causer Pays | E70: =SUMIFS($E$295:$E$302,$D$295:$D$302, $D70, $B$295:$B$302,$B70) -> 0
B71: Additional DER Payments - To Fund | C71: Real $2026 | D71: Cost Causer Pays | E71: =IF(E65<>0,E65+E66,0) -> 0
B73: Figure Description: The figures below show the net present value (NPV) of all cost streams across three perspectives (Target DER, Utility, and Additional DERs.). The Target DER is the main DER considered in the User Inputs, and generally is the DER triggering the upgrade. The Utility section includes both ratepayer revenue and costs (in shades of blue) and revenue and costs to a DER-specific infrastructure fund (shades of green). The inclusion of ratepayer costs vs. DER fund costs depends on the selected scenario. In scenarios with a DER fund, the hashed sections represent the payments to the DER fund from DERs across the full service area to show that across the entire service area, these funds are designed to be revenue neutral. The Additional DERs section considered the DER forecast for the same distribution upgrade as the target DER, which is selected in the "User Inputs" section. For scenarios with a DER fund, the hashed section represents contribution from DERs on other parts of the system to the DER fund.
C75: =active_scenario1 -> Reimbursement | D75: =active_scenario1 -> Reimbursement | E75: =active_scenario1 -> Reimbursement
C76: Target DER | D76: Utility | E76: Additional DERs | H76: =active_scenario2 -> Cost Causer Pays | I76: =active_scenario2 -> Cost Causer Pays | J76: =active_scenario2 -> Cost Causer Pays
B77: DER Payments - Upfront | C77: =IF(C$76=INDEX($A$40:$A$72,MATCH($B77,$B$40:$B$72,0)),SUMIFS($E$40:$E$72,$B$40:$B$72,$B77,$D$40:$D$72,C$75),NA()) -> -6000000 | H77: Target DER | I77: Utility | J77: Additional DERs
B78: DER Payments - Ongoing | C78: 0 | G78: DER Payments - Upfront | H78: =IF(H$77=INDEX($A$40:$A$72,MATCH($G78,$B$40:$B$72,0)),SUMIFS($E$40:$E$72,$B$40:$B$72,$G78,$D$40:$D$72,H$76),NA()) -> -6000000
B79: Reimbursement - Additional DERs | C79: 4354187.313 | G79: DER Payments - Ongoing | H79: 0
B80: Reimbursement - Ratepayers | C80: 0 | G80: Reimbursement - Additional DERs | H80: 0
B81: Infrastructure Costs (Ratepayers) | D81: 0 | G81: Reimbursement - Ratepayers | H81: 0
B82: Revenue (Ratepayers) | D82: 0 | G82: Infrastructure Costs (Ratepayers) | I82: 0
B83: Infrastructure Costs (DER Fund) | D83: 0 | G83: Revenue (Ratepayers) | I83: 0
B84: Revenue (DER Fund) | D84: 0 | G84: Infrastructure Costs (DER Fund) | I84: 0
B85: =B50 -> Revenue (DER Fund, Additional DERs) | D85: 0 | G85: Revenue (DER Fund) | I85: 0
B86: Additional DER Payments - Target DER | E86: -4354187.313 | G86: Revenue (DER Fund, Additional DERs) | I86: 0
B87: Additional DER Payments - Utility | E87: 0 | G87: Additional DER Payments - Target DER | J87: 0
B88: =B54 -> Additional DER Payments - To Fund | E88: 0 | G88: Additional DER Payments - Utility | J88: 0
B89: Total DER Cashflow | C89: -1645812.687 | G89: Additional DER Payments - To Fund | J89: 0
B90: Total Utility Cashflow | D90: 0 | G90: Total DER Cashflow | H90: -6000000
B91: Total Additional DER Cashflow | E91: -4354187.313 | G91: Total Utility Cashflow | I91: 0
B92: =_xlfn.CONCAT("Net Present Value, ", C75, ", ", $C$4) -> Net Present Value, Reimbursement, Real $2026 | G92: Total Additional DER Cashflow | J92: 0
G93: =_xlfn.CONCAT("Net Present Value, ", H76, ", ", $C$4) -> Net Present Value, Cost Causer Pays, Real $2026
A106: Results Summary - DER
B108: - Results are shown as the amount that the triggering DER pays in each year (negative numbers), less the amount that they receive from different sources of reimbursement, depending on the scenario.
B109: - For many scenarios, there are payments only in the first year, while in others, costs may be recovered over a long horizon.
B111: Payment Type | C111: Units | D111: Scenario | E111: 2026 | F111: 2027 | G111: 2028 | H111: 2029 | I111: 2030 | J111: 2031 | K111: 2032 | L111: 2033 | M111: 2034 | N111: 2035 | O111: 2036 | P111: 2037 | Q111: 2038 | R111: 2039 | S111: 2040 | T111: 2041 | U111: 2042 | V111: 2043 | W111: 2044 | X111: 2045 | Y111: 2046 | Z111: 2047 | AA111: 2048 | AB111: 2049 | AC111: 2050 | AD111: 2051 | AE111: 2052 | AF111: 2053 | AG111: 2054 | AH111: 2055 | AI111: 2056 | AJ111: 2057 | AK111: 2058 | AL111: 2059 | AM111: 2060 | AN111: 2061 | AO111: 2062 | AP111: 2063 | AQ111: 2064 | AR111: 2065 | AS111: //
B112: Total DER Cashflow | C112: =$C$4 -> Real $2026 | D112: =active_scenario1 -> Reimbursement | E112: =SUM(E113:E116) -> -6000000 | F112: =SUM(F113:F116) -> 0 | G112: 0 | H112: 3000000 | I112: 0 | J112: 0 | K112: 1000000 | L112: 0 | M112: 0 | N112: 500000 | O112: =SUM(O113:O116) -> 0 | P112: =SUM(P113:P116) -> 0 | Q112: =SUM(Q113:Q116) -> 300000 | R112: =SUM(R113:R116) -> 0 | S112: =SUM(S113:S116) -> 0 | T112: =SUM(T113:T116) -> 200000 | U112: =SUM(U113:U116) -> 0 | V112: =SUM(V113:V116) -> 0 | W112: =SUM(W113:W116) -> 142857.1429 | X112: =SUM(X113:X116) -> 0 | Y112: =SUM(Y113:Y116) -> 0 | Z112: =SUM(Z113:Z116) -> 107142.8571 | AA112: =SUM(AA113:AA116) -> 0 | AB112: =SUM(AB113:AB116) -> 0 | AC112: =SUM(AC113:AC116) -> 83333.33333 | AD112: =SUM(AD113:AD116) -> 0 | AE112: =SUM(AE113:AE116) -> 0 | AF112: =SUM(AF113:AF116) -> 66666.66667 | AG112: =SUM(AG113:AG116) -> 0 | AH112: =SUM(AH113:AH116) -> 0 | AI112: =SUM(AI113:AI116) -> 54545.45455 | AJ112: =SUM(AJ113:AJ116) -> 0 | AK112: =SUM(AK113:AK116) -> 0 | AL112: =SUM(AL113:AL116) -> 45454.54545 | AM112: =SUM(AM113:AM116) -> 0 | AN112: =SUM(AN113:AN116) -> 0 | AO112: =SUM(AO113:AO116) -> 38461.53846 | AP112: =SUM(AP113:AP116) -> 0 | AQ112: =SUM(AQ113:AQ116) -> 0 | AR112: =SUM(AR113:AR116) -> 32967.03297
B113: DER Payments - Upfront | C113: =$C$4 -> Real $2026 | D113: =active_scenario1 -> Reimbursement | E113: =IF($C$4="Real $2026",1,((1+'Advanced User Inputs'!$G$72)^(E$111-2026))) * SUMIFS(INDEX('Full Results Database'!$E$5:$F$549,,MATCH($D113, 'Full Results Database'!$E$1:$F$1,0)), 'Full Results Database'!$B$5:$B$549, $B113, 'Full Results Database'!$C$5:$C$549, E$111) -> -6000000 | F113: =IF($C$4="Real $2026",1,((1+'Advanced User Inputs'!$G$72)^(F$111-2026))) * SUMIFS(INDEX('Full Results Database'!$E$5:$F$549,,MATCH($D113, 'Full Results Database'!$E$1:$F$1,0)), 'Full Results Database'!$B$5:$B$549, $B113, 'Full Results Database'!$C$5:$C$549, F$111) -> 0 | G113: =IF($C$4="Real $2026",1,((1+'Advanced User Inputs'!$G$72)^(G$111-2026))) * SUMIFS(INDEX('Full Results Database'!$E$5:$F$549,,MATCH($D113, 'Full Results Database'!$E$1:$F$1,0)), 'Full Results Database'!$B$5:$B$549, $B113, 'Full Results Database'!$C$5:$C$549, G$111) -> 0 | H113: =IF($C$4="Real $2026",1,((1+'Advanced User Inputs'!$G$72)^(H$111-2026))) * SUMIFS(INDEX('Full Results Database'!$E$5:$F$549,,MATCH($D113, 'Full Results Database'!$E$1:$F$1,0)), 'Full Results Database'!$B$5:$B$549, $B113, 'Full Results Database'!$C$5:$C$549, H$111) -> 0 | I113: =IF($C$4="Real $2026",1,((1+'Advanced User Inputs'!$G$72)^(I$111-2026))) * SUMIFS(INDEX('Full Results Database'!$E$5:$F$549,,MATCH($D113, 'Full Results Database'!$E$1:$F$1,0)), 'Full Results Database'!$B$5:$B$549, $B113, 'Full Results Database'!$C$5:$C$549, I$111) -> 0 | J113: =IF($C$4="Real $2026",1,((1+'Advanced User Inputs'!$G$72)^(J$111-2026))) * SUMIFS(INDEX('Full Results Database'!$E$5:$F$549,,MATCH($D113, 'Full Results Database'!$E$1:$F$1,0)), 'Full Results Database'!$B$5:$B$549, $B113, 'Full Results Database'!$C$5:$C$549, J$111) -> 0 | K113: =IF($C$4="Real $2026",1,((1+'Advanced User Inputs'!$G$72)^(K$111-2026))) * SUMIFS(INDEX('Full Results Database'!$E$5:$F$549,,MATCH($D113, 'Full Results Database'!$E$1:$F$1,0)), 'Full Results Database'!$B$5:$B$549, $B113, 'Full Results Database'!$C$5:$C$549, K$111) -> 0 | L113: =IF($C$4="Real $2026",1,((1+'Advanced User Inputs'!$G$72)^(L$111-2026))) * SUMIFS(INDEX('Full Results Database'!$E$5:$F$549,,MATCH($D113, 'Full Results Database'!$E$1:$F$1,0)), 'Full Results Database'!$B$5:$B$549, $B113, 'Full Results Database'!$C$5:$C$549, L$111) -> 0 | M113: =IF($C$4="Real $2026",1,((1+'Advanced User Inputs'!$G$72)^(M$111-2026))) * SUMIFS(INDEX('Full Results Database'!$E$5:$F$549,,MATCH($D113, 'Full Results Database'!$E$1:$F$1,0)), 'Full Results Database'!$B$5:$B$549, $B113, 'Full Results Database'!$C$5:$C$549, M$111) -> 0 | N113: =IF($C$4="Real $2026",1,((1+'Advanced User Inputs'!$G$72)^(N$111-2026))) * SUMIFS(INDEX('Full Results Database'!$E$5:$F$549,,MATCH($D113, 'Full Results Database'!$E$1:$F$1,0)), 'Full Results Database'!$B$5:$B$549, $B113, 'Full Results Database'!$C$5:$C$549, N$111) -> 0 | O113: =IF($C$4="Real $2026",1,((1+'Advanced User Inputs'!$G$72)^(O$111-2026))) * SUMIFS(INDEX('Full Results Database'!$E$5:$F$549,,MATCH($D113, 'Full Results Database'!$E$1:$F$1,0)), 'Full Results Database'!$B$5:$B$549, $B113, 'Full Results Database'!$C$5:$C$549, O$111) -> 0 | P113: =IF($C$4="Real $2026",1,((1+'Advanced User Inputs'!$G$72)^(P$111-2026))) * SUMIFS(INDEX('Full Results Database'!$E$5:$F$549,,MATCH($D113, 'Full Results Database'!$E$1:$F$1,0)), 'Full Results Database'!$B$5:$B$549, $B113, 'Full Results Database'!$C$5:$C$549, P$111) -> 0 | Q113: =IF($C$4="Real $2026",1,((1+'Advanced User Inputs'!$G$72)^(Q$111-2026))) * SUMIFS(INDEX('Full Results Database'!$E$5:$F$549,,MATCH($D113, 'Full Results Database'!$E$1:$F$1,0)), 'Full Results Database'!$B$5:$B$549, $B113, 'Full Results Database'!$C$5:$C$549, Q$111) -> 0 | R113: =IF($C$4="Real $2026",1,((1+'Advanced User Inputs'!$G$72)^(R$111-2026))) * SUMIFS(INDEX('Full Results Database'!$E$5:$F$549,,MATCH($D113, 'Full Results Database'!$E$1:$F$1,0)), 'Full Results Database'!$B$5:$B$549, $B113, 'Full Results Database'!$C$5:$C$549, R$111) -> 0 | S113: =IF($C$4="Real $2026",1,((1+'Advanced User Inputs'!$G$72)^(S$111-2026))) * SUMIFS(INDEX('Full Results Database'!$E$5:$F$549,,MATCH($D113, 'Full Results Database'!$E$1:$F$1,0)), 'Full Results Database'!$B$5:$B$549, $B113, 'Full Results Database'!$C$5:$C$549, S$111) -> 0 | T113: =IF($C$4="Real $2026",1,((1+'Advanced User Inputs'!$G$72)^(T$111-2026))) * SUMIFS(INDEX('Full Results Database'!$E$5:$F$549,,MATCH($D113, 'Full Results Database'!$E$1:$F$1,0)), 'Full Results Database'!$B$5:$B$549, $B113, 'Full Results Database'!$C$5:$C$549, T$111) -> 0 | U113: =IF($C$4="Real $2026",1,((1+'Advanced User Inputs'!$G$72)^(U$111-2026))) * SUMIFS(INDEX('Full Results Database'!$E$5:$F$549,,MATCH($D113, 'Full Results Database'!$E$1:$F$1,0)), 'Full Results Database'!$B$5:$B$549, $B113, 'Full Results Database'!$C$5:$C$549, U$111) -> 0 | V113: =IF($C$4="Real $2026",1,((1+'Advanced User Inputs'!$G$72)^(V$111-2026))) * SUMIFS(INDEX('Full Results Database'!$E$5:$F$549,,MATCH($D113, 'Full Results Database'!$E$1:$F$1,0)), 'Full Results Database'!$B$5:$B$549, $B113, 'Full Results Database'!$C$5:$C$549, V$111) -> 0 | W113: =IF($C$4="Real $2026",1,((1+'Advanced User Inputs'!$G$72)^(W$111-2026))) * SUMIFS(INDEX('Full Results Database'!$E$5:$F$549,,MATCH($D113, 'Full Results Database'!$E$1:$F$1,0)), 'Full Results Database'!$B$5:$B$549, $B113, 'Full Results Database'!$C$5:$C$549, W$111) -> 0 | X113: =IF($C$4="Real $2026",1,((1+'Advanced User Inputs'!$G$72)^(X$111-2026))) * SUMIFS(INDEX('Full Results Database'!$E$5:$F$549,,MATCH($D113, 'Full Results Database'!$E$1:$F$1,0)), 'Full Results Database'!$B$5:$B$549, $B113, 'Full Results Database'!$C$5:$C$549, X$111) -> 0 | Y113: =IF($C$4="Real $2026",1,((1+'Advanced User Inputs'!$G$72)^(Y$111-2026))) * SUMIFS(INDEX('Full Results Database'!$E$5:$F$549,,MATCH($D113, 'Full Results Database'!$E$1:$F$1,0)), 'Full Results Database'!$B$5:$B$549, $B113, 'Full Results Database'!$C$5:$C$549, Y$111) -> 0 | Z113: =IF($C$4="Real $2026",1,((1+'Advanced User Inputs'!$G$72)^(Z$111-2026))) * SUMIFS(INDEX('Full Results Database'!$E$5:$F$549,,MATCH($D113, 'Full Results Database'!$E$1:$F$1,0)), 'Full Results Database'!$B$5:$B$549, $B113, 'Full Results Database'!$C$5:$C$549, Z$111) -> 0 | AA113: =IF($C$4="Real $2026",1,((1+'Advanced User Inputs'!$G$72)^(AA$111-2026))) * SUMIFS(INDEX('Full Results Database'!$E$5:$F$549,,MATCH($D113, 'Full Results Database'!$E$1:$F$1,0)), 'Full Results Database'!$B$5:$B$549, $B113, 'Full Results Database'!$C$5:$C$549, AA$111) -> 0 | AB113: =IF($C$4="Real $2026",1,((1+'Advanced User Inputs'!$G$72)^(AB$111-2026))) * SUMIFS(INDEX('Full Results Database'!$E$5:$F$549,,MATCH($D113, 'Full Results Database'!$E$1:$F$1,0)), 'Full Results Database'!$B$5:$B$549, $B113, 'Full Results Database'!$C$5:$C$549, AB$111) -> 0 | AC113: =IF($C$4="Real $2026",1,((1+'Advanced User Inputs'!$G$72)^(AC$111-2026))) * SUMIFS(INDEX('Full Results Database'!$E$5:$F$549,,MATCH($D113, 'Full Results Database'!$E$1:$F$1,0)), 'Full Results Database'!$B$5:$B$549, $B113, 'Full Results Database'!$C$5:$C$549, AC$111) -> 0 | AD113: =IF($C$4="Real $2026",1,((1+'Advanced User Inputs'!$G$72)^(AD$111-2026))) * SUMIFS(INDEX('Full Results Database'!$E$5:$F$549,,MATCH($D113, 'Full Results Database'!$E$1:$F$1,0)), 'Full Results Database'!$B$5:$B$549, $B113, 'Full Results Database'!$C$5:$C$549, AD$111) -> 0 | AE113: =IF($C$4="Real $2026",1,((1+'Advanced User Inputs'!$G$72)^(AE$111-2026))) * SUMIFS(INDEX('Full Results Database'!$E$5:$F$549,,MATCH($D113, 'Full Results Database'!$E$1:$F$1,0)), 'Full Results Database'!$B$5:$B$549, $B113, 'Full Results Database'!$C$5:$C$549, AE$111) -> 0 | AF113: =IF($C$4="Real $2026",1,((1+'Advanced User Inputs'!$G$72)^(AF$111-2026))) * SUMIFS(INDEX('Full Results Database'!$E$5:$F$549,,MATCH($D113, 'Full Results Database'!$E$1:$F$1,0)), 'Full Results Database'!$B$5:$B$549, $B113, 'Full Results Database'!$C$5:$C$549, AF$111) -> 0 | AG113: =IF($C$4="Real $2026",1,((1+'Advanced User Inputs'!$G$72)^(AG$111-2026))) * SUMIFS(INDEX('Full Results Database'!$E$5:$F$549,,MATCH($D113, 'Full Results Database'!$E$1:$F$1,0)), 'Full Results Database'!$B$5:$B$549, $B113, 'Full Results Database'!$C$5:$C$549, AG$111) -> 0 | AH113: =IF($C$4="Real $2026",1,((1+'Advanced User Inputs'!$G$72)^(AH$111-2026))) * SUMIFS(INDEX('Full Results Database'!$E$5:$F$549,,MATCH($D113, 'Full Results Database'!$E$1:$F$1,0)), 'Full Results Database'!$B$5:$B$549, $B113, 'Full Results Database'!$C$5:$C$549, AH$111) -> 0 | AI113: =IF($C$4="Real $2026",1,((1+'Advanced User Inputs'!$G$72)^(AI$111-2026))) * SUMIFS(INDEX('Full Results Database'!$E$5:$F$549,,MATCH($D113, 'Full Results Database'!$E$1:$F$1,0)), 'Full Results Database'!$B$5:$B$549, $B113, 'Full Results Database'!$C$5:$C$549, AI$111) -> 0 | AJ113: =IF($C$4="Real $2026",1,((1+'Advanced User Inputs'!$G$72)^(AJ$111-2026))) * SUMIFS(INDEX('Full Results Database'!$E$5:$F$549,,MATCH($D113, 'Full Results Database'!$E$1:$F$1,0)), 'Full Results Database'!$B$5:$B$549, $B113, 'Full Results Database'!$C$5:$C$549, AJ$111) -> 0 | AK113: =IF($C$4="Real $2026",1,((1+'Advanced User Inputs'!$G$72)^(AK$111-2026))) * SUMIFS(INDEX('Full Results Database'!$E$5:$F$549,,MATCH($D113, 'Full Results Database'!$E$1:$F$1,0)), 'Full Results Database'!$B$5:$B$549, $B113, 'Full Results Database'!$C$5:$C$549, AK$111) -> 0 | AL113: =IF($C$4="Real $2026",1,((1+'Advanced User Inputs'!$G$72)^(AL$111-2026))) * SUMIFS(INDEX('Full Results Database'!$E$5:$F$549,,MATCH($D113, 'Full Results Database'!$E$1:$F$1,0)), 'Full Results Database'!$B$5:$B$549, $B113, 'Full Results Database'!$C$5:$C$549, AL$111) -> 0 | AM113: =IF($C$4="Real $2026",1,((1+'Advanced User Inputs'!$G$72)^(AM$111-2026))) * SUMIFS(INDEX('Full Results Database'!$E$5:$F$549,,MATCH($D113, 'Full Results Database'!$E$1:$F$1,0)), 'Full Results Database'!$B$5:$B$549, $B113, 'Full Results Database'!$C$5:$C$549, AM$111) -> 0 | AN113: =IF($C$4="Real $2026",1,((1+'Advanced User Inputs'!$G$72)^(AN$111-2026))) * SUMIFS(INDEX('Full Results Database'!$E$5:$F$549,,MATCH($D113, 'Full Results Database'!$E$1:$F$1,0)), 'Full Results Database'!$B$5:$B$549, $B113, 'Full Results Database'!$C$5:$C$549, AN$111) -> 0 | AO113: =IF($C$4="Real $2026",1,((1+'Advanced User Inputs'!$G$72)^(AO$111-2026))) * SUMIFS(INDEX('Full Results Database'!$E$5:$F$549,,MATCH($D113, 'Full Results Database'!$E$1:$F$1,0)), 'Full Results Database'!$B$5:$B$549, $B113, 'Full Results Database'!$C$5:$C$549, AO$111) -> 0 | AP113: =IF($C$4="Real $2026",1,((1+'Advanced User Inputs'!$G$72)^(AP$111-2026))) * SUMIFS(INDEX('Full Results Database'!$E$5:$F$549,,MATCH($D113, 'Full Results Database'!$E$1:$F$1,0)), 'Full Results Database'!$B$5:$B$549, $B113, 'Full Results Database'!$C$5:$C$549, AP$111) -> 0 | AQ113: =IF($C$4="Real $2026",1,((1+'Advanced User Inputs'!$G$72)^(AQ$111-2026))) * SUMIFS(INDEX('Full Results Database'!$E$5:$F$549,,MATCH($D113, 'Full Results Database'!$E$1:$F$1,0)), 'Full Results Database'!$B$5:$B$549, $B113, 'Full Results Database'!$C$5:$C$549, AQ$111) -> 0 | AR113: =IF($C$4="Real $2026",1,((1+'Advanced User Inputs'!$G$72)^(AR$111-2026))) * SUMIFS(INDEX('Full Results Database'!$E$5:$F$549,,MATCH($D113, 'Full Results Database'!$E$1:$F$1,0)), 'Full Results Database'!$B$5:$B$549, $B113, 'Full Results Database'!$C$5:$C$549, AR$111) -> 0
B114: DER Payments - Ongoing | C114: =$C$4 -> Real $2026 | D114: =active_scenario1 -> Reimbursement | E114: =IF($C$4="Real $2026",1,((1+'Advanced User Inputs'!$G$72)^(E$111-2026))) * SUMIFS(INDEX('Full Results Database'!$E$5:$F$549,,MATCH($D114, 'Full Results Database'!$E$1:$F$1,0)), 'Full Results Database'!$B$5:$B$549, $B114, 'Full Results Database'!$C$5:$C$549, E$111) -> 0 | F114: =IF($C$4="Real $2026",1,((1+'Advanced User Inputs'!$G$72)^(F$111-2026))) * SUMIFS(INDEX('Full Results Database'!$E$5:$F$549,,MATCH($D114, 'Full Results Database'!$E$1:$F$1,0)), 'Full Results Database'!$B$5:$B$549, $B114, 'Full Results Database'!$C$5:$C$549, F$111) -> 0 | G114: =IF($C$4="Real $2026",1,((1+'Advanced User Inputs'!$G$72)^(G$111-2026))) * SUMIFS(INDEX('Full Results Database'!$E$5:$F$549,,MATCH($D114, 'Full Results Database'!$E$1:$F$1,0)), 'Full Results Database'!$B$5:$B$549, $B114, 'Full Results Database'!$C$5:$C$549, G$111) -> 0 | H114: =IF($C$4="Real $2026",1,((1+'Advanced User Inputs'!$G$72)^(H$111-2026))) * SUMIFS(INDEX('Full Results Database'!$E$5:$F$549,,MATCH($D114, 'Full Results Database'!$E$1:$F$1,0)), 'Full Results Database'!$B$5:$B$549, $B114, 'Full Results Database'!$C$5:$C$549, H$111) -> 0 | I114: =IF($C$4="Real $2026",1,((1+'Advanced User Inputs'!$G$72)^(I$111-2026))) * SUMIFS(INDEX('Full Results Database'!$E$5:$F$549,,MATCH($D114, 'Full Results Database'!$E$1:$F$1,0)), 'Full Results Database'!$B$5:$B$549, $B114, 'Full Results Database'!$C$5:$C$549, I$111) -> 0 | J114: =IF($C$4="Real $2026",1,((1+'Advanced User Inputs'!$G$72)^(J$111-2026))) * SUMIFS(INDEX('Full Results Database'!$E$5:$F$549,,MATCH($D114, 'Full Results Database'!$E$1:$F$1,0)), 'Full Results Database'!$B$5:$B$549, $B114, 'Full Results Database'!$C$5:$C$549, J$111) -> 0 | K114: =IF($C$4="Real $2026",1,((1+'Advanced User Inputs'!$G$72)^(K$111-2026))) * SUMIFS(INDEX('Full Results Database'!$E$5:$F$549,,MATCH($D114, 'Full Results Database'!$E$1:$F$1,0)), 'Full Results Database'!$B$5:$B$549, $B114, 'Full Results Database'!$C$5:$C$549, K$111) -> 0 | L114: =IF($C$4="Real $2026",1,((1+'Advanced User Inputs'!$G$72)^(L$111-2026))) * SUMIFS(INDEX('Full Results Database'!$E$5:$F$549,,MATCH($D114, 'Full Results Database'!$E$1:$F$1,0)), 'Full Results Database'!$B$5:$B$549, $B114, 'Full Results Database'!$C$5:$C$549, L$111) -> 0 | M114: =IF($C$4="Real $2026",1,((1+'Advanced User Inputs'!$G$72)^(M$111-2026))) * SUMIFS(INDEX('Full Results Database'!$E$5:$F$549,,MATCH($D114, 'Full Results Database'!$E$1:$F$1,0)), 'Full Results Database'!$B$5:$B$549, $B114, 'Full Results Database'!$C$5:$C$549, M$111) -> 0 | N114: =IF($C$4="Real $2026",1,((1+'Advanced User Inputs'!$G$72)^(N$111-2026))) * SUMIFS(INDEX('Full Results Database'!$E$5:$F$549,,MATCH($D114, 'Full Results Database'!$E$1:$F$1,0)), 'Full Results Database'!$B$5:$B$549, $B114, 'Full Results Database'!$C$5:$C$549, N$111) -> 0 | O114: =IF($C$4="Real $2026",1,((1+'Advanced User Inputs'!$G$72)^(O$111-2026))) * SUMIFS(INDEX('Full Results Database'!$E$5:$F$549,,MATCH($D114, 'Full Results Database'!$E$1:$F$1,0)), 'Full Results Database'!$B$5:$B$549, $B114, 'Full Results Database'!$C$5:$C$549, O$111) -> 0 | P114: =IF($C$4="Real $2026",1,((1+'Advanced User Inputs'!$G$72)^(P$111-2026))) * SUMIFS(INDEX('Full Results Database'!$E$5:$F$549,,MATCH($D114, 'Full Results Database'!$E$1:$F$1,0)), 'Full Results Database'!$B$5:$B$549, $B114, 'Full Results Database'!$C$5:$C$549, P$111) -> 0 | Q114: =IF($C$4="Real $2026",1,((1+'Advanced User Inputs'!$G$72)^(Q$111-2026))) * SUMIFS(INDEX('Full Results Database'!$E$5:$F$549,,MATCH($D114, 'Full Results Database'!$E$1:$F$1,0)), 'Full Results Database'!$B$5:$B$549, $B114, 'Full Results Database'!$C$5:$C$549, Q$111) -> 0 | R114: =IF($C$4="Real $2026",1,((1+'Advanced User Inputs'!$G$72)^(R$111-2026))) * SUMIFS(INDEX('Full Results Database'!$E$5:$F$549,,MATCH($D114, 'Full Results Database'!$E$1:$F$1,0)), 'Full Results Database'!$B$5:$B$549, $B114, 'Full Results Database'!$C$5:$C$549, R$111) -> 0 | S114: =IF($C$4="Real $2026",1,((1+'Advanced User Inputs'!$G$72)^(S$111-2026))) * SUMIFS(INDEX('Full Results Database'!$E$5:$F$549,,MATCH($D114, 'Full Results Database'!$E$1:$F$1,0)), 'Full Results Database'!$B$5:$B$549, $B114, 'Full Results Database'!$C$5:$C$549, S$111) -> 0 | T114: =IF($C$4="Real $2026",1,((1+'Advanced User Inputs'!$G$72)^(T$111-2026))) * SUMIFS(INDEX('Full Results Database'!$E$5:$F$549,,MATCH($D114, 'Full Results Database'!$E$1:$F$1,0)), 'Full Results Database'!$B$5:$B$549, $B114, 'Full Results Database'!$C$5:$C$549, T$111) -> 0 | U114: =IF($C$4="Real $2026",1,((1+'Advanced User Inputs'!$G$72)^(U$111-2026))) * SUMIFS(INDEX('Full Results Database'!$E$5:$F$549,,MATCH($D114, 'Full Results Database'!$E$1:$F$1,0)), 'Full Results Database'!$B$5:$B$549, $B114, 'Full Results Database'!$C$5:$C$549, U$111) -> 0 | V114: =IF($C$4="Real $2026",1,((1+'Advanced User Inputs'!$G$72)^(V$111-2026))) * SUMIFS(INDEX('Full Results Database'!$E$5:$F$549,,MATCH($D114, 'Full Results Database'!$E$1:$F$1,0)), 'Full Results Database'!$B$5:$B$549, $B114, 'Full Results Database'!$C$5:$C$549, V$111) -> 0 | W114: =IF($C$4="Real $2026",1,((1+'Advanced User Inputs'!$G$72)^(W$111-2026))) * SUMIFS(INDEX('Full Results Database'!$E$5:$F$549,,MATCH($D114, 'Full Results Database'!$E$1:$F$1,0)), 'Full Results Database'!$B$5:$B$549, $B114, 'Full Results Database'!$C$5:$C$549, W$111) -> 0 | X114: =IF($C$4="Real $2026",1,((1+'Advanced User Inputs'!$G$72)^(X$111-2026))) * SUMIFS(INDEX('Full Results Database'!$E$5:$F$549,,MATCH($D114, 'Full Results Database'!$E$1:$F$1,0)), 'Full Results Database'!$B$5:$B$549, $B114, 'Full Results Database'!$C$5:$C$549, X$111) -> 0 | Y114: =IF($C$4="Real $2026",1,((1+'Advanced User Inputs'!$G$72)^(Y$111-2026))) * SUMIFS(INDEX('Full Results Database'!$E$5:$F$549,,MATCH($D114, 'Full Results Database'!$E$1:$F$1,0)), 'Full Results Database'!$B$5:$B$549, $B114, 'Full Results Database'!$C$5:$C$549, Y$111) -> 0 | Z114: =IF($C$4="Real $2026",1,((1+'Advanced User Inputs'!$G$72)^(Z$111-2026))) * SUMIFS(INDEX('Full Results Database'!$E$5:$F$549,,MATCH($D114, 'Full Results Database'!$E$1:$F$1,0)), 'Full Results Database'!$B$5:$B$549, $B114, 'Full Results Database'!$C$5:$C$549, Z$111) -> 0 | AA114: =IF($C$4="Real $2026",1,((1+'Advanced User Inputs'!$G$72)^(AA$111-2026))) * SUMIFS(INDEX('Full Results Database'!$E$5:$F$549,,MATCH($D114, 'Full Results Database'!$E$1:$F$1,0)), 'Full Results Database'!$B$5:$B$549, $B114, 'Full Results Database'!$C$5:$C$549, AA$111) -> 0 | AB114: =IF($C$4="Real $2026",1,((1+'Advanced User Inputs'!$G$72)^(AB$111-2026))) * SUMIFS(INDEX('Full Results Database'!$E$5:$F$549,,MATCH($D114, 'Full Results Database'!$E$1:$F$1,0)), 'Full Results Database'!$B$5:$B$549, $B114, 'Full Results Database'!$C$5:$C$549, AB$111) -> 0 | AC114: =IF($C$4="Real $2026",1,((1+'Advanced User Inputs'!$G$72)^(AC$111-2026))) * SUMIFS(INDEX('Full Results Database'!$E$5:$F$549,,MATCH($D114, 'Full Results Database'!$E$1:$F$1,0)), 'Full Results Database'!$B$5:$B$549, $B114, 'Full Results Database'!$C$5:$C$549, AC$111) -> 0 | AD114: =IF($C$4="Real $2026",1,((1+'Advanced User Inputs'!$G$72)^(AD$111-2026))) * SUMIFS(INDEX('Full Results Database'!$E$5:$F$549,,MATCH($D114, 'Full Results Database'!$E$1:$F$1,0)), 'Full Results Database'!$B$5:$B$549, $B114, 'Full Results Database'!$C$5:$C$549, AD$111) -> 0 | AE114: =IF($C$4="Real $2026",1,((1+'Advanced User Inputs'!$G$72)^(AE$111-2026))) * SUMIFS(INDEX('Full Results Database'!$E$5:$F$549,,MATCH($D114, 'Full Results Database'!$E$1:$F$1,0)), 'Full Results Database'!$B$5:$B$549, $B114, 'Full Results Database'!$C$5:$C$549, AE$111) -> 0 | AF114: =IF($C$4="Real $2026",1,((1+'Advanced User Inputs'!$G$72)^(AF$111-2026))) * SUMIFS(INDEX('Full Results Database'!$E$5:$F$549,,MATCH($D114, 'Full Results Database'!$E$1:$F$1,0)), 'Full Results Database'!$B$5:$B$549, $B114, 'Full Results Database'!$C$5:$C$549, AF$111) -> 0 | AG114: =IF($C$4="Real $2026",1,((1+'Advanced User Inputs'!$G$72)^(AG$111-2026))) * SUMIFS(INDEX('Full Results Database'!$E$5:$F$549,,MATCH($D114, 'Full Results Database'!$E$1:$F$1,0)), 'Full Results Database'!$B$5:$B$549, $B114, 'Full Results Database'!$C$5:$C$549, AG$111) -> 0 | AH114: =IF($C$4="Real $2026",1,((1+'Advanced User Inputs'!$G$72)^(AH$111-2026))) * SUMIFS(INDEX('Full Results Database'!$E$5:$F$549,,MATCH($D114, 'Full Results Database'!$E$1:$F$1,0)), 'Full Results Database'!$B$5:$B$549, $B114, 'Full Results Database'!$C$5:$C$549, AH$111) -> 0 | AI114: =IF($C$4="Real $2026",1,((1+'Advanced User Inputs'!$G$72)^(AI$111-2026))) * SUMIFS(INDEX('Full Results Database'!$E$5:$F$549,,MATCH($D114, 'Full Results Database'!$E$1:$F$1,0)), 'Full Results Database'!$B$5:$B$549, $B114, 'Full Results Database'!$C$5:$C$549, AI$111) -> 0 | AJ114: =IF($C$4="Real $2026",1,((1+'Advanced User Inputs'!$G$72)^(AJ$111-2026))) * SUMIFS(INDEX('Full Results Database'!$E$5:$F$549,,MATCH($D114, 'Full Results Database'!$E$1:$F$1,0)), 'Full Results Database'!$B$5:$B$549, $B114, 'Full Results Database'!$C$5:$C$549, AJ$111) -> 0 | AK114: =IF($C$4="Real $2026",1,((1+'Advanced User Inputs'!$G$72)^(AK$111-2026))) * SUMIFS(INDEX('Full Results Database'!$E$5:$F$549,,MATCH($D114, 'Full Results Database'!$E$1:$F$1,0)), 'Full Results Database'!$B$5:$B$549, $B114, 'Full Results Database'!$C$5:$C$549, AK$111) -> 0 | AL114: =IF($C$4="Real $2026",1,((1+'Advanced User Inputs'!$G$72)^(AL$111-2026))) * SUMIFS(INDEX('Full Results Database'!$E$5:$F$549,,MATCH($D114, 'Full Results Database'!$E$1:$F$1,0)), 'Full Results Database'!$B$5:$B$549, $B114, 'Full Results Database'!$C$5:$C$549, AL$111) -> 0 | AM114: =IF($C$4="Real $2026",1,((1+'Advanced User Inputs'!$G$72)^(AM$111-2026))) * SUMIFS(INDEX('Full Results Database'!$E$5:$F$549,,MATCH($D114, 'Full Results Database'!$E$1:$F$1,0)), 'Full Results Database'!$B$5:$B$549, $B114, 'Full Results Database'!$C$5:$C$549, AM$111) -> 0 | AN114: =IF($C$4="Real $2026",1,((1+'Advanced User Inputs'!$G$72)^(AN$111-2026))) * SUMIFS(INDEX('Full Results Database'!$E$5:$F$549,,MATCH($D114, 'Full Results Database'!$E$1:$F$1,0)), 'Full Results Database'!$B$5:$B$549, $B114, 'Full Results Database'!$C$5:$C$549, AN$111) -> 0 | AO114: =IF($C$4="Real $2026",1,((1+'Advanced User Inputs'!$G$72)^(AO$111-2026))) * SUMIFS(INDEX('Full Results Database'!$E$5:$F$549,,MATCH($D114, 'Full Results Database'!$E$1:$F$1,0)), 'Full Results Database'!$B$5:$B$549, $B114, 'Full Results Database'!$C$5:$C$549, AO$111) -> 0 | AP114: =IF($C$4="Real $2026",1,((1+'Advanced User Inputs'!$G$72)^(AP$111-2026))) * SUMIFS(INDEX('Full Results Database'!$E$5:$F$549,,MATCH($D114, 'Full Results Database'!$E$1:$F$1,0)), 'Full Results Database'!$B$5:$B$549, $B114, 'Full Results Database'!$C$5:$C$549, AP$111) -> 0 | AQ114: =IF($C$4="Real $2026",1,((1+'Advanced User Inputs'!$G$72)^(AQ$111-2026))) * SUMIFS(INDEX('Full Results Database'!$E$5:$F$549,,MATCH($D114, 'Full Results Database'!$E$1:$F$1,0)), 'Full Results Database'!$B$5:$B$549, $B114, 'Full Results Database'!$C$5:$C$549, AQ$111) -> 0 | AR114: =IF($C$4="Real $2026",1,((1+'Advanced User Inputs'!$G$72)^(AR$111-2026))) * SUMIFS(INDEX('Full Results Database'!$E$5:$F$549,,MATCH($D114, 'Full Results Database'!$E$1:$F$1,0)), 'Full Results Database'!$B$5:$B$549, $B114, 'Full Results Database'!$C$5:$C$549, AR$111) -> 0
B115: Reimbursement - Additional DERs | C115: =$C$4 -> Real $2026 | D115: =active_scenario1 -> Reimbursement | E115: =IF($C$4="Real $2026",1,((1+'Advanced User Inputs'!$G$72)^(E$111-2026))) * SUMIFS(INDEX('Full Results Database'!$E$5:$F$549,,MATCH($D115, 'Full Results Database'!$E$1:$F$1,0)), 'Full Results Database'!$B$5:$B$549, $B115, 'Full Results Database'!$C$5:$C$549, E$111) -> 0 | F115: =IF($C$4="Real $2026",1,((1+'Advanced User Inputs'!$G$72)^(F$111-2026))) * SUMIFS(INDEX('Full Results Database'!$E$5:$F$549,,MATCH($D115, 'Full Results Database'!$E$1:$F$1,0)), 'Full Results Database'!$B$5:$B$549, $B115, 'Full Results Database'!$C$5:$C$549, F$111) -> 0 | G115: =IF($C$4="Real $2026",1,((1+'Advanced User Inputs'!$G$72)^(G$111-2026))) * SUMIFS(INDEX('Full Results Database'!$E$5:$F$549,,MATCH($D115, 'Full Results Database'!$E$1:$F$1,0)), 'Full Results Database'!$B$5:$B$549, $B115, 'Full Results Database'!$C$5:$C$549, G$111) -> 0 | H115: =IF($C$4="Real $2026",1,((1+'Advanced User Inputs'!$G$72)^(H$111-2026))) * SUMIFS(INDEX('Full Results Database'!$E$5:$F$549,,MATCH($D115, 'Full Results Database'!$E$1:$F$1,0)), 'Full Results Database'!$B$5:$B$549, $B115, 'Full Results Database'!$C$5:$C$549, H$111) -> 3000000 | I115: =IF($C$4="Real $2026",1,((1+'Advanced User Inputs'!$G$72)^(I$111-2026))) * SUMIFS(INDEX('Full Results Database'!$E$5:$F$549,,MATCH($D115, 'Full Results Database'!$E$1:$F$1,0)), 'Full Results Database'!$B$5:$B$549, $B115, 'Full Results Database'!$C$5:$C$549, I$111) -> 0 | J115: =IF($C$4="Real $2026",1,((1+'Advanced User Inputs'!$G$72)^(J$111-2026))) * SUMIFS(INDEX('Full Results Database'!$E$5:$F$549,,MATCH($D115, 'Full Results Database'!$E$1:$F$1,0)), 'Full Results Database'!$B$5:$B$549, $B115, 'Full Results Database'!$C$5:$C$549, J$111) -> 0 | K115: =IF($C$4="Real $2026",1,((1+'Advanced User Inputs'!$G$72)^(K$111-2026))) * SUMIFS(INDEX('Full Results Database'!$E$5:$F$549,,MATCH($D115, 'Full Results Database'!$E$1:$F$1,0)), 'Full Results Database'!$B$5:$B$549, $B115, 'Full Results Database'!$C$5:$C$549, K$111) -> 1000000 | L115: =IF($C$4="Real $2026",1,((1+'Advanced User Inputs'!$G$72)^(L$111-2026))) * SUMIFS(INDEX('Full Results Database'!$E$5:$F$549,,MATCH($D115, 'Full Results Database'!$E$1:$F$1,0)), 'Full Results Database'!$B$5:$B$549, $B115, 'Full Results Database'!$C$5:$C$549, L$111) -> 0 | M115: =IF($C$4="Real $2026",1,((1+'Advanced User Inputs'!$G$72)^(M$111-2026))) * SUMIFS(INDEX('Full Results Database'!$E$5:$F$549,,MATCH($D115, 'Full Results Database'!$E$1:$F$1,0)), 'Full Results Database'!$B$5:$B$549, $B115, 'Full Results Database'!$C$5:$C$549, M$111) -> 0 | N115: =IF($C$4="Real $2026",1,((1+'Advanced User Inputs'!$G$72)^(N$111-2026))) * SUMIFS(INDEX('Full Results Database'!$E$5:$F$549,,MATCH($D115, 'Full Results Database'!$E$1:$F$1,0)), 'Full Results Database'!$B$5:$B$549, $B115, 'Full Results Database'!$C$5:$C$549, N$111) -> 500000 | O115: =IF($C$4="Real $2026",1,((1+'Advanced User Inputs'!$G$72)^(O$111-2026))) * SUMIFS(INDEX('Full Results Database'!$E$5:$F$549,,MATCH($D115, 'Full Results Database'!$E$1:$F$1,0)), 'Full Results Database'!$B$5:$B$549, $B115, 'Full Results Database'!$C$5:$C$549, O$111) -> 0 | P115: =IF($C$4="Real $2026",1,((1+'Advanced User Inputs'!$G$72)^(P$111-2026))) * SUMIFS(INDEX('Full Results Database'!$E$5:$F$549,,MATCH($D115, 'Full Results Database'!$E$1:$F$1,0)), 'Full Results Database'!$B$5:$B$549, $B115, 'Full Results Database'!$C$5:$C$549, P$111) -> 0 | Q115: =IF($C$4="Real $2026",1,((1+'Advanced User Inputs'!$G$72)^(Q$111-2026))) * SUMIFS(INDEX('Full Results Database'!$E$5:$F$549,,MATCH($D115, 'Full Results Database'!$E$1:$F$1,0)), 'Full Results Database'!$B$5:$B$549, $B115, 'Full Results Database'!$C$5:$C$549, Q$111) -> 300000 | R115: =IF($C$4="Real $2026",1,((1+'Advanced User Inputs'!$G$72)^(R$111-2026))) * SUMIFS(INDEX('Full Results Database'!$E$5:$F$549,,MATCH($D115, 'Full Results Database'!$E$1:$F$1,0)), 'Full Results Database'!$B$5:$B$549, $B115, 'Full Results Database'!$C$5:$C$549, R$111) -> 0 | S115: =IF($C$4="Real $2026",1,((1+'Advanced User Inputs'!$G$72)^(S$111-2026))) * SUMIFS(INDEX('Full Results Database'!$E$5:$F$549,,MATCH($D115, 'Full Results Database'!$E$1:$F$1,0)), 'Full Results Database'!$B$5:$B$549, $B115, 'Full Results Database'!$C$5:$C$549, S$111) -> 0 | T115: =IF($C$4="Real $2026",1,((1+'Advanced User Inputs'!$G$72)^(T$111-2026))) * SUMIFS(INDEX('Full Results Database'!$E$5:$F$549,,MATCH($D115, 'Full Results Database'!$E$1:$F$1,0)), 'Full Results Database'!$B$5:$B$549, $B115, 'Full Results Database'!$C$5:$C$549, T$111) -> 200000 | U115: =IF($C$4="Real $2026",1,((1+'Advanced User Inputs'!$G$72)^(U$111-2026))) * SUMIFS(INDEX('Full Results Database'!$E$5:$F$549,,MATCH($D115, 'Full Results Database'!$E$1:$F$1,0)), 'Full Results Database'!$B$5:$B$549, $B115, 'Full Results Database'!$C$5:$C$549, U$111) -> 0 | V115: =IF($C$4="Real $2026",1,((1+'Advanced User Inputs'!$G$72)^(V$111-2026))) * SUMIFS(INDEX('Full Results Database'!$E$5:$F$549,,MATCH($D115, 'Full Results Database'!$E$1:$F$1,0)), 'Full Results Database'!$B$5:$B$549, $B115, 'Full Results Database'!$C$5:$C$549, V$111) -> 0 | W115: =IF($C$4="Real $2026",1,((1+'Advanced User Inputs'!$G$72)^(W$111-2026))) * SUMIFS(INDEX('Full Results Database'!$E$5:$F$549,,MATCH($D115, 'Full Results Database'!$E$1:$F$1,0)), 'Full Results Database'!$B$5:$B$549, $B115, 'Full Results Database'!$C$5:$C$549, W$111) -> 142857.1429 | X115: =IF($C$4="Real $2026",1,((1+'Advanced User Inputs'!$G$72)^(X$111-2026))) * SUMIFS(INDEX('Full Results Database'!$E$5:$F$549,,MATCH($D115, 'Full Results Database'!$E$1:$F$1,0)), 'Full Results Database'!$B$5:$B$549, $B115, 'Full Results Database'!$C$5:$C$549, X$111) -> 0 | Y115: =IF($C$4="Real $2026",1,((1+'Advanced User Inputs'!$G$72)^(Y$111-2026))) * SUMIFS(INDEX('Full Results Database'!$E$5:$F$549,,MATCH($D115, 'Full Results Database'!$E$1:$F$1,0)), 'Full Results Database'!$B$5:$B$549, $B115, 'Full Results Database'!$C$5:$C$549, Y$111) -> 0 | Z115: =IF($C$4="Real $2026",1,((1+'Advanced User Inputs'!$G$72)^(Z$111-2026))) * SUMIFS(INDEX('Full Results Database'!$E$5:$F$549,,MATCH($D115, 'Full Results Database'!$E$1:$F$1,0)), 'Full Results Database'!$B$5:$B$549, $B115, 'Full Results Database'!$C$5:$C$549, Z$111) -> 107142.8571 | AA115: =IF($C$4="Real $2026",1,((1+'Advanced User Inputs'!$G$72)^(AA$111-2026))) * SUMIFS(INDEX('Full Results Database'!$E$5:$F$549,,MATCH($D115, 'Full Results Database'!$E$1:$F$1,0)), 'Full Results Database'!$B$5:$B$549, $B115, 'Full Results Database'!$C$5:$C$549, AA$111) -> 0 | AB115: =IF($C$4="Real $2026",1,((1+'Advanced User Inputs'!$G$72)^(AB$111-2026))) * SUMIFS(INDEX('Full Results Database'!$E$5:$F$549,,MATCH($D115, 'Full Results Database'!$E$1:$F$1,0)), 'Full Results Database'!$B$5:$B$549, $B115, 'Full Results Database'!$C$5:$C$549, AB$111) -> 0 | AC115: =IF($C$4="Real $2026",1,((1+'Advanced User Inputs'!$G$72)^(AC$111-2026))) * SUMIFS(INDEX('Full Results Database'!$E$5:$F$549,,MATCH($D115, 'Full Results Database'!$E$1:$F$1,0)), 'Full Results Database'!$B$5:$B$549, $B115, 'Full Results Database'!$C$5:$C$549, AC$111) -> 83333.33333 | AD115: =IF($C$4="Real $2026",1,((1+'Advanced User Inputs'!$G$72)^(AD$111-2026))) * SUMIFS(INDEX('Full Results Database'!$E$5:$F$549,,MATCH($D115, 'Full Results Database'!$E$1:$F$1,0)), 'Full Results Database'!$B$5:$B$549, $B115, 'Full Results Database'!$C$5:$C$549, AD$111) -> 0 | AE115: =IF($C$4="Real $2026",1,((1+'Advanced User Inputs'!$G$72)^(AE$111-2026))) * SUMIFS(INDEX('Full Results Database'!$E$5:$F$549,,MATCH($D115, 'Full Results Database'!$E$1:$F$1,0)), 'Full Results Database'!$B$5:$B$549, $B115, 'Full Results Database'!$C$5:$C$549, AE$111) -> 0 | AF115: =IF($C$4="Real $2026",1,((1+'Advanced User Inputs'!$G$72)^(AF$111-2026))) * SUMIFS(INDEX('Full Results Database'!$E$5:$F$549,,MATCH($D115, 'Full Results Database'!$E$1:$F$1,0)), 'Full Results Database'!$B$5:$B$549, $B115, 'Full Results Database'!$C$5:$C$549, AF$111) -> 66666.66667 | AG115: =IF($C$4="Real $2026",1,((1+'Advanced User Inputs'!$G$72)^(AG$111-2026))) * SUMIFS(INDEX('Full Results Database'!$E$5:$F$549,,MATCH($D115, 'Full Results Database'!$E$1:$F$1,0)), 'Full Results Database'!$B$5:$B$549, $B115, 'Full Results Database'!$C$5:$C$549, AG$111) -> 0 | AH115: =IF($C$4="Real $2026",1,((1+'Advanced User Inputs'!$G$72)^(AH$111-2026))) * SUMIFS(INDEX('Full Results Database'!$E$5:$F$549,,MATCH($D115, 'Full Results Database'!$E$1:$F$1,0)), 'Full Results Database'!$B$5:$B$549, $B115, 'Full Results Database'!$C$5:$C$549, AH$111) -> 0 | AI115: =IF($C$4="Real $2026",1,((1+'Advanced User Inputs'!$G$72)^(AI$111-2026))) * SUMIFS(INDEX('Full Results Database'!$E$5:$F$549,,MATCH($D115, 'Full Results Database'!$E$1:$F$1,0)), 'Full Results Database'!$B$5:$B$549, $B115, 'Full Results Database'!$C$5:$C$549, AI$111) -> 54545.45455 | AJ115: =IF($C$4="Real $2026",1,((1+'Advanced User Inputs'!$G$72)^(AJ$111-2026))) * SUMIFS(INDEX('Full Results Database'!$E$5:$F$549,,MATCH($D115, 'Full Results Database'!$E$1:$F$1,0)), 'Full Results Database'!$B$5:$B$549, $B115, 'Full Results Database'!$C$5:$C$549, AJ$111) -> 0 | AK115: =IF($C$4="Real $2026",1,((1+'Advanced User Inputs'!$G$72)^(AK$111-2026))) * SUMIFS(INDEX('Full Results Database'!$E$5:$F$549,,MATCH($D115, 'Full Results Database'!$E$1:$F$1,0)), 'Full Results Database'!$B$5:$B$549, $B115, 'Full Results Database'!$C$5:$C$549, AK$111) -> 0 | AL115: =IF($C$4="Real $2026",1,((1+'Advanced User Inputs'!$G$72)^(AL$111-2026))) * SUMIFS(INDEX('Full Results Database'!$E$5:$F$549,,MATCH($D115, 'Full Results Database'!$E$1:$F$1,0)), 'Full Results Database'!$B$5:$B$549, $B115, 'Full Results Database'!$C$5:$C$549, AL$111) -> 45454.54545 | AM115: =IF($C$4="Real $2026",1,((1+'Advanced User Inputs'!$G$72)^(AM$111-2026))) * SUMIFS(INDEX('Full Results Database'!$E$5:$F$549,,MATCH($D115, 'Full Results Database'!$E$1:$F$1,0)), 'Full Results Database'!$B$5:$B$549, $B115, 'Full Results Database'!$C$5:$C$549, AM$111) -> 0 | AN115: =IF($C$4="Real $2026",1,((1+'Advanced User Inputs'!$G$72)^(AN$111-2026))) * SUMIFS(INDEX('Full Results Database'!$E$5:$F$549,,MATCH($D115, 'Full Results Database'!$E$1:$F$1,0)), 'Full Results Database'!$B$5:$B$549, $B115, 'Full Results Database'!$C$5:$C$549, AN$111) -> 0 | AO115: =IF($C$4="Real $2026",1,((1+'Advanced User Inputs'!$G$72)^(AO$111-2026))) * SUMIFS(INDEX('Full Results Database'!$E$5:$F$549,,MATCH($D115, 'Full Results Database'!$E$1:$F$1,0)), 'Full Results Database'!$B$5:$B$549, $B115, 'Full Results Database'!$C$5:$C$549, AO$111) -> 38461.53846 | AP115: =IF($C$4="Real $2026",1,((1+'Advanced User Inputs'!$G$72)^(AP$111-2026))) * SUMIFS(INDEX('Full Results Database'!$E$5:$F$549,,MATCH($D115, 'Full Results Database'!$E$1:$F$1,0)), 'Full Results Database'!$B$5:$B$549, $B115, 'Full Results Database'!$C$5:$C$549, AP$111) -> 0 | AQ115: =IF($C$4="Real $2026",1,((1+'Advanced User Inputs'!$G$72)^(AQ$111-2026))) * SUMIFS(INDEX('Full Results Database'!$E$5:$F$549,,MATCH($D115, 'Full Results Database'!$E$1:$F$1,0)), 'Full Results Database'!$B$5:$B$549, $B115, 'Full Results Database'!$C$5:$C$549, AQ$111) -> 0 | AR115: =IF($C$4="Real $2026",1,((1+'Advanced User Inputs'!$G$72)^(AR$111-2026))) * SUMIFS(INDEX('Full Results Database'!$E$5:$F$549,,MATCH($D115, 'Full Results Database'!$E$1:$F$1,0)), 'Full Results Database'!$B$5:$B$549, $B115, 'Full Results Database'!$C$5:$C$549, AR$111) -> 32967.03297
B116: Reimbursement - Ratepayers | C116: =$C$4 -> Real $2026 | D116: =active_scenario1 -> Reimbursement | E116: =IF($C$4="Real $2026",1,((1+'Advanced User Inputs'!$G$72)^(E$111-2026))) * SUMIFS(INDEX('Full Results Database'!$E$5:$F$549,,MATCH($D116, 'Full Results Database'!$E$1:$F$1,0)), 'Full Results Database'!$B$5:$B$549, $B116, 'Full Results Database'!$C$5:$C$549, E$111) -> 0 | F116: =IF($C$4="Real $2026",1,((1+'Advanced User Inputs'!$G$72)^(F$111-2026))) * SUMIFS(INDEX('Full Results Database'!$E$5:$F$549,,MATCH($D116, 'Full Results Database'!$E$1:$F$1,0)), 'Full Results Database'!$B$5:$B$549, $B116, 'Full Results Database'!$C$5:$C$549, F$111) -> 0 | G116: =IF($C$4="Real $2026",1,((1+'Advanced User Inputs'!$G$72)^(G$111-2026))) * SUMIFS(INDEX('Full Results Database'!$E$5:$F$549,,MATCH($D116, 'Full Results Database'!$E$1:$F$1,0)), 'Full Results Database'!$B$5:$B$549, $B116, 'Full Results Database'!$C$5:$C$549, G$111) -> 0 | H116: =IF($C$4="Real $2026",1,((1+'Advanced User Inputs'!$G$72)^(H$111-2026))) * SUMIFS(INDEX('Full Results Database'!$E$5:$F$549,,MATCH($D116, 'Full Results Database'!$E$1:$F$1,0)), 'Full Results Database'!$B$5:$B$549, $B116, 'Full Results Database'!$C$5:$C$549, H$111) -> 0 | I116: =IF($C$4="Real $2026",1,((1+'Advanced User Inputs'!$G$72)^(I$111-2026))) * SUMIFS(INDEX('Full Results Database'!$E$5:$F$549,,MATCH($D116, 'Full Results Database'!$E$1:$F$1,0)), 'Full Results Database'!$B$5:$B$549, $B116, 'Full Results Database'!$C$5:$C$549, I$111) -> 0 | J116: =IF($C$4="Real $2026",1,((1+'Advanced User Inputs'!$G$72)^(J$111-2026))) * SUMIFS(INDEX('Full Results Database'!$E$5:$F$549,,MATCH($D116, 'Full Results Database'!$E$1:$F$1,0)), 'Full Results Database'!$B$5:$B$549, $B116, 'Full Results Database'!$C$5:$C$549, J$111) -> 0 | K116: =IF($C$4="Real $2026",1,((1+'Advanced User Inputs'!$G$72)^(K$111-2026))) * SUMIFS(INDEX('Full Results Database'!$E$5:$F$549,,MATCH($D116, 'Full Results Database'!$E$1:$F$1,0)), 'Full Results Database'!$B$5:$B$549, $B116, 'Full Results Database'!$C$5:$C$549, K$111) -> 0 | L116: =IF($C$4="Real $2026",1,((1+'Advanced User Inputs'!$G$72)^(L$111-2026))) * SUMIFS(INDEX('Full Results Database'!$E$5:$F$549,,MATCH($D116, 'Full Results Database'!$E$1:$F$1,0)), 'Full Results Database'!$B$5:$B$549, $B116, 'Full Results Database'!$C$5:$C$549, L$111) -> 0 | M116: =IF($C$4="Real $2026",1,((1+'Advanced User Inputs'!$G$72)^(M$111-2026))) * SUMIFS(INDEX('Full Results Database'!$E$5:$F$549,,MATCH($D116, 'Full Results Database'!$E$1:$F$1,0)), 'Full Results Database'!$B$5:$B$549, $B116, 'Full Results Database'!$C$5:$C$549, M$111) -> 0 | N116: =IF($C$4="Real $2026",1,((1+'Advanced User Inputs'!$G$72)^(N$111-2026))) * SUMIFS(INDEX('Full Results Database'!$E$5:$F$549,,MATCH($D116, 'Full Results Database'!$E$1:$F$1,0)), 'Full Results Database'!$B$5:$B$549, $B116, 'Full Results Database'!$C$5:$C$549, N$111) -> 0 | O116: =IF($C$4="Real $2026",1,((1+'Advanced User Inputs'!$G$72)^(O$111-2026))) * SUMIFS(INDEX('Full Results Database'!$E$5:$F$549,,MATCH($D116, 'Full Results Database'!$E$1:$F$1,0)), 'Full Results Database'!$B$5:$B$549, $B116, 'Full Results Database'!$C$5:$C$549, O$111) -> 0 | P116: =IF($C$4="Real $2026",1,((1+'Advanced User Inputs'!$G$72)^(P$111-2026))) * SUMIFS(INDEX('Full Results Database'!$E$5:$F$549,,MATCH($D116, 'Full Results Database'!$E$1:$F$1,0)), 'Full Results Database'!$B$5:$B$549, $B116, 'Full Results Database'!$C$5:$C$549, P$111) -> 0 | Q116: =IF($C$4="Real $2026",1,((1+'Advanced User Inputs'!$G$72)^(Q$111-2026))) * SUMIFS(INDEX('Full Results Database'!$E$5:$F$549,,MATCH($D116, 'Full Results Database'!$E$1:$F$1,0)), 'Full Results Database'!$B$5:$B$549, $B116, 'Full Results Database'!$C$5:$C$549, Q$111) -> 0 | R116: =IF($C$4="Real $2026",1,((1+'Advanced User Inputs'!$G$72)^(R$111-2026))) * SUMIFS(INDEX('Full Results Database'!$E$5:$F$549,,MATCH($D116, 'Full Results Database'!$E$1:$F$1,0)), 'Full Results Database'!$B$5:$B$549, $B116, 'Full Results Database'!$C$5:$C$549, R$111) -> 0 | S116: =IF($C$4="Real $2026",1,((1+'Advanced User Inputs'!$G$72)^(S$111-2026))) * SUMIFS(INDEX('Full Results Database'!$E$5:$F$549,,MATCH($D116, 'Full Results Database'!$E$1:$F$1,0)), 'Full Results Database'!$B$5:$B$549, $B116, 'Full Results Database'!$C$5:$C$549, S$111) -> 0 | T116: =IF($C$4="Real $2026",1,((1+'Advanced User Inputs'!$G$72)^(T$111-2026))) * SUMIFS(INDEX('Full Results Database'!$E$5:$F$549,,MATCH($D116, 'Full Results Database'!$E$1:$F$1,0)), 'Full Results Database'!$B$5:$B$549, $B116, 'Full Results Database'!$C$5:$C$549, T$111) -> 0 | U116: =IF($C$4="Real $2026",1,((1+'Advanced User Inputs'!$G$72)^(U$111-2026))) * SUMIFS(INDEX('Full Results Database'!$E$5:$F$549,,MATCH($D116, 'Full Results Database'!$E$1:$F$1,0)), 'Full Results Database'!$B$5:$B$549, $B116, 'Full Results Database'!$C$5:$C$549, U$111) -> 0 | V116: =IF($C$4="Real $2026",1,((1+'Advanced User Inputs'!$G$72)^(V$111-2026))) * SUMIFS(INDEX('Full Results Database'!$E$5:$F$549,,MATCH($D116, 'Full Results Database'!$E$1:$F$1,0)), 'Full Results Database'!$B$5:$B$549, $B116, 'Full Results Database'!$C$5:$C$549, V$111) -> 0 | W116: =IF($C$4="Real $2026",1,((1+'Advanced User Inputs'!$G$72)^(W$111-2026))) * SUMIFS(INDEX('Full Results Database'!$E$5:$F$549,,MATCH($D116, 'Full Results Database'!$E$1:$F$1,0)), 'Full Results Database'!$B$5:$B$549, $B116, 'Full Results Database'!$C$5:$C$549, W$111) -> 0 | X116: =IF($C$4="Real $2026",1,((1+'Advanced User Inputs'!$G$72)^(X$111-2026))) * SUMIFS(INDEX('Full Results Database'!$E$5:$F$549,,MATCH($D116, 'Full Results Database'!$E$1:$F$1,0)), 'Full Results Database'!$B$5:$B$549, $B116, 'Full Results Database'!$C$5:$C$549, X$111) -> 0 | Y116: =IF($C$4="Real $2026",1,((1+'Advanced User Inputs'!$G$72)^(Y$111-2026))) * SUMIFS(INDEX('Full Results Database'!$E$5:$F$549,,MATCH($D116, 'Full Results Database'!$E$1:$F$1,0)), 'Full Results Database'!$B$5:$B$549, $B116, 'Full Results Database'!$C$5:$C$549, Y$111) -> 0 | Z116: =IF($C$4="Real $2026",1,((1+'Advanced User Inputs'!$G$72)^(Z$111-2026))) * SUMIFS(INDEX('Full Results Database'!$E$5:$F$549,,MATCH($D116, 'Full Results Database'!$E$1:$F$1,0)), 'Full Results Database'!$B$5:$B$549, $B116, 'Full Results Database'!$C$5:$C$549, Z$111) -> 0 | AA116: =IF($C$4="Real $2026",1,((1+'Advanced User Inputs'!$G$72)^(AA$111-2026))) * SUMIFS(INDEX('Full Results Database'!$E$5:$F$549,,MATCH($D116, 'Full Results Database'!$E$1:$F$1,0)), 'Full Results Database'!$B$5:$B$549, $B116, 'Full Results Database'!$C$5:$C$549, AA$111) -> 0 | AB116: =IF($C$4="Real $2026",1,((1+'Advanced User Inputs'!$G$72)^(AB$111-2026))) * SUMIFS(INDEX('Full Results Database'!$E$5:$F$549,,MATCH($D116, 'Full Results Database'!$E$1:$F$1,0)), 'Full Results Database'!$B$5:$B$549, $B116, 'Full Results Database'!$C$5:$C$549, AB$111) -> 0 | AC116: =IF($C$4="Real $2026",1,((1+'Advanced User Inputs'!$G$72)^(AC$111-2026))) * SUMIFS(INDEX('Full Results Database'!$E$5:$F$549,,MATCH($D116, 'Full Results Database'!$E$1:$F$1,0)), 'Full Results Database'!$B$5:$B$549, $B116, 'Full Results Database'!$C$5:$C$549, AC$111) -> 0 | AD116: =IF($C$4="Real $2026",1,((1+'Advanced User Inputs'!$G$72)^(AD$111-2026))) * SUMIFS(INDEX('Full Results Database'!$E$5:$F$549,,MATCH($D116, 'Full Results Database'!$E$1:$F$1,0)), 'Full Results Database'!$B$5:$B$549, $B116, 'Full Results Database'!$C$5:$C$549, AD$111) -> 0 | AE116: =IF($C$4="Real $2026",1,((1+'Advanced User Inputs'!$G$72)^(AE$111-2026))) * SUMIFS(INDEX('Full Results Database'!$E$5:$F$549,,MATCH($D116, 'Full Results Database'!$E$1:$F$1,0)), 'Full Results Database'!$B$5:$B$549, $B116, 'Full Results Database'!$C$5:$C$549, AE$111) -> 0 | AF116: =IF($C$4="Real $2026",1,((1+'Advanced User Inputs'!$G$72)^(AF$111-2026))) * SUMIFS(INDEX('Full Results Database'!$E$5:$F$549,,MATCH($D116, 'Full Results Database'!$E$1:$F$1,0)), 'Full Results Database'!$B$5:$B$549, $B116, 'Full Results Database'!$C$5:$C$549, AF$111) -> 0 | AG116: =IF($C$4="Real $2026",1,((1+'Advanced User Inputs'!$G$72)^(AG$111-2026))) * SUMIFS(INDEX('Full Results Database'!$E$5:$F$549,,MATCH($D116, 'Full Results Database'!$E$1:$F$1,0)), 'Full Results Database'!$B$5:$B$549, $B116, 'Full Results Database'!$C$5:$C$549, AG$111) -> 0 | AH116: =IF($C$4="Real $2026",1,((1+'Advanced User Inputs'!$G$72)^(AH$111-2026))) * SUMIFS(INDEX('Full Results Database'!$E$5:$F$549,,MATCH($D116, 'Full Results Database'!$E$1:$F$1,0)), 'Full Results Database'!$B$5:$B$549, $B116, 'Full Results Database'!$C$5:$C$549, AH$111) -> 0 | AI116: =IF($C$4="Real $2026",1,((1+'Advanced User Inputs'!$G$72)^(AI$111-2026))) * SUMIFS(INDEX('Full Results Database'!$E$5:$F$549,,MATCH($D116, 'Full Results Database'!$E$1:$F$1,0)), 'Full Results Database'!$B$5:$B$549, $B116, 'Full Results Database'!$C$5:$C$549, AI$111) -> 0 | AJ116: =IF($C$4="Real $2026",1,((1+'Advanced User Inputs'!$G$72)^(AJ$111-2026))) * SUMIFS(INDEX('Full Results Database'!$E$5:$F$549,,MATCH($D116, 'Full Results Database'!$E$1:$F$1,0)), 'Full Results Database'!$B$5:$B$549, $B116, 'Full Results Database'!$C$5:$C$549, AJ$111) -> 0 | AK116: =IF($C$4="Real $2026",1,((1+'Advanced User Inputs'!$G$72)^(AK$111-2026))) * SUMIFS(INDEX('Full Results Database'!$E$5:$F$549,,MATCH($D116, 'Full Results Database'!$E$1:$F$1,0)), 'Full Results Database'!$B$5:$B$549, $B116, 'Full Results Database'!$C$5:$C$549, AK$111) -> 0 | AL116: =IF($C$4="Real $2026",1,((1+'Advanced User Inputs'!$G$72)^(AL$111-2026))) * SUMIFS(INDEX('Full Results Database'!$E$5:$F$549,,MATCH($D116, 'Full Results Database'!$E$1:$F$1,0)), 'Full Results Database'!$B$5:$B$549, $B116, 'Full Results Database'!$C$5:$C$549, AL$111) -> 0 | AM116: =IF($C$4="Real $2026",1,((1+'Advanced User Inputs'!$G$72)^(AM$111-2026))) * SUMIFS(INDEX('Full Results Database'!$E$5:$F$549,,MATCH($D116, 'Full Results Database'!$E$1:$F$1,0)), 'Full Results Database'!$B$5:$B$549, $B116, 'Full Results Database'!$C$5:$C$549, AM$111) -> 0 | AN116: =IF($C$4="Real $2026",1,((1+'Advanced User Inputs'!$G$72)^(AN$111-2026))) * SUMIFS(INDEX('Full Results Database'!$E$5:$F$549,,MATCH($D116, 'Full Results Database'!$E$1:$F$1,0)), 'Full Results Database'!$B$5:$B$549, $B116, 'Full Results Database'!$C$5:$C$549, AN$111) -> 0 | AO116: =IF($C$4="Real $2026",1,((1+'Advanced User Inputs'!$G$72)^(AO$111-2026))) * SUMIFS(INDEX('Full Results Database'!$E$5:$F$549,,MATCH($D116, 'Full Results Database'!$E$1:$F$1,0)), 'Full Results Database'!$B$5:$B$549, $B116, 'Full Results Database'!$C$5:$C$549, AO$111) -> 0 | AP116: =IF($C$4="Real $2026",1,((1+'Advanced User Inputs'!$G$72)^(AP$111-2026))) * SUMIFS(INDEX('Full Results Database'!$E$5:$F$549,,MATCH($D116, 'Full Results Database'!$E$1:$F$1,0)), 'Full Results Database'!$B$5:$B$549, $B116, 'Full Results Database'!$C$5:$C$549, AP$111) -> 0 | AQ116: =IF($C$4="Real $2026",1,((1+'Advanced User Inputs'!$G$72)^(AQ$111-2026))) * SUMIFS(INDEX('Full Results Database'!$E$5:$F$549,,MATCH($D116, 'Full Results Database'!$E$1:$F$1,0)), 'Full Results Database'!$B$5:$B$549, $B116, 'Full Results Database'!$C$5:$C$549, AQ$111) -> 0 | AR116: =IF($C$4="Real $2026",1,((1+'Advanced User Inputs'!$G$72)^(AR$111-2026))) * SUMIFS(INDEX('Full Results Database'!$E$5:$F$549,,MATCH($D116, 'Full Results Database'!$E$1:$F$1,0)), 'Full Results Database'!$B$5:$B$549, $B116, 'Full Results Database'!$C$5:$C$549, AR$111) -> 0
B118: Payment Type | C118: Units | D118: Scenario | E118: 2026 | F118: 2027 | G118: 2028 | H118: 2029 | I118: 2030 | J118: 2031 | K118: 2032 | L118: 2033 | M118: 2034 | N118: 2035 | O118: 2036 | P118: 2037 | Q118: 2038 | R118: 2039 | S118: 2040 | T118: 2041 | U118: 2042 | V118: 2043 | W118: 2044 | X118: 2045 | Y118: 2046 | Z118: 2047 | AA118: 2048 | AB118: 2049 | AC118: 2050 | AD118: 2051 | AE118: 2052 | AF118: 2053 | AG118: 2054 | AH118: 2055 | AI118: 2056 | AJ118: 2057 | AK118: 2058 | AL118: 2059 | AM118: 2060 | AN118: 2061 | AO118: 2062 | AP118: 2063 | AQ118: 2064 | AR118: 2065 | AS118: //
B119: Total DER Cashflow | C119: =$C$4 -> Real $2026 | D119: =active_scenario2 -> Cost Causer Pays | E119: =SUM(E120:E123) -> -6000000 | F119: =SUM(F120:F123) -> 0 | G119: =SUM(G120:G123) -> 0 | H119: =SUM(H120:H123) -> 0 | I119: =SUM(I120:I123) -> 0 | J119: =SUM(J120:J123) -> 0 | K119: =SUM(K120:K123) -> 0 | L119: =SUM(L120:L123) -> 0 | M119: =SUM(M120:M123) -> 0 | N119: =SUM(N120:N123) -> 0 | O119: =SUM(O120:O123) -> 0 | P119: =SUM(P120:P123) -> 0 | Q119: =SUM(Q120:Q123) -> 0 | R119: =SUM(R120:R123) -> 0 | S119: =SUM(S120:S123) -> 0 | T119: =SUM(T120:T123) -> 0 | U119: =SUM(U120:U123) -> 0 | V119: =SUM(V120:V123) -> 0 | W119: =SUM(W120:W123) -> 0 | X119: =SUM(X120:X123) -> 0 | Y119: =SUM(Y120:Y123) -> 0 | Z119: =SUM(Z120:Z123) -> 0 | AA119: =SUM(AA120:AA123) -> 0 | AB119: =SUM(AB120:AB123) -> 0 | AC119: =SUM(AC120:AC123) -> 0 | AD119: =SUM(AD120:AD123) -> 0 | AE119: =SUM(AE120:AE123) -> 0 | AF119: =SUM(AF120:AF123) -> 0 | AG119: =SUM(AG120:AG123) -> 0 | AH119: =SUM(AH120:AH123) -> 0 | AI119: =SUM(AI120:AI123) -> 0 | AJ119: =SUM(AJ120:AJ123) -> 0 | AK119: =SUM(AK120:AK123) -> 0 | AL119: =SUM(AL120:AL123) -> 0 | AM119: =SUM(AM120:AM123) -> 0 | AN119: =SUM(AN120:AN123) -> 0 | AO119: =SUM(AO120:AO123) -> 0 | AP119: =SUM(AP120:AP123) -> 0 | AQ119: =SUM(AQ120:AQ123) -> 0 | AR119: =SUM(AR120:AR123) -> 0
B120: DER Payments - Upfront | C120: =$C$4 -> Real $2026 | D120: =active_scenario2 -> Cost Causer Pays | E120: =IF($C$4="Real $2026",1,((1+'Advanced User Inputs'!$G$72)^(E$111-2026))) * SUMIFS(INDEX('Full Results Database'!$E$5:$F$549,,MATCH($D120, 'Full Results Database'!$E$1:$F$1,0)), 'Full Results Database'!$B$5:$B$549, $B120, 'Full Results Database'!$C$5:$C$549, E$111) -> -6000000 | F120: =IF($C$4="Real $2026",1,((1+'Advanced User Inputs'!$G$72)^(F$111-2026))) * SUMIFS(INDEX('Full Results Database'!$E$5:$F$549,,MATCH($D120, 'Full Results Database'!$E$1:$F$1,0)), 'Full Results Database'!$B$5:$B$549, $B120, 'Full Results Database'!$C$5:$C$549, F$111) -> 0 | G120: =IF($C$4="Real $2026",1,((1+'Advanced User Inputs'!$G$72)^(G$111-2026))) * SUMIFS(INDEX('Full Results Database'!$E$5:$F$549,,MATCH($D120, 'Full Results Database'!$E$1:$F$1,0)), 'Full Results Database'!$B$5:$B$549, $B120, 'Full Results Database'!$C$5:$C$549, G$111) -> 0 | H120: =IF($C$4="Real $2026",1,((1+'Advanced User Inputs'!$G$72)^(H$111-2026))) * SUMIFS(INDEX('Full Results Database'!$E$5:$F$549,,MATCH($D120, 'Full Results Database'!$E$1:$F$1,0)), 'Full Results Database'!$B$5:$B$549, $B120, 'Full Results Database'!$C$5:$C$549, H$111) -> 0 | I120: =IF($C$4="Real $2026",1,((1+'Advanced User Inputs'!$G$72)^(I$111-2026))) * SUMIFS(INDEX('Full Results Database'!$E$5:$F$549,,MATCH($D120, 'Full Results Database'!$E$1:$F$1,0)), 'Full Results Database'!$B$5:$B$549, $B120, 'Full Results Database'!$C$5:$C$549, I$111) -> 0 | J120: =IF($C$4="Real $2026",1,((1+'Advanced User Inputs'!$G$72)^(J$111-2026))) * SUMIFS(INDEX('Full Results Database'!$E$5:$F$549,,MATCH($D120, 'Full Results Database'!$E$1:$F$1,0)), 'Full Results Database'!$B$5:$B$549, $B120, 'Full Results Database'!$C$5:$C$549, J$111) -> 0 | K120: =IF($C$4="Real $2026",1,((1+'Advanced User Inputs'!$G$72)^(K$111-2026))) * SUMIFS(INDEX('Full Results Database'!$E$5:$F$549,,MATCH($D120, 'Full Results Database'!$E$1:$F$1,0)), 'Full Results Database'!$B$5:$B$549, $B120, 'Full Results Database'!$C$5:$C$549, K$111) -> 0 | L120: =IF($C$4="Real $2026",1,((1+'Advanced User Inputs'!$G$72)^(L$111-2026))) * SUMIFS(INDEX('Full Results Database'!$E$5:$F$549,,MATCH($D120, 'Full Results Database'!$E$1:$F$1,0)), 'Full Results Database'!$B$5:$B$549, $B120, 'Full Results Database'!$C$5:$C$549, L$111) -> 0 | M120: =IF($C$4="Real $2026",1,((1+'Advanced User Inputs'!$G$72)^(M$111-2026))) * SUMIFS(INDEX('Full Results Database'!$E$5:$F$549,,MATCH($D120, 'Full Results Database'!$E$1:$F$1,0)), 'Full Results Database'!$B$5:$B$549, $B120, 'Full Results Database'!$C$5:$C$549, M$111) -> 0 | N120: =IF($C$4="Real $2026",1,((1+'Advanced User Inputs'!$G$72)^(N$111-2026))) * SUMIFS(INDEX('Full Results Database'!$E$5:$F$549,,MATCH($D120, 'Full Results Database'!$E$1:$F$1,0)), 'Full Results Database'!$B$5:$B$549, $B120, 'Full Results Database'!$C$5:$C$549, N$111) -> 0 | O120: =IF($C$4="Real $2026",1,((1+'Advanced User Inputs'!$G$72)^(O$111-2026))) * SUMIFS(INDEX('Full Results Database'!$E$5:$F$549,,MATCH($D120, 'Full Results Database'!$E$1:$F$1,0)), 'Full Results Database'!$B$5:$B$549, $B120, 'Full Results Database'!$C$5:$C$549, O$111) -> 0 | P120: =IF($C$4="Real $2026",1,((1+'Advanced User Inputs'!$G$72)^(P$111-2026))) * SUMIFS(INDEX('Full Results Database'!$E$5:$F$549,,MATCH($D120, 'Full Results Database'!$E$1:$F$1,0)), 'Full Results Database'!$B$5:$B$549, $B120, 'Full Results Database'!$C$5:$C$549, P$111) -> 0 | Q120: =IF($C$4="Real $2026",1,((1+'Advanced User Inputs'!$G$72)^(Q$111-2026))) * SUMIFS(INDEX('Full Results Database'!$E$5:$F$549,,MATCH($D120, 'Full Results Database'!$E$1:$F$1,0)), 'Full Results Database'!$B$5:$B$549, $B120, 'Full Results Database'!$C$5:$C$549, Q$111) -> 0 | R120: =IF($C$4="Real $2026",1,((1+'Advanced User Inputs'!$G$72)^(R$111-2026))) * SUMIFS(INDEX('Full Results Database'!$E$5:$F$549,,MATCH($D120, 'Full Results Database'!$E$1:$F$1,0)), 'Full Results Database'!$B$5:$B$549, $B120, 'Full Results Database'!$C$5:$C$549, R$111) -> 0 | S120: =IF($C$4="Real $2026",1,((1+'Advanced User Inputs'!$G$72)^(S$111-2026))) * SUMIFS(INDEX('Full Results Database'!$E$5:$F$549,,MATCH($D120, 'Full Results Database'!$E$1:$F$1,0)), 'Full Results Database'!$B$5:$B$549, $B120, 'Full Results Database'!$C$5:$C$549, S$111) -> 0 | T120: =IF($C$4="Real $2026",1,((1+'Advanced User Inputs'!$G$72)^(T$111-2026))) * SUMIFS(INDEX('Full Results Database'!$E$5:$F$549,,MATCH($D120, 'Full Results Database'!$E$1:$F$1,0)), 'Full Results Database'!$B$5:$B$549, $B120, 'Full Results Database'!$C$5:$C$549, T$111) -> 0 | U120: =IF($C$4="Real $2026",1,((1+'Advanced User Inputs'!$G$72)^(U$111-2026))) * SUMIFS(INDEX('Full Results Database'!$E$5:$F$549,,MATCH($D120, 'Full Results Database'!$E$1:$F$1,0)), 'Full Results Database'!$B$5:$B$549, $B120, 'Full Results Database'!$C$5:$C$549, U$111) -> 0 | V120: =IF($C$4="Real $2026",1,((1+'Advanced User Inputs'!$G$72)^(V$111-2026))) * SUMIFS(INDEX('Full Results Database'!$E$5:$F$549,,MATCH($D120, 'Full Results Database'!$E$1:$F$1,0)), 'Full Results Database'!$B$5:$B$549, $B120, 'Full Results Database'!$C$5:$C$549, V$111) -> 0 | W120: =IF($C$4="Real $2026",1,((1+'Advanced User Inputs'!$G$72)^(W$111-2026))) * SUMIFS(INDEX('Full Results Database'!$E$5:$F$549,,MATCH($D120, 'Full Results Database'!$E$1:$F$1,0)), 'Full Results Database'!$B$5:$B$549, $B120, 'Full Results Database'!$C$5:$C$549, W$111) -> 0 | X120: =IF($C$4="Real $2026",1,((1+'Advanced User Inputs'!$G$72)^(X$111-2026))) * SUMIFS(INDEX('Full Results Database'!$E$5:$F$549,,MATCH($D120, 'Full Results Database'!$E$1:$F$1,0)), 'Full Results Database'!$B$5:$B$549, $B120, 'Full Results Database'!$C$5:$C$549, X$111) -> 0 | Y120: =IF($C$4="Real $2026",1,((1+'Advanced User Inputs'!$G$72)^(Y$111-2026))) * SUMIFS(INDEX('Full Results Database'!$E$5:$F$549,,MATCH($D120, 'Full Results Database'!$E$1:$F$1,0)), 'Full Results Database'!$B$5:$B$549, $B120, 'Full Results Database'!$C$5:$C$549, Y$111) -> 0 | Z120: =IF($C$4="Real $2026",1,((1+'Advanced User Inputs'!$G$72)^(Z$111-2026))) * SUMIFS(INDEX('Full Results Database'!$E$5:$F$549,,MATCH($D120, 'Full Results Database'!$E$1:$F$1,0)), 'Full Results Database'!$B$5:$B$549, $B120, 'Full Results Database'!$C$5:$C$549, Z$111) -> 0 | AA120: =IF($C$4="Real $2026",1,((1+'Advanced User Inputs'!$G$72)^(AA$111-2026))) * SUMIFS(INDEX('Full Results Database'!$E$5:$F$549,,MATCH($D120, 'Full Results Database'!$E$1:$F$1,0)), 'Full Results Database'!$B$5:$B$549, $B120, 'Full Results Database'!$C$5:$C$549, AA$111) -> 0 | AB120: =IF($C$4="Real $2026",1,((1+'Advanced User Inputs'!$G$72)^(AB$111-2026))) * SUMIFS(INDEX('Full Results Database'!$E$5:$F$549,,MATCH($D120, 'Full Results Database'!$E$1:$F$1,0)), 'Full Results Database'!$B$5:$B$549, $B120, 'Full Results Database'!$C$5:$C$549, AB$111) -> 0 | AC120: =IF($C$4="Real $2026",1,((1+'Advanced User Inputs'!$G$72)^(AC$111-2026))) * SUMIFS(INDEX('Full Results Database'!$E$5:$F$549,,MATCH($D120, 'Full Results Database'!$E$1:$F$1,0)), 'Full Results Database'!$B$5:$B$549, $B120, 'Full Results Database'!$C$5:$C$549, AC$111) -> 0 | AD120: =IF($C$4="Real $2026",1,((1+'Advanced User Inputs'!$G$72)^(AD$111-2026))) * SUMIFS(INDEX('Full Results Database'!$E$5:$F$549,,MATCH($D120, 'Full Results Database'!$E$1:$F$1,0)), 'Full Results Database'!$B$5:$B$549, $B120, 'Full Results Database'!$C$5:$C$549, AD$111) -> 0 | AE120: =IF($C$4="Real $2026",1,((1+'Advanced User Inputs'!$G$72)^(AE$111-2026))) * SUMIFS(INDEX('Full Results Database'!$E$5:$F$549,,MATCH($D120, 'Full Results Database'!$E$1:$F$1,0)), 'Full Results Database'!$B$5:$B$549, $B120, 'Full Results Database'!$C$5:$C$549, AE$111) -> 0 | AF120: =IF($C$4="Real $2026",1,((1+'Advanced User Inputs'!$G$72)^(AF$111-2026))) * SUMIFS(INDEX('Full Results Database'!$E$5:$F$549,,MATCH($D120, 'Full Results Database'!$E$1:$F$1,0)), 'Full Results Database'!$B$5:$B$549, $B120, 'Full Results Database'!$C$5:$C$549, AF$111) -> 0 | AG120: =IF($C$4="Real $2026",1,((1+'Advanced User Inputs'!$G$72)^(AG$111-2026))) * SUMIFS(INDEX('Full Results Database'!$E$5:$F$549,,MATCH($D120, 'Full Results Database'!$E$1:$F$1,0)), 'Full Results Database'!$B$5:$B$549, $B120, 'Full Results Database'!$C$5:$C$549, AG$111) -> 0 | AH120: =IF($C$4="Real $2026",1,((1+'Advanced User Inputs'!$G$72)^(AH$111-2026))) * SUMIFS(INDEX('Full Results Database'!$E$5:$F$549,,MATCH($D120, 'Full Results Database'!$E$1:$F$1,0)), 'Full Results Database'!$B$5:$B$549, $B120, 'Full Results Database'!$C$5:$C$549, AH$111) -> 0 | AI120: =IF($C$4="Real $2026",1,((1+'Advanced User Inputs'!$G$72)^(AI$111-2026))) * SUMIFS(INDEX('Full Results Database'!$E$5:$F$549,,MATCH($D120, 'Full Results Database'!$E$1:$F$1,0)), 'Full Results Database'!$B$5:$B$549, $B120, 'Full Results Database'!$C$5:$C$549, AI$111) -> 0 | AJ120: =IF($C$4="Real $2026",1,((1+'Advanced User Inputs'!$G$72)^(AJ$111-2026))) * SUMIFS(INDEX('Full Results Database'!$E$5:$F$549,,MATCH($D120, 'Full Results Database'!$E$1:$F$1,0)), 'Full Results Database'!$B$5:$B$549, $B120, 'Full Results Database'!$C$5:$C$549, AJ$111) -> 0 | AK120: =IF($C$4="Real $2026",1,((1+'Advanced User Inputs'!$G$72)^(AK$111-2026))) * SUMIFS(INDEX('Full Results Database'!$E$5:$F$549,,MATCH($D120, 'Full Results Database'!$E$1:$F$1,0)), 'Full Results Database'!$B$5:$B$549, $B120, 'Full Results Database'!$C$5:$C$549, AK$111) -> 0 | AL120: =IF($C$4="Real $2026",1,((1+'Advanced User Inputs'!$G$72)^(AL$111-2026))) * SUMIFS(INDEX('Full Results Database'!$E$5:$F$549,,MATCH($D120, 'Full Results Database'!$E$1:$F$1,0)), 'Full Results Database'!$B$5:$B$549, $B120, 'Full Results Database'!$C$5:$C$549, AL$111) -> 0 | AM120: =IF($C$4="Real $2026",1,((1+'Advanced User Inputs'!$G$72)^(AM$111-2026))) * SUMIFS(INDEX('Full Results Database'!$E$5:$F$549,,MATCH($D120, 'Full Results Database'!$E$1:$F$1,0)), 'Full Results Database'!$B$5:$B$549, $B120, 'Full Results Database'!$C$5:$C$549, AM$111) -> 0 | AN120: =IF($C$4="Real $2026",1,((1+'Advanced User Inputs'!$G$72)^(AN$111-2026))) * SUMIFS(INDEX('Full Results Database'!$E$5:$F$549,,MATCH($D120, 'Full Results Database'!$E$1:$F$1,0)), 'Full Results Database'!$B$5:$B$549, $B120, 'Full Results Database'!$C$5:$C$549, AN$111) -> 0 | AO120: =IF($C$4="Real $2026",1,((1+'Advanced User Inputs'!$G$72)^(AO$111-2026))) * SUMIFS(INDEX('Full Results Database'!$E$5:$F$549,,MATCH($D120, 'Full Results Database'!$E$1:$F$1,0)), 'Full Results Database'!$B$5:$B$549, $B120, 'Full Results Database'!$C$5:$C$549, AO$111) -> 0 | AP120: =IF($C$4="Real $2026",1,((1+'Advanced User Inputs'!$G$72)^(AP$111-2026))) * SUMIFS(INDEX('Full Results Database'!$E$5:$F$549,,MATCH($D120, 'Full Results Database'!$E$1:$F$1,0)), 'Full Results Database'!$B$5:$B$549, $B120, 'Full Results Database'!$C$5:$C$549, AP$111) -> 0 | AQ120: =IF($C$4="Real $2026",1,((1+'Advanced User Inputs'!$G$72)^(AQ$111-2026))) * SUMIFS(INDEX('Full Results Database'!$E$5:$F$549,,MATCH($D120, 'Full Results Database'!$E$1:$F$1,0)), 'Full Results Database'!$B$5:$B$549, $B120, 'Full Results Database'!$C$5:$C$549, AQ$111) -> 0 | AR120: =IF($C$4="Real $2026",1,((1+'Advanced User Inputs'!$G$72)^(AR$111-2026))) * SUMIFS(INDEX('Full Results Database'!$E$5:$F$549,,MATCH($D120, 'Full Results Database'!$E$1:$F$1,0)), 'Full Results Database'!$B$5:$B$549, $B120, 'Full Results Database'!$C$5:$C$549, AR$111) -> 0
B121: DER Payments - Ongoing | C121: =$C$4 -> Real $2026 | D121: =active_scenario2 -> Cost Causer Pays | E121: =IF($C$4="Real $2026",1,((1+'Advanced User Inputs'!$G$72)^(E$111-2026))) * SUMIFS(INDEX('Full Results Database'!$E$5:$F$549,,MATCH($D121, 'Full Results Database'!$E$1:$F$1,0)), 'Full Results Database'!$B$5:$B$549, $B121, 'Full Results Database'!$C$5:$C$549, E$111) -> 0 | F121: =IF($C$4="Real $2026",1,((1+'Advanced User Inputs'!$G$72)^(F$111-2026))) * SUMIFS(INDEX('Full Results Database'!$E$5:$F$549,,MATCH($D121, 'Full Results Database'!$E$1:$F$1,0)), 'Full Results Database'!$B$5:$B$549, $B121, 'Full Results Database'!$C$5:$C$549, F$111) -> 0 | G121: =IF($C$4="Real $2026",1,((1+'Advanced User Inputs'!$G$72)^(G$111-2026))) * SUMIFS(INDEX('Full Results Database'!$E$5:$F$549,,MATCH($D121, 'Full Results Database'!$E$1:$F$1,0)), 'Full Results Database'!$B$5:$B$549, $B121, 'Full Results Database'!$C$5:$C$549, G$111) -> 0 | H121: =IF($C$4="Real $2026",1,((1+'Advanced User Inputs'!$G$72)^(H$111-2026))) * SUMIFS(INDEX('Full Results Database'!$E$5:$F$549,,MATCH($D121, 'Full Results Database'!$E$1:$F$1,0)), 'Full Results Database'!$B$5:$B$549, $B121, 'Full Results Database'!$C$5:$C$549, H$111) -> 0 | I121: =IF($C$4="Real $2026",1,((1+'Advanced User Inputs'!$G$72)^(I$111-2026))) * SUMIFS(INDEX('Full Results Database'!$E$5:$F$549,,MATCH($D121, 'Full Results Database'!$E$1:$F$1,0)), 'Full Results Database'!$B$5:$B$549, $B121, 'Full Results Database'!$C$5:$C$549, I$111) -> 0 | J121: =IF($C$4="Real $2026",1,((1+'Advanced User Inputs'!$G$72)^(J$111-2026))) * SUMIFS(INDEX('Full Results Database'!$E$5:$F$549,,MATCH($D121, 'Full Results Database'!$E$1:$F$1,0)), 'Full Results Database'!$B$5:$B$549, $B121, 'Full Results Database'!$C$5:$C$549, J$111) -> 0 | K121: =IF($C$4="Real $2026",1,((1+'Advanced User Inputs'!$G$72)^(K$111-2026))) * SUMIFS(INDEX('Full Results Database'!$E$5:$F$549,,MATCH($D121, 'Full Results Database'!$E$1:$F$1,0)), 'Full Results Database'!$B$5:$B$549, $B121, 'Full Results Database'!$C$5:$C$549, K$111) -> 0 | L121: =IF($C$4="Real $2026",1,((1+'Advanced User Inputs'!$G$72)^(L$111-2026))) * SUMIFS(INDEX('Full Results Database'!$E$5:$F$549,,MATCH($D121, 'Full Results Database'!$E$1:$F$1,0)), 'Full Results Database'!$B$5:$B$549, $B121, 'Full Results Database'!$C$5:$C$549, L$111) -> 0 | M121: =IF($C$4="Real $2026",1,((1+'Advanced User Inputs'!$G$72)^(M$111-2026))) * SUMIFS(INDEX('Full Results Database'!$E$5:$F$549,,MATCH($D121, 'Full Results Database'!$E$1:$F$1,0)), 'Full Results Database'!$B$5:$B$549, $B121, 'Full Results Database'!$C$5:$C$549, M$111) -> 0 | N121: =IF($C$4="Real $2026",1,((1+'Advanced User Inputs'!$G$72)^(N$111-2026))) * SUMIFS(INDEX('Full Results Database'!$E$5:$F$549,,MATCH($D121, 'Full Results Database'!$E$1:$F$1,0)), 'Full Results Database'!$B$5:$B$549, $B121, 'Full Results Database'!$C$5:$C$549, N$111) -> 0 | O121: =IF($C$4="Real $2026",1,((1+'Advanced User Inputs'!$G$72)^(O$111-2026))) * SUMIFS(INDEX('Full Results Database'!$E$5:$F$549,,MATCH($D121, 'Full Results Database'!$E$1:$F$1,0)), 'Full Results Database'!$B$5:$B$549, $B121, 'Full Results Database'!$C$5:$C$549, O$111) -> 0 | P121: =IF($C$4="Real $2026",1,((1+'Advanced User Inputs'!$G$72)^(P$111-2026))) * SUMIFS(INDEX('Full Results Database'!$E$5:$F$549,,MATCH($D121, 'Full Results Database'!$E$1:$F$1,0)), 'Full Results Database'!$B$5:$B$549, $B121, 'Full Results Database'!$C$5:$C$549, P$111) -> 0 | Q121: =IF($C$4="Real $2026",1,((1+'Advanced User Inputs'!$G$72)^(Q$111-2026))) * SUMIFS(INDEX('Full Results Database'!$E$5:$F$549,,MATCH($D121, 'Full Results Database'!$E$1:$F$1,0)), 'Full Results Database'!$B$5:$B$549, $B121, 'Full Results Database'!$C$5:$C$549, Q$111) -> 0 | R121: =IF($C$4="Real $2026",1,((1+'Advanced User Inputs'!$G$72)^(R$111-2026))) * SUMIFS(INDEX('Full Results Database'!$E$5:$F$549,,MATCH($D121, 'Full Results Database'!$E$1:$F$1,0)), 'Full Results Database'!$B$5:$B$549, $B121, 'Full Results Database'!$C$5:$C$549, R$111) -> 0 | S121: =IF($C$4="Real $2026",1,((1+'Advanced User Inputs'!$G$72)^(S$111-2026))) * SUMIFS(INDEX('Full Results Database'!$E$5:$F$549,,MATCH($D121, 'Full Results Database'!$E$1:$F$1,0)), 'Full Results Database'!$B$5:$B$549, $B121, 'Full Results Database'!$C$5:$C$549, S$111) -> 0 | T121: =IF($C$4="Real $2026",1,((1+'Advanced User Inputs'!$G$72)^(T$111-2026))) * SUMIFS(INDEX('Full Results Database'!$E$5:$F$549,,MATCH($D121, 'Full Results Database'!$E$1:$F$1,0)), 'Full Results Database'!$B$5:$B$549, $B121, 'Full Results Database'!$C$5:$C$549, T$111) -> 0 | U121: =IF($C$4="Real $2026",1,((1+'Advanced User Inputs'!$G$72)^(U$111-2026))) * SUMIFS(INDEX('Full Results Database'!$E$5:$F$549,,MATCH($D121, 'Full Results Database'!$E$1:$F$1,0)), 'Full Results Database'!$B$5:$B$549, $B121, 'Full Results Database'!$C$5:$C$549, U$111) -> 0 | V121: =IF($C$4="Real $2026",1,((1+'Advanced User Inputs'!$G$72)^(V$111-2026))) * SUMIFS(INDEX('Full Results Database'!$E$5:$F$549,,MATCH($D121, 'Full Results Database'!$E$1:$F$1,0)), 'Full Results Database'!$B$5:$B$549, $B121, 'Full Results Database'!$C$5:$C$549, V$111) -> 0 | W121: =IF($C$4="Real $2026",1,((1+'Advanced User Inputs'!$G$72)^(W$111-2026))) * SUMIFS(INDEX('Full Results Database'!$E$5:$F$549,,MATCH($D121, 'Full Results Database'!$E$1:$F$1,0)), 'Full Results Database'!$B$5:$B$549, $B121, 'Full Results Database'!$C$5:$C$549, W$111) -> 0 | X121: =IF($C$4="Real $2026",1,((1+'Advanced User Inputs'!$G$72)^(X$111-2026))) * SUMIFS(INDEX('Full Results Database'!$E$5:$F$549,,MATCH($D121, 'Full Results Database'!$E$1:$F$1,0)), 'Full Results Database'!$B$5:$B$549, $B121, 'Full Results Database'!$C$5:$C$549, X$111) -> 0 | Y121: =IF($C$4="Real $2026",1,((1+'Advanced User Inputs'!$G$72)^(Y$111-2026))) * SUMIFS(INDEX('Full Results Database'!$E$5:$F$549,,MATCH($D121, 'Full Results Database'!$E$1:$F$1,0)), 'Full Results Database'!$B$5:$B$549, $B121, 'Full Results Database'!$C$5:$C$549, Y$111) -> 0 | Z121: =IF($C$4="Real $2026",1,((1+'Advanced User Inputs'!$G$72)^(Z$111-2026))) * SUMIFS(INDEX('Full Results Database'!$E$5:$F$549,,MATCH($D121, 'Full Results Database'!$E$1:$F$1,0)), 'Full Results Database'!$B$5:$B$549, $B121, 'Full Results Database'!$C$5:$C$549, Z$111) -> 0 | AA121: =IF($C$4="Real $2026",1,((1+'Advanced User Inputs'!$G$72)^(AA$111-2026))) * SUMIFS(INDEX('Full Results Database'!$E$5:$F$549,,MATCH($D121, 'Full Results Database'!$E$1:$F$1,0)), 'Full Results Database'!$B$5:$B$549, $B121, 'Full Results Database'!$C$5:$C$549, AA$111) -> 0 | AB121: =IF($C$4="Real $2026",1,((1+'Advanced User Inputs'!$G$72)^(AB$111-2026))) * SUMIFS(INDEX('Full Results Database'!$E$5:$F$549,,MATCH($D121, 'Full Results Database'!$E$1:$F$1,0)), 'Full Results Database'!$B$5:$B$549, $B121, 'Full Results Database'!$C$5:$C$549, AB$111) -> 0 | AC121: =IF($C$4="Real $2026",1,((1+'Advanced User Inputs'!$G$72)^(AC$111-2026))) * SUMIFS(INDEX('Full Results Database'!$E$5:$F$549,,MATCH($D121, 'Full Results Database'!$E$1:$F$1,0)), 'Full Results Database'!$B$5:$B$549, $B121, 'Full Results Database'!$C$5:$C$549, AC$111) -> 0 | AD121: =IF($C$4="Real $2026",1,((1+'Advanced User Inputs'!$G$72)^(AD$111-2026))) * SUMIFS(INDEX('Full Results Database'!$E$5:$F$549,,MATCH($D121, 'Full Results Database'!$E$1:$F$1,0)), 'Full Results Database'!$B$5:$B$549, $B121, 'Full Results Database'!$C$5:$C$549, AD$111) -> 0 | AE121: =IF($C$4="Real $2026",1,((1+'Advanced User Inputs'!$G$72)^(AE$111-2026))) * SUMIFS(INDEX('Full Results Database'!$E$5:$F$549,,MATCH($D121, 'Full Results Database'!$E$1:$F$1,0)), 'Full Results Database'!$B$5:$B$549, $B121, 'Full Results Database'!$C$5:$C$549, AE$111) -> 0 | AF121: =IF($C$4="Real $2026",1,((1+'Advanced User Inputs'!$G$72)^(AF$111-2026))) * SUMIFS(INDEX('Full Results Database'!$E$5:$F$549,,MATCH($D121, 'Full Results Database'!$E$1:$F$1,0)), 'Full Results Database'!$B$5:$B$549, $B121, 'Full Results Database'!$C$5:$C$549, AF$111) -> 0 | AG121: =IF($C$4="Real $2026",1,((1+'Advanced User Inputs'!$G$72)^(AG$111-2026))) * SUMIFS(INDEX('Full Results Database'!$E$5:$F$549,,MATCH($D121, 'Full Results Database'!$E$1:$F$1,0)), 'Full Results Database'!$B$5:$B$549, $B121, 'Full Results Database'!$C$5:$C$549, AG$111) -> 0 | AH121: =IF($C$4="Real $2026",1,((1+'Advanced User Inputs'!$G$72)^(AH$111-2026))) * SUMIFS(INDEX('Full Results Database'!$E$5:$F$549,,MATCH($D121, 'Full Results Database'!$E$1:$F$1,0)), 'Full Results Database'!$B$5:$B$549, $B121, 'Full Results Database'!$C$5:$C$549, AH$111) -> 0 | AI121: =IF($C$4="Real $2026",1,((1+'Advanced User Inputs'!$G$72)^(AI$111-2026))) * SUMIFS(INDEX('Full Results Database'!$E$5:$F$549,,MATCH($D121, 'Full Results Database'!$E$1:$F$1,0)), 'Full Results Database'!$B$5:$B$549, $B121, 'Full Results Database'!$C$5:$C$549, AI$111) -> 0 | AJ121: =IF($C$4="Real $2026",1,((1+'Advanced User Inputs'!$G$72)^(AJ$111-2026))) * SUMIFS(INDEX('Full Results Database'!$E$5:$F$549,,MATCH($D121, 'Full Results Database'!$E$1:$F$1,0)), 'Full Results Database'!$B$5:$B$549, $B121, 'Full Results Database'!$C$5:$C$549, AJ$111) -> 0 | AK121: =IF($C$4="Real $2026",1,((1+'Advanced User Inputs'!$G$72)^(AK$111-2026))) * SUMIFS(INDEX('Full Results Database'!$E$5:$F$549,,MATCH($D121, 'Full Results Database'!$E$1:$F$1,0)), 'Full Results Database'!$B$5:$B$549, $B121, 'Full Results Database'!$C$5:$C$549, AK$111) -> 0 | AL121: =IF($C$4="Real $2026",1,((1+'Advanced User Inputs'!$G$72)^(AL$111-2026))) * SUMIFS(INDEX('Full Results Database'!$E$5:$F$549,,MATCH($D121, 'Full Results Database'!$E$1:$F$1,0)), 'Full Results Database'!$B$5:$B$549, $B121, 'Full Results Database'!$C$5:$C$549, AL$111) -> 0 | AM121: =IF($C$4="Real $2026",1,((1+'Advanced User Inputs'!$G$72)^(AM$111-2026))) * SUMIFS(INDEX('Full Results Database'!$E$5:$F$549,,MATCH($D121, 'Full Results Database'!$E$1:$F$1,0)), 'Full Results Database'!$B$5:$B$549, $B121, 'Full Results Database'!$C$5:$C$549, AM$111) -> 0 | AN121: =IF($C$4="Real $2026",1,((1+'Advanced User Inputs'!$G$72)^(AN$111-2026))) * SUMIFS(INDEX('Full Results Database'!$E$5:$F$549,,MATCH($D121, 'Full Results Database'!$E$1:$F$1,0)), 'Full Results Database'!$B$5:$B$549, $B121, 'Full Results Database'!$C$5:$C$549, AN$111) -> 0 | AO121: =IF($C$4="Real $2026",1,((1+'Advanced User Inputs'!$G$72)^(AO$111-2026))) * SUMIFS(INDEX('Full Results Database'!$E$5:$F$549,,MATCH($D121, 'Full Results Database'!$E$1:$F$1,0)), 'Full Results Database'!$B$5:$B$549, $B121, 'Full Results Database'!$C$5:$C$549, AO$111) -> 0 | AP121: =IF($C$4="Real $2026",1,((1+'Advanced User Inputs'!$G$72)^(AP$111-2026))) * SUMIFS(INDEX('Full Results Database'!$E$5:$F$549,,MATCH($D121, 'Full Results Database'!$E$1:$F$1,0)), 'Full Results Database'!$B$5:$B$549, $B121, 'Full Results Database'!$C$5:$C$549, AP$111) -> 0 | AQ121: =IF($C$4="Real $2026",1,((1+'Advanced User Inputs'!$G$72)^(AQ$111-2026))) * SUMIFS(INDEX('Full Results Database'!$E$5:$F$549,,MATCH($D121, 'Full Results Database'!$E$1:$F$1,0)), 'Full Results Database'!$B$5:$B$549, $B121, 'Full Results Database'!$C$5:$C$549, AQ$111) -> 0 | AR121: =IF($C$4="Real $2026",1,((1+'Advanced User Inputs'!$G$72)^(AR$111-2026))) * SUMIFS(INDEX('Full Results Database'!$E$5:$F$549,,MATCH($D121, 'Full Results Database'!$E$1:$F$1,0)), 'Full Results Database'!$B$5:$B$549, $B121, 'Full Results Database'!$C$5:$C$549, AR$111) -> 0
B122: Reimbursement - Additional DERs | C122: =$C$4 -> Real $2026 | D122: =active_scenario2 -> Cost Causer Pays | E122: =IF($C$4="Real $2026",1,((1+'Advanced User Inputs'!$G$72)^(E$111-2026))) * SUMIFS(INDEX('Full Results Database'!$E$5:$F$549,,MATCH($D122, 'Full Results Database'!$E$1:$F$1,0)), 'Full Results Database'!$B$5:$B$549, $B122, 'Full Results Database'!$C$5:$C$549, E$111) -> 0 | F122: =IF($C$4="Real $2026",1,((1+'Advanced User Inputs'!$G$72)^(F$111-2026))) * SUMIFS(INDEX('Full Results Database'!$E$5:$F$549,,MATCH($D122, 'Full Results Database'!$E$1:$F$1,0)), 'Full Results Database'!$B$5:$B$549, $B122, 'Full Results Database'!$C$5:$C$549, F$111) -> 0 | G122: =IF($C$4="Real $2026",1,((1+'Advanced User Inputs'!$G$72)^(G$111-2026))) * SUMIFS(INDEX('Full Results Database'!$E$5:$F$549,,MATCH($D122, 'Full Results Database'!$E$1:$F$1,0)), 'Full Results Database'!$B$5:$B$549, $B122, 'Full Results Database'!$C$5:$C$549, G$111) -> 0 | H122: =IF($C$4="Real $2026",1,((1+'Advanced User Inputs'!$G$72)^(H$111-2026))) * SUMIFS(INDEX('Full Results Database'!$E$5:$F$549,,MATCH($D122, 'Full Results Database'!$E$1:$F$1,0)), 'Full Results Database'!$B$5:$B$549, $B122, 'Full Results Database'!$C$5:$C$549, H$111) -> 0 | I122: =IF($C$4="Real $2026",1,((1+'Advanced User Inputs'!$G$72)^(I$111-2026))) * SUMIFS(INDEX('Full Results Database'!$E$5:$F$549,,MATCH($D122, 'Full Results Database'!$E$1:$F$1,0)), 'Full Results Database'!$B$5:$B$549, $B122, 'Full Results Database'!$C$5:$C$549, I$111) -> 0 | J122: =IF($C$4="Real $2026",1,((1+'Advanced User Inputs'!$G$72)^(J$111-2026))) * SUMIFS(INDEX('Full Results Database'!$E$5:$F$549,,MATCH($D122, 'Full Results Database'!$E$1:$F$1,0)), 'Full Results Database'!$B$5:$B$549, $B122, 'Full Results Database'!$C$5:$C$549, J$111) -> 0 | K122: =IF($C$4="Real $2026",1,((1+'Advanced User Inputs'!$G$72)^(K$111-2026))) * SUMIFS(INDEX('Full Results Database'!$E$5:$F$549,,MATCH($D122, 'Full Results Database'!$E$1:$F$1,0)), 'Full Results Database'!$B$5:$B$549, $B122, 'Full Results Database'!$C$5:$C$549, K$111) -> 0 | L122: =IF($C$4="Real $2026",1,((1+'Advanced User Inputs'!$G$72)^(L$111-2026))) * SUMIFS(INDEX('Full Results Database'!$E$5:$F$549,,MATCH($D122, 'Full Results Database'!$E$1:$F$1,0)), 'Full Results Database'!$B$5:$B$549, $B122, 'Full Results Database'!$C$5:$C$549, L$111) -> 0 | M122: =IF($C$4="Real $2026",1,((1+'Advanced User Inputs'!$G$72)^(M$111-2026))) * SUMIFS(INDEX('Full Results Database'!$E$5:$F$549,,MATCH($D122, 'Full Results Database'!$E$1:$F$1,0)), 'Full Results Database'!$B$5:$B$549, $B122, 'Full Results Database'!$C$5:$C$549, M$111) -> 0 | N122: =IF($C$4="Real $2026",1,((1+'Advanced User Inputs'!$G$72)^(N$111-2026))) * SUMIFS(INDEX('Full Results Database'!$E$5:$F$549,,MATCH($D122, 'Full Results Database'!$E$1:$F$1,0)), 'Full Results Database'!$B$5:$B$549, $B122, 'Full Results Database'!$C$5:$C$549, N$111) -> 0 | O122: =IF($C$4="Real $2026",1,((1+'Advanced User Inputs'!$G$72)^(O$111-2026))) * SUMIFS(INDEX('Full Results Database'!$E$5:$F$549,,MATCH($D122, 'Full Results Database'!$E$1:$F$1,0)), 'Full Results Database'!$B$5:$B$549, $B122, 'Full Results Database'!$C$5:$C$549, O$111) -> 0 | P122: =IF($C$4="Real $2026",1,((1+'Advanced User Inputs'!$G$72)^(P$111-2026))) * SUMIFS(INDEX('Full Results Database'!$E$5:$F$549,,MATCH($D122, 'Full Results Database'!$E$1:$F$1,0)), 'Full Results Database'!$B$5:$B$549, $B122, 'Full Results Database'!$C$5:$C$549, P$111) -> 0 | Q122: =IF($C$4="Real $2026",1,((1+'Advanced User Inputs'!$G$72)^(Q$111-2026))) * SUMIFS(INDEX('Full Results Database'!$E$5:$F$549,,MATCH($D122, 'Full Results Database'!$E$1:$F$1,0)), 'Full Results Database'!$B$5:$B$549, $B122, 'Full Results Database'!$C$5:$C$549, Q$111) -> 0 | R122: =IF($C$4="Real $2026",1,((1+'Advanced User Inputs'!$G$72)^(R$111-2026))) * SUMIFS(INDEX('Full Results Database'!$E$5:$F$549,,MATCH($D122, 'Full Results Database'!$E$1:$F$1,0)), 'Full Results Database'!$B$5:$B$549, $B122, 'Full Results Database'!$C$5:$C$549, R$111) -> 0 | S122: =IF($C$4="Real $2026",1,((1+'Advanced User Inputs'!$G$72)^(S$111-2026))) * SUMIFS(INDEX('Full Results Database'!$E$5:$F$549,,MATCH($D122, 'Full Results Database'!$E$1:$F$1,0)), 'Full Results Database'!$B$5:$B$549, $B122, 'Full Results Database'!$C$5:$C$549, S$111) -> 0 | T122: =IF($C$4="Real $2026",1,((1+'Advanced User Inputs'!$G$72)^(T$111-2026))) * SUMIFS(INDEX('Full Results Database'!$E$5:$F$549,,MATCH($D122, 'Full Results Database'!$E$1:$F$1,0)), 'Full Results Database'!$B$5:$B$549, $B122, 'Full Results Database'!$C$5:$C$549, T$111) -> 0 | U122: =IF($C$4="Real $2026",1,((1+'Advanced User Inputs'!$G$72)^(U$111-2026))) * SUMIFS(INDEX('Full Results Database'!$E$5:$F$549,,MATCH($D122, 'Full Results Database'!$E$1:$F$1,0)), 'Full Results Database'!$B$5:$B$549, $B122, 'Full Results Database'!$C$5:$C$549, U$111) -> 0 | V122: =IF($C$4="Real $2026",1,((1+'Advanced User Inputs'!$G$72)^(V$111-2026))) * SUMIFS(INDEX('Full Results Database'!$E$5:$F$549,,MATCH($D122, 'Full Results Database'!$E$1:$F$1,0)), 'Full Results Database'!$B$5:$B$549, $B122, 'Full Results Database'!$C$5:$C$549, V$111) -> 0 | W122: =IF($C$4="Real $2026",1,((1+'Advanced User Inputs'!$G$72)^(W$111-2026))) * SUMIFS(INDEX('Full Results Database'!$E$5:$F$549,,MATCH($D122, 'Full Results Database'!$E$1:$F$1,0)), 'Full Results Database'!$B$5:$B$549, $B122, 'Full Results Database'!$C$5:$C$549, W$111) -> 0 | X122: =IF($C$4="Real $2026",1,((1+'Advanced User Inputs'!$G$72)^(X$111-2026))) * SUMIFS(INDEX('Full Results Database'!$E$5:$F$549,,MATCH($D122, 'Full Results Database'!$E$1:$F$1,0)), 'Full Results Database'!$B$5:$B$549, $B122, 'Full Results Database'!$C$5:$C$549, X$111) -> 0 | Y122: =IF($C$4="Real $2026",1,((1+'Advanced User Inputs'!$G$72)^(Y$111-2026))) * SUMIFS(INDEX('Full Results Database'!$E$5:$F$549,,MATCH($D122, 'Full Results Database'!$E$1:$F$1,0)), 'Full Results Database'!$B$5:$B$549, $B122, 'Full Results Database'!$C$5:$C$549, Y$111) -> 0 | Z122: =IF($C$4="Real $2026",1,((1+'Advanced User Inputs'!$G$72)^(Z$111-2026))) * SUMIFS(INDEX('Full Results Database'!$E$5:$F$549,,MATCH($D122, 'Full Results Database'!$E$1:$F$1,0)), 'Full Results Database'!$B$5:$B$549, $B122, 'Full Results Database'!$C$5:$C$549, Z$111) -> 0 | AA122: =IF($C$4="Real $2026",1,((1+'Advanced User Inputs'!$G$72)^(AA$111-2026))) * SUMIFS(INDEX('Full Results Database'!$E$5:$F$549,,MATCH($D122, 'Full Results Database'!$E$1:$F$1,0)), 'Full Results Database'!$B$5:$B$549, $B122, 'Full Results Database'!$C$5:$C$549, AA$111) -> 0 | AB122: =IF($C$4="Real $2026",1,((1+'Advanced User Inputs'!$G$72)^(AB$111-2026))) * SUMIFS(INDEX('Full Results Database'!$E$5:$F$549,,MATCH($D122, 'Full Results Database'!$E$1:$F$1,0)), 'Full Results Database'!$B$5:$B$549, $B122, 'Full Results Database'!$C$5:$C$549, AB$111) -> 0 | AC122: =IF($C$4="Real $2026",1,((1+'Advanced User Inputs'!$G$72)^(AC$111-2026))) * SUMIFS(INDEX('Full Results Database'!$E$5:$F$549,,MATCH($D122, 'Full Results Database'!$E$1:$F$1,0)), 'Full Results Database'!$B$5:$B$549, $B122, 'Full Results Database'!$C$5:$C$549, AC$111) -> 0 | AD122: =IF($C$4="Real $2026",1,((1+'Advanced User Inputs'!$G$72)^(AD$111-2026))) * SUMIFS(INDEX('Full Results Database'!$E$5:$F$549,,MATCH($D122, 'Full Results Database'!$E$1:$F$1,0)), 'Full Results Database'!$B$5:$B$549, $B122, 'Full Results Database'!$C$5:$C$549, AD$111) -> 0 | AE122: =IF($C$4="Real $2026",1,((1+'Advanced User Inputs'!$G$72)^(AE$111-2026))) * SUMIFS(INDEX('Full Results Database'!$E$5:$F$549,,MATCH($D122, 'Full Results Database'!$E$1:$F$1,0)), 'Full Results Database'!$B$5:$B$549, $B122, 'Full Results Database'!$C$5:$C$549, AE$111) -> 0 | AF122: =IF($C$4="Real $2026",1,((1+'Advanced User Inputs'!$G$72)^(AF$111-2026))) * SUMIFS(INDEX('Full Results Database'!$E$5:$F$549,,MATCH($D122, 'Full Results Database'!$E$1:$F$1,0)), 'Full Results Database'!$B$5:$B$549, $B122, 'Full Results Database'!$C$5:$C$549, AF$111) -> 0 | AG122: =IF($C$4="Real $2026",1,((1+'Advanced User Inputs'!$G$72)^(AG$111-2026))) * SUMIFS(INDEX('Full Results Database'!$E$5:$F$549,,MATCH($D122, 'Full Results Database'!$E$1:$F$1,0)), 'Full Results Database'!$B$5:$B$549, $B122, 'Full Results Database'!$C$5:$C$549, AG$111) -> 0 | AH122: =IF($C$4="Real $2026",1,((1+'Advanced User Inputs'!$G$72)^(AH$111-2026))) * SUMIFS(INDEX('Full Results Database'!$E$5:$F$549,,MATCH($D122, 'Full Results Database'!$E$1:$F$1,0)), 'Full Results Database'!$B$5:$B$549, $B122, 'Full Results Database'!$C$5:$C$549, AH$111) -> 0 | AI122: =IF($C$4="Real $2026",1,((1+'Advanced User Inputs'!$G$72)^(AI$111-2026))) * SUMIFS(INDEX('Full Results Database'!$E$5:$F$549,,MATCH($D122, 'Full Results Database'!$E$1:$F$1,0)), 'Full Results Database'!$B$5:$B$549, $B122, 'Full Results Database'!$C$5:$C$549, AI$111) -> 0 | AJ122: =IF($C$4="Real $2026",1,((1+'Advanced User Inputs'!$G$72)^(AJ$111-2026))) * SUMIFS(INDEX('Full Results Database'!$E$5:$F$549,,MATCH($D122, 'Full Results Database'!$E$1:$F$1,0)), 'Full Results Database'!$B$5:$B$549, $B122, 'Full Results Database'!$C$5:$C$549, AJ$111) -> 0 | AK122: =IF($C$4="Real $2026",1,((1+'Advanced User Inputs'!$G$72)^(AK$111-2026))) * SUMIFS(INDEX('Full Results Database'!$E$5:$F$549,,MATCH($D122, 'Full Results Database'!$E$1:$F$1,0)), 'Full Results Database'!$B$5:$B$549, $B122, 'Full Results Database'!$C$5:$C$549, AK$111) -> 0 | AL122: =IF($C$4="Real $2026",1,((1+'Advanced User Inputs'!$G$72)^(AL$111-2026))) * SUMIFS(INDEX('Full Results Database'!$E$5:$F$549,,MATCH($D122, 'Full Results Database'!$E$1:$F$1,0)), 'Full Results Database'!$B$5:$B$549, $B122, 'Full Results Database'!$C$5:$C$549, AL$111) -> 0 | AM122: =IF($C$4="Real $2026",1,((1+'Advanced User Inputs'!$G$72)^(AM$111-2026))) * SUMIFS(INDEX('Full Results Database'!$E$5:$F$549,,MATCH($D122, 'Full Results Database'!$E$1:$F$1,0)), 'Full Results Database'!$B$5:$B$549, $B122, 'Full Results Database'!$C$5:$C$549, AM$111) -> 0 | AN122: =IF($C$4="Real $2026",1,((1+'Advanced User Inputs'!$G$72)^(AN$111-2026))) * SUMIFS(INDEX('Full Results Database'!$E$5:$F$549,,MATCH($D122, 'Full Results Database'!$E$1:$F$1,0)), 'Full Results Database'!$B$5:$B$549, $B122, 'Full Results Database'!$C$5:$C$549, AN$111) -> 0 | AO122: =IF($C$4="Real $2026",1,((1+'Advanced User Inputs'!$G$72)^(AO$111-2026))) * SUMIFS(INDEX('Full Results Database'!$E$5:$F$549,,MATCH($D122, 'Full Results Database'!$E$1:$F$1,0)), 'Full Results Database'!$B$5:$B$549, $B122, 'Full Results Database'!$C$5:$C$549, AO$111) -> 0 | AP122: =IF($C$4="Real $2026",1,((1+'Advanced User Inputs'!$G$72)^(AP$111-2026))) * SUMIFS(INDEX('Full Results Database'!$E$5:$F$549,,MATCH($D122, 'Full Results Database'!$E$1:$F$1,0)), 'Full Results Database'!$B$5:$B$549, $B122, 'Full Results Database'!$C$5:$C$549, AP$111) -> 0 | AQ122: =IF($C$4="Real $2026",1,((1+'Advanced User Inputs'!$G$72)^(AQ$111-2026))) * SUMIFS(INDEX('Full Results Database'!$E$5:$F$549,,MATCH($D122, 'Full Results Database'!$E$1:$F$1,0)), 'Full Results Database'!$B$5:$B$549, $B122, 'Full Results Database'!$C$5:$C$549, AQ$111) -> 0 | AR122: =IF($C$4="Real $2026",1,((1+'Advanced User Inputs'!$G$72)^(AR$111-2026))) * SUMIFS(INDEX('Full Results Database'!$E$5:$F$549,,MATCH($D122, 'Full Results Database'!$E$1:$F$1,0)), 'Full Results Database'!$B$5:$B$549, $B122, 'Full Results Database'!$C$5:$C$549, AR$111) -> 0
B123: Reimbursement - Ratepayers | C123: =$C$4 -> Real $2026 | D123: =active_scenario2 -> Cost Causer Pays | E123: =IF($C$4="Real $2026",1,((1+'Advanced User Inputs'!$G$72)^(E$111-2026))) * SUMIFS(INDEX('Full Results Database'!$E$5:$F$549,,MATCH($D123, 'Full Results Database'!$E$1:$F$1,0)), 'Full Results Database'!$B$5:$B$549, $B123, 'Full Results Database'!$C$5:$C$549, E$111) -> 0 | F123: =IF($C$4="Real $2026",1,((1+'Advanced User Inputs'!$G$72)^(F$111-2026))) * SUMIFS(INDEX('Full Results Database'!$E$5:$F$549,,MATCH($D123, 'Full Results Database'!$E$1:$F$1,0)), 'Full Results Database'!$B$5:$B$549, $B123, 'Full Results Database'!$C$5:$C$549, F$111) -> 0 | G123: =IF($C$4="Real $2026",1,((1+'Advanced User Inputs'!$G$72)^(G$111-2026))) * SUMIFS(INDEX('Full Results Database'!$E$5:$F$549,,MATCH($D123, 'Full Results Database'!$E$1:$F$1,0)), 'Full Results Database'!$B$5:$B$549, $B123, 'Full Results Database'!$C$5:$C$549, G$111) -> 0 | H123: =IF($C$4="Real $2026",1,((1+'Advanced User Inputs'!$G$72)^(H$111-2026))) * SUMIFS(INDEX('Full Results Database'!$E$5:$F$549,,MATCH($D123, 'Full Results Database'!$E$1:$F$1,0)), 'Full Results Database'!$B$5:$B$549, $B123, 'Full Results Database'!$C$5:$C$549, H$111) -> 0 | I123: =IF($C$4="Real $2026",1,((1+'Advanced User Inputs'!$G$72)^(I$111-2026))) * SUMIFS(INDEX('Full Results Database'!$E$5:$F$549,,MATCH($D123, 'Full Results Database'!$E$1:$F$1,0)), 'Full Results Database'!$B$5:$B$549, $B123, 'Full Results Database'!$C$5:$C$549, I$111) -> 0 | J123: =IF($C$4="Real $2026",1,((1+'Advanced User Inputs'!$G$72)^(J$111-2026))) * SUMIFS(INDEX('Full Results Database'!$E$5:$F$549,,MATCH($D123, 'Full Results Database'!$E$1:$F$1,0)), 'Full Results Database'!$B$5:$B$549, $B123, 'Full Results Database'!$C$5:$C$549, J$111) -> 0 | K123: =IF($C$4="Real $2026",1,((1+'Advanced User Inputs'!$G$72)^(K$111-2026))) * SUMIFS(INDEX('Full Results Database'!$E$5:$F$549,,MATCH($D123, 'Full Results Database'!$E$1:$F$1,0)), 'Full Results Database'!$B$5:$B$549, $B123, 'Full Results Database'!$C$5:$C$549, K$111) -> 0 | L123: =IF($C$4="Real $2026",1,((1+'Advanced User Inputs'!$G$72)^(L$111-2026))) * SUMIFS(INDEX('Full Results Database'!$E$5:$F$549,,MATCH($D123, 'Full Results Database'!$E$1:$F$1,0)), 'Full Results Database'!$B$5:$B$549, $B123, 'Full Results Database'!$C$5:$C$549, L$111) -> 0 | M123: =IF($C$4="Real $2026",1,((1+'Advanced User Inputs'!$G$72)^(M$111-2026))) * SUMIFS(INDEX('Full Results Database'!$E$5:$F$549,,MATCH($D123, 'Full Results Database'!$E$1:$F$1,0)), 'Full Results Database'!$B$5:$B$549, $B123, 'Full Results Database'!$C$5:$C$549, M$111) -> 0 | N123: =IF($C$4="Real $2026",1,((1+'Advanced User Inputs'!$G$72)^(N$111-2026))) * SUMIFS(INDEX('Full Results Database'!$E$5:$F$549,,MATCH($D123, 'Full Results Database'!$E$1:$F$1,0)), 'Full Results Database'!$B$5:$B$549, $B123, 'Full Results Database'!$C$5:$C$549, N$111) -> 0 | O123: =IF($C$4="Real $2026",1,((1+'Advanced User Inputs'!$G$72)^(O$111-2026))) * SUMIFS(INDEX('Full Results Database'!$E$5:$F$549,,MATCH($D123, 'Full Results Database'!$E$1:$F$1,0)), 'Full Results Database'!$B$5:$B$549, $B123, 'Full Results Database'!$C$5:$C$549, O$111) -> 0 | P123: =IF($C$4="Real $2026",1,((1+'Advanced User Inputs'!$G$72)^(P$111-2026))) * SUMIFS(INDEX('Full Results Database'!$E$5:$F$549,,MATCH($D123, 'Full Results Database'!$E$1:$F$1,0)), 'Full Results Database'!$B$5:$B$549, $B123, 'Full Results Database'!$C$5:$C$549, P$111) -> 0 | Q123: =IF($C$4="Real $2026",1,((1+'Advanced User Inputs'!$G$72)^(Q$111-2026))) * SUMIFS(INDEX('Full Results Database'!$E$5:$F$549,,MATCH($D123, 'Full Results Database'!$E$1:$F$1,0)), 'Full Results Database'!$B$5:$B$549, $B123, 'Full Results Database'!$C$5:$C$549, Q$111) -> 0 | R123: =IF($C$4="Real $2026",1,((1+'Advanced User Inputs'!$G$72)^(R$111-2026))) * SUMIFS(INDEX('Full Results Database'!$E$5:$F$549,,MATCH($D123, 'Full Results Database'!$E$1:$F$1,0)), 'Full Results Database'!$B$5:$B$549, $B123, 'Full Results Database'!$C$5:$C$549, R$111) -> 0 | S123: =IF($C$4="Real $2026",1,((1+'Advanced User Inputs'!$G$72)^(S$111-2026))) * SUMIFS(INDEX('Full Results Database'!$E$5:$F$549,,MATCH($D123, 'Full Results Database'!$E$1:$F$1,0)), 'Full Results Database'!$B$5:$B$549, $B123, 'Full Results Database'!$C$5:$C$549, S$111) -> 0 | T123: =IF($C$4="Real $2026",1,((1+'Advanced User Inputs'!$G$72)^(T$111-2026))) * SUMIFS(INDEX('Full Results Database'!$E$5:$F$549,,MATCH($D123, 'Full Results Database'!$E$1:$F$1,0)), 'Full Results Database'!$B$5:$B$549, $B123, 'Full Results Database'!$C$5:$C$549, T$111) -> 0 | U123: =IF($C$4="Real $2026",1,((1+'Advanced User Inputs'!$G$72)^(U$111-2026))) * SUMIFS(INDEX('Full Results Database'!$E$5:$F$549,,MATCH($D123, 'Full Results Database'!$E$1:$F$1,0)), 'Full Results Database'!$B$5:$B$549, $B123, 'Full Results Database'!$C$5:$C$549, U$111) -> 0 | V123: =IF($C$4="Real $2026",1,((1+'Advanced User Inputs'!$G$72)^(V$111-2026))) * SUMIFS(INDEX('Full Results Database'!$E$5:$F$549,,MATCH($D123, 'Full Results Database'!$E$1:$F$1,0)), 'Full Results Database'!$B$5:$B$549, $B123, 'Full Results Database'!$C$5:$C$549, V$111) -> 0 | W123: =IF($C$4="Real $2026",1,((1+'Advanced User Inputs'!$G$72)^(W$111-2026))) * SUMIFS(INDEX('Full Results Database'!$E$5:$F$549,,MATCH($D123, 'Full Results Database'!$E$1:$F$1,0)), 'Full Results Database'!$B$5:$B$549, $B123, 'Full Results Database'!$C$5:$C$549, W$111) -> 0 | X123: =IF($C$4="Real $2026",1,((1+'Advanced User Inputs'!$G$72)^(X$111-2026))) * SUMIFS(INDEX('Full Results Database'!$E$5:$F$549,,MATCH($D123, 'Full Results Database'!$E$1:$F$1,0)), 'Full Results Database'!$B$5:$B$549, $B123, 'Full Results Database'!$C$5:$C$549, X$111) -> 0 | Y123: =IF($C$4="Real $2026",1,((1+'Advanced User Inputs'!$G$72)^(Y$111-2026))) * SUMIFS(INDEX('Full Results Database'!$E$5:$F$549,,MATCH($D123, 'Full Results Database'!$E$1:$F$1,0)), 'Full Results Database'!$B$5:$B$549, $B123, 'Full Results Database'!$C$5:$C$549, Y$111) -> 0 | Z123: =IF($C$4="Real $2026",1,((1+'Advanced User Inputs'!$G$72)^(Z$111-2026))) * SUMIFS(INDEX('Full Results Database'!$E$5:$F$549,,MATCH($D123, 'Full Results Database'!$E$1:$F$1,0)), 'Full Results Database'!$B$5:$B$549, $B123, 'Full Results Database'!$C$5:$C$549, Z$111) -> 0 | AA123: =IF($C$4="Real $2026",1,((1+'Advanced User Inputs'!$G$72)^(AA$111-2026))) * SUMIFS(INDEX('Full Results Database'!$E$5:$F$549,,MATCH($D123, 'Full Results Database'!$E$1:$F$1,0)), 'Full Results Database'!$B$5:$B$549, $B123, 'Full Results Database'!$C$5:$C$549, AA$111) -> 0 | AB123: =IF($C$4="Real $2026",1,((1+'Advanced User Inputs'!$G$72)^(AB$111-2026))) * SUMIFS(INDEX('Full Results Database'!$E$5:$F$549,,MATCH($D123, 'Full Results Database'!$E$1:$F$1,0)), 'Full Results Database'!$B$5:$B$549, $B123, 'Full Results Database'!$C$5:$C$549, AB$111) -> 0 | AC123: =IF($C$4="Real $2026",1,((1+'Advanced User Inputs'!$G$72)^(AC$111-2026))) * SUMIFS(INDEX('Full Results Database'!$E$5:$F$549,,MATCH($D123, 'Full Results Database'!$E$1:$F$1,0)), 'Full Results Database'!$B$5:$B$549, $B123, 'Full Results Database'!$C$5:$C$549, AC$111) -> 0 | AD123: =IF($C$4="Real $2026",1,((1+'Advanced User Inputs'!$G$72)^(AD$111-2026))) * SUMIFS(INDEX('Full Results Database'!$E$5:$F$549,,MATCH($D123, 'Full Results Database'!$E$1:$F$1,0)), 'Full Results Database'!$B$5:$B$549, $B123, 'Full Results Database'!$C$5:$C$549, AD$111) -> 0 | AE123: =IF($C$4="Real $2026",1,((1+'Advanced User Inputs'!$G$72)^(AE$111-2026))) * SUMIFS(INDEX('Full Results Database'!$E$5:$F$549,,MATCH($D123, 'Full Results Database'!$E$1:$F$1,0)), 'Full Results Database'!$B$5:$B$549, $B123, 'Full Results Database'!$C$5:$C$549, AE$111) -> 0 | AF123: =IF($C$4="Real $2026",1,((1+'Advanced User Inputs'!$G$72)^(AF$111-2026))) * SUMIFS(INDEX('Full Results Database'!$E$5:$F$549,,MATCH($D123, 'Full Results Database'!$E$1:$F$1,0)), 'Full Results Database'!$B$5:$B$549, $B123, 'Full Results Database'!$C$5:$C$549, AF$111) -> 0 | AG123: =IF($C$4="Real $2026",1,((1+'Advanced User Inputs'!$G$72)^(AG$111-2026))) * SUMIFS(INDEX('Full Results Database'!$E$5:$F$549,,MATCH($D123, 'Full Results Database'!$E$1:$F$1,0)), 'Full Results Database'!$B$5:$B$549, $B123, 'Full Results Database'!$C$5:$C$549, AG$111) -> 0 | AH123: =IF($C$4="Real $2026",1,((1+'Advanced User Inputs'!$G$72)^(AH$111-2026))) * SUMIFS(INDEX('Full Results Database'!$E$5:$F$549,,MATCH($D123, 'Full Results Database'!$E$1:$F$1,0)), 'Full Results Database'!$B$5:$B$549, $B123, 'Full Results Database'!$C$5:$C$549, AH$111) -> 0 | AI123: =IF($C$4="Real $2026",1,((1+'Advanced User Inputs'!$G$72)^(AI$111-2026))) * SUMIFS(INDEX('Full Results Database'!$E$5:$F$549,,MATCH($D123, 'Full Results Database'!$E$1:$F$1,0)), 'Full Results Database'!$B$5:$B$549, $B123, 'Full Results Database'!$C$5:$C$549, AI$111) -> 0 | AJ123: =IF($C$4="Real $2026",1,((1+'Advanced User Inputs'!$G$72)^(AJ$111-2026))) * SUMIFS(INDEX('Full Results Database'!$E$5:$F$549,,MATCH($D123, 'Full Results Database'!$E$1:$F$1,0)), 'Full Results Database'!$B$5:$B$549, $B123, 'Full Results Database'!$C$5:$C$549, AJ$111) -> 0 | AK123: =IF($C$4="Real $2026",1,((1+'Advanced User Inputs'!$G$72)^(AK$111-2026))) * SUMIFS(INDEX('Full Results Database'!$E$5:$F$549,,MATCH($D123, 'Full Results Database'!$E$1:$F$1,0)), 'Full Results Database'!$B$5:$B$549, $B123, 'Full Results Database'!$C$5:$C$549, AK$111) -> 0 | AL123: =IF($C$4="Real $2026",1,((1+'Advanced User Inputs'!$G$72)^(AL$111-2026))) * SUMIFS(INDEX('Full Results Database'!$E$5:$F$549,,MATCH($D123, 'Full Results Database'!$E$1:$F$1,0)), 'Full Results Database'!$B$5:$B$549, $B123, 'Full Results Database'!$C$5:$C$549, AL$111) -> 0 | AM123: =IF($C$4="Real $2026",1,((1+'Advanced User Inputs'!$G$72)^(AM$111-2026))) * SUMIFS(INDEX('Full Results Database'!$E$5:$F$549,,MATCH($D123, 'Full Results Database'!$E$1:$F$1,0)), 'Full Results Database'!$B$5:$B$549, $B123, 'Full Results Database'!$C$5:$C$549, AM$111) -> 0 | AN123: =IF($C$4="Real $2026",1,((1+'Advanced User Inputs'!$G$72)^(AN$111-2026))) * SUMIFS(INDEX('Full Results Database'!$E$5:$F$549,,MATCH($D123, 'Full Results Database'!$E$1:$F$1,0)), 'Full Results Database'!$B$5:$B$549, $B123, 'Full Results Database'!$C$5:$C$549, AN$111) -> 0 | AO123: =IF($C$4="Real $2026",1,((1+'Advanced User Inputs'!$G$72)^(AO$111-2026))) * SUMIFS(INDEX('Full Results Database'!$E$5:$F$549,,MATCH($D123, 'Full Results Database'!$E$1:$F$1,0)), 'Full Results Database'!$B$5:$B$549, $B123, 'Full Results Database'!$C$5:$C$549, AO$111) -> 0 | AP123: =IF($C$4="Real $2026",1,((1+'Advanced User Inputs'!$G$72)^(AP$111-2026))) * SUMIFS(INDEX('Full Results Database'!$E$5:$F$549,,MATCH($D123, 'Full Results Database'!$E$1:$F$1,0)), 'Full Results Database'!$B$5:$B$549, $B123, 'Full Results Database'!$C$5:$C$549, AP$111) -> 0 | AQ123: =IF($C$4="Real $2026",1,((1+'Advanced User Inputs'!$G$72)^(AQ$111-2026))) * SUMIFS(INDEX('Full Results Database'!$E$5:$F$549,,MATCH($D123, 'Full Results Database'!$E$1:$F$1,0)), 'Full Results Database'!$B$5:$B$549, $B123, 'Full Results Database'!$C$5:$C$549, AQ$111) -> 0 | AR123: =IF($C$4="Real $2026",1,((1+'Advanced User Inputs'!$G$72)^(AR$111-2026))) * SUMIFS(INDEX('Full Results Database'!$E$5:$F$549,,MATCH($D123, 'Full Results Database'!$E$1:$F$1,0)), 'Full Results Database'!$B$5:$B$549, $B123, 'Full Results Database'!$C$5:$C$549, AR$111) -> 0
B125: Payment Type | C125: Units | D125: Scenario | E125: NPV | G125: The Net Present Value (NPV) represents the cost to each party discounted for the time value of money. For example, if a DER pays costs upfront and is reimbursed later by another party, the NPV of the later payments would be lower since they are discounted to the future year. This means that the DER may not have a NPV of zero, even if they are fully reimbursed. | K125: NOTE: Results are highly dependent on input values and should be used to compare relative impacts between scenarios, not to calculate absolute costs of DER interconnection.
B126: Total DER Cashflow | C126: =$C$4 -> Real $2026 | D126: =active_scenario1 -> Reimbursement | E126: =NPV(IF($C$4 = "Nominal", 'Advanced User Inputs'!$G$67,'Advanced User Inputs'!$G$68),_xlfn.IFNA($F112:$AS112,0))+E112 -> -1645812.687
B127: DER Payments - Upfront | C127: =$C$4 -> Real $2026 | D127: =active_scenario1 -> Reimbursement | E127: =NPV(IF($C$4 = "Nominal", 'Advanced User Inputs'!$G$67,'Advanced User Inputs'!$G$68),_xlfn.IFNA($F113:$AS113,0))+E113 -> -6000000
B128: DER Payments - Ongoing | C128: =$C$4 -> Real $2026 | D128: =active_scenario1 -> Reimbursement | E128: =NPV(IF($C$4 = "Nominal", 'Advanced User Inputs'!$G$67,'Advanced User Inputs'!$G$68),_xlfn.IFNA($F114:$AS114,0))+E114 -> 0
B129: Reimbursement - Additional DERs | C129: =$C$4 -> Real $2026 | D129: =active_scenario1 -> Reimbursement | E129: =NPV(IF($C$4 = "Nominal", 'Advanced User Inputs'!$G$67,'Advanced User Inputs'!$G$68),_xlfn.IFNA($F115:$AS115,0))+E115 -> 4354187.313
B130: Reimbursement - Ratepayers | C130: =$C$4 -> Real $2026 | D130: =active_scenario1 -> Reimbursement | E130: =NPV(IF($C$4 = "Nominal", 'Advanced User Inputs'!$G$67,'Advanced User Inputs'!$G$68),_xlfn.IFNA($F116:$AS116,0))+E116 -> 0
B132: Payment Type | C132: Units | D132: Scenario | E132: NPV
B133: Total DER Cashflow | C133: =$C$4 -> Real $2026 | D133: =active_scenario2 -> Cost Causer Pays | E133: =NPV(IF($C$4 = "Nominal", 'Advanced User Inputs'!$G$67,'Advanced User Inputs'!$G$68),_xlfn.IFNA($F119:$AS119,0))+E119 -> -6000000
B134: DER Payments - Upfront | C134: =$C$4 -> Real $2026 | D134: =active_scenario2 -> Cost Causer Pays | E134: =NPV(IF($C$4 = "Nominal", 'Advanced User Inputs'!$G$67,'Advanced User Inputs'!$G$68),_xlfn.IFNA($F120:$AS120,0))+E120 -> -6000000
B135: DER Payments - Ongoing | C135: =$C$4 -> Real $2026 | D135: =active_scenario2 -> Cost Causer Pays | E135: =NPV(IF($C$4 = "Nominal", 'Advanced User Inputs'!$G$67,'Advanced User Inputs'!$G$68),_xlfn.IFNA($F121:$AS121,0))+E121 -> 0
B136: Reimbursement - Additional DERs | C136: =$C$4 -> Real $2026 | D136: =active_scenario2 -> Cost Causer Pays | E136: =NPV(IF($C$4 = "Nominal", 'Advanced User Inputs'!$G$67,'Advanced User Inputs'!$G$68),_xlfn.IFNA($F122:$AS122,0))+E122 -> 0
B137: Reimbursement - Ratepayers | C137: =$C$4 -> Real $2026 | D137: =active_scenario2 -> Cost Causer Pays | E137: =NPV(IF($C$4 = "Nominal", 'Advanced User Inputs'!$G$67,'Advanced User Inputs'!$G$68),_xlfn.IFNA($F123:$AS123,0))+E123 -> 0
B139: =_xlfn.CONCAT(B126, ", ", D126," (", C126,")") -> Total DER Cashflow, Reimbursement (Real $2026)
B140: =_xlfn.CONCAT(B133, ", ", D133," (", C133,")") -> Total DER Cashflow, Cost Causer Pays (Real $2026)
C161: =active_scenario1 -> Reimbursement | D161: =active_scenario2 -> Cost Causer Pays
C162: =E126:E130 -> -1645812.687 | D162: =E133:E137 -> -6000000
C163: -6000000 | D163: -6000000
C164: 0 | D164: 0
C165: 4354187.313 | D165: 0
C166: 0 | D166: 0
C168: =_xlfn.CONCAT( "NPV of Total DER Cashflow (", C119,")") -> NPV of Total DER Cashflow (Real $2026)
A181: Results Summary - Utility
B183: - Results are shown as the amount that ratepayers pay in each year (negative numbers), following capital recovery calculations, and the incoming revenue (positive) to all ratepayers.
B184: - This includes the full contribution of the upgrade to the annual revenue requirement, including both depreciation and return. Additional details can be found below.
B185: - The DER fund is shown as the amount that the DER fund contributed to the upgrade (negative numbers), and the fund revenue from DERs impacted by the upgrade (positive). DER fund is not rate based and does not earn return.
B187: Payment Type | C187: Units | D187: Scenario | E187: 2026 | F187: 2027 | G187: 2028 | H187: 2029 | I187: 2030 | J187: 2031 | K187: 2032 | L187: 2033 | M187: 2034 | N187: 2035 | O187: 2036 | P187: 2037 | Q187: 2038 | R187: 2039 | S187: 2040 | T187: 2041 | U187: 2042 | V187: 2043 | W187: 2044 | X187: 2045 | Y187: 2046 | Z187: 2047 | AA187: 2048 | AB187: 2049 | AC187: 2050 | AD187: 2051 | AE187: 2052 | AF187: 2053 | AG187: 2054 | AH187: 2055 | AI187: 2056 | AJ187: 2057 | AK187: 2058 | AL187: 2059 | AM187: 2060 | AN187: 2061 | AO187: 2062 | AP187: 2063 | AQ187: 2064 | AR187: 2065 | AS187: //
B188: Infrastructure Costs (Ratepayers) | C188: =$C$4 -> Real $2026 | D188: =active_scenario1 -> Reimbursement | E188: =INDEX(E$357:E$385,MATCH($AT188&$D188, $B$357:$B$385&$D$357:$D$385,0)) -> 0 | F188: =INDEX(F$357:F$385,MATCH($AT188, $B$357:$B$385,0)) -> 0 | G188: =INDEX(G$357:G$385,MATCH($AT188, $B$357:$B$385,0)) -> 0 | H188: =INDEX(H$357:H$385,MATCH($AT188&$D188, $B$357:$B$385&$D$357:$D$385,0)) -> 0 | I188: =INDEX(I$357:I$385,MATCH($AT188&$D188, $B$357:$B$385&$D$357:$D$385,0)) -> 0 | J188: =INDEX(J$357:J$385,MATCH($AT188&$D188, $B$357:$B$385&$D$357:$D$385,0)) -> 0 | K188: =INDEX(K$357:K$385,MATCH($AT188&$D188, $B$357:$B$385&$D$357:$D$385,0)) -> 0 | L188: =INDEX(L$357:L$385,MATCH($AT188&$D188, $B$357:$B$385&$D$357:$D$385,0)) -> 0 | M188: =INDEX(M$357:M$385,MATCH($AT188&$D188, $B$357:$B$385&$D$357:$D$385,0)) -> 0 | N188: =INDEX(N$357:N$385,MATCH($AT188&$D188, $B$357:$B$385&$D$357:$D$385,0)) -> 0 | O188: =INDEX(O$357:O$385,MATCH($AT188&$D188, $B$357:$B$385&$D$357:$D$385,0)) -> 0 | P188: =INDEX(P$357:P$385,MATCH($AT188&$D188, $B$357:$B$385&$D$357:$D$385,0)) -> 0 | Q188: =INDEX(Q$357:Q$385,MATCH($AT188&$D188, $B$357:$B$385&$D$357:$D$385,0)) -> 0 | R188: =INDEX(R$357:R$385,MATCH($AT188&$D188, $B$357:$B$385&$D$357:$D$385,0)) -> 0 | S188: =INDEX(S$357:S$385,MATCH($AT188&$D188, $B$357:$B$385&$D$357:$D$385,0)) -> 0 | T188: =INDEX(T$357:T$385,MATCH($AT188&$D188, $B$357:$B$385&$D$357:$D$385,0)) -> 0 | U188: =INDEX(U$357:U$385,MATCH($AT188&$D188, $B$357:$B$385&$D$357:$D$385,0)) -> 0 | V188: =INDEX(V$357:V$385,MATCH($AT188&$D188, $B$357:$B$385&$D$357:$D$385,0)) -> 0 | W188: =INDEX(W$357:W$385,MATCH($AT188&$D188, $B$357:$B$385&$D$357:$D$385,0)) -> 0 | X188: =INDEX(X$357:X$385,MATCH($AT188&$D188, $B$357:$B$385&$D$357:$D$385,0)) -> 0 | Y188: =INDEX(Y$357:Y$385,MATCH($AT188&$D188, $B$357:$B$385&$D$357:$D$385,0)) -> 0 | Z188: =INDEX(Z$357:Z$385,MATCH($AT188&$D188, $B$357:$B$385&$D$357:$D$385,0)) -> 0 | AA188: =INDEX(AA$357:AA$385,MATCH($AT188&$D188, $B$357:$B$385&$D$357:$D$385,0)) -> 0 | AB188: =INDEX(AB$357:AB$385,MATCH($AT188&$D188, $B$357:$B$385&$D$357:$D$385,0)) -> 0 | AC188: =INDEX(AC$357:AC$385,MATCH($AT188&$D188, $B$357:$B$385&$D$357:$D$385,0)) -> 0 | AD188: =INDEX(AD$357:AD$385,MATCH($AT188&$D188, $B$357:$B$385&$D$357:$D$385,0)) -> 0 | AE188: =INDEX(AE$357:AE$385,MATCH($AT188&$D188, $B$357:$B$385&$D$357:$D$385,0)) -> 0 | AF188: =INDEX(AF$357:AF$385,MATCH($AT188&$D188, $B$357:$B$385&$D$357:$D$385,0)) -> 0 | AG188: =INDEX(AG$357:AG$385,MATCH($AT188&$D188, $B$357:$B$385&$D$357:$D$385,0)) -> 0 | AH188: =INDEX(AH$357:AH$385,MATCH($AT188&$D188, $B$357:$B$385&$D$357:$D$385,0)) -> 0 | AI188: =INDEX(AI$357:AI$385,MATCH($AT188&$D188, $B$357:$B$385&$D$357:$D$385,0)) -> 0 | AJ188: =INDEX(AJ$357:AJ$385,MATCH($AT188&$D188, $B$357:$B$385&$D$357:$D$385,0)) -> 0 | AK188: =INDEX(AK$357:AK$385,MATCH($AT188&$D188, $B$357:$B$385&$D$357:$D$385,0)) -> 0 | AL188: =INDEX(AL$357:AL$385,MATCH($AT188&$D188, $B$357:$B$385&$D$357:$D$385,0)) -> 0 | AM188: =INDEX(AM$357:AM$385,MATCH($AT188&$D188, $B$357:$B$385&$D$357:$D$385,0)) -> 0 | AN188: =INDEX(AN$357:AN$385,MATCH($AT188&$D188, $B$357:$B$385&$D$357:$D$385,0)) -> 0 | AO188: =INDEX(AO$357:AO$385,MATCH($AT188&$D188, $B$357:$B$385&$D$357:$D$385,0)) -> 0 | AP188: =INDEX(AP$357:AP$385,MATCH($AT188&$D188, $B$357:$B$385&$D$357:$D$385,0)) -> 0 | AQ188: =INDEX(AQ$357:AQ$385,MATCH($AT188&$D188, $B$357:$B$385&$D$357:$D$385,0)) -> 0 | AR188: =INDEX(AR$357:AR$385,MATCH($AT188&$D188, $B$357:$B$385&$D$357:$D$385,0)) -> 0 | AT188: Change in Depr. And Return - Ratepayer
B189: Revenue (Ratepayers) | C189: =$C$4 -> Real $2026 | D189: =active_scenario1 -> Reimbursement | E189: =INDEX(E$357:E$385,MATCH($AT189&$D189, $B$357:$B$385&$D$357:$D$385,0)) -> 0 | F189: =INDEX(F$357:F$385,MATCH($AT189&$D189, $B$357:$B$385&$D$357:$D$385,0)) -> 0 | G189: =INDEX(G$357:G$385,MATCH($AT189&$D189, $B$357:$B$385&$D$357:$D$385,0)) -> 0 | H189: =INDEX(H$357:H$385,MATCH($AT189&$D189, $B$357:$B$385&$D$357:$D$385,0)) -> 0 | I189: =INDEX(I$357:I$385,MATCH($AT189&$D189, $B$357:$B$385&$D$357:$D$385,0)) -> 0 | J189: =INDEX(J$357:J$385,MATCH($AT189&$D189, $B$357:$B$385&$D$357:$D$385,0)) -> 0 | K189: =INDEX(K$357:K$385,MATCH($AT189&$D189, $B$357:$B$385&$D$357:$D$385,0)) -> 0 | L189: =INDEX(L$357:L$385,MATCH($AT189&$D189, $B$357:$B$385&$D$357:$D$385,0)) -> 0 | M189: =INDEX(M$357:M$385,MATCH($AT189&$D189, $B$357:$B$385&$D$357:$D$385,0)) -> 0 | N189: =INDEX(N$357:N$385,MATCH($AT189&$D189, $B$357:$B$385&$D$357:$D$385,0)) -> 0 | O189: =INDEX(O$357:O$385,MATCH($AT189&$D189, $B$357:$B$385&$D$357:$D$385,0)) -> 0 | P189: =INDEX(P$357:P$385,MATCH($AT189&$D189, $B$357:$B$385&$D$357:$D$385,0)) -> 0 | Q189: =INDEX(Q$357:Q$385,MATCH($AT189&$D189, $B$357:$B$385&$D$357:$D$385,0)) -> 0 | R189: =INDEX(R$357:R$385,MATCH($AT189&$D189, $B$357:$B$385&$D$357:$D$385,0)) -> 0 | S189: =INDEX(S$357:S$385,MATCH($AT189&$D189, $B$357:$B$385&$D$357:$D$385,0)) -> 0 | T189: =INDEX(T$357:T$385,MATCH($AT189&$D189, $B$357:$B$385&$D$357:$D$385,0)) -> 0 | U189: =INDEX(U$357:U$385,MATCH($AT189&$D189, $B$357:$B$385&$D$357:$D$385,0)) -> 0 | V189: =INDEX(V$357:V$385,MATCH($AT189&$D189, $B$357:$B$385&$D$357:$D$385,0)) -> 0 | W189: =INDEX(W$357:W$385,MATCH($AT189&$D189, $B$357:$B$385&$D$357:$D$385,0)) -> 0 | X189: =INDEX(X$357:X$385,MATCH($AT189&$D189, $B$357:$B$385&$D$357:$D$385,0)) -> 0 | Y189: =INDEX(Y$357:Y$385,MATCH($AT189&$D189, $B$357:$B$385&$D$357:$D$385,0)) -> 0 | Z189: =INDEX(Z$357:Z$385,MATCH($AT189&$D189, $B$357:$B$385&$D$357:$D$385,0)) -> 0 | AA189: =INDEX(AA$357:AA$385,MATCH($AT189&$D189, $B$357:$B$385&$D$357:$D$385,0)) -> 0 | AB189: =INDEX(AB$357:AB$385,MATCH($AT189&$D189, $B$357:$B$385&$D$357:$D$385,0)) -> 0 | AC189: =INDEX(AC$357:AC$385,MATCH($AT189&$D189, $B$357:$B$385&$D$357:$D$385,0)) -> 0 | AD189: =INDEX(AD$357:AD$385,MATCH($AT189&$D189, $B$357:$B$385&$D$357:$D$385,0)) -> 0 | AE189: =INDEX(AE$357:AE$385,MATCH($AT189&$D189, $B$357:$B$385&$D$357:$D$385,0)) -> 0 | AF189: =INDEX(AF$357:AF$385,MATCH($AT189&$D189, $B$357:$B$385&$D$357:$D$385,0)) -> 0 | AG189: =INDEX(AG$357:AG$385,MATCH($AT189&$D189, $B$357:$B$385&$D$357:$D$385,0)) -> 0 | AH189: =INDEX(AH$357:AH$385,MATCH($AT189&$D189, $B$357:$B$385&$D$357:$D$385,0)) -> 0 | AI189: =INDEX(AI$357:AI$385,MATCH($AT189&$D189, $B$357:$B$385&$D$357:$D$385,0)) -> 0 | AJ189: =INDEX(AJ$357:AJ$385,MATCH($AT189&$D189, $B$357:$B$385&$D$357:$D$385,0)) -> 0 | AK189: =INDEX(AK$357:AK$385,MATCH($AT189&$D189, $B$357:$B$385&$D$357:$D$385,0)) -> 0 | AL189: =INDEX(AL$357:AL$385,MATCH($AT189&$D189, $B$357:$B$385&$D$357:$D$385,0)) -> 0 | AM189: =INDEX(AM$357:AM$385,MATCH($AT189&$D189, $B$357:$B$385&$D$357:$D$385,0)) -> 0 | AN189: =INDEX(AN$357:AN$385,MATCH($AT189&$D189, $B$357:$B$385&$D$357:$D$385,0)) -> 0 | AO189: =INDEX(AO$357:AO$385,MATCH($AT189&$D189, $B$357:$B$385&$D$357:$D$385,0)) -> 0 | AP189: =INDEX(AP$357:AP$385,MATCH($AT189&$D189, $B$357:$B$385&$D$357:$D$385,0)) -> 0 | AQ189: =INDEX(AQ$357:AQ$385,MATCH($AT189&$D189, $B$357:$B$385&$D$357:$D$385,0)) -> 0 | AR189: =INDEX(AR$357:AR$385,MATCH($AT189&$D189, $B$357:$B$385&$D$357:$D$385,0)) -> 0 | AT189: Change in Utility Revenue - Ratepayer Funded
B190: Infrastructure Costs (DER Fund) | C190: =$C$4 -> Real $2026 | D190: =active_scenario1 -> Reimbursement | E190: =IF($C$4="Real $2026",1,((1+'Advanced User Inputs'!$G$72)^(E$187-2026))) * SUMIFS(INDEX('Full Results Database'!$E$5:$F$549,,MATCH($D190, 'Full Results Database'!$E$1:$F$1,0)), 'Full Results Database'!$B$5:$B$549, $AT190, 'Full Results Database'!$C$5:$C$549, E$187) -> 0 | F190: =IF($C$4="Real $2026",1,((1+'Advanced User Inputs'!$G$72)^(F$187-2026))) * SUMIFS(INDEX('Full Results Database'!$E$5:$F$549,,MATCH($D190, 'Full Results Database'!$E$1:$F$1,0)), 'Full Results Database'!$B$5:$B$549, $AT190, 'Full Results Database'!$C$5:$C$549, F$187) -> 0 | G190: =IF($C$4="Real $2026",1,((1+'Advanced User Inputs'!$G$72)^(G$187-2026))) * SUMIFS(INDEX('Full Results Database'!$E$5:$F$549,,MATCH($D190, 'Full Results Database'!$E$1:$F$1,0)), 'Full Results Database'!$B$5:$B$549, $AT190, 'Full Results Database'!$C$5:$C$549, G$187) -> 0 | H190: =IF($C$4="Real $2026",1,((1+'Advanced User Inputs'!$G$72)^(H$187-2026))) * SUMIFS(INDEX('Full Results Database'!$E$5:$F$549,,MATCH($D190, 'Full Results Database'!$E$1:$F$1,0)), 'Full Results Database'!$B$5:$B$549, $AT190, 'Full Results Database'!$C$5:$C$549, H$187) -> 0 | I190: =IF($C$4="Real $2026",1,((1+'Advanced User Inputs'!$G$72)^(I$187-2026))) * SUMIFS(INDEX('Full Results Database'!$E$5:$F$549,,MATCH($D190, 'Full Results Database'!$E$1:$F$1,0)), 'Full Results Database'!$B$5:$B$549, $AT190, 'Full Results Database'!$C$5:$C$549, I$187) -> 0 | J190: =IF($C$4="Real $2026",1,((1+'Advanced User Inputs'!$G$72)^(J$187-2026))) * SUMIFS(INDEX('Full Results Database'!$E$5:$F$549,,MATCH($D190, 'Full Results Database'!$E$1:$F$1,0)), 'Full Results Database'!$B$5:$B$549, $AT190, 'Full Results Database'!$C$5:$C$549, J$187) -> 0 | K190: =IF($C$4="Real $2026",1,((1+'Advanced User Inputs'!$G$72)^(K$187-2026))) * SUMIFS(INDEX('Full Results Database'!$E$5:$F$549,,MATCH($D190, 'Full Results Database'!$E$1:$F$1,0)), 'Full Results Database'!$B$5:$B$549, $AT190, 'Full Results Database'!$C$5:$C$549, K$187) -> 0 | L190: =IF($C$4="Real $2026",1,((1+'Advanced User Inputs'!$G$72)^(L$187-2026))) * SUMIFS(INDEX('Full Results Database'!$E$5:$F$549,,MATCH($D190, 'Full Results Database'!$E$1:$F$1,0)), 'Full Results Database'!$B$5:$B$549, $AT190, 'Full Results Database'!$C$5:$C$549, L$187) -> 0 | M190: =IF($C$4="Real $2026",1,((1+'Advanced User Inputs'!$G$72)^(M$187-2026))) * SUMIFS(INDEX('Full Results Database'!$E$5:$F$549,,MATCH($D190, 'Full Results Database'!$E$1:$F$1,0)), 'Full Results Database'!$B$5:$B$549, $AT190, 'Full Results Database'!$C$5:$C$549, M$187) -> 0 | N190: =IF($C$4="Real $2026",1,((1+'Advanced User Inputs'!$G$72)^(N$187-2026))) * SUMIFS(INDEX('Full Results Database'!$E$5:$F$549,,MATCH($D190, 'Full Results Database'!$E$1:$F$1,0)), 'Full Results Database'!$B$5:$B$549, $AT190, 'Full Results Database'!$C$5:$C$549, N$187) -> 0 | O190: =IF($C$4="Real $2026",1,((1+'Advanced User Inputs'!$G$72)^(O$187-2026))) * SUMIFS(INDEX('Full Results Database'!$E$5:$F$549,,MATCH($D190, 'Full Results Database'!$E$1:$F$1,0)), 'Full Results Database'!$B$5:$B$549, $AT190, 'Full Results Database'!$C$5:$C$549, O$187) -> 0 | P190: =IF($C$4="Real $2026",1,((1+'Advanced User Inputs'!$G$72)^(P$187-2026))) * SUMIFS(INDEX('Full Results Database'!$E$5:$F$549,,MATCH($D190, 'Full Results Database'!$E$1:$F$1,0)), 'Full Results Database'!$B$5:$B$549, $AT190, 'Full Results Database'!$C$5:$C$549, P$187) -> 0 | Q190: =IF($C$4="Real $2026",1,((1+'Advanced User Inputs'!$G$72)^(Q$187-2026))) * SUMIFS(INDEX('Full Results Database'!$E$5:$F$549,,MATCH($D190, 'Full Results Database'!$E$1:$F$1,0)), 'Full Results Database'!$B$5:$B$549, $AT190, 'Full Results Database'!$C$5:$C$549, Q$187) -> 0 | R190: =IF($C$4="Real $2026",1,((1+'Advanced User Inputs'!$G$72)^(R$187-2026))) * SUMIFS(INDEX('Full Results Database'!$E$5:$F$549,,MATCH($D190, 'Full Results Database'!$E$1:$F$1,0)), 'Full Results Database'!$B$5:$B$549, $AT190, 'Full Results Database'!$C$5:$C$549, R$187) -> 0 | S190: =IF($C$4="Real $2026",1,((1+'Advanced User Inputs'!$G$72)^(S$187-2026))) * SUMIFS(INDEX('Full Results Database'!$E$5:$F$549,,MATCH($D190, 'Full Results Database'!$E$1:$F$1,0)), 'Full Results Database'!$B$5:$B$549, $AT190, 'Full Results Database'!$C$5:$C$549, S$187) -> 0 | T190: =IF($C$4="Real $2026",1,((1+'Advanced User Inputs'!$G$72)^(T$187-2026))) * SUMIFS(INDEX('Full Results Database'!$E$5:$F$549,,MATCH($D190, 'Full Results Database'!$E$1:$F$1,0)), 'Full Results Database'!$B$5:$B$549, $AT190, 'Full Results Database'!$C$5:$C$549, T$187) -> 0 | U190: =IF($C$4="Real $2026",1,((1+'Advanced User Inputs'!$G$72)^(U$187-2026))) * SUMIFS(INDEX('Full Results Database'!$E$5:$F$549,,MATCH($D190, 'Full Results Database'!$E$1:$F$1,0)), 'Full Results Database'!$B$5:$B$549, $AT190, 'Full Results Database'!$C$5:$C$549, U$187) -> 0 | V190: =IF($C$4="Real $2026",1,((1+'Advanced User Inputs'!$G$72)^(V$187-2026))) * SUMIFS(INDEX('Full Results Database'!$E$5:$F$549,,MATCH($D190, 'Full Results Database'!$E$1:$F$1,0)), 'Full Results Database'!$B$5:$B$549, $AT190, 'Full Results Database'!$C$5:$C$549, V$187) -> 0 | W190: =IF($C$4="Real $2026",1,((1+'Advanced User Inputs'!$G$72)^(W$187-2026))) * SUMIFS(INDEX('Full Results Database'!$E$5:$F$549,,MATCH($D190, 'Full Results Database'!$E$1:$F$1,0)), 'Full Results Database'!$B$5:$B$549, $AT190, 'Full Results Database'!$C$5:$C$549, W$187) -> 0 | X190: =IF($C$4="Real $2026",1,((1+'Advanced User Inputs'!$G$72)^(X$187-2026))) * SUMIFS(INDEX('Full Results Database'!$E$5:$F$549,,MATCH($D190, 'Full Results Database'!$E$1:$F$1,0)), 'Full Results Database'!$B$5:$B$549, $AT190, 'Full Results Database'!$C$5:$C$549, X$187) -> 0 | Y190: =IF($C$4="Real $2026",1,((1+'Advanced User Inputs'!$G$72)^(Y$187-2026))) * SUMIFS(INDEX('Full Results Database'!$E$5:$F$549,,MATCH($D190, 'Full Results Database'!$E$1:$F$1,0)), 'Full Results Database'!$B$5:$B$549, $AT190, 'Full Results Database'!$C$5:$C$549, Y$187) -> 0 | Z190: =IF($C$4="Real $2026",1,((1+'Advanced User Inputs'!$G$72)^(Z$187-2026))) * SUMIFS(INDEX('Full Results Database'!$E$5:$F$549,,MATCH($D190, 'Full Results Database'!$E$1:$F$1,0)), 'Full Results Database'!$B$5:$B$549, $AT190, 'Full Results Database'!$C$5:$C$549, Z$187) -> 0 | AA190: =IF($C$4="Real $2026",1,((1+'Advanced User Inputs'!$G$72)^(AA$187-2026))) * SUMIFS(INDEX('Full Results Database'!$E$5:$F$549,,MATCH($D190, 'Full Results Database'!$E$1:$F$1,0)), 'Full Results Database'!$B$5:$B$549, $AT190, 'Full Results Database'!$C$5:$C$549, AA$187) -> 0 | AB190: =IF($C$4="Real $2026",1,((1+'Advanced User Inputs'!$G$72)^(AB$187-2026))) * SUMIFS(INDEX('Full Results Database'!$E$5:$F$549,,MATCH($D190, 'Full Results Database'!$E$1:$F$1,0)), 'Full Results Database'!$B$5:$B$549, $AT190, 'Full Results Database'!$C$5:$C$549, AB$187) -> 0 | AC190: =IF($C$4="Real $2026",1,((1+'Advanced User Inputs'!$G$72)^(AC$187-2026))) * SUMIFS(INDEX('Full Results Database'!$E$5:$F$549,,MATCH($D190, 'Full Results Database'!$E$1:$F$1,0)), 'Full Results Database'!$B$5:$B$549, $AT190, 'Full Results Database'!$C$5:$C$549, AC$187) -> 0 | AD190: =IF($C$4="Real $2026",1,((1+'Advanced User Inputs'!$G$72)^(AD$187-2026))) * SUMIFS(INDEX('Full Results Database'!$E$5:$F$549,,MATCH($D190, 'Full Results Database'!$E$1:$F$1,0)), 'Full Results Database'!$B$5:$B$549, $AT190, 'Full Results Database'!$C$5:$C$549, AD$187) -> 0 | AE190: =IF($C$4="Real $2026",1,((1+'Advanced User Inputs'!$G$72)^(AE$187-2026))) * SUMIFS(INDEX('Full Results Database'!$E$5:$F$549,,MATCH($D190, 'Full Results Database'!$E$1:$F$1,0)), 'Full Results Database'!$B$5:$B$549, $AT190, 'Full Results Database'!$C$5:$C$549, AE$187) -> 0 | AF190: =IF($C$4="Real $2026",1,((1+'Advanced User Inputs'!$G$72)^(AF$187-2026))) * SUMIFS(INDEX('Full Results Database'!$E$5:$F$549,,MATCH($D190, 'Full Results Database'!$E$1:$F$1,0)), 'Full Results Database'!$B$5:$B$549, $AT190, 'Full Results Database'!$C$5:$C$549, AF$187) -> 0 | AG190: =IF($C$4="Real $2026",1,((1+'Advanced User Inputs'!$G$72)^(AG$187-2026))) * SUMIFS(INDEX('Full Results Database'!$E$5:$F$549,,MATCH($D190, 'Full Results Database'!$E$1:$F$1,0)), 'Full Results Database'!$B$5:$B$549, $AT190, 'Full Results Database'!$C$5:$C$549, AG$187) -> 0 | AH190: =IF($C$4="Real $2026",1,((1+'Advanced User Inputs'!$G$72)^(AH$187-2026))) * SUMIFS(INDEX('Full Results Database'!$E$5:$F$549,,MATCH($D190, 'Full Results Database'!$E$1:$F$1,0)), 'Full Results Database'!$B$5:$B$549, $AT190, 'Full Results Database'!$C$5:$C$549, AH$187) -> 0 | AI190: =IF($C$4="Real $2026",1,((1+'Advanced User Inputs'!$G$72)^(AI$187-2026))) * SUMIFS(INDEX('Full Results Database'!$E$5:$F$549,,MATCH($D190, 'Full Results Database'!$E$1:$F$1,0)), 'Full Results Database'!$B$5:$B$549, $AT190, 'Full Results Database'!$C$5:$C$549, AI$187) -> 0 | AJ190: =IF($C$4="Real $2026",1,((1+'Advanced User Inputs'!$G$72)^(AJ$187-2026))) * SUMIFS(INDEX('Full Results Database'!$E$5:$F$549,,MATCH($D190, 'Full Results Database'!$E$1:$F$1,0)), 'Full Results Database'!$B$5:$B$549, $AT190, 'Full Results Database'!$C$5:$C$549, AJ$187) -> 0 | AK190: =IF($C$4="Real $2026",1,((1+'Advanced User Inputs'!$G$72)^(AK$187-2026))) * SUMIFS(INDEX('Full Results Database'!$E$5:$F$549,,MATCH($D190, 'Full Results Database'!$E$1:$F$1,0)), 'Full Results Database'!$B$5:$B$549, $AT190, 'Full Results Database'!$C$5:$C$549, AK$187) -> 0 | AL190: =IF($C$4="Real $2026",1,((1+'Advanced User Inputs'!$G$72)^(AL$187-2026))) * SUMIFS(INDEX('Full Results Database'!$E$5:$F$549,,MATCH($D190, 'Full Results Database'!$E$1:$F$1,0)), 'Full Results Database'!$B$5:$B$549, $AT190, 'Full Results Database'!$C$5:$C$549, AL$187) -> 0 | AM190: =IF($C$4="Real $2026",1,((1+'Advanced User Inputs'!$G$72)^(AM$187-2026))) * SUMIFS(INDEX('Full Results Database'!$E$5:$F$549,,MATCH($D190, 'Full Results Database'!$E$1:$F$1,0)), 'Full Results Database'!$B$5:$B$549, $AT190, 'Full Results Database'!$C$5:$C$549, AM$187) -> 0 | AN190: =IF($C$4="Real $2026",1,((1+'Advanced User Inputs'!$G$72)^(AN$187-2026))) * SUMIFS(INDEX('Full Results Database'!$E$5:$F$549,,MATCH($D190, 'Full Results Database'!$E$1:$F$1,0)), 'Full Results Database'!$B$5:$B$549, $AT190, 'Full Results Database'!$C$5:$C$549, AN$187) -> 0 | AO190: =IF($C$4="Real $2026",1,((1+'Advanced User Inputs'!$G$72)^(AO$187-2026))) * SUMIFS(INDEX('Full Results Database'!$E$5:$F$549,,MATCH($D190, 'Full Results Database'!$E$1:$F$1,0)), 'Full Results Database'!$B$5:$B$549, $AT190, 'Full Results Database'!$C$5:$C$549, AO$187) -> 0 | AP190: =IF($C$4="Real $2026",1,((1+'Advanced User Inputs'!$G$72)^(AP$187-2026))) * SUMIFS(INDEX('Full Results Database'!$E$5:$F$549,,MATCH($D190, 'Full Results Database'!$E$1:$F$1,0)), 'Full Results Database'!$B$5:$B$549, $AT190, 'Full Results Database'!$C$5:$C$549, AP$187) -> 0 | AQ190: =IF($C$4="Real $2026",1,((1+'Advanced User Inputs'!$G$72)^(AQ$187-2026))) * SUMIFS(INDEX('Full Results Database'!$E$5:$F$549,,MATCH($D190, 'Full Results Database'!$E$1:$F$1,0)), 'Full Results Database'!$B$5:$B$549, $AT190, 'Full Results Database'!$C$5:$C$549, AQ$187) -> 0 | AR190: =IF($C$4="Real $2026",1,((1+'Advanced User Inputs'!$G$72)^(AR$187-2026))) * SUMIFS(INDEX('Full Results Database'!$E$5:$F$549,,MATCH($D190, 'Full Results Database'!$E$1:$F$1,0)), 'Full Results Database'!$B$5:$B$549, $AT190, 'Full Results Database'!$C$5:$C$549, AR$187) -> 0 | AT190: Utility Costs - DER Funded
B191: Revenue (DER Fund) | C191: Real $2026 | D191: =active_scenario1 -> Reimbursement | E191: =IF($C$4="Real $2026",1,((1+'Advanced User Inputs'!$G$72)^(E$187-2026))) * SUMIFS(INDEX('Full Results Database'!$E$5:$F$549,,MATCH($D191, 'Full Results Database'!$E$1:$F$1,0)), 'Full Results Database'!$B$5:$B$549, $AT191, 'Full Results Database'!$C$5:$C$549, E$187) -> 0 | F191: =IF($C$4="Real $2026",1,((1+'Advanced User Inputs'!$G$72)^(F$187-2026))) * SUMIFS(INDEX('Full Results Database'!$E$5:$F$549,,MATCH($D191, 'Full Results Database'!$E$1:$F$1,0)), 'Full Results Database'!$B$5:$B$549, $AT191, 'Full Results Database'!$C$5:$C$549, F$187) -> 0 | G191: =IF($C$4="Real $2026",1,((1+'Advanced User Inputs'!$G$72)^(G$187-2026))) * SUMIFS(INDEX('Full Results Database'!$E$5:$F$549,,MATCH($D191, 'Full Results Database'!$E$1:$F$1,0)), 'Full Results Database'!$B$5:$B$549, $AT191, 'Full Results Database'!$C$5:$C$549, G$187) -> 0 | H191: =IF($C$4="Real $2026",1,((1+'Advanced User Inputs'!$G$72)^(H$187-2026))) * SUMIFS(INDEX('Full Results Database'!$E$5:$F$549,,MATCH($D191, 'Full Results Database'!$E$1:$F$1,0)), 'Full Results Database'!$B$5:$B$549, $AT191, 'Full Results Database'!$C$5:$C$549, H$187) -> 0 | I191: =IF($C$4="Real $2026",1,((1+'Advanced User Inputs'!$G$72)^(I$187-2026))) * SUMIFS(INDEX('Full Results Database'!$E$5:$F$549,,MATCH($D191, 'Full Results Database'!$E$1:$F$1,0)), 'Full Results Database'!$B$5:$B$549, $AT191, 'Full Results Database'!$C$5:$C$549, I$187) -> 0 | J191: =IF($C$4="Real $2026",1,((1+'Advanced User Inputs'!$G$72)^(J$187-2026))) * SUMIFS(INDEX('Full Results Database'!$E$5:$F$549,,MATCH($D191, 'Full Results Database'!$E$1:$F$1,0)), 'Full Results Database'!$B$5:$B$549, $AT191, 'Full Results Database'!$C$5:$C$549, J$187) -> 0 | K191: =IF($C$4="Real $2026",1,((1+'Advanced User Inputs'!$G$72)^(K$187-2026))) * SUMIFS(INDEX('Full Results Database'!$E$5:$F$549,,MATCH($D191, 'Full Results Database'!$E$1:$F$1,0)), 'Full Results Database'!$B$5:$B$549, $AT191, 'Full Results Database'!$C$5:$C$549, K$187) -> 0 | L191: =IF($C$4="Real $2026",1,((1+'Advanced User Inputs'!$G$72)^(L$187-2026))) * SUMIFS(INDEX('Full Results Database'!$E$5:$F$549,,MATCH($D191, 'Full Results Database'!$E$1:$F$1,0)), 'Full Results Database'!$B$5:$B$549, $AT191, 'Full Results Database'!$C$5:$C$549, L$187) -> 0 | M191: =IF($C$4="Real $2026",1,((1+'Advanced User Inputs'!$G$72)^(M$187-2026))) * SUMIFS(INDEX('Full Results Database'!$E$5:$F$549,,MATCH($D191, 'Full Results Database'!$E$1:$F$1,0)), 'Full Results Database'!$B$5:$B$549, $AT191, 'Full Results Database'!$C$5:$C$549, M$187) -> 0 | N191: =IF($C$4="Real $2026",1,((1+'Advanced User Inputs'!$G$72)^(N$187-2026))) * SUMIFS(INDEX('Full Results Database'!$E$5:$F$549,,MATCH($D191, 'Full Results Database'!$E$1:$F$1,0)), 'Full Results Database'!$B$5:$B$549, $AT191, 'Full Results Database'!$C$5:$C$549, N$187) -> 0 | O191: =IF($C$4="Real $2026",1,((1+'Advanced User Inputs'!$G$72)^(O$187-2026))) * SUMIFS(INDEX('Full Results Database'!$E$5:$F$549,,MATCH($D191, 'Full Results Database'!$E$1:$F$1,0)), 'Full Results Database'!$B$5:$B$549, $AT191, 'Full Results Database'!$C$5:$C$549, O$187) -> 0 | P191: =IF($C$4="Real $2026",1,((1+'Advanced User Inputs'!$G$72)^(P$187-2026))) * SUMIFS(INDEX('Full Results Database'!$E$5:$F$549,,MATCH($D191, 'Full Results Database'!$E$1:$F$1,0)), 'Full Results Database'!$B$5:$B$549, $AT191, 'Full Results Database'!$C$5:$C$549, P$187) -> 0 | Q191: =IF($C$4="Real $2026",1,((1+'Advanced User Inputs'!$G$72)^(Q$187-2026))) * SUMIFS(INDEX('Full Results Database'!$E$5:$F$549,,MATCH($D191, 'Full Results Database'!$E$1:$F$1,0)), 'Full Results Database'!$B$5:$B$549, $AT191, 'Full Results Database'!$C$5:$C$549, Q$187) -> 0 | R191: =IF($C$4="Real $2026",1,((1+'Advanced User Inputs'!$G$72)^(R$187-2026))) * SUMIFS(INDEX('Full Results Database'!$E$5:$F$549,,MATCH($D191, 'Full Results Database'!$E$1:$F$1,0)), 'Full Results Database'!$B$5:$B$549, $AT191, 'Full Results Database'!$C$5:$C$549, R$187) -> 0 | S191: =IF($C$4="Real $2026",1,((1+'Advanced User Inputs'!$G$72)^(S$187-2026))) * SUMIFS(INDEX('Full Results Database'!$E$5:$F$549,,MATCH($D191, 'Full Results Database'!$E$1:$F$1,0)), 'Full Results Database'!$B$5:$B$549, $AT191, 'Full Results Database'!$C$5:$C$549, S$187) -> 0 | T191: =IF($C$4="Real $2026",1,((1+'Advanced User Inputs'!$G$72)^(T$187-2026))) * SUMIFS(INDEX('Full Results Database'!$E$5:$F$549,,MATCH($D191, 'Full Results Database'!$E$1:$F$1,0)), 'Full Results Database'!$B$5:$B$549, $AT191, 'Full Results Database'!$C$5:$C$549, T$187) -> 0 | U191: =IF($C$4="Real $2026",1,((1+'Advanced User Inputs'!$G$72)^(U$187-2026))) * SUMIFS(INDEX('Full Results Database'!$E$5:$F$549,,MATCH($D191, 'Full Results Database'!$E$1:$F$1,0)), 'Full Results Database'!$B$5:$B$549, $AT191, 'Full Results Database'!$C$5:$C$549, U$187) -> 0 | V191: =IF($C$4="Real $2026",1,((1+'Advanced User Inputs'!$G$72)^(V$187-2026))) * SUMIFS(INDEX('Full Results Database'!$E$5:$F$549,,MATCH($D191, 'Full Results Database'!$E$1:$F$1,0)), 'Full Results Database'!$B$5:$B$549, $AT191, 'Full Results Database'!$C$5:$C$549, V$187) -> 0 | W191: =IF($C$4="Real $2026",1,((1+'Advanced User Inputs'!$G$72)^(W$187-2026))) * SUMIFS(INDEX('Full Results Database'!$E$5:$F$549,,MATCH($D191, 'Full Results Database'!$E$1:$F$1,0)), 'Full Results Database'!$B$5:$B$549, $AT191, 'Full Results Database'!$C$5:$C$549, W$187) -> 0 | X191: =IF($C$4="Real $2026",1,((1+'Advanced User Inputs'!$G$72)^(X$187-2026))) * SUMIFS(INDEX('Full Results Database'!$E$5:$F$549,,MATCH($D191, 'Full Results Database'!$E$1:$F$1,0)), 'Full Results Database'!$B$5:$B$549, $AT191, 'Full Results Database'!$C$5:$C$549, X$187) -> 0 | Y191: =IF($C$4="Real $2026",1,((1+'Advanced User Inputs'!$G$72)^(Y$187-2026))) * SUMIFS(INDEX('Full Results Database'!$E$5:$F$549,,MATCH($D191, 'Full Results Database'!$E$1:$F$1,0)), 'Full Results Database'!$B$5:$B$549, $AT191, 'Full Results Database'!$C$5:$C$549, Y$187) -> 0 | Z191: =IF($C$4="Real $2026",1,((1+'Advanced User Inputs'!$G$72)^(Z$187-2026))) * SUMIFS(INDEX('Full Results Database'!$E$5:$F$549,,MATCH($D191, 'Full Results Database'!$E$1:$F$1,0)), 'Full Results Database'!$B$5:$B$549, $AT191, 'Full Results Database'!$C$5:$C$549, Z$187) -> 0 | AA191: =IF($C$4="Real $2026",1,((1+'Advanced User Inputs'!$G$72)^(AA$187-2026))) * SUMIFS(INDEX('Full Results Database'!$E$5:$F$549,,MATCH($D191, 'Full Results Database'!$E$1:$F$1,0)), 'Full Results Database'!$B$5:$B$549, $AT191, 'Full Results Database'!$C$5:$C$549, AA$187) -> 0 | AB191: =IF($C$4="Real $2026",1,((1+'Advanced User Inputs'!$G$72)^(AB$187-2026))) * SUMIFS(INDEX('Full Results Database'!$E$5:$F$549,,MATCH($D191, 'Full Results Database'!$E$1:$F$1,0)), 'Full Results Database'!$B$5:$B$549, $AT191, 'Full Results Database'!$C$5:$C$549, AB$187) -> 0 | AC191: =IF($C$4="Real $2026",1,((1+'Advanced User Inputs'!$G$72)^(AC$187-2026))) * SUMIFS(INDEX('Full Results Database'!$E$5:$F$549,,MATCH($D191, 'Full Results Database'!$E$1:$F$1,0)), 'Full Results Database'!$B$5:$B$549, $AT191, 'Full Results Database'!$C$5:$C$549, AC$187) -> 0 | AD191: =IF($C$4="Real $2026",1,((1+'Advanced User Inputs'!$G$72)^(AD$187-2026))) * SUMIFS(INDEX('Full Results Database'!$E$5:$F$549,,MATCH($D191, 'Full Results Database'!$E$1:$F$1,0)), 'Full Results Database'!$B$5:$B$549, $AT191, 'Full Results Database'!$C$5:$C$549, AD$187) -> 0 | AE191: =IF($C$4="Real $2026",1,((1+'Advanced User Inputs'!$G$72)^(AE$187-2026))) * SUMIFS(INDEX('Full Results Database'!$E$5:$F$549,,MATCH($D191, 'Full Results Database'!$E$1:$F$1,0)), 'Full Results Database'!$B$5:$B$549, $AT191, 'Full Results Database'!$C$5:$C$549, AE$187) -> 0 | AF191: =IF($C$4="Real $2026",1,((1+'Advanced User Inputs'!$G$72)^(AF$187-2026))) * SUMIFS(INDEX('Full Results Database'!$E$5:$F$549,,MATCH($D191, 'Full Results Database'!$E$1:$F$1,0)), 'Full Results Database'!$B$5:$B$549, $AT191, 'Full Results Database'!$C$5:$C$549, AF$187) -> 0 | AG191: =IF($C$4="Real $2026",1,((1+'Advanced User Inputs'!$G$72)^(AG$187-2026))) * SUMIFS(INDEX('Full Results Database'!$E$5:$F$549,,MATCH($D191, 'Full Results Database'!$E$1:$F$1,0)), 'Full Results Database'!$B$5:$B$549, $AT191, 'Full Results Database'!$C$5:$C$549, AG$187) -> 0 | AH191: =IF($C$4="Real $2026",1,((1+'Advanced User Inputs'!$G$72)^(AH$187-2026))) * SUMIFS(INDEX('Full Results Database'!$E$5:$F$549,,MATCH($D191, 'Full Results Database'!$E$1:$F$1,0)), 'Full Results Database'!$B$5:$B$549, $AT191, 'Full Results Database'!$C$5:$C$549, AH$187) -> 0 | AI191: =IF($C$4="Real $2026",1,((1+'Advanced User Inputs'!$G$72)^(AI$187-2026))) * SUMIFS(INDEX('Full Results Database'!$E$5:$F$549,,MATCH($D191, 'Full Results Database'!$E$1:$F$1,0)), 'Full Results Database'!$B$5:$B$549, $AT191, 'Full Results Database'!$C$5:$C$549, AI$187) -> 0 | AJ191: =IF($C$4="Real $2026",1,((1+'Advanced User Inputs'!$G$72)^(AJ$187-2026))) * SUMIFS(INDEX('Full Results Database'!$E$5:$F$549,,MATCH($D191, 'Full Results Database'!$E$1:$F$1,0)), 'Full Results Database'!$B$5:$B$549, $AT191, 'Full Results Database'!$C$5:$C$549, AJ$187) -> 0 | AK191: =IF($C$4="Real $2026",1,((1+'Advanced User Inputs'!$G$72)^(AK$187-2026))) * SUMIFS(INDEX('Full Results Database'!$E$5:$F$549,,MATCH($D191, 'Full Results Database'!$E$1:$F$1,0)), 'Full Results Database'!$B$5:$B$549, $AT191, 'Full Results Database'!$C$5:$C$549, AK$187) -> 0 | AL191: =IF($C$4="Real $2026",1,((1+'Advanced User Inputs'!$G$72)^(AL$187-2026))) * SUMIFS(INDEX('Full Results Database'!$E$5:$F$549,,MATCH($D191, 'Full Results Database'!$E$1:$F$1,0)), 'Full Results Database'!$B$5:$B$549, $AT191, 'Full Results Database'!$C$5:$C$549, AL$187) -> 0 | AM191: =IF($C$4="Real $2026",1,((1+'Advanced User Inputs'!$G$72)^(AM$187-2026))) * SUMIFS(INDEX('Full Results Database'!$E$5:$F$549,,MATCH($D191, 'Full Results Database'!$E$1:$F$1,0)), 'Full Results Database'!$B$5:$B$549, $AT191, 'Full Results Database'!$C$5:$C$549, AM$187) -> 0 | AN191: =IF($C$4="Real $2026",1,((1+'Advanced User Inputs'!$G$72)^(AN$187-2026))) * SUMIFS(INDEX('Full Results Database'!$E$5:$F$549,,MATCH($D191, 'Full Results Database'!$E$1:$F$1,0)), 'Full Results Database'!$B$5:$B$549, $AT191, 'Full Results Database'!$C$5:$C$549, AN$187) -> 0 | AO191: =IF($C$4="Real $2026",1,((1+'Advanced User Inputs'!$G$72)^(AO$187-2026))) * SUMIFS(INDEX('Full Results Database'!$E$5:$F$549,,MATCH($D191, 'Full Results Database'!$E$1:$F$1,0)), 'Full Results Database'!$B$5:$B$549, $AT191, 'Full Results Database'!$C$5:$C$549, AO$187) -> 0 | AP191: =IF($C$4="Real $2026",1,((1+'Advanced User Inputs'!$G$72)^(AP$187-2026))) * SUMIFS(INDEX('Full Results Database'!$E$5:$F$549,,MATCH($D191, 'Full Results Database'!$E$1:$F$1,0)), 'Full Results Database'!$B$5:$B$549, $AT191, 'Full Results Database'!$C$5:$C$549, AP$187) -> 0 | AQ191: =IF($C$4="Real $2026",1,((1+'Advanced User Inputs'!$G$72)^(AQ$187-2026))) * SUMIFS(INDEX('Full Results Database'!$E$5:$F$549,,MATCH($D191, 'Full Results Database'!$E$1:$F$1,0)), 'Full Results Database'!$B$5:$B$549, $AT191, 'Full Results Database'!$C$5:$C$549, AQ$187) -> 0 | AR191: =IF($C$4="Real $2026",1,((1+'Advanced User Inputs'!$G$72)^(AR$187-2026))) * SUMIFS(INDEX('Full Results Database'!$E$5:$F$549,,MATCH($D191, 'Full Results Database'!$E$1:$F$1,0)), 'Full Results Database'!$B$5:$B$549, $AT191, 'Full Results Database'!$C$5:$C$549, AR$187) -> 0 | AT191: Change in Utility Revenue - DER Funded
B192: Total Utility Cashflow | C192: =$C$4 -> Real $2026 | D192: =active_scenario1 -> Reimbursement | E192: =SUM(E188:E191) -> 0 | F192: =SUM(F188:F191) -> 0 | G192: 0 | H192: 0 | I192: 0 | J192: 0 | K192: 0 | L192: 0 | M192: 0 | N192: 0 | O192: 0 | P192: 0 | Q192: 0 | R192: 0 | S192: 0 | T192: 0 | U192: 0 | V192: 0 | W192: 0 | X192: 0 | Y192: 0 | Z192: 0 | AA192: 0 | AB192: 0 | AC192: 0 | AD192: 0 | AE192: 0 | AF192: 0 | AG192: 0 | AH192: 0 | AI192: 0 | AJ192: 0 | AK192: 0 | AL192: 0 | AM192: 0 | AN192: 0 | AO192: 0 | AP192: 0 | AQ192: 0 | AR192: 0
B194: Payment Type | C194: Units | D194: Scenario | E194: 2026 | F194: 2027 | G194: 2028 | H194: 2029 | I194: 2030 | J194: 2031 | K194: 2032 | L194: 2033 | M194: 2034 | N194: 2035 | O194: 2036 | P194: 2037 | Q194: 2038 | R194: 2039 | S194: 2040 | T194: 2041 | U194: 2042 | V194: 2043 | W194: 2044 | X194: 2045 | Y194: 2046 | Z194: 2047 | AA194: 2048 | AB194: 2049 | AC194: 2050 | AD194: 2051 | AE194: 2052 | AF194: 2053 | AG194: 2054 | AH194: 2055 | AI194: 2056 | AJ194: 2057 | AK194: 2058 | AL194: 2059 | AM194: 2060 | AN194: 2061 | AO194: 2062 | AP194: 2063 | AQ194: 2064 | AR194: 2065 | AS194: //
B195: Infrastructure Costs (Ratepayers) | C195: =$C$4 -> Real $2026 | D195: =active_scenario2 -> Cost Causer Pays | E195: =INDEX(E$357:E$385,MATCH($AT195&$D195, $B$357:$B$385&$D$357:$D$385,0)) -> 0 | F195: =INDEX(F$357:F$385,MATCH($AT195&$D195, $B$357:$B$385&$D$357:$D$385,0)) -> 0 | G195: =INDEX(G$357:G$385,MATCH($AT195&$D195, $B$357:$B$385&$D$357:$D$385,0)) -> 0 | H195: =INDEX(H$357:H$385,MATCH($AT195&$D195, $B$357:$B$385&$D$357:$D$385,0)) -> 0 | I195: =INDEX(I$357:I$385,MATCH($AT195&$D195, $B$357:$B$385&$D$357:$D$385,0)) -> 0 | J195: =INDEX(J$357:J$385,MATCH($AT195&$D195, $B$357:$B$385&$D$357:$D$385,0)) -> 0 | K195: =INDEX(K$357:K$385,MATCH($AT195&$D195, $B$357:$B$385&$D$357:$D$385,0)) -> 0 | L195: =INDEX(L$357:L$385,MATCH($AT195&$D195, $B$357:$B$385&$D$357:$D$385,0)) -> 0 | M195: =INDEX(M$357:M$385,MATCH($AT195&$D195, $B$357:$B$385&$D$357:$D$385,0)) -> 0 | N195: =INDEX(N$357:N$385,MATCH($AT195&$D195, $B$357:$B$385&$D$357:$D$385,0)) -> 0 | O195: =INDEX(O$357:O$385,MATCH($AT195&$D195, $B$357:$B$385&$D$357:$D$385,0)) -> 0 | P195: =INDEX(P$357:P$385,MATCH($AT195&$D195, $B$357:$B$385&$D$357:$D$385,0)) -> 0 | Q195: =INDEX(Q$357:Q$385,MATCH($AT195&$D195, $B$357:$B$385&$D$357:$D$385,0)) -> 0 | R195: =INDEX(R$357:R$385,MATCH($AT195&$D195, $B$357:$B$385&$D$357:$D$385,0)) -> 0 | S195: =INDEX(S$357:S$385,MATCH($AT195&$D195, $B$357:$B$385&$D$357:$D$385,0)) -> 0 | T195: =INDEX(T$357:T$385,MATCH($AT195&$D195, $B$357:$B$385&$D$357:$D$385,0)) -> 0 | U195: =INDEX(U$357:U$385,MATCH($AT195&$D195, $B$357:$B$385&$D$357:$D$385,0)) -> 0 | V195: =INDEX(V$357:V$385,MATCH($AT195&$D195, $B$357:$B$385&$D$357:$D$385,0)) -> 0 | W195: =INDEX(W$357:W$385,MATCH($AT195&$D195, $B$357:$B$385&$D$357:$D$385,0)) -> 0 | X195: =INDEX(X$357:X$385,MATCH($AT195&$D195, $B$357:$B$385&$D$357:$D$385,0)) -> 0 | Y195: =INDEX(Y$357:Y$385,MATCH($AT195&$D195, $B$357:$B$385&$D$357:$D$385,0)) -> 0 | Z195: =INDEX(Z$357:Z$385,MATCH($AT195&$D195, $B$357:$B$385&$D$357:$D$385,0)) -> 0 | AA195: =INDEX(AA$357:AA$385,MATCH($AT195&$D195, $B$357:$B$385&$D$357:$D$385,0)) -> 0 | AB195: =INDEX(AB$357:AB$385,MATCH($AT195&$D195, $B$357:$B$385&$D$357:$D$385,0)) -> 0 | AC195: =INDEX(AC$357:AC$385,MATCH($AT195&$D195, $B$357:$B$385&$D$357:$D$385,0)) -> 0 | AD195: =INDEX(AD$357:AD$385,MATCH($AT195&$D195, $B$357:$B$385&$D$357:$D$385,0)) -> 0 | AE195: =INDEX(AE$357:AE$385,MATCH($AT195&$D195, $B$357:$B$385&$D$357:$D$385,0)) -> 0 | AF195: =INDEX(AF$357:AF$385,MATCH($AT195&$D195, $B$357:$B$385&$D$357:$D$385,0)) -> 0 | AG195: =INDEX(AG$357:AG$385,MATCH($AT195&$D195, $B$357:$B$385&$D$357:$D$385,0)) -> 0 | AH195: =INDEX(AH$357:AH$385,MATCH($AT195&$D195, $B$357:$B$385&$D$357:$D$385,0)) -> 0 | AI195: =INDEX(AI$357:AI$385,MATCH($AT195&$D195, $B$357:$B$385&$D$357:$D$385,0)) -> 0 | AJ195: =INDEX(AJ$357:AJ$385,MATCH($AT195&$D195, $B$357:$B$385&$D$357:$D$385,0)) -> 0 | AK195: =INDEX(AK$357:AK$385,MATCH($AT195&$D195, $B$357:$B$385&$D$357:$D$385,0)) -> 0 | AL195: =INDEX(AL$357:AL$385,MATCH($AT195&$D195, $B$357:$B$385&$D$357:$D$385,0)) -> 0 | AM195: =INDEX(AM$357:AM$385,MATCH($AT195&$D195, $B$357:$B$385&$D$357:$D$385,0)) -> 0 | AN195: =INDEX(AN$357:AN$385,MATCH($AT195&$D195, $B$357:$B$385&$D$357:$D$385,0)) -> 0 | AO195: =INDEX(AO$357:AO$385,MATCH($AT195&$D195, $B$357:$B$385&$D$357:$D$385,0)) -> 0 | AP195: =INDEX(AP$357:AP$385,MATCH($AT195&$D195, $B$357:$B$385&$D$357:$D$385,0)) -> 0 | AQ195: =INDEX(AQ$357:AQ$385,MATCH($AT195&$D195, $B$357:$B$385&$D$357:$D$385,0)) -> 0 | AR195: =INDEX(AR$357:AR$385,MATCH($AT195&$D195, $B$357:$B$385&$D$357:$D$385,0)) -> 0 | AT195: Change in Depr. And Return - Ratepayer
B196: Revenue (Ratepayers) | C196: =$C$4 -> Real $2026 | D196: =active_scenario2 -> Cost Causer Pays | E196: =INDEX(E$357:E$385,MATCH($AT196&$D196, $B$357:$B$385&$D$357:$D$385,0)) -> 0 | F196: =INDEX(F$357:F$385,MATCH($AT196&$D196, $B$357:$B$385&$D$357:$D$385,0)) -> 0 | G196: =INDEX(G$357:G$385,MATCH($AT196&$D196, $B$357:$B$385&$D$357:$D$385,0)) -> 0 | H196: =INDEX(H$357:H$385,MATCH($AT196&$D196, $B$357:$B$385&$D$357:$D$385,0)) -> 0 | I196: =INDEX(I$357:I$385,MATCH($AT196&$D196, $B$357:$B$385&$D$357:$D$385,0)) -> 0 | J196: =INDEX(J$357:J$385,MATCH($AT196&$D196, $B$357:$B$385&$D$357:$D$385,0)) -> 0 | K196: =INDEX(K$357:K$385,MATCH($AT196&$D196, $B$357:$B$385&$D$357:$D$385,0)) -> 0 | L196: =INDEX(L$357:L$385,MATCH($AT196&$D196, $B$357:$B$385&$D$357:$D$385,0)) -> 0 | M196: =INDEX(M$357:M$385,MATCH($AT196&$D196, $B$357:$B$385&$D$357:$D$385,0)) -> 0 | N196: =INDEX(N$357:N$385,MATCH($AT196&$D196, $B$357:$B$385&$D$357:$D$385,0)) -> 0 | O196: =INDEX(O$357:O$385,MATCH($AT196&$D196, $B$357:$B$385&$D$357:$D$385,0)) -> 0 | P196: =INDEX(P$357:P$385,MATCH($AT196&$D196, $B$357:$B$385&$D$357:$D$385,0)) -> 0 | Q196: =INDEX(Q$357:Q$385,MATCH($AT196&$D196, $B$357:$B$385&$D$357:$D$385,0)) -> 0 | R196: =INDEX(R$357:R$385,MATCH($AT196&$D196, $B$357:$B$385&$D$357:$D$385,0)) -> 0 | S196: =INDEX(S$357:S$385,MATCH($AT196&$D196, $B$357:$B$385&$D$357:$D$385,0)) -> 0 | T196: =INDEX(T$357:T$385,MATCH($AT196&$D196, $B$357:$B$385&$D$357:$D$385,0)) -> 0 | U196: =INDEX(U$357:U$385,MATCH($AT196&$D196, $B$357:$B$385&$D$357:$D$385,0)) -> 0 | V196: =INDEX(V$357:V$385,MATCH($AT196&$D196, $B$357:$B$385&$D$357:$D$385,0)) -> 0 | W196: =INDEX(W$357:W$385,MATCH($AT196&$D196, $B$357:$B$385&$D$357:$D$385,0)) -> 0 | X196: =INDEX(X$357:X$385,MATCH($AT196&$D196, $B$357:$B$385&$D$357:$D$385,0)) -> 0 | Y196: =INDEX(Y$357:Y$385,MATCH($AT196&$D196, $B$357:$B$385&$D$357:$D$385,0)) -> 0 | Z196: =INDEX(Z$357:Z$385,MATCH($AT196&$D196, $B$357:$B$385&$D$357:$D$385,0)) -> 0 | AA196: =INDEX(AA$357:AA$385,MATCH($AT196&$D196, $B$357:$B$385&$D$357:$D$385,0)) -> 0 | AB196: =INDEX(AB$357:AB$385,MATCH($AT196&$D196, $B$357:$B$385&$D$357:$D$385,0)) -> 0 | AC196: =INDEX(AC$357:AC$385,MATCH($AT196&$D196, $B$357:$B$385&$D$357:$D$385,0)) -> 0 | AD196: =INDEX(AD$357:AD$385,MATCH($AT196&$D196, $B$357:$B$385&$D$357:$D$385,0)) -> 0 | AE196: =INDEX(AE$357:AE$385,MATCH($AT196&$D196, $B$357:$B$385&$D$357:$D$385,0)) -> 0 | AF196: =INDEX(AF$357:AF$385,MATCH($AT196&$D196, $B$357:$B$385&$D$357:$D$385,0)) -> 0 | AG196: =INDEX(AG$357:AG$385,MATCH($AT196&$D196, $B$357:$B$385&$D$357:$D$385,0)) -> 0 | AH196: =INDEX(AH$357:AH$385,MATCH($AT196&$D196, $B$357:$B$385&$D$357:$D$385,0)) -> 0 | AI196: =INDEX(AI$357:AI$385,MATCH($AT196&$D196, $B$357:$B$385&$D$357:$D$385,0)) -> 0 | AJ196: =INDEX(AJ$357:AJ$385,MATCH($AT196&$D196, $B$357:$B$385&$D$357:$D$385,0)) -> 0 | AK196: =INDEX(AK$357:AK$385,MATCH($AT196&$D196, $B$357:$B$385&$D$357:$D$385,0)) -> 0 | AL196: =INDEX(AL$357:AL$385,MATCH($AT196&$D196, $B$357:$B$385&$D$357:$D$385,0)) -> 0 | AM196: =INDEX(AM$357:AM$385,MATCH($AT196&$D196, $B$357:$B$385&$D$357:$D$385,0)) -> 0 | AN196: =INDEX(AN$357:AN$385,MATCH($AT196&$D196, $B$357:$B$385&$D$357:$D$385,0)) -> 0 | AO196: =INDEX(AO$357:AO$385,MATCH($AT196&$D196, $B$357:$B$385&$D$357:$D$385,0)) -> 0 | AP196: =INDEX(AP$357:AP$385,MATCH($AT196&$D196, $B$357:$B$385&$D$357:$D$385,0)) -> 0 | AQ196: =INDEX(AQ$357:AQ$385,MATCH($AT196&$D196, $B$357:$B$385&$D$357:$D$385,0)) -> 0 | AR196: =INDEX(AR$357:AR$385,MATCH($AT196&$D196, $B$357:$B$385&$D$357:$D$385,0)) -> 0 | AT196: Change in Utility Revenue - Ratepayer Funded
B197: Infrastructure Costs (DER Fund) | C197: =$C$4 -> Real $2026 | D197: =active_scenario2 -> Cost Causer Pays | E197: =IF($C$4="Real $2026",1,((1+'Advanced User Inputs'!$G$72)^(E$187-2026))) * SUMIFS(INDEX('Full Results Database'!$E$5:$F$549,,MATCH($D197, 'Full Results Database'!$E$1:$F$1,0)), 'Full Results Database'!$B$5:$B$549, $AT197, 'Full Results Database'!$C$5:$C$549, E$187) -> 0 | F197: =IF($C$4="Real $2026",1,((1+'Advanced User Inputs'!$G$72)^(F$187-2026))) * SUMIFS(INDEX('Full Results Database'!$E$5:$F$549,,MATCH($D197, 'Full Results Database'!$E$1:$F$1,0)), 'Full Results Database'!$B$5:$B$549, $AT197, 'Full Results Database'!$C$5:$C$549, F$187) -> 0 | G197: =IF($C$4="Real $2026",1,((1+'Advanced User Inputs'!$G$72)^(G$187-2026))) * SUMIFS(INDEX('Full Results Database'!$E$5:$F$549,,MATCH($D197, 'Full Results Database'!$E$1:$F$1,0)), 'Full Results Database'!$B$5:$B$549, $AT197, 'Full Results Database'!$C$5:$C$549, G$187) -> 0 | H197: =IF($C$4="Real $2026",1,((1+'Advanced User Inputs'!$G$72)^(H$187-2026))) * SUMIFS(INDEX('Full Results Database'!$E$5:$F$549,,MATCH($D197, 'Full Results Database'!$E$1:$F$1,0)), 'Full Results Database'!$B$5:$B$549, $AT197, 'Full Results Database'!$C$5:$C$549, H$187) -> 0 | I197: =IF($C$4="Real $2026",1,((1+'Advanced User Inputs'!$G$72)^(I$187-2026))) * SUMIFS(INDEX('Full Results Database'!$E$5:$F$549,,MATCH($D197, 'Full Results Database'!$E$1:$F$1,0)), 'Full Results Database'!$B$5:$B$549, $AT197, 'Full Results Database'!$C$5:$C$549, I$187) -> 0 | J197: =IF($C$4="Real $2026",1,((1+'Advanced User Inputs'!$G$72)^(J$187-2026))) * SUMIFS(INDEX('Full Results Database'!$E$5:$F$549,,MATCH($D197, 'Full Results Database'!$E$1:$F$1,0)), 'Full Results Database'!$B$5:$B$549, $AT197, 'Full Results Database'!$C$5:$C$549, J$187) -> 0 | K197: =IF($C$4="Real $2026",1,((1+'Advanced User Inputs'!$G$72)^(K$187-2026))) * SUMIFS(INDEX('Full Results Database'!$E$5:$F$549,,MATCH($D197, 'Full Results Database'!$E$1:$F$1,0)), 'Full Results Database'!$B$5:$B$549, $AT197, 'Full Results Database'!$C$5:$C$549, K$187) -> 0 | L197: =IF($C$4="Real $2026",1,((1+'Advanced User Inputs'!$G$72)^(L$187-2026))) * SUMIFS(INDEX('Full Results Database'!$E$5:$F$549,,MATCH($D197, 'Full Results Database'!$E$1:$F$1,0)), 'Full Results Database'!$B$5:$B$549, $AT197, 'Full Results Database'!$C$5:$C$549, L$187) -> 0 | M197: =IF($C$4="Real $2026",1,((1+'Advanced User Inputs'!$G$72)^(M$187-2026))) * SUMIFS(INDEX('Full Results Database'!$E$5:$F$549,,MATCH($D197, 'Full Results Database'!$E$1:$F$1,0)), 'Full Results Database'!$B$5:$B$549, $AT197, 'Full Results Database'!$C$5:$C$549, M$187) -> 0 | N197: =IF($C$4="Real $2026",1,((1+'Advanced User Inputs'!$G$72)^(N$187-2026))) * SUMIFS(INDEX('Full Results Database'!$E$5:$F$549,,MATCH($D197, 'Full Results Database'!$E$1:$F$1,0)), 'Full Results Database'!$B$5:$B$549, $AT197, 'Full Results Database'!$C$5:$C$549, N$187) -> 0 | O197: =IF($C$4="Real $2026",1,((1+'Advanced User Inputs'!$G$72)^(O$187-2026))) * SUMIFS(INDEX('Full Results Database'!$E$5:$F$549,,MATCH($D197, 'Full Results Database'!$E$1:$F$1,0)), 'Full Results Database'!$B$5:$B$549, $AT197, 'Full Results Database'!$C$5:$C$549, O$187) -> 0 | P197: =IF($C$4="Real $2026",1,((1+'Advanced User Inputs'!$G$72)^(P$187-2026))) * SUMIFS(INDEX('Full Results Database'!$E$5:$F$549,,MATCH($D197, 'Full Results Database'!$E$1:$F$1,0)), 'Full Results Database'!$B$5:$B$549, $AT197, 'Full Results Database'!$C$5:$C$549, P$187) -> 0 | Q197: =IF($C$4="Real $2026",1,((1+'Advanced User Inputs'!$G$72)^(Q$187-2026))) * SUMIFS(INDEX('Full Results Database'!$E$5:$F$549,,MATCH($D197, 'Full Results Database'!$E$1:$F$1,0)), 'Full Results Database'!$B$5:$B$549, $AT197, 'Full Results Database'!$C$5:$C$549, Q$187) -> 0 | R197: =IF($C$4="Real $2026",1,((1+'Advanced User Inputs'!$G$72)^(R$187-2026))) * SUMIFS(INDEX('Full Results Database'!$E$5:$F$549,,MATCH($D197, 'Full Results Database'!$E$1:$F$1,0)), 'Full Results Database'!$B$5:$B$549, $AT197, 'Full Results Database'!$C$5:$C$549, R$187) -> 0 | S197: =IF($C$4="Real $2026",1,((1+'Advanced User Inputs'!$G$72)^(S$187-2026))) * SUMIFS(INDEX('Full Results Database'!$E$5:$F$549,,MATCH($D197, 'Full Results Database'!$E$1:$F$1,0)), 'Full Results Database'!$B$5:$B$549, $AT197, 'Full Results Database'!$C$5:$C$549, S$187) -> 0 | T197: =IF($C$4="Real $2026",1,((1+'Advanced User Inputs'!$G$72)^(T$187-2026))) * SUMIFS(INDEX('Full Results Database'!$E$5:$F$549,,MATCH($D197, 'Full Results Database'!$E$1:$F$1,0)), 'Full Results Database'!$B$5:$B$549, $AT197, 'Full Results Database'!$C$5:$C$549, T$187) -> 0 | U197: =IF($C$4="Real $2026",1,((1+'Advanced User Inputs'!$G$72)^(U$187-2026))) * SUMIFS(INDEX('Full Results Database'!$E$5:$F$549,,MATCH($D197, 'Full Results Database'!$E$1:$F$1,0)), 'Full Results Database'!$B$5:$B$549, $AT197, 'Full Results Database'!$C$5:$C$549, U$187) -> 0 | V197: =IF($C$4="Real $2026",1,((1+'Advanced User Inputs'!$G$72)^(V$187-2026))) * SUMIFS(INDEX('Full Results Database'!$E$5:$F$549,,MATCH($D197, 'Full Results Database'!$E$1:$F$1,0)), 'Full Results Database'!$B$5:$B$549, $AT197, 'Full Results Database'!$C$5:$C$549, V$187) -> 0 | W197: =IF($C$4="Real $2026",1,((1+'Advanced User Inputs'!$G$72)^(W$187-2026))) * SUMIFS(INDEX('Full Results Database'!$E$5:$F$549,,MATCH($D197, 'Full Results Database'!$E$1:$F$1,0)), 'Full Results Database'!$B$5:$B$549, $AT197, 'Full Results Database'!$C$5:$C$549, W$187) -> 0 | X197: =IF($C$4="Real $2026",1,((1+'Advanced User Inputs'!$G$72)^(X$187-2026))) * SUMIFS(INDEX('Full Results Database'!$E$5:$F$549,,MATCH($D197, 'Full Results Database'!$E$1:$F$1,0)), 'Full Results Database'!$B$5:$B$549, $AT197, 'Full Results Database'!$C$5:$C$549, X$187) -> 0 | Y197: =IF($C$4="Real $2026",1,((1+'Advanced User Inputs'!$G$72)^(Y$187-2026))) * SUMIFS(INDEX('Full Results Database'!$E$5:$F$549,,MATCH($D197, 'Full Results Database'!$E$1:$F$1,0)), 'Full Results Database'!$B$5:$B$549, $AT197, 'Full Results Database'!$C$5:$C$549, Y$187) -> 0 | Z197: =IF($C$4="Real $2026",1,((1+'Advanced User Inputs'!$G$72)^(Z$187-2026))) * SUMIFS(INDEX('Full Results Database'!$E$5:$F$549,,MATCH($D197, 'Full Results Database'!$E$1:$F$1,0)), 'Full Results Database'!$B$5:$B$549, $AT197, 'Full Results Database'!$C$5:$C$549, Z$187) -> 0 | AA197: =IF($C$4="Real $2026",1,((1+'Advanced User Inputs'!$G$72)^(AA$187-2026))) * SUMIFS(INDEX('Full Results Database'!$E$5:$F$549,,MATCH($D197, 'Full Results Database'!$E$1:$F$1,0)), 'Full Results Database'!$B$5:$B$549, $AT197, 'Full Results Database'!$C$5:$C$549, AA$187) -> 0 | AB197: =IF($C$4="Real $2026",1,((1+'Advanced User Inputs'!$G$72)^(AB$187-2026))) * SUMIFS(INDEX('Full Results Database'!$E$5:$F$549,,MATCH($D197, 'Full Results Database'!$E$1:$F$1,0)), 'Full Results Database'!$B$5:$B$549, $AT197, 'Full Results Database'!$C$5:$C$549, AB$187) -> 0 | AC197: =IF($C$4="Real $2026",1,((1+'Advanced User Inputs'!$G$72)^(AC$187-2026))) * SUMIFS(INDEX('Full Results Database'!$E$5:$F$549,,MATCH($D197, 'Full Results Database'!$E$1:$F$1,0)), 'Full Results Database'!$B$5:$B$549, $AT197, 'Full Results Database'!$C$5:$C$549, AC$187) -> 0 | AD197: =IF($C$4="Real $2026",1,((1+'Advanced User Inputs'!$G$72)^(AD$187-2026))) * SUMIFS(INDEX('Full Results Database'!$E$5:$F$549,,MATCH($D197, 'Full Results Database'!$E$1:$F$1,0)), 'Full Results Database'!$B$5:$B$549, $AT197, 'Full Results Database'!$C$5:$C$549, AD$187) -> 0 | AE197: =IF($C$4="Real $2026",1,((1+'Advanced User Inputs'!$G$72)^(AE$187-2026))) * SUMIFS(INDEX('Full Results Database'!$E$5:$F$549,,MATCH($D197, 'Full Results Database'!$E$1:$F$1,0)), 'Full Results Database'!$B$5:$B$549, $AT197, 'Full Results Database'!$C$5:$C$549, AE$187) -> 0 | AF197: =IF($C$4="Real $2026",1,((1+'Advanced User Inputs'!$G$72)^(AF$187-2026))) * SUMIFS(INDEX('Full Results Database'!$E$5:$F$549,,MATCH($D197, 'Full Results Database'!$E$1:$F$1,0)), 'Full Results Database'!$B$5:$B$549, $AT197, 'Full Results Database'!$C$5:$C$549, AF$187) -> 0 | AG197: =IF($C$4="Real $2026",1,((1+'Advanced User Inputs'!$G$72)^(AG$187-2026))) * SUMIFS(INDEX('Full Results Database'!$E$5:$F$549,,MATCH($D197, 'Full Results Database'!$E$1:$F$1,0)), 'Full Results Database'!$B$5:$B$549, $AT197, 'Full Results Database'!$C$5:$C$549, AG$187) -> 0 | AH197: =IF($C$4="Real $2026",1,((1+'Advanced User Inputs'!$G$72)^(AH$187-2026))) * SUMIFS(INDEX('Full Results Database'!$E$5:$F$549,,MATCH($D197, 'Full Results Database'!$E$1:$F$1,0)), 'Full Results Database'!$B$5:$B$549, $AT197, 'Full Results Database'!$C$5:$C$549, AH$187) -> 0 | AI197: =IF($C$4="Real $2026",1,((1+'Advanced User Inputs'!$G$72)^(AI$187-2026))) * SUMIFS(INDEX('Full Results Database'!$E$5:$F$549,,MATCH($D197, 'Full Results Database'!$E$1:$F$1,0)), 'Full Results Database'!$B$5:$B$549, $AT197, 'Full Results Database'!$C$5:$C$549, AI$187) -> 0 | AJ197: =IF($C$4="Real $2026",1,((1+'Advanced User Inputs'!$G$72)^(AJ$187-2026))) * SUMIFS(INDEX('Full Results Database'!$E$5:$F$549,,MATCH($D197, 'Full Results Database'!$E$1:$F$1,0)), 'Full Results Database'!$B$5:$B$549, $AT197, 'Full Results Database'!$C$5:$C$549, AJ$187) -> 0 | AK197: =IF($C$4="Real $2026",1,((1+'Advanced User Inputs'!$G$72)^(AK$187-2026))) * SUMIFS(INDEX('Full Results Database'!$E$5:$F$549,,MATCH($D197, 'Full Results Database'!$E$1:$F$1,0)), 'Full Results Database'!$B$5:$B$549, $AT197, 'Full Results Database'!$C$5:$C$549, AK$187) -> 0 | AL197: =IF($C$4="Real $2026",1,((1+'Advanced User Inputs'!$G$72)^(AL$187-2026))) * SUMIFS(INDEX('Full Results Database'!$E$5:$F$549,,MATCH($D197, 'Full Results Database'!$E$1:$F$1,0)), 'Full Results Database'!$B$5:$B$549, $AT197, 'Full Results Database'!$C$5:$C$549, AL$187) -> 0 | AM197: =IF($C$4="Real $2026",1,((1+'Advanced User Inputs'!$G$72)^(AM$187-2026))) * SUMIFS(INDEX('Full Results Database'!$E$5:$F$549,,MATCH($D197, 'Full Results Database'!$E$1:$F$1,0)), 'Full Results Database'!$B$5:$B$549, $AT197, 'Full Results Database'!$C$5:$C$549, AM$187) -> 0 | AN197: =IF($C$4="Real $2026",1,((1+'Advanced User Inputs'!$G$72)^(AN$187-2026))) * SUMIFS(INDEX('Full Results Database'!$E$5:$F$549,,MATCH($D197, 'Full Results Database'!$E$1:$F$1,0)), 'Full Results Database'!$B$5:$B$549, $AT197, 'Full Results Database'!$C$5:$C$549, AN$187) -> 0 | AO197: =IF($C$4="Real $2026",1,((1+'Advanced User Inputs'!$G$72)^(AO$187-2026))) * SUMIFS(INDEX('Full Results Database'!$E$5:$F$549,,MATCH($D197, 'Full Results Database'!$E$1:$F$1,0)), 'Full Results Database'!$B$5:$B$549, $AT197, 'Full Results Database'!$C$5:$C$549, AO$187) -> 0 | AP197: =IF($C$4="Real $2026",1,((1+'Advanced User Inputs'!$G$72)^(AP$187-2026))) * SUMIFS(INDEX('Full Results Database'!$E$5:$F$549,,MATCH($D197, 'Full Results Database'!$E$1:$F$1,0)), 'Full Results Database'!$B$5:$B$549, $AT197, 'Full Results Database'!$C$5:$C$549, AP$187) -> 0 | AQ197: =IF($C$4="Real $2026",1,((1+'Advanced User Inputs'!$G$72)^(AQ$187-2026))) * SUMIFS(INDEX('Full Results Database'!$E$5:$F$549,,MATCH($D197, 'Full Results Database'!$E$1:$F$1,0)), 'Full Results Database'!$B$5:$B$549, $AT197, 'Full Results Database'!$C$5:$C$549, AQ$187) -> 0 | AR197: =IF($C$4="Real $2026",1,((1+'Advanced User Inputs'!$G$72)^(AR$187-2026))) * SUMIFS(INDEX('Full Results Database'!$E$5:$F$549,,MATCH($D197, 'Full Results Database'!$E$1:$F$1,0)), 'Full Results Database'!$B$5:$B$549, $AT197, 'Full Results Database'!$C$5:$C$549, AR$187) -> 0 | AT197: Utility Costs - DER Funded
B198: Revenue (DER Fund) | C198: Real $2026 | D198: =active_scenario2 -> Cost Causer Pays | E198: =IF($C$4="Real $2026",1,((1+'Advanced User Inputs'!$G$72)^(E$187-2026))) * SUMIFS(INDEX('Full Results Database'!$E$5:$F$549,,MATCH($D198, 'Full Results Database'!$E$1:$F$1,0)), 'Full Results Database'!$B$5:$B$549, $AT198, 'Full Results Database'!$C$5:$C$549, E$187) -> 0 | F198: =IF($C$4="Real $2026",1,((1+'Advanced User Inputs'!$G$72)^(F$187-2026))) * SUMIFS(INDEX('Full Results Database'!$E$5:$F$549,,MATCH($D198, 'Full Results Database'!$E$1:$F$1,0)), 'Full Results Database'!$B$5:$B$549, $AT198, 'Full Results Database'!$C$5:$C$549, F$187) -> 0 | G198: =IF($C$4="Real $2026",1,((1+'Advanced User Inputs'!$G$72)^(G$187-2026))) * SUMIFS(INDEX('Full Results Database'!$E$5:$F$549,,MATCH($D198, 'Full Results Database'!$E$1:$F$1,0)), 'Full Results Database'!$B$5:$B$549, $AT198, 'Full Results Database'!$C$5:$C$549, G$187) -> 0 | H198: =IF($C$4="Real $2026",1,((1+'Advanced User Inputs'!$G$72)^(H$187-2026))) * SUMIFS(INDEX('Full Results Database'!$E$5:$F$549,,MATCH($D198, 'Full Results Database'!$E$1:$F$1,0)), 'Full Results Database'!$B$5:$B$549, $AT198, 'Full Results Database'!$C$5:$C$549, H$187) -> 0 | I198: =IF($C$4="Real $2026",1,((1+'Advanced User Inputs'!$G$72)^(I$187-2026))) * SUMIFS(INDEX('Full Results Database'!$E$5:$F$549,,MATCH($D198, 'Full Results Database'!$E$1:$F$1,0)), 'Full Results Database'!$B$5:$B$549, $AT198, 'Full Results Database'!$C$5:$C$549, I$187) -> 0 | J198: =IF($C$4="Real $2026",1,((1+'Advanced User Inputs'!$G$72)^(J$187-2026))) * SUMIFS(INDEX('Full Results Database'!$E$5:$F$549,,MATCH($D198, 'Full Results Database'!$E$1:$F$1,0)), 'Full Results Database'!$B$5:$B$549, $AT198, 'Full Results Database'!$C$5:$C$549, J$187) -> 0 | K198: =IF($C$4="Real $2026",1,((1+'Advanced User Inputs'!$G$72)^(K$187-2026))) * SUMIFS(INDEX('Full Results Database'!$E$5:$F$549,,MATCH($D198, 'Full Results Database'!$E$1:$F$1,0)), 'Full Results Database'!$B$5:$B$549, $AT198, 'Full Results Database'!$C$5:$C$549, K$187) -> 0 | L198: =IF($C$4="Real $2026",1,((1+'Advanced User Inputs'!$G$72)^(L$187-2026))) * SUMIFS(INDEX('Full Results Database'!$E$5:$F$549,,MATCH($D198, 'Full Results Database'!$E$1:$F$1,0)), 'Full Results Database'!$B$5:$B$549, $AT198, 'Full Results Database'!$C$5:$C$549, L$187) -> 0 | M198: =IF($C$4="Real $2026",1,((1+'Advanced User Inputs'!$G$72)^(M$187-2026))) * SUMIFS(INDEX('Full Results Database'!$E$5:$F$549,,MATCH($D198, 'Full Results Database'!$E$1:$F$1,0)), 'Full Results Database'!$B$5:$B$549, $AT198, 'Full Results Database'!$C$5:$C$549, M$187) -> 0 | N198: =IF($C$4="Real $2026",1,((1+'Advanced User Inputs'!$G$72)^(N$187-2026))) * SUMIFS(INDEX('Full Results Database'!$E$5:$F$549,,MATCH($D198, 'Full Results Database'!$E$1:$F$1,0)), 'Full Results Database'!$B$5:$B$549, $AT198, 'Full Results Database'!$C$5:$C$549, N$187) -> 0 | O198: =IF($C$4="Real $2026",1,((1+'Advanced User Inputs'!$G$72)^(O$187-2026))) * SUMIFS(INDEX('Full Results Database'!$E$5:$F$549,,MATCH($D198, 'Full Results Database'!$E$1:$F$1,0)), 'Full Results Database'!$B$5:$B$549, $AT198, 'Full Results Database'!$C$5:$C$549, O$187) -> 0 | P198: =IF($C$4="Real $2026",1,((1+'Advanced User Inputs'!$G$72)^(P$187-2026))) * SUMIFS(INDEX('Full Results Database'!$E$5:$F$549,,MATCH($D198, 'Full Results Database'!$E$1:$F$1,0)), 'Full Results Database'!$B$5:$B$549, $AT198, 'Full Results Database'!$C$5:$C$549, P$187) -> 0 | Q198: =IF($C$4="Real $2026",1,((1+'Advanced User Inputs'!$G$72)^(Q$187-2026))) * SUMIFS(INDEX('Full Results Database'!$E$5:$F$549,,MATCH($D198, 'Full Results Database'!$E$1:$F$1,0)), 'Full Results Database'!$B$5:$B$549, $AT198, 'Full Results Database'!$C$5:$C$549, Q$187) -> 0 | R198: =IF($C$4="Real $2026",1,((1+'Advanced User Inputs'!$G$72)^(R$187-2026))) * SUMIFS(INDEX('Full Results Database'!$E$5:$F$549,,MATCH($D198, 'Full Results Database'!$E$1:$F$1,0)), 'Full Results Database'!$B$5:$B$549, $AT198, 'Full Results Database'!$C$5:$C$549, R$187) -> 0 | S198: =IF($C$4="Real $2026",1,((1+'Advanced User Inputs'!$G$72)^(S$187-2026))) * SUMIFS(INDEX('Full Results Database'!$E$5:$F$549,,MATCH($D198, 'Full Results Database'!$E$1:$F$1,0)), 'Full Results Database'!$B$5:$B$549, $AT198, 'Full Results Database'!$C$5:$C$549, S$187) -> 0 | T198: =IF($C$4="Real $2026",1,((1+'Advanced User Inputs'!$G$72)^(T$187-2026))) * SUMIFS(INDEX('Full Results Database'!$E$5:$F$549,,MATCH($D198, 'Full Results Database'!$E$1:$F$1,0)), 'Full Results Database'!$B$5:$B$549, $AT198, 'Full Results Database'!$C$5:$C$549, T$187) -> 0 | U198: =IF($C$4="Real $2026",1,((1+'Advanced User Inputs'!$G$72)^(U$187-2026))) * SUMIFS(INDEX('Full Results Database'!$E$5:$F$549,,MATCH($D198, 'Full Results Database'!$E$1:$F$1,0)), 'Full Results Database'!$B$5:$B$549, $AT198, 'Full Results Database'!$C$5:$C$549, U$187) -> 0 | V198: =IF($C$4="Real $2026",1,((1+'Advanced User Inputs'!$G$72)^(V$187-2026))) * SUMIFS(INDEX('Full Results Database'!$E$5:$F$549,,MATCH($D198, 'Full Results Database'!$E$1:$F$1,0)), 'Full Results Database'!$B$5:$B$549, $AT198, 'Full Results Database'!$C$5:$C$549, V$187) -> 0 | W198: =IF($C$4="Real $2026",1,((1+'Advanced User Inputs'!$G$72)^(W$187-2026))) * SUMIFS(INDEX('Full Results Database'!$E$5:$F$549,,MATCH($D198, 'Full Results Database'!$E$1:$F$1,0)), 'Full Results Database'!$B$5:$B$549, $AT198, 'Full Results Database'!$C$5:$C$549, W$187) -> 0 | X198: =IF($C$4="Real $2026",1,((1+'Advanced User Inputs'!$G$72)^(X$187-2026))) * SUMIFS(INDEX('Full Results Database'!$E$5:$F$549,,MATCH($D198, 'Full Results Database'!$E$1:$F$1,0)), 'Full Results Database'!$B$5:$B$549, $AT198, 'Full Results Database'!$C$5:$C$549, X$187) -> 0 | Y198: =IF($C$4="Real $2026",1,((1+'Advanced User Inputs'!$G$72)^(Y$187-2026))) * SUMIFS(INDEX('Full Results Database'!$E$5:$F$549,,MATCH($D198, 'Full Results Database'!$E$1:$F$1,0)), 'Full Results Database'!$B$5:$B$549, $AT198, 'Full Results Database'!$C$5:$C$549, Y$187) -> 0 | Z198: =IF($C$4="Real $2026",1,((1+'Advanced User Inputs'!$G$72)^(Z$187-2026))) * SUMIFS(INDEX('Full Results Database'!$E$5:$F$549,,MATCH($D198, 'Full Results Database'!$E$1:$F$1,0)), 'Full Results Database'!$B$5:$B$549, $AT198, 'Full Results Database'!$C$5:$C$549, Z$187) -> 0 | AA198: =IF($C$4="Real $2026",1,((1+'Advanced User Inputs'!$G$72)^(AA$187-2026))) * SUMIFS(INDEX('Full Results Database'!$E$5:$F$549,,MATCH($D198, 'Full Results Database'!$E$1:$F$1,0)), 'Full Results Database'!$B$5:$B$549, $AT198, 'Full Results Database'!$C$5:$C$549, AA$187) -> 0 | AB198: =IF($C$4="Real $2026",1,((1+'Advanced User Inputs'!$G$72)^(AB$187-2026))) * SUMIFS(INDEX('Full Results Database'!$E$5:$F$549,,MATCH($D198, 'Full Results Database'!$E$1:$F$1,0)), 'Full Results Database'!$B$5:$B$549, $AT198, 'Full Results Database'!$C$5:$C$549, AB$187) -> 0 | AC198: =IF($C$4="Real $2026",1,((1+'Advanced User Inputs'!$G$72)^(AC$187-2026))) * SUMIFS(INDEX('Full Results Database'!$E$5:$F$549,,MATCH($D198, 'Full Results Database'!$E$1:$F$1,0)), 'Full Results Database'!$B$5:$B$549, $AT198, 'Full Results Database'!$C$5:$C$549, AC$187) -> 0 | AD198: =IF($C$4="Real $2026",1,((1+'Advanced User Inputs'!$G$72)^(AD$187-2026))) * SUMIFS(INDEX('Full Results Database'!$E$5:$F$549,,MATCH($D198, 'Full Results Database'!$E$1:$F$1,0)), 'Full Results Database'!$B$5:$B$549, $AT198, 'Full Results Database'!$C$5:$C$549, AD$187) -> 0 | AE198: =IF($C$4="Real $2026",1,((1+'Advanced User Inputs'!$G$72)^(AE$187-2026))) * SUMIFS(INDEX('Full Results Database'!$E$5:$F$549,,MATCH($D198, 'Full Results Database'!$E$1:$F$1,0)), 'Full Results Database'!$B$5:$B$549, $AT198, 'Full Results Database'!$C$5:$C$549, AE$187) -> 0 | AF198: =IF($C$4="Real $2026",1,((1+'Advanced User Inputs'!$G$72)^(AF$187-2026))) * SUMIFS(INDEX('Full Results Database'!$E$5:$F$549,,MATCH($D198, 'Full Results Database'!$E$1:$F$1,0)), 'Full Results Database'!$B$5:$B$549, $AT198, 'Full Results Database'!$C$5:$C$549, AF$187) -> 0 | AG198: =IF($C$4="Real $2026",1,((1+'Advanced User Inputs'!$G$72)^(AG$187-2026))) * SUMIFS(INDEX('Full Results Database'!$E$5:$F$549,,MATCH($D198, 'Full Results Database'!$E$1:$F$1,0)), 'Full Results Database'!$B$5:$B$549, $AT198, 'Full Results Database'!$C$5:$C$549, AG$187) -> 0 | AH198: =IF($C$4="Real $2026",1,((1+'Advanced User Inputs'!$G$72)^(AH$187-2026))) * SUMIFS(INDEX('Full Results Database'!$E$5:$F$549,,MATCH($D198, 'Full Results Database'!$E$1:$F$1,0)), 'Full Results Database'!$B$5:$B$549, $AT198, 'Full Results Database'!$C$5:$C$549, AH$187) -> 0 | AI198: =IF($C$4="Real $2026",1,((1+'Advanced User Inputs'!$G$72)^(AI$187-2026))) * SUMIFS(INDEX('Full Results Database'!$E$5:$F$549,,MATCH($D198, 'Full Results Database'!$E$1:$F$1,0)), 'Full Results Database'!$B$5:$B$549, $AT198, 'Full Results Database'!$C$5:$C$549, AI$187) -> 0 | AJ198: =IF($C$4="Real $2026",1,((1+'Advanced User Inputs'!$G$72)^(AJ$187-2026))) * SUMIFS(INDEX('Full Results Database'!$E$5:$F$549,,MATCH($D198, 'Full Results Database'!$E$1:$F$1,0)), 'Full Results Database'!$B$5:$B$549, $AT198, 'Full Results Database'!$C$5:$C$549, AJ$187) -> 0 | AK198: =IF($C$4="Real $2026",1,((1+'Advanced User Inputs'!$G$72)^(AK$187-2026))) * SUMIFS(INDEX('Full Results Database'!$E$5:$F$549,,MATCH($D198, 'Full Results Database'!$E$1:$F$1,0)), 'Full Results Database'!$B$5:$B$549, $AT198, 'Full Results Database'!$C$5:$C$549, AK$187) -> 0 | AL198: =IF($C$4="Real $2026",1,((1+'Advanced User Inputs'!$G$72)^(AL$187-2026))) * SUMIFS(INDEX('Full Results Database'!$E$5:$F$549,,MATCH($D198, 'Full Results Database'!$E$1:$F$1,0)), 'Full Results Database'!$B$5:$B$549, $AT198, 'Full Results Database'!$C$5:$C$549, AL$187) -> 0 | AM198: =IF($C$4="Real $2026",1,((1+'Advanced User Inputs'!$G$72)^(AM$187-2026))) * SUMIFS(INDEX('Full Results Database'!$E$5:$F$549,,MATCH($D198, 'Full Results Database'!$E$1:$F$1,0)), 'Full Results Database'!$B$5:$B$549, $AT198, 'Full Results Database'!$C$5:$C$549, AM$187) -> 0 | AN198: =IF($C$4="Real $2026",1,((1+'Advanced User Inputs'!$G$72)^(AN$187-2026))) * SUMIFS(INDEX('Full Results Database'!$E$5:$F$549,,MATCH($D198, 'Full Results Database'!$E$1:$F$1,0)), 'Full Results Database'!$B$5:$B$549, $AT198, 'Full Results Database'!$C$5:$C$549, AN$187) -> 0 | AO198: =IF($C$4="Real $2026",1,((1+'Advanced User Inputs'!$G$72)^(AO$187-2026))) * SUMIFS(INDEX('Full Results Database'!$E$5:$F$549,,MATCH($D198, 'Full Results Database'!$E$1:$F$1,0)), 'Full Results Database'!$B$5:$B$549, $AT198, 'Full Results Database'!$C$5:$C$549, AO$187) -> 0 | AP198: =IF($C$4="Real $2026",1,((1+'Advanced User Inputs'!$G$72)^(AP$187-2026))) * SUMIFS(INDEX('Full Results Database'!$E$5:$F$549,,MATCH($D198, 'Full Results Database'!$E$1:$F$1,0)), 'Full Results Database'!$B$5:$B$549, $AT198, 'Full Results Database'!$C$5:$C$549, AP$187) -> 0 | AQ198: =IF($C$4="Real $2026",1,((1+'Advanced User Inputs'!$G$72)^(AQ$187-2026))) * SUMIFS(INDEX('Full Results Database'!$E$5:$F$549,,MATCH($D198, 'Full Results Database'!$E$1:$F$1,0)), 'Full Results Database'!$B$5:$B$549, $AT198, 'Full Results Database'!$C$5:$C$549, AQ$187) -> 0 | AR198: =IF($C$4="Real $2026",1,((1+'Advanced User Inputs'!$G$72)^(AR$187-2026))) * SUMIFS(INDEX('Full Results Database'!$E$5:$F$549,,MATCH($D198, 'Full Results Database'!$E$1:$F$1,0)), 'Full Results Database'!$B$5:$B$549, $AT198, 'Full Results Database'!$C$5:$C$549, AR$187) -> 0 | AT198: Change in Utility Revenue - DER Funded
B199: Total Utility Cashflow | C199: Real $2026 | D199: =active_scenario2 -> Cost Causer Pays | E199: =SUM(E195:E198) -> 0 | F199: =SUM(F195:F198) -> 0 | G199: =SUM(G195:G198) -> 0 | H199: =SUM(H195:H198) -> 0 | I199: =SUM(I195:I198) -> 0 | J199: =SUM(J195:J198) -> 0 | K199: =SUM(K195:K198) -> 0 | L199: =SUM(L195:L198) -> 0 | M199: =SUM(M195:M198) -> 0 | N199: =SUM(N195:N198) -> 0 | O199: =SUM(O195:O198) -> 0 | P199: =SUM(P195:P198) -> 0 | Q199: =SUM(Q195:Q198) -> 0 | R199: =SUM(R195:R198) -> 0 | S199: =SUM(S195:S198) -> 0 | T199: =SUM(T195:T198) -> 0 | U199: =SUM(U195:U198) -> 0 | V199: =SUM(V195:V198) -> 0 | W199: =SUM(W195:W198) -> 0 | X199: =SUM(X195:X198) -> 0 | Y199: =SUM(Y195:Y198) -> 0 | Z199: =SUM(Z195:Z198) -> 0 | AA199: =SUM(AA195:AA198) -> 0 | AB199: =SUM(AB195:AB198) -> 0 | AC199: =SUM(AC195:AC198) -> 0 | AD199: =SUM(AD195:AD198) -> 0 | AE199: =SUM(AE195:AE198) -> 0 | AF199: =SUM(AF195:AF198) -> 0 | AG199: =SUM(AG195:AG198) -> 0 | AH199: =SUM(AH195:AH198) -> 0 | AI199: =SUM(AI195:AI198) -> 0 | AJ199: =SUM(AJ195:AJ198) -> 0 | AK199: =SUM(AK195:AK198) -> 0 | AL199: =SUM(AL195:AL198) -> 0 | AM199: =SUM(AM195:AM198) -> 0 | AN199: =SUM(AN195:AN198) -> 0 | AO199: =SUM(AO195:AO198) -> 0 | AP199: =SUM(AP195:AP198) -> 0 | AQ199: =SUM(AQ195:AQ198) -> 0 | AR199: =SUM(AR195:AR198) -> 0
B201: Payment Type | C201: Units | D201: Scenario | E201: NPV | G201: NOTE: Results are highly dependent on input values and should be used to compare relative impacts between scenarios, not to calculate absolute costs of DER interconnection. The Net Present Value (NPV) represents the cost to each party discounted for the time value of money. For example, if a DER pays costs upfront and is reimbursed later by another party, the NPV of the later payments would be lower since they are discounted to the future year. Each scenario will have either ratepayer impacts OR DER fund impacts, but may not have both.
B202: Infrastructure Costs (Ratepayers) | C202: =$C$4 -> Real $2026 | D202: =active_scenario1 -> Reimbursement | E202: =NPV(IF($C$4 = "Nominal", 'Advanced User Inputs'!$G$67,'Advanced User Inputs'!$G$68),$F188:$AS188)+E188 -> 0
B203: Revenue (Ratepayers) | C203: =$C$4 -> Real $2026 | D203: =active_scenario1 -> Reimbursement | E203: =NPV(IF($C$4 = "Nominal", 'Advanced User Inputs'!$G$67,'Advanced User Inputs'!$G$68),$F189:$AS189)+E189 -> 0
B204: Infrastructure Costs (DER Fund) | C204: =$C$4 -> Real $2026 | D204: =active_scenario1 -> Reimbursement | E204: =NPV(IF($C$4 = "Nominal", 'Advanced User Inputs'!$G$67,'Advanced User Inputs'!$G$68),$F190:$AS190)+E190 -> 0
B205: Revenue (DER Fund) | C205: Real $2026 | D205: =active_scenario1 -> Reimbursement | E205: =NPV(IF($C$4 = "Nominal", 'Advanced User Inputs'!$G$67,'Advanced User Inputs'!$G$68),$F191:$AS191)+E191 -> 0
B206: Total Utility Cashflow | C206: =$C$4 -> Real $2026 | D206: =active_scenario1 -> Reimbursement | E206: =NPV(IF($C$4 = "Nominal", 'Advanced User Inputs'!$G$67,'Advanced User Inputs'!$G$68),$F192:$AS192)+E192 -> 0
B208: Payment Type | C208: Units | D208: Scenario | E208: NPV
B209: Infrastructure Costs (Ratepayers) | C209: =$C$4 -> Real $2026 | D209: =active_scenario2 -> Cost Causer Pays | E209: =NPV(IF($C$4 = "Nominal", 'Advanced User Inputs'!$G$67,'Advanced User Inputs'!$G$68),$F195:$AS195)+E195 -> 0
B210: Revenue (Ratepayers) | C210: =$C$4 -> Real $2026 | D210: =active_scenario2 -> Cost Causer Pays | E210: =NPV(IF($C$4 = "Nominal", 'Advanced User Inputs'!$G$67,'Advanced User Inputs'!$G$68),$F196:$AS196)+E196 -> 0
B211: Infrastructure Costs (DER Fund) | C211: =$C$4 -> Real $2026 | D211: =active_scenario2 -> Cost Causer Pays | E211: =NPV(IF($C$4 = "Nominal", 'Advanced User Inputs'!$G$67,'Advanced User Inputs'!$G$68),$F197:$AS197)+E197 -> 0
B212: Revenue (DER Fund) | C212: Real $2026 | D212: =active_scenario2 -> Cost Causer Pays | E212: =NPV(IF($C$4 = "Nominal", 'Advanced User Inputs'!$G$67,'Advanced User Inputs'!$G$68),$F198:$AS198)+E198 -> 0
B213: Total Utility Cashflow | C213: =$C$4 -> Real $2026 | D213: =active_scenario2 -> Cost Causer Pays | E213: =NPV(IF($C$4 = "Nominal", 'Advanced User Inputs'!$G$67,'Advanced User Inputs'!$G$68),$F199:$AS199)+E199 -> 0
B215: =_xlfn.CONCAT("Total Ratepayer Cashflow, ", D206," (", C206,")") -> Total Ratepayer Cashflow, Reimbursement (Real $2026) | C215: =_xlfn.CONCAT("Total DER Fund Cashflow, ", D206," (", C206,")") -> Total DER Fund Cashflow, Reimbursement (Real $2026)
B216: =_xlfn.CONCAT("Total Ratepayer Cashflow, ", D213," (", C213,")") -> Total Ratepayer Cashflow, Cost Causer Pays (Real $2026) | C216: =_xlfn.CONCAT("Total DER Fund Cashflow, ", D213," (", C213,")") -> Total DER Fund Cashflow, Cost Causer Pays (Real $2026)
C257: =active_scenario1 -> Reimbursement | D257: =active_scenario2 -> Cost Causer Pays
B258: Infrastructure Costs (Ratepayers) | C258: =E202 -> 0 | D258: =E209 -> 0
B259: Revenue (Ratepayers) | C259: =E203 -> 0 | D259: =E210 -> 0
B260: Infrastructure Costs (DER Fund) | C260: =E204 -> 0 | D260: =E211 -> 0
B261: Revenue (DER Fund) | C261: =E205 -> 0 | D261: =E212 -> 0
B262: Net NPV | C262: =E206 -> 0 | D262: =E213 -> 0
C263: =_xlfn.CONCAT( "NPV of Total Utility Cashflow (", C199,")") -> NPV of Total Utility Cashflow (Real $2026)
A279: Results Summary - Additional DERs
B281: - Results are shown as the amount that other DERs impacted by the upgrade pay in each year (negative numbers). These are divided by payments to the utility (including both ratepayer and DER fund) versus payments to the target DER.
B282: - For many scenarios, there are payments only in the first year, while in others, costs may be recovered over a long horizon.
B284: Payment Type | C284: Units | D284: Scenario | E284: 2026 | F284: 2027 | G284: 2028 | H284: 2029 | I284: 2030 | J284: 2031 | K284: 2032 | L284: 2033 | M284: 2034 | N284: 2035 | O284: 2036 | P284: 2037 | Q284: 2038 | R284: 2039 | S284: 2040 | T284: 2041 | U284: 2042 | V284: 2043 | W284: 2044 | X284: 2045 | Y284: 2046 | Z284: 2047 | AA284: 2048 | AB284: 2049 | AC284: 2050 | AD284: 2051 | AE284: 2052 | AF284: 2053 | AG284: 2054 | AH284: 2055 | AI284: 2056 | AJ284: 2057 | AK284: 2058 | AL284: 2059 | AM284: 2060 | AN284: 2061 | AO284: 2062 | AP284: 2063 | AQ284: 2064 | AR284: 2065 | AS284: //
B285: Total Additional DER Cashflow | C285: =$C$4 -> Real $2026 | D285: =active_scenario1 -> Reimbursement | E285: =SUM(E286:E287) -> 0 | F285: 0 | G285: 0 | H285: -3000000 | I285: 0 | J285: 0 | K285: -1000000 | L285: 0 | M285: 0 | N285: -500000 | O285: 0 | P285: 0 | Q285: -300000 | R285: 0 | S285: 0 | T285: -200000 | U285: 0 | V285: 0 | W285: -142857.1429 | X285: 0 | Y285: 0 | Z285: -107142.8571 | AA285: 0 | AB285: 0 | AC285: -83333.33333 | AD285: 0 | AE285: 0 | AF285: -66666.66667 | AG285: 0 | AH285: 0 | AI285: -54545.45455 | AJ285: 0 | AK285: 0 | AL285: -45454.54545 | AM285: 0 | AN285: 0 | AO285: -38461.53846 | AP285: 0 | AQ285: 0 | AR285: -32967.03297
B286: Additional DER Payments - Target DER | C286: =$C$4 -> Real $2026 | D286: =active_scenario1 -> Reimbursement | E286: =IF($C$4="Real $2026",1,((1+'Advanced User Inputs'!$G$72)^(E$111-2026))) * SUMIFS(INDEX('Full Results Database'!$E$5:$F$549,,MATCH($D286, 'Full Results Database'!$E$1:$F$1,0)), 'Full Results Database'!$B$5:$B$549, $B286, 'Full Results Database'!$C$5:$C$549, E$111) -> 0 | F286: =IF($C$4="Real $2026",1,((1+'Advanced User Inputs'!$G$72)^(F$111-2026))) * SUMIFS(INDEX('Full Results Database'!$E$5:$F$549,,MATCH($D286, 'Full Results Database'!$E$1:$F$1,0)), 'Full Results Database'!$B$5:$B$549, $B286, 'Full Results Database'!$C$5:$C$549, F$111) -> 0 | G286: =IF($C$4="Real $2026",1,((1+'Advanced User Inputs'!$G$72)^(G$111-2026))) * SUMIFS(INDEX('Full Results Database'!$E$5:$F$549,,MATCH($D286, 'Full Results Database'!$E$1:$F$1,0)), 'Full Results Database'!$B$5:$B$549, $B286, 'Full Results Database'!$C$5:$C$549, G$111) -> 0 | H286: =IF($C$4="Real $2026",1,((1+'Advanced User Inputs'!$G$72)^(H$111-2026))) * SUMIFS(INDEX('Full Results Database'!$E$5:$F$549,,MATCH($D286, 'Full Results Database'!$E$1:$F$1,0)), 'Full Results Database'!$B$5:$B$549, $B286, 'Full Results Database'!$C$5:$C$549, H$111) -> -3000000 | I286: =IF($C$4="Real $2026",1,((1+'Advanced User Inputs'!$G$72)^(I$111-2026))) * SUMIFS(INDEX('Full Results Database'!$E$5:$F$549,,MATCH($D286, 'Full Results Database'!$E$1:$F$1,0)), 'Full Results Database'!$B$5:$B$549, $B286, 'Full Results Database'!$C$5:$C$549, I$111) -> 0 | J286: =IF($C$4="Real $2026",1,((1+'Advanced User Inputs'!$G$72)^(J$111-2026))) * SUMIFS(INDEX('Full Results Database'!$E$5:$F$549,,MATCH($D286, 'Full Results Database'!$E$1:$F$1,0)), 'Full Results Database'!$B$5:$B$549, $B286, 'Full Results Database'!$C$5:$C$549, J$111) -> 0 | K286: =IF($C$4="Real $2026",1,((1+'Advanced User Inputs'!$G$72)^(K$111-2026))) * SUMIFS(INDEX('Full Results Database'!$E$5:$F$549,,MATCH($D286, 'Full Results Database'!$E$1:$F$1,0)), 'Full Results Database'!$B$5:$B$549, $B286, 'Full Results Database'!$C$5:$C$549, K$111) -> -1000000 | L286: =IF($C$4="Real $2026",1,((1+'Advanced User Inputs'!$G$72)^(L$111-2026))) * SUMIFS(INDEX('Full Results Database'!$E$5:$F$549,,MATCH($D286, 'Full Results Database'!$E$1:$F$1,0)), 'Full Results Database'!$B$5:$B$549, $B286, 'Full Results Database'!$C$5:$C$549, L$111) -> 0 | M286: =IF($C$4="Real $2026",1,((1+'Advanced User Inputs'!$G$72)^(M$111-2026))) * SUMIFS(INDEX('Full Results Database'!$E$5:$F$549,,MATCH($D286, 'Full Results Database'!$E$1:$F$1,0)), 'Full Results Database'!$B$5:$B$549, $B286, 'Full Results Database'!$C$5:$C$549, M$111) -> 0 | N286: =IF($C$4="Real $2026",1,((1+'Advanced User Inputs'!$G$72)^(N$111-2026))) * SUMIFS(INDEX('Full Results Database'!$E$5:$F$549,,MATCH($D286, 'Full Results Database'!$E$1:$F$1,0)), 'Full Results Database'!$B$5:$B$549, $B286, 'Full Results Database'!$C$5:$C$549, N$111) -> -500000 | O286: =IF($C$4="Real $2026",1,((1+'Advanced User Inputs'!$G$72)^(O$111-2026))) * SUMIFS(INDEX('Full Results Database'!$E$5:$F$549,,MATCH($D286, 'Full Results Database'!$E$1:$F$1,0)), 'Full Results Database'!$B$5:$B$549, $B286, 'Full Results Database'!$C$5:$C$549, O$111) -> 0 | P286: =IF($C$4="Real $2026",1,((1+'Advanced User Inputs'!$G$72)^(P$111-2026))) * SUMIFS(INDEX('Full Results Database'!$E$5:$F$549,,MATCH($D286, 'Full Results Database'!$E$1:$F$1,0)), 'Full Results Database'!$B$5:$B$549, $B286, 'Full Results Database'!$C$5:$C$549, P$111) -> 0 | Q286: =IF($C$4="Real $2026",1,((1+'Advanced User Inputs'!$G$72)^(Q$111-2026))) * SUMIFS(INDEX('Full Results Database'!$E$5:$F$549,,MATCH($D286, 'Full Results Database'!$E$1:$F$1,0)), 'Full Results Database'!$B$5:$B$549, $B286, 'Full Results Database'!$C$5:$C$549, Q$111) -> -300000 | R286: =IF($C$4="Real $2026",1,((1+'Advanced User Inputs'!$G$72)^(R$111-2026))) * SUMIFS(INDEX('Full Results Database'!$E$5:$F$549,,MATCH($D286, 'Full Results Database'!$E$1:$F$1,0)), 'Full Results Database'!$B$5:$B$549, $B286, 'Full Results Database'!$C$5:$C$549, R$111) -> 0 | S286: =IF($C$4="Real $2026",1,((1+'Advanced User Inputs'!$G$72)^(S$111-2026))) * SUMIFS(INDEX('Full Results Database'!$E$5:$F$549,,MATCH($D286, 'Full Results Database'!$E$1:$F$1,0)), 'Full Results Database'!$B$5:$B$549, $B286, 'Full Results Database'!$C$5:$C$549, S$111) -> 0 | T286: =IF($C$4="Real $2026",1,((1+'Advanced User Inputs'!$G$72)^(T$111-2026))) * SUMIFS(INDEX('Full Results Database'!$E$5:$F$549,,MATCH($D286, 'Full Results Database'!$E$1:$F$1,0)), 'Full Results Database'!$B$5:$B$549, $B286, 'Full Results Database'!$C$5:$C$549, T$111) -> -200000 | U286: =IF($C$4="Real $2026",1,((1+'Advanced User Inputs'!$G$72)^(U$111-2026))) * SUMIFS(INDEX('Full Results Database'!$E$5:$F$549,,MATCH($D286, 'Full Results Database'!$E$1:$F$1,0)), 'Full Results Database'!$B$5:$B$549, $B286, 'Full Results Database'!$C$5:$C$549, U$111) -> 0 | V286: =IF($C$4="Real $2026",1,((1+'Advanced User Inputs'!$G$72)^(V$111-2026))) * SUMIFS(INDEX('Full Results Database'!$E$5:$F$549,,MATCH($D286, 'Full Results Database'!$E$1:$F$1,0)), 'Full Results Database'!$B$5:$B$549, $B286, 'Full Results Database'!$C$5:$C$549, V$111) -> 0 | W286: =IF($C$4="Real $2026",1,((1+'Advanced User Inputs'!$G$72)^(W$111-2026))) * SUMIFS(INDEX('Full Results Database'!$E$5:$F$549,,MATCH($D286, 'Full Results Database'!$E$1:$F$1,0)), 'Full Results Database'!$B$5:$B$549, $B286, 'Full Results Database'!$C$5:$C$549, W$111) -> -142857.1429 | X286: =IF($C$4="Real $2026",1,((1+'Advanced User Inputs'!$G$72)^(X$111-2026))) * SUMIFS(INDEX('Full Results Database'!$E$5:$F$549,,MATCH($D286, 'Full Results Database'!$E$1:$F$1,0)), 'Full Results Database'!$B$5:$B$549, $B286, 'Full Results Database'!$C$5:$C$549, X$111) -> 0 | Y286: =IF($C$4="Real $2026",1,((1+'Advanced User Inputs'!$G$72)^(Y$111-2026))) * SUMIFS(INDEX('Full Results Database'!$E$5:$F$549,,MATCH($D286, 'Full Results Database'!$E$1:$F$1,0)), 'Full Results Database'!$B$5:$B$549, $B286, 'Full Results Database'!$C$5:$C$549, Y$111) -> 0 | Z286: =IF($C$4="Real $2026",1,((1+'Advanced User Inputs'!$G$72)^(Z$111-2026))) * SUMIFS(INDEX('Full Results Database'!$E$5:$F$549,,MATCH($D286, 'Full Results Database'!$E$1:$F$1,0)), 'Full Results Database'!$B$5:$B$549, $B286, 'Full Results Database'!$C$5:$C$549, Z$111) -> -107142.8571 | AA286: =IF($C$4="Real $2026",1,((1+'Advanced User Inputs'!$G$72)^(AA$111-2026))) * SUMIFS(INDEX('Full Results Database'!$E$5:$F$549,,MATCH($D286, 'Full Results Database'!$E$1:$F$1,0)), 'Full Results Database'!$B$5:$B$549, $B286, 'Full Results Database'!$C$5:$C$549, AA$111) -> 0 | AB286: =IF($C$4="Real $2026",1,((1+'Advanced User Inputs'!$G$72)^(AB$111-2026))) * SUMIFS(INDEX('Full Results Database'!$E$5:$F$549,,MATCH($D286, 'Full Results Database'!$E$1:$F$1,0)), 'Full Results Database'!$B$5:$B$549, $B286, 'Full Results Database'!$C$5:$C$549, AB$111) -> 0 | AC286: =IF($C$4="Real $2026",1,((1+'Advanced User Inputs'!$G$72)^(AC$111-2026))) * SUMIFS(INDEX('Full Results Database'!$E$5:$F$549,,MATCH($D286, 'Full Results Database'!$E$1:$F$1,0)), 'Full Results Database'!$B$5:$B$549, $B286, 'Full Results Database'!$C$5:$C$549, AC$111) -> -83333.33333 | AD286: =IF($C$4="Real $2026",1,((1+'Advanced User Inputs'!$G$72)^(AD$111-2026))) * SUMIFS(INDEX('Full Results Database'!$E$5:$F$549,,MATCH($D286, 'Full Results Database'!$E$1:$F$1,0)), 'Full Results Database'!$B$5:$B$549, $B286, 'Full Results Database'!$C$5:$C$549, AD$111) -> 0 | AE286: =IF($C$4="Real $2026",1,((1+'Advanced User Inputs'!$G$72)^(AE$111-2026))) * SUMIFS(INDEX('Full Results Database'!$E$5:$F$549,,MATCH($D286, 'Full Results Database'!$E$1:$F$1,0)), 'Full Results Database'!$B$5:$B$549, $B286, 'Full Results Database'!$C$5:$C$549, AE$111) -> 0 | AF286: =IF($C$4="Real $2026",1,((1+'Advanced User Inputs'!$G$72)^(AF$111-2026))) * SUMIFS(INDEX('Full Results Database'!$E$5:$F$549,,MATCH($D286, 'Full Results Database'!$E$1:$F$1,0)), 'Full Results Database'!$B$5:$B$549, $B286, 'Full Results Database'!$C$5:$C$549, AF$111) -> -66666.66667 | AG286: =IF($C$4="Real $2026",1,((1+'Advanced User Inputs'!$G$72)^(AG$111-2026))) * SUMIFS(INDEX('Full Results Database'!$E$5:$F$549,,MATCH($D286, 'Full Results Database'!$E$1:$F$1,0)), 'Full Results Database'!$B$5:$B$549, $B286, 'Full Results Database'!$C$5:$C$549, AG$111) -> 0 | AH286: =IF($C$4="Real $2026",1,((1+'Advanced User Inputs'!$G$72)^(AH$111-2026))) * SUMIFS(INDEX('Full Results Database'!$E$5:$F$549,,MATCH($D286, 'Full Results Database'!$E$1:$F$1,0)), 'Full Results Database'!$B$5:$B$549, $B286, 'Full Results Database'!$C$5:$C$549, AH$111) -> 0 | AI286: =IF($C$4="Real $2026",1,((1+'Advanced User Inputs'!$G$72)^(AI$111-2026))) * SUMIFS(INDEX('Full Results Database'!$E$5:$F$549,,MATCH($D286, 'Full Results Database'!$E$1:$F$1,0)), 'Full Results Database'!$B$5:$B$549, $B286, 'Full Results Database'!$C$5:$C$549, AI$111) -> -54545.45455 | AJ286: =IF($C$4="Real $2026",1,((1+'Advanced User Inputs'!$G$72)^(AJ$111-2026))) * SUMIFS(INDEX('Full Results Database'!$E$5:$F$549,,MATCH($D286, 'Full Results Database'!$E$1:$F$1,0)), 'Full Results Database'!$B$5:$B$549, $B286, 'Full Results Database'!$C$5:$C$549, AJ$111) -> 0 | AK286: =IF($C$4="Real $2026",1,((1+'Advanced User Inputs'!$G$72)^(AK$111-2026))) * SUMIFS(INDEX('Full Results Database'!$E$5:$F$549,,MATCH($D286, 'Full Results Database'!$E$1:$F$1,0)), 'Full Results Database'!$B$5:$B$549, $B286, 'Full Results Database'!$C$5:$C$549, AK$111) -> 0 | AL286: =IF($C$4="Real $2026",1,((1+'Advanced User Inputs'!$G$72)^(AL$111-2026))) * SUMIFS(INDEX('Full Results Database'!$E$5:$F$549,,MATCH($D286, 'Full Results Database'!$E$1:$F$1,0)), 'Full Results Database'!$B$5:$B$549, $B286, 'Full Results Database'!$C$5:$C$549, AL$111) -> -45454.54545 | AM286: =IF($C$4="Real $2026",1,((1+'Advanced User Inputs'!$G$72)^(AM$111-2026))) * SUMIFS(INDEX('Full Results Database'!$E$5:$F$549,,MATCH($D286, 'Full Results Database'!$E$1:$F$1,0)), 'Full Results Database'!$B$5:$B$549, $B286, 'Full Results Database'!$C$5:$C$549, AM$111) -> 0 | AN286: =IF($C$4="Real $2026",1,((1+'Advanced User Inputs'!$G$72)^(AN$111-2026))) * SUMIFS(INDEX('Full Results Database'!$E$5:$F$549,,MATCH($D286, 'Full Results Database'!$E$1:$F$1,0)), 'Full Results Database'!$B$5:$B$549, $B286, 'Full Results Database'!$C$5:$C$549, AN$111) -> 0 | AO286: =IF($C$4="Real $2026",1,((1+'Advanced User Inputs'!$G$72)^(AO$111-2026))) * SUMIFS(INDEX('Full Results Database'!$E$5:$F$549,,MATCH($D286, 'Full Results Database'!$E$1:$F$1,0)), 'Full Results Database'!$B$5:$B$549, $B286, 'Full Results Database'!$C$5:$C$549, AO$111) -> -38461.53846 | AP286: =IF($C$4="Real $2026",1,((1+'Advanced User Inputs'!$G$72)^(AP$111-2026))) * SUMIFS(INDEX('Full Results Database'!$E$5:$F$549,,MATCH($D286, 'Full Results Database'!$E$1:$F$1,0)), 'Full Results Database'!$B$5:$B$549, $B286, 'Full Results Database'!$C$5:$C$549, AP$111) -> 0 | AQ286: =IF($C$4="Real $2026",1,((1+'Advanced User Inputs'!$G$72)^(AQ$111-2026))) * SUMIFS(INDEX('Full Results Database'!$E$5:$F$549,,MATCH($D286, 'Full Results Database'!$E$1:$F$1,0)), 'Full Results Database'!$B$5:$B$549, $B286, 'Full Results Database'!$C$5:$C$549, AQ$111) -> 0 | AR286: =IF($C$4="Real $2026",1,((1+'Advanced User Inputs'!$G$72)^(AR$111-2026))) * SUMIFS(INDEX('Full Results Database'!$E$5:$F$549,,MATCH($D286, 'Full Results Database'!$E$1:$F$1,0)), 'Full Results Database'!$B$5:$B$549, $B286, 'Full Results Database'!$C$5:$C$549, AR$111) -> -32967.03297
B287: Additional DER Payments - Utility | C287: =$C$4 -> Real $2026 | D287: =active_scenario1 -> Reimbursement | E287: =IF($C$4="Real $2026",1,((1+'Advanced User Inputs'!$G$72)^(E$111-2026))) * SUMIFS(INDEX('Full Results Database'!$E$5:$F$549,,MATCH($D287, 'Full Results Database'!$E$1:$F$1,0)), 'Full Results Database'!$B$5:$B$549, $B287, 'Full Results Database'!$C$5:$C$549, E$111) -> 0 | F287: =IF($C$4="Real $2026",1,((1+'Advanced User Inputs'!$G$72)^(F$111-2026))) * SUMIFS(INDEX('Full Results Database'!$E$5:$F$549,,MATCH($D287, 'Full Results Database'!$E$1:$F$1,0)), 'Full Results Database'!$B$5:$B$549, $B287, 'Full Results Database'!$C$5:$C$549, F$111) -> 0 | G287: =IF($C$4="Real $2026",1,((1+'Advanced User Inputs'!$G$72)^(G$111-2026))) * SUMIFS(INDEX('Full Results Database'!$E$5:$F$549,,MATCH($D287, 'Full Results Database'!$E$1:$F$1,0)), 'Full Results Database'!$B$5:$B$549, $B287, 'Full Results Database'!$C$5:$C$549, G$111) -> 0 | H287: =IF($C$4="Real $2026",1,((1+'Advanced User Inputs'!$G$72)^(H$111-2026))) * SUMIFS(INDEX('Full Results Database'!$E$5:$F$549,,MATCH($D287, 'Full Results Database'!$E$1:$F$1,0)), 'Full Results Database'!$B$5:$B$549, $B287, 'Full Results Database'!$C$5:$C$549, H$111) -> 0 | I287: =IF($C$4="Real $2026",1,((1+'Advanced User Inputs'!$G$72)^(I$111-2026))) * SUMIFS(INDEX('Full Results Database'!$E$5:$F$549,,MATCH($D287, 'Full Results Database'!$E$1:$F$1,0)), 'Full Results Database'!$B$5:$B$549, $B287, 'Full Results Database'!$C$5:$C$549, I$111) -> 0 | J287: =IF($C$4="Real $2026",1,((1+'Advanced User Inputs'!$G$72)^(J$111-2026))) * SUMIFS(INDEX('Full Results Database'!$E$5:$F$549,,MATCH($D287, 'Full Results Database'!$E$1:$F$1,0)), 'Full Results Database'!$B$5:$B$549, $B287, 'Full Results Database'!$C$5:$C$549, J$111) -> 0 | K287: =IF($C$4="Real $2026",1,((1+'Advanced User Inputs'!$G$72)^(K$111-2026))) * SUMIFS(INDEX('Full Results Database'!$E$5:$F$549,,MATCH($D287, 'Full Results Database'!$E$1:$F$1,0)), 'Full Results Database'!$B$5:$B$549, $B287, 'Full Results Database'!$C$5:$C$549, K$111) -> 0 | L287: =IF($C$4="Real $2026",1,((1+'Advanced User Inputs'!$G$72)^(L$111-2026))) * SUMIFS(INDEX('Full Results Database'!$E$5:$F$549,,MATCH($D287, 'Full Results Database'!$E$1:$F$1,0)), 'Full Results Database'!$B$5:$B$549, $B287, 'Full Results Database'!$C$5:$C$549, L$111) -> 0 | M287: =IF($C$4="Real $2026",1,((1+'Advanced User Inputs'!$G$72)^(M$111-2026))) * SUMIFS(INDEX('Full Results Database'!$E$5:$F$549,,MATCH($D287, 'Full Results Database'!$E$1:$F$1,0)), 'Full Results Database'!$B$5:$B$549, $B287, 'Full Results Database'!$C$5:$C$549, M$111) -> 0 | N287: =IF($C$4="Real $2026",1,((1+'Advanced User Inputs'!$G$72)^(N$111-2026))) * SUMIFS(INDEX('Full Results Database'!$E$5:$F$549,,MATCH($D287, 'Full Results Database'!$E$1:$F$1,0)), 'Full Results Database'!$B$5:$B$549, $B287, 'Full Results Database'!$C$5:$C$549, N$111) -> 0 | O287: =IF($C$4="Real $2026",1,((1+'Advanced User Inputs'!$G$72)^(O$111-2026))) * SUMIFS(INDEX('Full Results Database'!$E$5:$F$549,,MATCH($D287, 'Full Results Database'!$E$1:$F$1,0)), 'Full Results Database'!$B$5:$B$549, $B287, 'Full Results Database'!$C$5:$C$549, O$111) -> 0 | P287: =IF($C$4="Real $2026",1,((1+'Advanced User Inputs'!$G$72)^(P$111-2026))) * SUMIFS(INDEX('Full Results Database'!$E$5:$F$549,,MATCH($D287, 'Full Results Database'!$E$1:$F$1,0)), 'Full Results Database'!$B$5:$B$549, $B287, 'Full Results Database'!$C$5:$C$549, P$111) -> 0 | Q287: =IF($C$4="Real $2026",1,((1+'Advanced User Inputs'!$G$72)^(Q$111-2026))) * SUMIFS(INDEX('Full Results Database'!$E$5:$F$549,,MATCH($D287, 'Full Results Database'!$E$1:$F$1,0)), 'Full Results Database'!$B$5:$B$549, $B287, 'Full Results Database'!$C$5:$C$549, Q$111) -> 0 | R287: =IF($C$4="Real $2026",1,((1+'Advanced User Inputs'!$G$72)^(R$111-2026))) * SUMIFS(INDEX('Full Results Database'!$E$5:$F$549,,MATCH($D287, 'Full Results Database'!$E$1:$F$1,0)), 'Full Results Database'!$B$5:$B$549, $B287, 'Full Results Database'!$C$5:$C$549, R$111) -> 0 | S287: =IF($C$4="Real $2026",1,((1+'Advanced User Inputs'!$G$72)^(S$111-2026))) * SUMIFS(INDEX('Full Results Database'!$E$5:$F$549,,MATCH($D287, 'Full Results Database'!$E$1:$F$1,0)), 'Full Results Database'!$B$5:$B$549, $B287, 'Full Results Database'!$C$5:$C$549, S$111) -> 0 | T287: =IF($C$4="Real $2026",1,((1+'Advanced User Inputs'!$G$72)^(T$111-2026))) * SUMIFS(INDEX('Full Results Database'!$E$5:$F$549,,MATCH($D287, 'Full Results Database'!$E$1:$F$1,0)), 'Full Results Database'!$B$5:$B$549, $B287, 'Full Results Database'!$C$5:$C$549, T$111) -> 0 | U287: =IF($C$4="Real $2026",1,((1+'Advanced User Inputs'!$G$72)^(U$111-2026))) * SUMIFS(INDEX('Full Results Database'!$E$5:$F$549,,MATCH($D287, 'Full Results Database'!$E$1:$F$1,0)), 'Full Results Database'!$B$5:$B$549, $B287, 'Full Results Database'!$C$5:$C$549, U$111) -> 0 | V287: =IF($C$4="Real $2026",1,((1+'Advanced User Inputs'!$G$72)^(V$111-2026))) * SUMIFS(INDEX('Full Results Database'!$E$5:$F$549,,MATCH($D287, 'Full Results Database'!$E$1:$F$1,0)), 'Full Results Database'!$B$5:$B$549, $B287, 'Full Results Database'!$C$5:$C$549, V$111) -> 0 | W287: =IF($C$4="Real $2026",1,((1+'Advanced User Inputs'!$G$72)^(W$111-2026))) * SUMIFS(INDEX('Full Results Database'!$E$5:$F$549,,MATCH($D287, 'Full Results Database'!$E$1:$F$1,0)), 'Full Results Database'!$B$5:$B$549, $B287, 'Full Results Database'!$C$5:$C$549, W$111) -> 0 | X287: =IF($C$4="Real $2026",1,((1+'Advanced User Inputs'!$G$72)^(X$111-2026))) * SUMIFS(INDEX('Full Results Database'!$E$5:$F$549,,MATCH($D287, 'Full Results Database'!$E$1:$F$1,0)), 'Full Results Database'!$B$5:$B$549, $B287, 'Full Results Database'!$C$5:$C$549, X$111) -> 0 | Y287: =IF($C$4="Real $2026",1,((1+'Advanced User Inputs'!$G$72)^(Y$111-2026))) * SUMIFS(INDEX('Full Results Database'!$E$5:$F$549,,MATCH($D287, 'Full Results Database'!$E$1:$F$1,0)), 'Full Results Database'!$B$5:$B$549, $B287, 'Full Results Database'!$C$5:$C$549, Y$111) -> 0 | Z287: =IF($C$4="Real $2026",1,((1+'Advanced User Inputs'!$G$72)^(Z$111-2026))) * SUMIFS(INDEX('Full Results Database'!$E$5:$F$549,,MATCH($D287, 'Full Results Database'!$E$1:$F$1,0)), 'Full Results Database'!$B$5:$B$549, $B287, 'Full Results Database'!$C$5:$C$549, Z$111) -> 0 | AA287: =IF($C$4="Real $2026",1,((1+'Advanced User Inputs'!$G$72)^(AA$111-2026))) * SUMIFS(INDEX('Full Results Database'!$E$5:$F$549,,MATCH($D287, 'Full Results Database'!$E$1:$F$1,0)), 'Full Results Database'!$B$5:$B$549, $B287, 'Full Results Database'!$C$5:$C$549, AA$111) -> 0 | AB287: =IF($C$4="Real $2026",1,((1+'Advanced User Inputs'!$G$72)^(AB$111-2026))) * SUMIFS(INDEX('Full Results Database'!$E$5:$F$549,,MATCH($D287, 'Full Results Database'!$E$1:$F$1,0)), 'Full Results Database'!$B$5:$B$549, $B287, 'Full Results Database'!$C$5:$C$549, AB$111) -> 0 | AC287: =IF($C$4="Real $2026",1,((1+'Advanced User Inputs'!$G$72)^(AC$111-2026))) * SUMIFS(INDEX('Full Results Database'!$E$5:$F$549,,MATCH($D287, 'Full Results Database'!$E$1:$F$1,0)), 'Full Results Database'!$B$5:$B$549, $B287, 'Full Results Database'!$C$5:$C$549, AC$111) -> 0 | AD287: =IF($C$4="Real $2026",1,((1+'Advanced User Inputs'!$G$72)^(AD$111-2026))) * SUMIFS(INDEX('Full Results Database'!$E$5:$F$549,,MATCH($D287, 'Full Results Database'!$E$1:$F$1,0)), 'Full Results Database'!$B$5:$B$549, $B287, 'Full Results Database'!$C$5:$C$549, AD$111) -> 0 | AE287: =IF($C$4="Real $2026",1,((1+'Advanced User Inputs'!$G$72)^(AE$111-2026))) * SUMIFS(INDEX('Full Results Database'!$E$5:$F$549,,MATCH($D287, 'Full Results Database'!$E$1:$F$1,0)), 'Full Results Database'!$B$5:$B$549, $B287, 'Full Results Database'!$C$5:$C$549, AE$111) -> 0 | AF287: =IF($C$4="Real $2026",1,((1+'Advanced User Inputs'!$G$72)^(AF$111-2026))) * SUMIFS(INDEX('Full Results Database'!$E$5:$F$549,,MATCH($D287, 'Full Results Database'!$E$1:$F$1,0)), 'Full Results Database'!$B$5:$B$549, $B287, 'Full Results Database'!$C$5:$C$549, AF$111) -> 0 | AG287: =IF($C$4="Real $2026",1,((1+'Advanced User Inputs'!$G$72)^(AG$111-2026))) * SUMIFS(INDEX('Full Results Database'!$E$5:$F$549,,MATCH($D287, 'Full Results Database'!$E$1:$F$1,0)), 'Full Results Database'!$B$5:$B$549, $B287, 'Full Results Database'!$C$5:$C$549, AG$111) -> 0 | AH287: =IF($C$4="Real $2026",1,((1+'Advanced User Inputs'!$G$72)^(AH$111-2026))) * SUMIFS(INDEX('Full Results Database'!$E$5:$F$549,,MATCH($D287, 'Full Results Database'!$E$1:$F$1,0)), 'Full Results Database'!$B$5:$B$549, $B287, 'Full Results Database'!$C$5:$C$549, AH$111) -> 0 | AI287: =IF($C$4="Real $2026",1,((1+'Advanced User Inputs'!$G$72)^(AI$111-2026))) * SUMIFS(INDEX('Full Results Database'!$E$5:$F$549,,MATCH($D287, 'Full Results Database'!$E$1:$F$1,0)), 'Full Results Database'!$B$5:$B$549, $B287, 'Full Results Database'!$C$5:$C$549, AI$111) -> 0 | AJ287: =IF($C$4="Real $2026",1,((1+'Advanced User Inputs'!$G$72)^(AJ$111-2026))) * SUMIFS(INDEX('Full Results Database'!$E$5:$F$549,,MATCH($D287, 'Full Results Database'!$E$1:$F$1,0)), 'Full Results Database'!$B$5:$B$549, $B287, 'Full Results Database'!$C$5:$C$549, AJ$111) -> 0 | AK287: =IF($C$4="Real $2026",1,((1+'Advanced User Inputs'!$G$72)^(AK$111-2026))) * SUMIFS(INDEX('Full Results Database'!$E$5:$F$549,,MATCH($D287, 'Full Results Database'!$E$1:$F$1,0)), 'Full Results Database'!$B$5:$B$549, $B287, 'Full Results Database'!$C$5:$C$549, AK$111) -> 0 | AL287: =IF($C$4="Real $2026",1,((1+'Advanced User Inputs'!$G$72)^(AL$111-2026))) * SUMIFS(INDEX('Full Results Database'!$E$5:$F$549,,MATCH($D287, 'Full Results Database'!$E$1:$F$1,0)), 'Full Results Database'!$B$5:$B$549, $B287, 'Full Results Database'!$C$5:$C$549, AL$111) -> 0 | AM287: =IF($C$4="Real $2026",1,((1+'Advanced User Inputs'!$G$72)^(AM$111-2026))) * SUMIFS(INDEX('Full Results Database'!$E$5:$F$549,,MATCH($D287, 'Full Results Database'!$E$1:$F$1,0)), 'Full Results Database'!$B$5:$B$549, $B287, 'Full Results Database'!$C$5:$C$549, AM$111) -> 0 | AN287: =IF($C$4="Real $2026",1,((1+'Advanced User Inputs'!$G$72)^(AN$111-2026))) * SUMIFS(INDEX('Full Results Database'!$E$5:$F$549,,MATCH($D287, 'Full Results Database'!$E$1:$F$1,0)), 'Full Results Database'!$B$5:$B$549, $B287, 'Full Results Database'!$C$5:$C$549, AN$111) -> 0 | AO287: =IF($C$4="Real $2026",1,((1+'Advanced User Inputs'!$G$72)^(AO$111-2026))) * SUMIFS(INDEX('Full Results Database'!$E$5:$F$549,,MATCH($D287, 'Full Results Database'!$E$1:$F$1,0)), 'Full Results Database'!$B$5:$B$549, $B287, 'Full Results Database'!$C$5:$C$549, AO$111) -> 0 | AP287: =IF($C$4="Real $2026",1,((1+'Advanced User Inputs'!$G$72)^(AP$111-2026))) * SUMIFS(INDEX('Full Results Database'!$E$5:$F$549,,MATCH($D287, 'Full Results Database'!$E$1:$F$1,0)), 'Full Results Database'!$B$5:$B$549, $B287, 'Full Results Database'!$C$5:$C$549, AP$111) -> 0 | AQ287: =IF($C$4="Real $2026",1,((1+'Advanced User Inputs'!$G$72)^(AQ$111-2026))) * SUMIFS(INDEX('Full Results Database'!$E$5:$F$549,,MATCH($D287, 'Full Results Database'!$E$1:$F$1,0)), 'Full Results Database'!$B$5:$B$549, $B287, 'Full Results Database'!$C$5:$C$549, AQ$111) -> 0 | AR287: =IF($C$4="Real $2026",1,((1+'Advanced User Inputs'!$G$72)^(AR$111-2026))) * SUMIFS(INDEX('Full Results Database'!$E$5:$F$549,,MATCH($D287, 'Full Results Database'!$E$1:$F$1,0)), 'Full Results Database'!$B$5:$B$549, $B287, 'Full Results Database'!$C$5:$C$549, AR$111) -> 0
B289: Payment Type | C289: Units | D289: Scenario | E289: 2026 | F289: 2027 | G289: 2028 | H289: 2029 | I289: 2030 | J289: 2031 | K289: 2032 | L289: 2033 | M289: 2034 | N289: 2035 | O289: 2036 | P289: 2037 | Q289: 2038 | R289: 2039 | S289: 2040 | T289: 2041 | U289: 2042 | V289: 2043 | W289: 2044 | X289: 2045 | Y289: 2046 | Z289: 2047 | AA289: 2048 | AB289: 2049 | AC289: 2050 | AD289: 2051 | AE289: 2052 | AF289: 2053 | AG289: 2054 | AH289: 2055 | AI289: 2056 | AJ289: 2057 | AK289: 2058 | AL289: 2059 | AM289: 2060 | AN289: 2061 | AO289: 2062 | AP289: 2063 | AQ289: 2064 | AR289: 2065 | AS289: //
B290: Total Additional DER Cashflow | C290: =$C$4 -> Real $2026 | D290: =active_scenario2 -> Cost Causer Pays | E290: =SUM(E291:E292) -> 0 | F290: 0 | G290: 0 | H290: 0 | I290: 0 | J290: 0 | K290: 0 | L290: 0 | M290: 0 | N290: 0 | O290: 0 | P290: 0 | Q290: 0 | R290: 0 | S290: 0 | T290: 0 | U290: 0 | V290: 0 | W290: 0 | X290: 0 | Y290: 0 | Z290: 0 | AA290: 0 | AB290: 0 | AC290: 0 | AD290: 0 | AE290: 0 | AF290: 0 | AG290: 0 | AH290: 0 | AI290: 0 | AJ290: 0 | AK290: 0 | AL290: 0 | AM290: 0 | AN290: 0 | AO290: 0 | AP290: 0 | AQ290: 0 | AR290: 0
B291: Additional DER Payments - Target DER | C291: =$C$4 -> Real $2026 | D291: =active_scenario2 -> Cost Causer Pays | E291: =IF($C$4="Real $2026",1,((1+'Advanced User Inputs'!$G$72)^(E$111-2026))) * SUMIFS(INDEX('Full Results Database'!$E$5:$F$549,,MATCH($D291, 'Full Results Database'!$E$1:$F$1,0)), 'Full Results Database'!$B$5:$B$549, $B291, 'Full Results Database'!$C$5:$C$549, E$111) -> 0 | F291: =IF($C$4="Real $2026",1,((1+'Advanced User Inputs'!$G$72)^(F$111-2026))) * SUMIFS(INDEX('Full Results Database'!$E$5:$F$549,,MATCH($D291, 'Full Results Database'!$E$1:$F$1,0)), 'Full Results Database'!$B$5:$B$549, $B291, 'Full Results Database'!$C$5:$C$549, F$111) -> 0 | G291: =IF($C$4="Real $2026",1,((1+'Advanced User Inputs'!$G$72)^(G$111-2026))) * SUMIFS(INDEX('Full Results Database'!$E$5:$F$549,,MATCH($D291, 'Full Results Database'!$E$1:$F$1,0)), 'Full Results Database'!$B$5:$B$549, $B291, 'Full Results Database'!$C$5:$C$549, G$111) -> 0 | H291: =IF($C$4="Real $2026",1,((1+'Advanced User Inputs'!$G$72)^(H$111-2026))) * SUMIFS(INDEX('Full Results Database'!$E$5:$F$549,,MATCH($D291, 'Full Results Database'!$E$1:$F$1,0)), 'Full Results Database'!$B$5:$B$549, $B291, 'Full Results Database'!$C$5:$C$549, H$111) -> 0 | I291: =IF($C$4="Real $2026",1,((1+'Advanced User Inputs'!$G$72)^(I$111-2026))) * SUMIFS(INDEX('Full Results Database'!$E$5:$F$549,,MATCH($D291, 'Full Results Database'!$E$1:$F$1,0)), 'Full Results Database'!$B$5:$B$549, $B291, 'Full Results Database'!$C$5:$C$549, I$111) -> 0 | J291: =IF($C$4="Real $2026",1,((1+'Advanced User Inputs'!$G$72)^(J$111-2026))) * SUMIFS(INDEX('Full Results Database'!$E$5:$F$549,,MATCH($D291, 'Full Results Database'!$E$1:$F$1,0)), 'Full Results Database'!$B$5:$B$549, $B291, 'Full Results Database'!$C$5:$C$549, J$111) -> 0 | K291: =IF($C$4="Real $2026",1,((1+'Advanced User Inputs'!$G$72)^(K$111-2026))) * SUMIFS(INDEX('Full Results Database'!$E$5:$F$549,,MATCH($D291, 'Full Results Database'!$E$1:$F$1,0)), 'Full Results Database'!$B$5:$B$549, $B291, 'Full Results Database'!$C$5:$C$549, K$111) -> 0 | L291: =IF($C$4="Real $2026",1,((1+'Advanced User Inputs'!$G$72)^(L$111-2026))) * SUMIFS(INDEX('Full Results Database'!$E$5:$F$549,,MATCH($D291, 'Full Results Database'!$E$1:$F$1,0)), 'Full Results Database'!$B$5:$B$549, $B291, 'Full Results Database'!$C$5:$C$549, L$111) -> 0 | M291: =IF($C$4="Real $2026",1,((1+'Advanced User Inputs'!$G$72)^(M$111-2026))) * SUMIFS(INDEX('Full Results Database'!$E$5:$F$549,,MATCH($D291, 'Full Results Database'!$E$1:$F$1,0)), 'Full Results Database'!$B$5:$B$549, $B291, 'Full Results Database'!$C$5:$C$549, M$111) -> 0 | N291: =IF($C$4="Real $2026",1,((1+'Advanced User Inputs'!$G$72)^(N$111-2026))) * SUMIFS(INDEX('Full Results Database'!$E$5:$F$549,,MATCH($D291, 'Full Results Database'!$E$1:$F$1,0)), 'Full Results Database'!$B$5:$B$549, $B291, 'Full Results Database'!$C$5:$C$549, N$111) -> 0 | O291: =IF($C$4="Real $2026",1,((1+'Advanced User Inputs'!$G$72)^(O$111-2026))) * SUMIFS(INDEX('Full Results Database'!$E$5:$F$549,,MATCH($D291, 'Full Results Database'!$E$1:$F$1,0)), 'Full Results Database'!$B$5:$B$549, $B291, 'Full Results Database'!$C$5:$C$549, O$111) -> 0 | P291: =IF($C$4="Real $2026",1,((1+'Advanced User Inputs'!$G$72)^(P$111-2026))) * SUMIFS(INDEX('Full Results Database'!$E$5:$F$549,,MATCH($D291, 'Full Results Database'!$E$1:$F$1,0)), 'Full Results Database'!$B$5:$B$549, $B291, 'Full Results Database'!$C$5:$C$549, P$111) -> 0 | Q291: =IF($C$4="Real $2026",1,((1+'Advanced User Inputs'!$G$72)^(Q$111-2026))) * SUMIFS(INDEX('Full Results Database'!$E$5:$F$549,,MATCH($D291, 'Full Results Database'!$E$1:$F$1,0)), 'Full Results Database'!$B$5:$B$549, $B291, 'Full Results Database'!$C$5:$C$549, Q$111) -> 0 | R291: =IF($C$4="Real $2026",1,((1+'Advanced User Inputs'!$G$72)^(R$111-2026))) * SUMIFS(INDEX('Full Results Database'!$E$5:$F$549,,MATCH($D291, 'Full Results Database'!$E$1:$F$1,0)), 'Full Results Database'!$B$5:$B$549, $B291, 'Full Results Database'!$C$5:$C$549, R$111) -> 0 | S291: =IF($C$4="Real $2026",1,((1+'Advanced User Inputs'!$G$72)^(S$111-2026))) * SUMIFS(INDEX('Full Results Database'!$E$5:$F$549,,MATCH($D291, 'Full Results Database'!$E$1:$F$1,0)), 'Full Results Database'!$B$5:$B$549, $B291, 'Full Results Database'!$C$5:$C$549, S$111) -> 0 | T291: =IF($C$4="Real $2026",1,((1+'Advanced User Inputs'!$G$72)^(T$111-2026))) * SUMIFS(INDEX('Full Results Database'!$E$5:$F$549,,MATCH($D291, 'Full Results Database'!$E$1:$F$1,0)), 'Full Results Database'!$B$5:$B$549, $B291, 'Full Results Database'!$C$5:$C$549, T$111) -> 0 | U291: =IF($C$4="Real $2026",1,((1+'Advanced User Inputs'!$G$72)^(U$111-2026))) * SUMIFS(INDEX('Full Results Database'!$E$5:$F$549,,MATCH($D291, 'Full Results Database'!$E$1:$F$1,0)), 'Full Results Database'!$B$5:$B$549, $B291, 'Full Results Database'!$C$5:$C$549, U$111) -> 0 | V291: =IF($C$4="Real $2026",1,((1+'Advanced User Inputs'!$G$72)^(V$111-2026))) * SUMIFS(INDEX('Full Results Database'!$E$5:$F$549,,MATCH($D291, 'Full Results Database'!$E$1:$F$1,0)), 'Full Results Database'!$B$5:$B$549, $B291, 'Full Results Database'!$C$5:$C$549, V$111) -> 0 | W291: =IF($C$4="Real $2026",1,((1+'Advanced User Inputs'!$G$72)^(W$111-2026))) * SUMIFS(INDEX('Full Results Database'!$E$5:$F$549,,MATCH($D291, 'Full Results Database'!$E$1:$F$1,0)), 'Full Results Database'!$B$5:$B$549, $B291, 'Full Results Database'!$C$5:$C$549, W$111) -> 0 | X291: =IF($C$4="Real $2026",1,((1+'Advanced User Inputs'!$G$72)^(X$111-2026))) * SUMIFS(INDEX('Full Results Database'!$E$5:$F$549,,MATCH($D291, 'Full Results Database'!$E$1:$F$1,0)), 'Full Results Database'!$B$5:$B$549, $B291, 'Full Results Database'!$C$5:$C$549, X$111) -> 0 | Y291: =IF($C$4="Real $2026",1,((1+'Advanced User Inputs'!$G$72)^(Y$111-2026))) * SUMIFS(INDEX('Full Results Database'!$E$5:$F$549,,MATCH($D291, 'Full Results Database'!$E$1:$F$1,0)), 'Full Results Database'!$B$5:$B$549, $B291, 'Full Results Database'!$C$5:$C$549, Y$111) -> 0 | Z291: =IF($C$4="Real $2026",1,((1+'Advanced User Inputs'!$G$72)^(Z$111-2026))) * SUMIFS(INDEX('Full Results Database'!$E$5:$F$549,,MATCH($D291, 'Full Results Database'!$E$1:$F$1,0)), 'Full Results Database'!$B$5:$B$549, $B291, 'Full Results Database'!$C$5:$C$549, Z$111) -> 0 | AA291: =IF($C$4="Real $2026",1,((1+'Advanced User Inputs'!$G$72)^(AA$111-2026))) * SUMIFS(INDEX('Full Results Database'!$E$5:$F$549,,MATCH($D291, 'Full Results Database'!$E$1:$F$1,0)), 'Full Results Database'!$B$5:$B$549, $B291, 'Full Results Database'!$C$5:$C$549, AA$111) -> 0 | AB291: =IF($C$4="Real $2026",1,((1+'Advanced User Inputs'!$G$72)^(AB$111-2026))) * SUMIFS(INDEX('Full Results Database'!$E$5:$F$549,,MATCH($D291, 'Full Results Database'!$E$1:$F$1,0)), 'Full Results Database'!$B$5:$B$549, $B291, 'Full Results Database'!$C$5:$C$549, AB$111) -> 0 | AC291: =IF($C$4="Real $2026",1,((1+'Advanced User Inputs'!$G$72)^(AC$111-2026))) * SUMIFS(INDEX('Full Results Database'!$E$5:$F$549,,MATCH($D291, 'Full Results Database'!$E$1:$F$1,0)), 'Full Results Database'!$B$5:$B$549, $B291, 'Full Results Database'!$C$5:$C$549, AC$111) -> 0 | AD291: =IF($C$4="Real $2026",1,((1+'Advanced User Inputs'!$G$72)^(AD$111-2026))) * SUMIFS(INDEX('Full Results Database'!$E$5:$F$549,,MATCH($D291, 'Full Results Database'!$E$1:$F$1,0)), 'Full Results Database'!$B$5:$B$549, $B291, 'Full Results Database'!$C$5:$C$549, AD$111) -> 0 | AE291: =IF($C$4="Real $2026",1,((1+'Advanced User Inputs'!$G$72)^(AE$111-2026))) * SUMIFS(INDEX('Full Results Database'!$E$5:$F$549,,MATCH($D291, 'Full Results Database'!$E$1:$F$1,0)), 'Full Results Database'!$B$5:$B$549, $B291, 'Full Results Database'!$C$5:$C$549, AE$111) -> 0 | AF291: =IF($C$4="Real $2026",1,((1+'Advanced User Inputs'!$G$72)^(AF$111-2026))) * SUMIFS(INDEX('Full Results Database'!$E$5:$F$549,,MATCH($D291, 'Full Results Database'!$E$1:$F$1,0)), 'Full Results Database'!$B$5:$B$549, $B291, 'Full Results Database'!$C$5:$C$549, AF$111) -> 0 | AG291: =IF($C$4="Real $2026",1,((1+'Advanced User Inputs'!$G$72)^(AG$111-2026))) * SUMIFS(INDEX('Full Results Database'!$E$5:$F$549,,MATCH($D291, 'Full Results Database'!$E$1:$F$1,0)), 'Full Results Database'!$B$5:$B$549, $B291, 'Full Results Database'!$C$5:$C$549, AG$111) -> 0 | AH291: =IF($C$4="Real $2026",1,((1+'Advanced User Inputs'!$G$72)^(AH$111-2026))) * SUMIFS(INDEX('Full Results Database'!$E$5:$F$549,,MATCH($D291, 'Full Results Database'!$E$1:$F$1,0)), 'Full Results Database'!$B$5:$B$549, $B291, 'Full Results Database'!$C$5:$C$549, AH$111) -> 0 | AI291: =IF($C$4="Real $2026",1,((1+'Advanced User Inputs'!$G$72)^(AI$111-2026))) * SUMIFS(INDEX('Full Results Database'!$E$5:$F$549,,MATCH($D291, 'Full Results Database'!$E$1:$F$1,0)), 'Full Results Database'!$B$5:$B$549, $B291, 'Full Results Database'!$C$5:$C$549, AI$111) -> 0 | AJ291: =IF($C$4="Real $2026",1,((1+'Advanced User Inputs'!$G$72)^(AJ$111-2026))) * SUMIFS(INDEX('Full Results Database'!$E$5:$F$549,,MATCH($D291, 'Full Results Database'!$E$1:$F$1,0)), 'Full Results Database'!$B$5:$B$549, $B291, 'Full Results Database'!$C$5:$C$549, AJ$111) -> 0 | AK291: =IF($C$4="Real $2026",1,((1+'Advanced User Inputs'!$G$72)^(AK$111-2026))) * SUMIFS(INDEX('Full Results Database'!$E$5:$F$549,,MATCH($D291, 'Full Results Database'!$E$1:$F$1,0)), 'Full Results Database'!$B$5:$B$549, $B291, 'Full Results Database'!$C$5:$C$549, AK$111) -> 0 | AL291: =IF($C$4="Real $2026",1,((1+'Advanced User Inputs'!$G$72)^(AL$111-2026))) * SUMIFS(INDEX('Full Results Database'!$E$5:$F$549,,MATCH($D291, 'Full Results Database'!$E$1:$F$1,0)), 'Full Results Database'!$B$5:$B$549, $B291, 'Full Results Database'!$C$5:$C$549, AL$111) -> 0 | AM291: =IF($C$4="Real $2026",1,((1+'Advanced User Inputs'!$G$72)^(AM$111-2026))) * SUMIFS(INDEX('Full Results Database'!$E$5:$F$549,,MATCH($D291, 'Full Results Database'!$E$1:$F$1,0)), 'Full Results Database'!$B$5:$B$549, $B291, 'Full Results Database'!$C$5:$C$549, AM$111) -> 0 | AN291: =IF($C$4="Real $2026",1,((1+'Advanced User Inputs'!$G$72)^(AN$111-2026))) * SUMIFS(INDEX('Full Results Database'!$E$5:$F$549,,MATCH($D291, 'Full Results Database'!$E$1:$F$1,0)), 'Full Results Database'!$B$5:$B$549, $B291, 'Full Results Database'!$C$5:$C$549, AN$111) -> 0 | AO291: =IF($C$4="Real $2026",1,((1+'Advanced User Inputs'!$G$72)^(AO$111-2026))) * SUMIFS(INDEX('Full Results Database'!$E$5:$F$549,,MATCH($D291, 'Full Results Database'!$E$1:$F$1,0)), 'Full Results Database'!$B$5:$B$549, $B291, 'Full Results Database'!$C$5:$C$549, AO$111) -> 0 | AP291: =IF($C$4="Real $2026",1,((1+'Advanced User Inputs'!$G$72)^(AP$111-2026))) * SUMIFS(INDEX('Full Results Database'!$E$5:$F$549,,MATCH($D291, 'Full Results Database'!$E$1:$F$1,0)), 'Full Results Database'!$B$5:$B$549, $B291, 'Full Results Database'!$C$5:$C$549, AP$111) -> 0 | AQ291: =IF($C$4="Real $2026",1,((1+'Advanced User Inputs'!$G$72)^(AQ$111-2026))) * SUMIFS(INDEX('Full Results Database'!$E$5:$F$549,,MATCH($D291, 'Full Results Database'!$E$1:$F$1,0)), 'Full Results Database'!$B$5:$B$549, $B291, 'Full Results Database'!$C$5:$C$549, AQ$111) -> 0 | AR291: =IF($C$4="Real $2026",1,((1+'Advanced User Inputs'!$G$72)^(AR$111-2026))) * SUMIFS(INDEX('Full Results Database'!$E$5:$F$549,,MATCH($D291, 'Full Results Database'!$E$1:$F$1,0)), 'Full Results Database'!$B$5:$B$549, $B291, 'Full Results Database'!$C$5:$C$549, AR$111) -> 0
B292: Additional DER Payments - Utility | C292: =$C$4 -> Real $2026 | D292: =active_scenario2 -> Cost Causer Pays | E292: =IF($C$4="Real $2026",1,((1+'Advanced User Inputs'!$G$72)^(E$111-2026))) * SUMIFS(INDEX('Full Results Database'!$E$5:$F$549,,MATCH($D292, 'Full Results Database'!$E$1:$F$1,0)), 'Full Results Database'!$B$5:$B$549, $B292, 'Full Results Database'!$C$5:$C$549, E$111) -> 0 | F292: =IF($C$4="Real $2026",1,((1+'Advanced User Inputs'!$G$72)^(F$111-2026))) * SUMIFS(INDEX('Full Results Database'!$E$5:$F$549,,MATCH($D292, 'Full Results Database'!$E$1:$F$1,0)), 'Full Results Database'!$B$5:$B$549, $B292, 'Full Results Database'!$C$5:$C$549, F$111) -> 0 | G292: =IF($C$4="Real $2026",1,((1+'Advanced User Inputs'!$G$72)^(G$111-2026))) * SUMIFS(INDEX('Full Results Database'!$E$5:$F$549,,MATCH($D292, 'Full Results Database'!$E$1:$F$1,0)), 'Full Results Database'!$B$5:$B$549, $B292, 'Full Results Database'!$C$5:$C$549, G$111) -> 0 | H292: =IF($C$4="Real $2026",1,((1+'Advanced User Inputs'!$G$72)^(H$111-2026))) * SUMIFS(INDEX('Full Results Database'!$E$5:$F$549,,MATCH($D292, 'Full Results Database'!$E$1:$F$1,0)), 'Full Results Database'!$B$5:$B$549, $B292, 'Full Results Database'!$C$5:$C$549, H$111) -> 0 | I292: =IF($C$4="Real $2026",1,((1+'Advanced User Inputs'!$G$72)^(I$111-2026))) * SUMIFS(INDEX('Full Results Database'!$E$5:$F$549,,MATCH($D292, 'Full Results Database'!$E$1:$F$1,0)), 'Full Results Database'!$B$5:$B$549, $B292, 'Full Results Database'!$C$5:$C$549, I$111) -> 0 | J292: =IF($C$4="Real $2026",1,((1+'Advanced User Inputs'!$G$72)^(J$111-2026))) * SUMIFS(INDEX('Full Results Database'!$E$5:$F$549,,MATCH($D292, 'Full Results Database'!$E$1:$F$1,0)), 'Full Results Database'!$B$5:$B$549, $B292, 'Full Results Database'!$C$5:$C$549, J$111) -> 0 | K292: =IF($C$4="Real $2026",1,((1+'Advanced User Inputs'!$G$72)^(K$111-2026))) * SUMIFS(INDEX('Full Results Database'!$E$5:$F$549,,MATCH($D292, 'Full Results Database'!$E$1:$F$1,0)), 'Full Results Database'!$B$5:$B$549, $B292, 'Full Results Database'!$C$5:$C$549, K$111) -> 0 | L292: =IF($C$4="Real $2026",1,((1+'Advanced User Inputs'!$G$72)^(L$111-2026))) * SUMIFS(INDEX('Full Results Database'!$E$5:$F$549,,MATCH($D292, 'Full Results Database'!$E$1:$F$1,0)), 'Full Results Database'!$B$5:$B$549, $B292, 'Full Results Database'!$C$5:$C$549, L$111) -> 0 | M292: =IF($C$4="Real $2026",1,((1+'Advanced User Inputs'!$G$72)^(M$111-2026))) * SUMIFS(INDEX('Full Results Database'!$E$5:$F$549,,MATCH($D292, 'Full Results Database'!$E$1:$F$1,0)), 'Full Results Database'!$B$5:$B$549, $B292, 'Full Results Database'!$C$5:$C$549, M$111) -> 0 | N292: =IF($C$4="Real $2026",1,((1+'Advanced User Inputs'!$G$72)^(N$111-2026))) * SUMIFS(INDEX('Full Results Database'!$E$5:$F$549,,MATCH($D292, 'Full Results Database'!$E$1:$F$1,0)), 'Full Results Database'!$B$5:$B$549, $B292, 'Full Results Database'!$C$5:$C$549, N$111) -> 0 | O292: =IF($C$4="Real $2026",1,((1+'Advanced User Inputs'!$G$72)^(O$111-2026))) * SUMIFS(INDEX('Full Results Database'!$E$5:$F$549,,MATCH($D292, 'Full Results Database'!$E$1:$F$1,0)), 'Full Results Database'!$B$5:$B$549, $B292, 'Full Results Database'!$C$5:$C$549, O$111) -> 0 | P292: =IF($C$4="Real $2026",1,((1+'Advanced User Inputs'!$G$72)^(P$111-2026))) * SUMIFS(INDEX('Full Results Database'!$E$5:$F$549,,MATCH($D292, 'Full Results Database'!$E$1:$F$1,0)), 'Full Results Database'!$B$5:$B$549, $B292, 'Full Results Database'!$C$5:$C$549, P$111) -> 0 | Q292: =IF($C$4="Real $2026",1,((1+'Advanced User Inputs'!$G$72)^(Q$111-2026))) * SUMIFS(INDEX('Full Results Database'!$E$5:$F$549,,MATCH($D292, 'Full Results Database'!$E$1:$F$1,0)), 'Full Results Database'!$B$5:$B$549, $B292, 'Full Results Database'!$C$5:$C$549, Q$111) -> 0 | R292: =IF($C$4="Real $2026",1,((1+'Advanced User Inputs'!$G$72)^(R$111-2026))) * SUMIFS(INDEX('Full Results Database'!$E$5:$F$549,,MATCH($D292, 'Full Results Database'!$E$1:$F$1,0)), 'Full Results Database'!$B$5:$B$549, $B292, 'Full Results Database'!$C$5:$C$549, R$111) -> 0 | S292: =IF($C$4="Real $2026",1,((1+'Advanced User Inputs'!$G$72)^(S$111-2026))) * SUMIFS(INDEX('Full Results Database'!$E$5:$F$549,,MATCH($D292, 'Full Results Database'!$E$1:$F$1,0)), 'Full Results Database'!$B$5:$B$549, $B292, 'Full Results Database'!$C$5:$C$549, S$111) -> 0 | T292: =IF($C$4="Real $2026",1,((1+'Advanced User Inputs'!$G$72)^(T$111-2026))) * SUMIFS(INDEX('Full Results Database'!$E$5:$F$549,,MATCH($D292, 'Full Results Database'!$E$1:$F$1,0)), 'Full Results Database'!$B$5:$B$549, $B292, 'Full Results Database'!$C$5:$C$549, T$111) -> 0 | U292: =IF($C$4="Real $2026",1,((1+'Advanced User Inputs'!$G$72)^(U$111-2026))) * SUMIFS(INDEX('Full Results Database'!$E$5:$F$549,,MATCH($D292, 'Full Results Database'!$E$1:$F$1,0)), 'Full Results Database'!$B$5:$B$549, $B292, 'Full Results Database'!$C$5:$C$549, U$111) -> 0 | V292: =IF($C$4="Real $2026",1,((1+'Advanced User Inputs'!$G$72)^(V$111-2026))) * SUMIFS(INDEX('Full Results Database'!$E$5:$F$549,,MATCH($D292, 'Full Results Database'!$E$1:$F$1,0)), 'Full Results Database'!$B$5:$B$549, $B292, 'Full Results Database'!$C$5:$C$549, V$111) -> 0 | W292: =IF($C$4="Real $2026",1,((1+'Advanced User Inputs'!$G$72)^(W$111-2026))) * SUMIFS(INDEX('Full Results Database'!$E$5:$F$549,,MATCH($D292, 'Full Results Database'!$E$1:$F$1,0)), 'Full Results Database'!$B$5:$B$549, $B292, 'Full Results Database'!$C$5:$C$549, W$111) -> 0 | X292: =IF($C$4="Real $2026",1,((1+'Advanced User Inputs'!$G$72)^(X$111-2026))) * SUMIFS(INDEX('Full Results Database'!$E$5:$F$549,,MATCH($D292, 'Full Results Database'!$E$1:$F$1,0)), 'Full Results Database'!$B$5:$B$549, $B292, 'Full Results Database'!$C$5:$C$549, X$111) -> 0 | Y292: =IF($C$4="Real $2026",1,((1+'Advanced User Inputs'!$G$72)^(Y$111-2026))) * SUMIFS(INDEX('Full Results Database'!$E$5:$F$549,,MATCH($D292, 'Full Results Database'!$E$1:$F$1,0)), 'Full Results Database'!$B$5:$B$549, $B292, 'Full Results Database'!$C$5:$C$549, Y$111) -> 0 | Z292: =IF($C$4="Real $2026",1,((1+'Advanced User Inputs'!$G$72)^(Z$111-2026))) * SUMIFS(INDEX('Full Results Database'!$E$5:$F$549,,MATCH($D292, 'Full Results Database'!$E$1:$F$1,0)), 'Full Results Database'!$B$5:$B$549, $B292, 'Full Results Database'!$C$5:$C$549, Z$111) -> 0 | AA292: =IF($C$4="Real $2026",1,((1+'Advanced User Inputs'!$G$72)^(AA$111-2026))) * SUMIFS(INDEX('Full Results Database'!$E$5:$F$549,,MATCH($D292, 'Full Results Database'!$E$1:$F$1,0)), 'Full Results Database'!$B$5:$B$549, $B292, 'Full Results Database'!$C$5:$C$549, AA$111) -> 0 | AB292: =IF($C$4="Real $2026",1,((1+'Advanced User Inputs'!$G$72)^(AB$111-2026))) * SUMIFS(INDEX('Full Results Database'!$E$5:$F$549,,MATCH($D292, 'Full Results Database'!$E$1:$F$1,0)), 'Full Results Database'!$B$5:$B$549, $B292, 'Full Results Database'!$C$5:$C$549, AB$111) -> 0 | AC292: =IF($C$4="Real $2026",1,((1+'Advanced User Inputs'!$G$72)^(AC$111-2026))) * SUMIFS(INDEX('Full Results Database'!$E$5:$F$549,,MATCH($D292, 'Full Results Database'!$E$1:$F$1,0)), 'Full Results Database'!$B$5:$B$549, $B292, 'Full Results Database'!$C$5:$C$549, AC$111) -> 0 | AD292: =IF($C$4="Real $2026",1,((1+'Advanced User Inputs'!$G$72)^(AD$111-2026))) * SUMIFS(INDEX('Full Results Database'!$E$5:$F$549,,MATCH($D292, 'Full Results Database'!$E$1:$F$1,0)), 'Full Results Database'!$B$5:$B$549, $B292, 'Full Results Database'!$C$5:$C$549, AD$111) -> 0 | AE292: =IF($C$4="Real $2026",1,((1+'Advanced User Inputs'!$G$72)^(AE$111-2026))) * SUMIFS(INDEX('Full Results Database'!$E$5:$F$549,,MATCH($D292, 'Full Results Database'!$E$1:$F$1,0)), 'Full Results Database'!$B$5:$B$549, $B292, 'Full Results Database'!$C$5:$C$549, AE$111) -> 0 | AF292: =IF($C$4="Real $2026",1,((1+'Advanced User Inputs'!$G$72)^(AF$111-2026))) * SUMIFS(INDEX('Full Results Database'!$E$5:$F$549,,MATCH($D292, 'Full Results Database'!$E$1:$F$1,0)), 'Full Results Database'!$B$5:$B$549, $B292, 'Full Results Database'!$C$5:$C$549, AF$111) -> 0 | AG292: =IF($C$4="Real $2026",1,((1+'Advanced User Inputs'!$G$72)^(AG$111-2026))) * SUMIFS(INDEX('Full Results Database'!$E$5:$F$549,,MATCH($D292, 'Full Results Database'!$E$1:$F$1,0)), 'Full Results Database'!$B$5:$B$549, $B292, 'Full Results Database'!$C$5:$C$549, AG$111) -> 0 | AH292: =IF($C$4="Real $2026",1,((1+'Advanced User Inputs'!$G$72)^(AH$111-2026))) * SUMIFS(INDEX('Full Results Database'!$E$5:$F$549,,MATCH($D292, 'Full Results Database'!$E$1:$F$1,0)), 'Full Results Database'!$B$5:$B$549, $B292, 'Full Results Database'!$C$5:$C$549, AH$111) -> 0 | AI292: =IF($C$4="Real $2026",1,((1+'Advanced User Inputs'!$G$72)^(AI$111-2026))) * SUMIFS(INDEX('Full Results Database'!$E$5:$F$549,,MATCH($D292, 'Full Results Database'!$E$1:$F$1,0)), 'Full Results Database'!$B$5:$B$549, $B292, 'Full Results Database'!$C$5:$C$549, AI$111) -> 0 | AJ292: =IF($C$4="Real $2026",1,((1+'Advanced User Inputs'!$G$72)^(AJ$111-2026))) * SUMIFS(INDEX('Full Results Database'!$E$5:$F$549,,MATCH($D292, 'Full Results Database'!$E$1:$F$1,0)), 'Full Results Database'!$B$5:$B$549, $B292, 'Full Results Database'!$C$5:$C$549, AJ$111) -> 0 | AK292: =IF($C$4="Real $2026",1,((1+'Advanced User Inputs'!$G$72)^(AK$111-2026))) * SUMIFS(INDEX('Full Results Database'!$E$5:$F$549,,MATCH($D292, 'Full Results Database'!$E$1:$F$1,0)), 'Full Results Database'!$B$5:$B$549, $B292, 'Full Results Database'!$C$5:$C$549, AK$111) -> 0 | AL292: =IF($C$4="Real $2026",1,((1+'Advanced User Inputs'!$G$72)^(AL$111-2026))) * SUMIFS(INDEX('Full Results Database'!$E$5:$F$549,,MATCH($D292, 'Full Results Database'!$E$1:$F$1,0)), 'Full Results Database'!$B$5:$B$549, $B292, 'Full Results Database'!$C$5:$C$549, AL$111) -> 0 | AM292: =IF($C$4="Real $2026",1,((1+'Advanced User Inputs'!$G$72)^(AM$111-2026))) * SUMIFS(INDEX('Full Results Database'!$E$5:$F$549,,MATCH($D292, 'Full Results Database'!$E$1:$F$1,0)), 'Full Results Database'!$B$5:$B$549, $B292, 'Full Results Database'!$C$5:$C$549, AM$111) -> 0 | AN292: =IF($C$4="Real $2026",1,((1+'Advanced User Inputs'!$G$72)^(AN$111-2026))) * SUMIFS(INDEX('Full Results Database'!$E$5:$F$549,,MATCH($D292, 'Full Results Database'!$E$1:$F$1,0)), 'Full Results Database'!$B$5:$B$549, $B292, 'Full Results Database'!$C$5:$C$549, AN$111) -> 0 | AO292: =IF($C$4="Real $2026",1,((1+'Advanced User Inputs'!$G$72)^(AO$111-2026))) * SUMIFS(INDEX('Full Results Database'!$E$5:$F$549,,MATCH($D292, 'Full Results Database'!$E$1:$F$1,0)), 'Full Results Database'!$B$5:$B$549, $B292, 'Full Results Database'!$C$5:$C$549, AO$111) -> 0 | AP292: =IF($C$4="Real $2026",1,((1+'Advanced User Inputs'!$G$72)^(AP$111-2026))) * SUMIFS(INDEX('Full Results Database'!$E$5:$F$549,,MATCH($D292, 'Full Results Database'!$E$1:$F$1,0)), 'Full Results Database'!$B$5:$B$549, $B292, 'Full Results Database'!$C$5:$C$549, AP$111) -> 0 | AQ292: =IF($C$4="Real $2026",1,((1+'Advanced User Inputs'!$G$72)^(AQ$111-2026))) * SUMIFS(INDEX('Full Results Database'!$E$5:$F$549,,MATCH($D292, 'Full Results Database'!$E$1:$F$1,0)), 'Full Results Database'!$B$5:$B$549, $B292, 'Full Results Database'!$C$5:$C$549, AQ$111) -> 0 | AR292: =IF($C$4="Real $2026",1,((1+'Advanced User Inputs'!$G$72)^(AR$111-2026))) * SUMIFS(INDEX('Full Results Database'!$E$5:$F$549,,MATCH($D292, 'Full Results Database'!$E$1:$F$1,0)), 'Full Results Database'!$B$5:$B$549, $B292, 'Full Results Database'!$C$5:$C$549, AR$111) -> 0
B294: Payment Type | C294: Units | D294: Scenario | E294: NPV | G294: The Net Present Value (NPV) represents the cost to each party discounted for the time value of money. For example, if a DER pays costs upfront and is reimbursed later by another party, the NPV of the later payments would be lower since they are discounted to the future year. | K294: NOTE: Results are highly dependent on input values and should be used to compare relative impacts between scenarios, not to calculate absolute costs of DER interconnection.
B295: Total Additional DER Cashflow | C295: =$C$4 -> Real $2026 | D295: =active_scenario1 -> Reimbursement | E295: =NPV(IF($C$4 = "Nominal", 'Advanced User Inputs'!$G$67,'Advanced User Inputs'!$G$68),_xlfn.IFNA($F285:$AS285,0))+E285 -> -4354187.313
B296: Additional DER Payments - Target DER | C296: =$C$4 -> Real $2026 | D296: =active_scenario1 -> Reimbursement | E296: =NPV(IF($C$4 = "Nominal", 'Advanced User Inputs'!$G$67,'Advanced User Inputs'!$G$68),_xlfn.IFNA($F286:$AS286,0))+E286 -> -4354187.313
B297: Additional DER Payments - Utility | C297: =$C$4 -> Real $2026 | D297: =active_scenario1 -> Reimbursement | E297: =NPV(IF($C$4 = "Nominal", 'Advanced User Inputs'!$G$67,'Advanced User Inputs'!$G$68),_xlfn.IFNA($F287:$AS287,0))+E287 -> 0
B299: Payment Type | C299: Units | D299: Scenario | E299: NPV
B300: Total Additional DER Cashflow | C300: =$C$4 -> Real $2026 | D300: =active_scenario2 -> Cost Causer Pays | E300: =NPV(IF($C$4 = "Nominal", 'Advanced User Inputs'!$G$67,'Advanced User Inputs'!$G$68),_xlfn.IFNA($F290:$AS290,0))+E290 -> 0
B301: Additional DER Payments - Target DER | C301: =$C$4 -> Real $2026 | D301: =active_scenario2 -> Cost Causer Pays | E301: =NPV(IF($C$4 = "Nominal", 'Advanced User Inputs'!$G$67,'Advanced User Inputs'!$G$68),_xlfn.IFNA($F291:$AS291,0))+E291 -> 0
B302: Additional DER Payments - Utility | C302: =$C$4 -> Real $2026 | D302: =active_scenario2 -> Cost Causer Pays | E302: =NPV(IF($C$4 = "Nominal", 'Advanced User Inputs'!$G$67,'Advanced User Inputs'!$G$68),_xlfn.IFNA($F292:$AS292,0))+E292 -> 0
B304: =_xlfn.CONCAT(B295, ", ", D295," (", C295,")") -> Total Additional DER Cashflow, Reimbursement (Real $2026)
B305: =_xlfn.CONCAT(B300, ", ", D300," (", C300,")") -> Total Additional DER Cashflow, Cost Causer Pays (Real $2026)
C326: =active_scenario1 -> Reimbursement | D326: =active_scenario2 -> Cost Causer Pays
B327: Total Additional DER Cashflow | C327: =E295:E297 -> -4354187.313 | D327: =E300:E302 -> 0
B328: Additional DER Payments - Target DER | C328: -4354187.313 | D328: 0
B329: Additional DER Payments - Utility | C329: 0 | D329: 0
C333: =_xlfn.CONCAT( "NPV of Total Additional DER Cashflow (", C290,")") -> NPV of Total Additional DER Cashflow (Real $2026)
A346: Supporting Calculations
A348: Capital Recovery Calculations
B350: - Since the costs that ratepayers incur in each year are recovered over a defined asset lifetime rather than all at once, the model calculates an annual levelized payment using a capital recovery approach based on standard utility ratemaking principles.
B351: - This approach ensures that ratepayer costs are spread appropriately over the useful life of each distribution upgrade, reflecting how a utility would actually recover these costs through rates, and allowing for meaningful comparison of ratepayer impacts across cost allocation scenarios over time.
B352: - In each year that new ratepayer costs are incurred, the model tracks the asset placed in service, calculates straight-line depreciation over the book life, and applies the utility's rate of return to the remaining net plant balance to determine the annual return component.
B353: - Depreciation plus return equals the annual contribution to the utility's revenue requirement.
B354: - Line-by-line documentation can be found to the right of the calculation table in column AT.
B356: Input Type | C356: Units | D356: Scenario | E356: 2026 | F356: 2027 | G356: 2028 | H356: 2029 | I356: 2030 | J356: 2031 | K356: 2032 | L356: 2033 | M356: 2034 | N356: 2035 | O356: 2036 | P356: 2037 | Q356: 2038 | R356: 2039 | S356: 2040 | T356: 2041 | U356: 2042 | V356: 2043 | W356: 2044 | X356: 2045 | Y356: 2046 | Z356: 2047 | AA356: 2048 | AB356: 2049 | AC356: 2050 | AD356: 2051 | AE356: 2052 | AF356: 2053 | AG356: 2054 | AH356: 2055 | AI356: 2056 | AJ356: 2057 | AK356: 2058 | AL356: 2059 | AM356: 2060 | AN356: 2061 | AO356: 2062 | AP356: 2063 | AQ356: 2064 | AR356: 2065 | AS356: //
B357: Utility Costs - Ratepayer Funded | C357: $ | D357: =active_scenario1 -> Reimbursement | E357: =IF($C$4="Real $2026",1,((1+'Advanced User Inputs'!$G$72)^(E$111-2026))) * SUMIFS(INDEX('Full Results Database'!$E$5:$F$549,,MATCH($D357, 'Full Results Database'!$E$1:$F$1,0)), 'Full Results Database'!$B$5:$B$549, $B357, 'Full Results Database'!$C$5:$C$549, E$111) -> 0 | F357: =IF($C$4="Real $2026",1,((1+'Advanced User Inputs'!$G$72)^(F$111-2026))) * SUMIFS(INDEX('Full Results Database'!$E$5:$F$549,,MATCH($D357, 'Full Results Database'!$E$1:$F$1,0)), 'Full Results Database'!$B$5:$B$549, $B357, 'Full Results Database'!$C$5:$C$549, F$111) -> 0 | G357: =IF($C$4="Real $2026",1,((1+'Advanced User Inputs'!$G$72)^(G$111-2026))) * SUMIFS(INDEX('Full Results Database'!$E$5:$F$549,,MATCH($D357, 'Full Results Database'!$E$1:$F$1,0)), 'Full Results Database'!$B$5:$B$549, $B357, 'Full Results Database'!$C$5:$C$549, G$111) -> 0 | H357: =IF($C$4="Real $2026",1,((1+'Advanced User Inputs'!$G$72)^(H$111-2026))) * SUMIFS(INDEX('Full Results Database'!$E$5:$F$549,,MATCH($D357, 'Full Results Database'!$E$1:$F$1,0)), 'Full Results Database'!$B$5:$B$549, $B357, 'Full Results Database'!$C$5:$C$549, H$111) -> 0 | I357: =IF($C$4="Real $2026",1,((1+'Advanced User Inputs'!$G$72)^(I$111-2026))) * SUMIFS(INDEX('Full Results Database'!$E$5:$F$549,,MATCH($D357, 'Full Results Database'!$E$1:$F$1,0)), 'Full Results Database'!$B$5:$B$549, $B357, 'Full Results Database'!$C$5:$C$549, I$111) -> 0 | J357: =IF($C$4="Real $2026",1,((1+'Advanced User Inputs'!$G$72)^(J$111-2026))) * SUMIFS(INDEX('Full Results Database'!$E$5:$F$549,,MATCH($D357, 'Full Results Database'!$E$1:$F$1,0)), 'Full Results Database'!$B$5:$B$549, $B357, 'Full Results Database'!$C$5:$C$549, J$111) -> 0 | K357: =IF($C$4="Real $2026",1,((1+'Advanced User Inputs'!$G$72)^(K$111-2026))) * SUMIFS(INDEX('Full Results Database'!$E$5:$F$549,,MATCH($D357, 'Full Results Database'!$E$1:$F$1,0)), 'Full Results Database'!$B$5:$B$549, $B357, 'Full Results Database'!$C$5:$C$549, K$111) -> 0 | L357: =IF($C$4="Real $2026",1,((1+'Advanced User Inputs'!$G$72)^(L$111-2026))) * SUMIFS(INDEX('Full Results Database'!$E$5:$F$549,,MATCH($D357, 'Full Results Database'!$E$1:$F$1,0)), 'Full Results Database'!$B$5:$B$549, $B357, 'Full Results Database'!$C$5:$C$549, L$111) -> 0 | M357: =IF($C$4="Real $2026",1,((1+'Advanced User Inputs'!$G$72)^(M$111-2026))) * SUMIFS(INDEX('Full Results Database'!$E$5:$F$549,,MATCH($D357, 'Full Results Database'!$E$1:$F$1,0)), 'Full Results Database'!$B$5:$B$549, $B357, 'Full Results Database'!$C$5:$C$549, M$111) -> 0 | N357: =IF($C$4="Real $2026",1,((1+'Advanced User Inputs'!$G$72)^(N$111-2026))) * SUMIFS(INDEX('Full Results Database'!$E$5:$F$549,,MATCH($D357, 'Full Results Database'!$E$1:$F$1,0)), 'Full Results Database'!$B$5:$B$549, $B357, 'Full Results Database'!$C$5:$C$549, N$111) -> 0 | O357: =IF($C$4="Real $2026",1,((1+'Advanced User Inputs'!$G$72)^(O$111-2026))) * SUMIFS(INDEX('Full Results Database'!$E$5:$F$549,,MATCH($D357, 'Full Results Database'!$E$1:$F$1,0)), 'Full Results Database'!$B$5:$B$549, $B357, 'Full Results Database'!$C$5:$C$549, O$111) -> 0 | P357: =IF($C$4="Real $2026",1,((1+'Advanced User Inputs'!$G$72)^(P$111-2026))) * SUMIFS(INDEX('Full Results Database'!$E$5:$F$549,,MATCH($D357, 'Full Results Database'!$E$1:$F$1,0)), 'Full Results Database'!$B$5:$B$549, $B357, 'Full Results Database'!$C$5:$C$549, P$111) -> 0 | Q357: =IF($C$4="Real $2026",1,((1+'Advanced User Inputs'!$G$72)^(Q$111-2026))) * SUMIFS(INDEX('Full Results Database'!$E$5:$F$549,,MATCH($D357, 'Full Results Database'!$E$1:$F$1,0)), 'Full Results Database'!$B$5:$B$549, $B357, 'Full Results Database'!$C$5:$C$549, Q$111) -> 0 | R357: =IF($C$4="Real $2026",1,((1+'Advanced User Inputs'!$G$72)^(R$111-2026))) * SUMIFS(INDEX('Full Results Database'!$E$5:$F$549,,MATCH($D357, 'Full Results Database'!$E$1:$F$1,0)), 'Full Results Database'!$B$5:$B$549, $B357, 'Full Results Database'!$C$5:$C$549, R$111) -> 0 | S357: =IF($C$4="Real $2026",1,((1+'Advanced User Inputs'!$G$72)^(S$111-2026))) * SUMIFS(INDEX('Full Results Database'!$E$5:$F$549,,MATCH($D357, 'Full Results Database'!$E$1:$F$1,0)), 'Full Results Database'!$B$5:$B$549, $B357, 'Full Results Database'!$C$5:$C$549, S$111) -> 0 | T357: =IF($C$4="Real $2026",1,((1+'Advanced User Inputs'!$G$72)^(T$111-2026))) * SUMIFS(INDEX('Full Results Database'!$E$5:$F$549,,MATCH($D357, 'Full Results Database'!$E$1:$F$1,0)), 'Full Results Database'!$B$5:$B$549, $B357, 'Full Results Database'!$C$5:$C$549, T$111) -> 0 | U357: =IF($C$4="Real $2026",1,((1+'Advanced User Inputs'!$G$72)^(U$111-2026))) * SUMIFS(INDEX('Full Results Database'!$E$5:$F$549,,MATCH($D357, 'Full Results Database'!$E$1:$F$1,0)), 'Full Results Database'!$B$5:$B$549, $B357, 'Full Results Database'!$C$5:$C$549, U$111) -> 0 | V357: =IF($C$4="Real $2026",1,((1+'Advanced User Inputs'!$G$72)^(V$111-2026))) * SUMIFS(INDEX('Full Results Database'!$E$5:$F$549,,MATCH($D357, 'Full Results Database'!$E$1:$F$1,0)), 'Full Results Database'!$B$5:$B$549, $B357, 'Full Results Database'!$C$5:$C$549, V$111) -> 0 | W357: =IF($C$4="Real $2026",1,((1+'Advanced User Inputs'!$G$72)^(W$111-2026))) * SUMIFS(INDEX('Full Results Database'!$E$5:$F$549,,MATCH($D357, 'Full Results Database'!$E$1:$F$1,0)), 'Full Results Database'!$B$5:$B$549, $B357, 'Full Results Database'!$C$5:$C$549, W$111) -> 0 | X357: =IF($C$4="Real $2026",1,((1+'Advanced User Inputs'!$G$72)^(X$111-2026))) * SUMIFS(INDEX('Full Results Database'!$E$5:$F$549,,MATCH($D357, 'Full Results Database'!$E$1:$F$1,0)), 'Full Results Database'!$B$5:$B$549, $B357, 'Full Results Database'!$C$5:$C$549, X$111) -> 0 | Y357: =IF($C$4="Real $2026",1,((1+'Advanced User Inputs'!$G$72)^(Y$111-2026))) * SUMIFS(INDEX('Full Results Database'!$E$5:$F$549,,MATCH($D357, 'Full Results Database'!$E$1:$F$1,0)), 'Full Results Database'!$B$5:$B$549, $B357, 'Full Results Database'!$C$5:$C$549, Y$111) -> 0 | Z357: =IF($C$4="Real $2026",1,((1+'Advanced User Inputs'!$G$72)^(Z$111-2026))) * SUMIFS(INDEX('Full Results Database'!$E$5:$F$549,,MATCH($D357, 'Full Results Database'!$E$1:$F$1,0)), 'Full Results Database'!$B$5:$B$549, $B357, 'Full Results Database'!$C$5:$C$549, Z$111) -> 0 | AA357: =IF($C$4="Real $2026",1,((1+'Advanced User Inputs'!$G$72)^(AA$111-2026))) * SUMIFS(INDEX('Full Results Database'!$E$5:$F$549,,MATCH($D357, 'Full Results Database'!$E$1:$F$1,0)), 'Full Results Database'!$B$5:$B$549, $B357, 'Full Results Database'!$C$5:$C$549, AA$111) -> 0 | AB357: =IF($C$4="Real $2026",1,((1+'Advanced User Inputs'!$G$72)^(AB$111-2026))) * SUMIFS(INDEX('Full Results Database'!$E$5:$F$549,,MATCH($D357, 'Full Results Database'!$E$1:$F$1,0)), 'Full Results Database'!$B$5:$B$549, $B357, 'Full Results Database'!$C$5:$C$549, AB$111) -> 0 | AC357: =IF($C$4="Real $2026",1,((1+'Advanced User Inputs'!$G$72)^(AC$111-2026))) * SUMIFS(INDEX('Full Results Database'!$E$5:$F$549,,MATCH($D357, 'Full Results Database'!$E$1:$F$1,0)), 'Full Results Database'!$B$5:$B$549, $B357, 'Full Results Database'!$C$5:$C$549, AC$111) -> 0 | AD357: =IF($C$4="Real $2026",1,((1+'Advanced User Inputs'!$G$72)^(AD$111-2026))) * SUMIFS(INDEX('Full Results Database'!$E$5:$F$549,,MATCH($D357, 'Full Results Database'!$E$1:$F$1,0)), 'Full Results Database'!$B$5:$B$549, $B357, 'Full Results Database'!$C$5:$C$549, AD$111) -> 0 | AE357: =IF($C$4="Real $2026",1,((1+'Advanced User Inputs'!$G$72)^(AE$111-2026))) * SUMIFS(INDEX('Full Results Database'!$E$5:$F$549,,MATCH($D357, 'Full Results Database'!$E$1:$F$1,0)), 'Full Results Database'!$B$5:$B$549, $B357, 'Full Results Database'!$C$5:$C$549, AE$111) -> 0 | AF357: =IF($C$4="Real $2026",1,((1+'Advanced User Inputs'!$G$72)^(AF$111-2026))) * SUMIFS(INDEX('Full Results Database'!$E$5:$F$549,,MATCH($D357, 'Full Results Database'!$E$1:$F$1,0)), 'Full Results Database'!$B$5:$B$549, $B357, 'Full Results Database'!$C$5:$C$549, AF$111) -> 0 | AG357: =IF($C$4="Real $2026",1,((1+'Advanced User Inputs'!$G$72)^(AG$111-2026))) * SUMIFS(INDEX('Full Results Database'!$E$5:$F$549,,MATCH($D357, 'Full Results Database'!$E$1:$F$1,0)), 'Full Results Database'!$B$5:$B$549, $B357, 'Full Results Database'!$C$5:$C$549, AG$111) -> 0 | AH357: =IF($C$4="Real $2026",1,((1+'Advanced User Inputs'!$G$72)^(AH$111-2026))) * SUMIFS(INDEX('Full Results Database'!$E$5:$F$549,,MATCH($D357, 'Full Results Database'!$E$1:$F$1,0)), 'Full Results Database'!$B$5:$B$549, $B357, 'Full Results Database'!$C$5:$C$549, AH$111) -> 0 | AI357: =IF($C$4="Real $2026",1,((1+'Advanced User Inputs'!$G$72)^(AI$111-2026))) * SUMIFS(INDEX('Full Results Database'!$E$5:$F$549,,MATCH($D357, 'Full Results Database'!$E$1:$F$1,0)), 'Full Results Database'!$B$5:$B$549, $B357, 'Full Results Database'!$C$5:$C$549, AI$111) -> 0 | AJ357: =IF($C$4="Real $2026",1,((1+'Advanced User Inputs'!$G$72)^(AJ$111-2026))) * SUMIFS(INDEX('Full Results Database'!$E$5:$F$549,,MATCH($D357, 'Full Results Database'!$E$1:$F$1,0)), 'Full Results Database'!$B$5:$B$549, $B357, 'Full Results Database'!$C$5:$C$549, AJ$111) -> 0 | AK357: =IF($C$4="Real $2026",1,((1+'Advanced User Inputs'!$G$72)^(AK$111-2026))) * SUMIFS(INDEX('Full Results Database'!$E$5:$F$549,,MATCH($D357, 'Full Results Database'!$E$1:$F$1,0)), 'Full Results Database'!$B$5:$B$549, $B357, 'Full Results Database'!$C$5:$C$549, AK$111) -> 0 | AL357: =IF($C$4="Real $2026",1,((1+'Advanced User Inputs'!$G$72)^(AL$111-2026))) * SUMIFS(INDEX('Full Results Database'!$E$5:$F$549,,MATCH($D357, 'Full Results Database'!$E$1:$F$1,0)), 'Full Results Database'!$B$5:$B$549, $B357, 'Full Results Database'!$C$5:$C$549, AL$111) -> 0 | AM357: =IF($C$4="Real $2026",1,((1+'Advanced User Inputs'!$G$72)^(AM$111-2026))) * SUMIFS(INDEX('Full Results Database'!$E$5:$F$549,,MATCH($D357, 'Full Results Database'!$E$1:$F$1,0)), 'Full Results Database'!$B$5:$B$549, $B357, 'Full Results Database'!$C$5:$C$549, AM$111) -> 0 | AN357: =IF($C$4="Real $2026",1,((1+'Advanced User Inputs'!$G$72)^(AN$111-2026))) * SUMIFS(INDEX('Full Results Database'!$E$5:$F$549,,MATCH($D357, 'Full Results Database'!$E$1:$F$1,0)), 'Full Results Database'!$B$5:$B$549, $B357, 'Full Results Database'!$C$5:$C$549, AN$111) -> 0 | AO357: =IF($C$4="Real $2026",1,((1+'Advanced User Inputs'!$G$72)^(AO$111-2026))) * SUMIFS(INDEX('Full Results Database'!$E$5:$F$549,,MATCH($D357, 'Full Results Database'!$E$1:$F$1,0)), 'Full Results Database'!$B$5:$B$549, $B357, 'Full Results Database'!$C$5:$C$549, AO$111) -> 0 | AP357: =IF($C$4="Real $2026",1,((1+'Advanced User Inputs'!$G$72)^(AP$111-2026))) * SUMIFS(INDEX('Full Results Database'!$E$5:$F$549,,MATCH($D357, 'Full Results Database'!$E$1:$F$1,0)), 'Full Results Database'!$B$5:$B$549, $B357, 'Full Results Database'!$C$5:$C$549, AP$111) -> 0 | AQ357: =IF($C$4="Real $2026",1,((1+'Advanced User Inputs'!$G$72)^(AQ$111-2026))) * SUMIFS(INDEX('Full Results Database'!$E$5:$F$549,,MATCH($D357, 'Full Results Database'!$E$1:$F$1,0)), 'Full Results Database'!$B$5:$B$549, $B357, 'Full Results Database'!$C$5:$C$549, AQ$111) -> 0 | AR357: =IF($C$4="Real $2026",1,((1+'Advanced User Inputs'!$G$72)^(AR$111-2026))) * SUMIFS(INDEX('Full Results Database'!$E$5:$F$549,,MATCH($D357, 'Full Results Database'!$E$1:$F$1,0)), 'Full Results Database'!$B$5:$B$549, $B357, 'Full Results Database'!$C$5:$C$549, AR$111) -> 0 | AT357: [1]
B358: Asset Retirement Year | C358: Year | D358: Reimbursement | E358: =E356+'Advanced User Inputs'!$G$66 -> 2046 | F358: =F356+'Advanced User Inputs'!$G$66 -> 2047 | G358: =G356+'Advanced User Inputs'!$G$66 -> 2048 | H358: =H356+'Advanced User Inputs'!$G$66 -> 2049 | I358: =I356+'Advanced User Inputs'!$G$66 -> 2050 | J358: =J356+'Advanced User Inputs'!$G$66 -> 2051 | K358: =K356+'Advanced User Inputs'!$G$66 -> 2052 | L358: =L356+'Advanced User Inputs'!$G$66 -> 2053 | M358: =M356+'Advanced User Inputs'!$G$66 -> 2054 | N358: =N356+'Advanced User Inputs'!$G$66 -> 2055 | O358: =O356+'Advanced User Inputs'!$G$66 -> 2056 | P358: =P356+'Advanced User Inputs'!$G$66 -> 2057 | Q358: =Q356+'Advanced User Inputs'!$G$66 -> 2058 | R358: =R356+'Advanced User Inputs'!$G$66 -> 2059 | S358: =S356+'Advanced User Inputs'!$G$66 -> 2060 | T358: =T356+'Advanced User Inputs'!$G$66 -> 2061 | U358: =U356+'Advanced User Inputs'!$G$66 -> 2062 | V358: =V356+'Advanced User Inputs'!$G$66 -> 2063 | W358: =W356+'Advanced User Inputs'!$G$66 -> 2064 | X358: =X356+'Advanced User Inputs'!$G$66 -> 2065 | Y358: =Y356+'Advanced User Inputs'!$G$66 -> 2066 | Z358: =Z356+'Advanced User Inputs'!$G$66 -> 2067 | AA358: =AA356+'Advanced User Inputs'!$G$66 -> 2068 | AB358: =AB356+'Advanced User Inputs'!$G$66 -> 2069 | AC358: =AC356+'Advanced User Inputs'!$G$66 -> 2070 | AD358: =AD356+'Advanced User Inputs'!$G$66 -> 2071 | AE358: =AE356+'Advanced User Inputs'!$G$66 -> 2072 | AF358: =AF356+'Advanced User Inputs'!$G$66 -> 2073 | AG358: =AG356+'Advanced User Inputs'!$G$66 -> 2074 | AH358: =AH356+'Advanced User Inputs'!$G$66 -> 2075 | AI358: =AI356+'Advanced User Inputs'!$G$66 -> 2076 | AJ358: =AJ356+'Advanced User Inputs'!$G$66 -> 2077 | AK358: =AK356+'Advanced User Inputs'!$G$66 -> 2078 | AL358: =AL356+'Advanced User Inputs'!$G$66 -> 2079 | AM358: =AM356+'Advanced User Inputs'!$G$66 -> 2080 | AN358: =AN356+'Advanced User Inputs'!$G$66 -> 2081 | AO358: =AO356+'Advanced User Inputs'!$G$66 -> 2082 | AP358: =AP356+'Advanced User Inputs'!$G$66 -> 2083 | AQ358: =AQ356+'Advanced User Inputs'!$G$66 -> 2084 | AR358: =AR356+'Advanced User Inputs'!$G$66 -> 2085 | AT358: [2] = In Service Year + Lifetime
B359: Total Plant in Service | C359: $ | D359: Reimbursement | E359: =SUMPRODUCT($E$357:$AR$357,1*(E356<$E$358:$AR$358),1*(E356>=$E$356:$AR$356)) -> 0 | F359: =SUMPRODUCT($E$357:$AR$357,1*(F356<$E$358:$AR$358),1*(F356>=$E$356:$AR$356)) -> 0 | G359: =SUMPRODUCT($E$357:$AR$357,1*(G356<$E$358:$AR$358),1*(G356>=$E$356:$AR$356)) -> 0 | H359: =SUMPRODUCT($E$357:$AR$357,1*(H356<$E$358:$AR$358),1*(H356>=$E$356:$AR$356)) -> 0 | I359: =SUMPRODUCT($E$357:$AR$357,1*(I356<$E$358:$AR$358),1*(I356>=$E$356:$AR$356)) -> 0 | J359: =SUMPRODUCT($E$357:$AR$357,1*(J356<$E$358:$AR$358),1*(J356>=$E$356:$AR$356)) -> 0 | K359: =SUMPRODUCT($E$357:$AR$357,1*(K356<$E$358:$AR$358),1*(K356>=$E$356:$AR$356)) -> 0 | L359: =SUMPRODUCT($E$357:$AR$357,1*(L356<$E$358:$AR$358),1*(L356>=$E$356:$AR$356)) -> 0 | M359: =SUMPRODUCT($E$357:$AR$357,1*(M356<$E$358:$AR$358),1*(M356>=$E$356:$AR$356)) -> 0 | N359: =SUMPRODUCT($E$357:$AR$357,1*(N356<$E$358:$AR$358),1*(N356>=$E$356:$AR$356)) -> 0 | O359: =SUMPRODUCT($E$357:$AR$357,1*(O356<$E$358:$AR$358),1*(O356>=$E$356:$AR$356)) -> 0 | P359: =SUMPRODUCT($E$357:$AR$357,1*(P356<$E$358:$AR$358),1*(P356>=$E$356:$AR$356)) -> 0 | Q359: =SUMPRODUCT($E$357:$AR$357,1*(Q356<$E$358:$AR$358),1*(Q356>=$E$356:$AR$356)) -> 0 | R359: =SUMPRODUCT($E$357:$AR$357,1*(R356<$E$358:$AR$358),1*(R356>=$E$356:$AR$356)) -> 0 | S359: =SUMPRODUCT($E$357:$AR$357,1*(S356<$E$358:$AR$358),1*(S356>=$E$356:$AR$356)) -> 0 | T359: =SUMPRODUCT($E$357:$AR$357,1*(T356<$E$358:$AR$358),1*(T356>=$E$356:$AR$356)) -> 0 | U359: =SUMPRODUCT($E$357:$AR$357,1*(U356<$E$358:$AR$358),1*(U356>=$E$356:$AR$356)) -> 0 | V359: =SUMPRODUCT($E$357:$AR$357,1*(V356<$E$358:$AR$358),1*(V356>=$E$356:$AR$356)) -> 0 | W359: =SUMPRODUCT($E$357:$AR$357,1*(W356<$E$358:$AR$358),1*(W356>=$E$356:$AR$356)) -> 0 | X359: =SUMPRODUCT($E$357:$AR$357,1*(X356<$E$358:$AR$358),1*(X356>=$E$356:$AR$356)) -> 0 | Y359: =SUMPRODUCT($E$357:$AR$357,1*(Y356<$E$358:$AR$358),1*(Y356>=$E$356:$AR$356)) -> 0 | Z359: =SUMPRODUCT($E$357:$AR$357,1*(Z356<$E$358:$AR$358),1*(Z356>=$E$356:$AR$356)) -> 0 | AA359: =SUMPRODUCT($E$357:$AR$357,1*(AA356<$E$358:$AR$358),1*(AA356>=$E$356:$AR$356)) -> 0 | AB359: =SUMPRODUCT($E$357:$AR$357,1*(AB356<$E$358:$AR$358),1*(AB356>=$E$356:$AR$356)) -> 0 | AC359: =SUMPRODUCT($E$357:$AR$357,1*(AC356<$E$358:$AR$358),1*(AC356>=$E$356:$AR$356)) -> 0 | AD359: =SUMPRODUCT($E$357:$AR$357,1*(AD356<$E$358:$AR$358),1*(AD356>=$E$356:$AR$356)) -> 0 | AE359: =SUMPRODUCT($E$357:$AR$357,1*(AE356<$E$358:$AR$358),1*(AE356>=$E$356:$AR$356)) -> 0 | AF359: =SUMPRODUCT($E$357:$AR$357,1*(AF356<$E$358:$AR$358),1*(AF356>=$E$356:$AR$356)) -> 0 | AG359: =SUMPRODUCT($E$357:$AR$357,1*(AG356<$E$358:$AR$358),1*(AG356>=$E$356:$AR$356)) -> 0 | AH359: =SUMPRODUCT($E$357:$AR$357,1*(AH356<$E$358:$AR$358),1*(AH356>=$E$356:$AR$356)) -> 0 | AI359: =SUMPRODUCT($E$357:$AR$357,1*(AI356<$E$358:$AR$358),1*(AI356>=$E$356:$AR$356)) -> 0 | AJ359: =SUMPRODUCT($E$357:$AR$357,1*(AJ356<$E$358:$AR$358),1*(AJ356>=$E$356:$AR$356)) -> 0 | AK359: =SUMPRODUCT($E$357:$AR$357,1*(AK356<$E$358:$AR$358),1*(AK356>=$E$356:$AR$356)) -> 0 | AL359: =SUMPRODUCT($E$357:$AR$357,1*(AL356<$E$358:$AR$358),1*(AL356>=$E$356:$AR$356)) -> 0 | AM359: =SUMPRODUCT($E$357:$AR$357,1*(AM356<$E$358:$AR$358),1*(AM356>=$E$356:$AR$356)) -> 0 | AN359: =SUMPRODUCT($E$357:$AR$357,1*(AN356<$E$358:$AR$358),1*(AN356>=$E$356:$AR$356)) -> 0 | AO359: =SUMPRODUCT($E$357:$AR$357,1*(AO356<$E$358:$AR$358),1*(AO356>=$E$356:$AR$356)) -> 0 | AP359: =SUMPRODUCT($E$357:$AR$357,1*(AP356<$E$358:$AR$358),1*(AP356>=$E$356:$AR$356)) -> 0 | AQ359: =SUMPRODUCT($E$357:$AR$357,1*(AQ356<$E$358:$AR$358),1*(AQ356>=$E$356:$AR$356)) -> 0 | AR359: =SUMPRODUCT($E$357:$AR$357,1*(AR356<$E$358:$AR$358),1*(AR356>=$E$356:$AR$356)) -> 0 | AT359: [3] = SUMIF( [1], In Service Year ≥ Current Year)
B360: Annual Depreciation | C360: $ | D360: Reimbursement | E360: =E359/'Advanced User Inputs'!$G$66 -> 0 | F360: =F359/'Advanced User Inputs'!$G$66 -> 0 | G360: =G359/'Advanced User Inputs'!$G$66 -> 0 | H360: =H359/'Advanced User Inputs'!$G$66 -> 0 | I360: =I359/'Advanced User Inputs'!$G$66 -> 0 | J360: =J359/'Advanced User Inputs'!$G$66 -> 0 | K360: =K359/'Advanced User Inputs'!$G$66 -> 0 | L360: =L359/'Advanced User Inputs'!$G$66 -> 0 | M360: =M359/'Advanced User Inputs'!$G$66 -> 0 | N360: =N359/'Advanced User Inputs'!$G$66 -> 0 | O360: =O359/'Advanced User Inputs'!$G$66 -> 0 | P360: =P359/'Advanced User Inputs'!$G$66 -> 0 | Q360: =Q359/'Advanced User Inputs'!$G$66 -> 0 | R360: =R359/'Advanced User Inputs'!$G$66 -> 0 | S360: =S359/'Advanced User Inputs'!$G$66 -> 0 | T360: =T359/'Advanced User Inputs'!$G$66 -> 0 | U360: =U359/'Advanced User Inputs'!$G$66 -> 0 | V360: =V359/'Advanced User Inputs'!$G$66 -> 0 | W360: =W359/'Advanced User Inputs'!$G$66 -> 0 | X360: =X359/'Advanced User Inputs'!$G$66 -> 0 | Y360: =Y359/'Advanced User Inputs'!$G$66 -> 0 | Z360: =Z359/'Advanced User Inputs'!$G$66 -> 0 | AA360: =AA359/'Advanced User Inputs'!$G$66 -> 0 | AB360: =AB359/'Advanced User Inputs'!$G$66 -> 0 | AC360: =AC359/'Advanced User Inputs'!$G$66 -> 0 | AD360: =AD359/'Advanced User Inputs'!$G$66 -> 0 | AE360: =AE359/'Advanced User Inputs'!$G$66 -> 0 | AF360: =AF359/'Advanced User Inputs'!$G$66 -> 0 | AG360: =AG359/'Advanced User Inputs'!$G$66 -> 0 | AH360: =AH359/'Advanced User Inputs'!$G$66 -> 0 | AI360: =AI359/'Advanced User Inputs'!$G$66 -> 0 | AJ360: =AJ359/'Advanced User Inputs'!$G$66 -> 0 | AK360: =AK359/'Advanced User Inputs'!$G$66 -> 0 | AL360: =AL359/'Advanced User Inputs'!$G$66 -> 0 | AM360: =AM359/'Advanced User Inputs'!$G$66 -> 0 | AN360: =AN359/'Advanced User Inputs'!$G$66 -> 0 | AO360: =AO359/'Advanced User Inputs'!$G$66 -> 0 | AP360: =AP359/'Advanced User Inputs'!$G$66 -> 0 | AQ360: =AQ359/'Advanced User Inputs'!$G$66 -> 0 | AR360: =AR359/'Advanced User Inputs'!$G$66 -> 0 | AT360: [4] = [3] / Lifetime
B361: Fully Depreciated Assets | C361: $ | D361: Reimbursement | E361: =SUMPRODUCT($E$357:$AR$357, 1*(E$356>=$E$358:$AR$358)) -> 0 | F361: =SUMPRODUCT($E$357:$AR$357, 1*(F$356>=$E$358:$AR$358)) -> 0 | G361: =SUMPRODUCT($E$357:$AR$357, 1*(G$356>=$E$358:$AR$358)) -> 0 | H361: =SUMPRODUCT($E$357:$AR$357, 1*(H$356>=$E$358:$AR$358)) -> 0 | I361: =SUMPRODUCT($E$357:$AR$357, 1*(I$356>=$E$358:$AR$358)) -> 0 | J361: =SUMPRODUCT($E$357:$AR$357, 1*(J$356>=$E$358:$AR$358)) -> 0 | K361: =SUMPRODUCT($E$357:$AR$357, 1*(K$356>=$E$358:$AR$358)) -> 0 | L361: =SUMPRODUCT($E$357:$AR$357, 1*(L$356>=$E$358:$AR$358)) -> 0 | M361: =SUMPRODUCT($E$357:$AR$357, 1*(M$356>=$E$358:$AR$358)) -> 0 | N361: =SUMPRODUCT($E$357:$AR$357, 1*(N$356>=$E$358:$AR$358)) -> 0 | O361: =SUMPRODUCT($E$357:$AR$357, 1*(O$356>=$E$358:$AR$358)) -> 0 | P361: =SUMPRODUCT($E$357:$AR$357, 1*(P$356>=$E$358:$AR$358)) -> 0 | Q361: =SUMPRODUCT($E$357:$AR$357, 1*(Q$356>=$E$358:$AR$358)) -> 0 | R361: =SUMPRODUCT($E$357:$AR$357, 1*(R$356>=$E$358:$AR$358)) -> 0 | S361: =SUMPRODUCT($E$357:$AR$357, 1*(S$356>=$E$358:$AR$358)) -> 0 | T361: =SUMPRODUCT($E$357:$AR$357, 1*(T$356>=$E$358:$AR$358)) -> 0 | U361: =SUMPRODUCT($E$357:$AR$357, 1*(U$356>=$E$358:$AR$358)) -> 0 | V361: =SUMPRODUCT($E$357:$AR$357, 1*(V$356>=$E$358:$AR$358)) -> 0 | W361: =SUMPRODUCT($E$357:$AR$357, 1*(W$356>=$E$358:$AR$358)) -> 0 | X361: =SUMPRODUCT($E$357:$AR$357, 1*(X$356>=$E$358:$AR$358)) -> 0 | Y361: =SUMPRODUCT($E$357:$AR$357, 1*(Y$356>=$E$358:$AR$358)) -> 0 | Z361: =SUMPRODUCT($E$357:$AR$357, 1*(Z$356>=$E$358:$AR$358)) -> 0 | AA361: =SUMPRODUCT($E$357:$AR$357, 1*(AA$356>=$E$358:$AR$358)) -> 0 | AB361: =SUMPRODUCT($E$357:$AR$357, 1*(AB$356>=$E$358:$AR$358)) -> 0 | AC361: =SUMPRODUCT($E$357:$AR$357, 1*(AC$356>=$E$358:$AR$358)) -> 0 | AD361: =SUMPRODUCT($E$357:$AR$357, 1*(AD$356>=$E$358:$AR$358)) -> 0 | AE361: =SUMPRODUCT($E$357:$AR$357, 1*(AE$356>=$E$358:$AR$358)) -> 0 | AF361: =SUMPRODUCT($E$357:$AR$357, 1*(AF$356>=$E$358:$AR$358)) -> 0 | AG361: =SUMPRODUCT($E$357:$AR$357, 1*(AG$356>=$E$358:$AR$358)) -> 0 | AH361: =SUMPRODUCT($E$357:$AR$357, 1*(AH$356>=$E$358:$AR$358)) -> 0 | AI361: =SUMPRODUCT($E$357:$AR$357, 1*(AI$356>=$E$358:$AR$358)) -> 0 | AJ361: =SUMPRODUCT($E$357:$AR$357, 1*(AJ$356>=$E$358:$AR$358)) -> 0 | AK361: =SUMPRODUCT($E$357:$AR$357, 1*(AK$356>=$E$358:$AR$358)) -> 0 | AL361: =SUMPRODUCT($E$357:$AR$357, 1*(AL$356>=$E$358:$AR$358)) -> 0 | AM361: =SUMPRODUCT($E$357:$AR$357, 1*(AM$356>=$E$358:$AR$358)) -> 0 | AN361: =SUMPRODUCT($E$357:$AR$357, 1*(AN$356>=$E$358:$AR$358)) -> 0 | AO361: =SUMPRODUCT($E$357:$AR$357, 1*(AO$356>=$E$358:$AR$358)) -> 0 | AP361: =SUMPRODUCT($E$357:$AR$357, 1*(AP$356>=$E$358:$AR$358)) -> 0 | AQ361: =SUMPRODUCT($E$357:$AR$357, 1*(AQ$356>=$E$358:$AR$358)) -> 0 | AR361: =SUMPRODUCT($E$357:$AR$357, 1*(AR$356>=$E$358:$AR$358)) -> 0 | AT361: [5] = SUMIF( [1], Retirement Year ≤ Current Year)
